Workbook

Sheet LDC Info
Z3: 1 | AA3: Alectra Utilities Corporation-Brampton Rate Zone
Z4: 2 | AA4: Alectra Utilities Corporation-Enersource Rate Zone
Z5: 3 | AA5: Alectra Utilities Corporation-Horizon Utilities Rate Zone
Z6: 4 | AA6: Alectra Utilities Corporation-PowerStream Rate Zone
Z7: 5 | AA7: Alectra Utilities Corporation-Guelph Rate Zone
Z8: 6 | AA8: Algoma Power Inc.
Z9: 7 | AA9: Atikokan Hydro Inc.
Z10: 8 | AA10: Bluewater Power Distribution Corporation
Z11: 9 | AA11: Brantford Power Inc.
Z12: 10 | AA12: Burlington Hydro Inc.
Z13: 11 | AA13: Canadian Niagara Power Inc.
D14: Utility Name | E14: Brantford Power Inc. | Z14: 12 | AA14: Centre Wellington Hydro Ltd.
Z15: 13 | AA15: Chapleau Public Utilities Corporation
D16: Assigned EB Number | E16: EB-2021-0009 | Z16: 14 | AA16: Cooperative Hydro Embrun Inc.
Z17: 15 | AA17: E.L.K. Energy Inc.
D18: Name of Contact and Title | E18: Oana Stefan, Manager of Regulatory Affairs | Z18: 16 | AA18: Elexicon Energy Inc.-Whitby Rate Zone
Z19: 17 | AA19: Elexicon Energy Inc.-Veridian Rate Zone
D20: Phone Number | E20: 519-751-3522 x 5477 | Z20: 18 | AA20: Energy+ Inc.
Z21: 19 | AA21: Entegrus Powerlines Inc.-For Entegrus-Main Rate Zone
D22: Email Address | E22: ostefan@brantford.ca | Z22: 20 | AA22: Entegrus Powerlines Inc.-For Former St. Thomas Energy Rate Zone
Z23: 21 | AA23: ENWIN Utilities Ltd.
D24: Test Year | E24: 2022 | Z24: 22 | AA24: EPCOR Electricity Distribution Ontario Inc.
Z25: 23 | AA25: ERTH Power Corporation - ERTH Power Main Rate Zone
D26: Bridge Year | E26: =IF(ISBLANK(E24), "", E24-1) -> 2021 | Z26: 24 | AA26: ERTH POWER CORPORATION – GODERICH RATE ZONE
Z27: 25 | AA27: Essex Powerlines Corporation
D28: Last Rebasing Year | E28: 2017 | Z28: 26 | AA28: Festival Hydro Inc.
Z29: 27 | AA29: Fort Frances Power Corporation
A30: Identify the accounting standard used for the test year | Z30: 28 | AA30: Greater Sudbury Hydro Inc.
E31: MIFRS | Z31: 29 | AA31: Grimsby Power Incorporated
Z32: 30 | AA32: Halton Hills Hydro Inc.
A33: ="Did "& E14 &" update its depreciation and capitalization policies?" -> Did Brantford Power Inc. update its depreciation and capitalization policies? | Z33: 31 | AA33: Hearst Power Distribution Co. Ltd.
E34: Yes | Z34: 32 | AA34: Hydro 2000 Inc.
Z35: 33 | AA35: Hydro Hawkesbury Inc.
A36: If "yes" to cell E34, were the changes in policies reflected in a prior rebasing application? | Z36: 34 | AA36: Hydro One Networks Inc.
E37: Yes | Z37: 35 | AA37: Hydro One Networks Inc.-Former Haldimand County Hydro Inc. Service Area
Z38: 36 | AA38: Hydro One Networks Inc.-Former Norfolk Power Distribution Inc. Service Area
A39: ="When did "&E14&" update its actual depreciation and capitalization policies?" -> When did Brantford Power Inc. update its actual depreciation and capitalization policies? | Z39: 37 | AA39: Hydro One Networks Inc.-Former Woodstock Hydro Services Inc. Service Area
E40: 2001-01-01 | F40: 2013 | Z40: 38 | AA40: Hydro One Remote Communites Inc.
Z41: 39 | AA41: Hydro Ottawa Limited
A42: Identify the year the applicant adopted IFRS for financial reporting purposes | Z42: 40 | AA42: InnPower Corporation
E43: 2015 | Z43: 41 | AA43: Kingston Hydro Corporation
Z44: 42 | AA44: Kitchener-Wilmot Hydro Inc.
Z45: 43 | AA45: Lakefront Utilities Inc.
A46: ="Is " & E14 & " applying for cost recovery for the test and/or future year(s) for Green Energy initiatives?" -> Is Brantford Power Inc. applying for cost recovery for the test and/or future year(s) for Green Energy initiatives? | Z46: 44 | AA46: Lakeland Power Distribution Ltd.
E47: No | Z47: 45 | AA47: Lakeland Power Distribution Ltd.-Parry Sound Service Area
Z48: 46 | AA48: London Hydro Inc.
A49: ="Is " & E14 & " an embedded distributor?" -> Is Brantford Power Inc. an embedded distributor? | E49: Partial | Z49: 47 | AA49: Milton Hydro Distribution Inc.
Z50: 48 | AA50: Newmarket-Tay Power Distribution Ltd.-For Former Midland Power Utility Rate Zone
Z51: 49 | AA51: Newmarket-Tay Power Distribution Ltd.-For Newmarket-Tay Power Main Rate Zone
B52: Notes | Z52: 50 | AA52: Niagara Peninsula Energy Inc.
Z53: 51 | AA53: Niagara-on-the-Lake Hydro Inc.
C54: Pale green cells represent input cells. | Z54: 52 | AA54: North Bay Hydro Distribution Limited - Espanola service territory
Z55: 53 | AA55: North Bay Hydro Distribution Limited - North Bay service territory
C56: Pale blue cells represent drop-down lists. The applicant should select the appropriate item from the drop-down list. | Z56: 54 | AA56: Northern Ontario Wires Inc.
Z57: 55 | AA57: Oakville Hydro Electricity Distribution Inc.
C58: White cells contain fixed values, automatically generated values or formulae. | N58: =IF(LEN($G58)>1, (SUMPRODUCT(--($C$81:$C$1003=$C58),--($A$81:$A$1003=$D58), --($B$81:$B$1003=$B58&"_TOTAL"), $L$1:$L$889)), "") ->  | O58: =IF(LEN($G58)>1, (SUMPRODUCT(--($C$81:$C$1003=$C58),--($A$81:$A$1003=$D58), --($B$81:$B$1003=$B58&"_TOTAL"), $M$1:$M$889)), "") ->  | Z58: 56 | AA58: Orangeville Hydro Limited
Z59: 57 | AA59: Orillia Power Distribution Corporation
Z60: 58 | AA60: Oshawa PUC Networks Inc.
Z61: 59 | AA61: Ottawa River Power Corporation
Z62: 60 | AA62: Peterborough Distribution Incorporated
Z63: 61 | AA63: PUC Distribution Inc.
Z64: 62 | AA64: Renfrew Hydro Inc.
Z65: 63 | AA65: Rideau St. Lawrence Distribution Inc.
Z66: 64 | AA66: Sioux Lookout Hydro Inc.
Z67: 65 | AA67: Synergy North Corporation-Kenora Rate Zone
Z68: 66 | AA68: Synergy North Corporation-Thunder Bay Rate Zone
Z69: 67 | AA69: Tillsonburg Hydro Inc.
Z70: 68 | AA70: Toronto Hydro-Electric System Limited
Z71: 69 | AA71: Wasaga Distribution Inc.
Z72: 70 | AA72: Waterloo North Hydro Inc.
Z73: 71 | AA73: Welland Hydro-Electric System Corp.
Z74: 72 | AA74: Wellington North Power Inc.
Z75: 73 | AA75: Westario Power Inc.

Sheet Index
A15: 1 | B15: LDC Information Sheet | E15: 20 | F15: App.2-G: Service Reliability Indicators
A16: 2 | B16: Index | E16: 21 | F16: App.2-H: Other Operating Revenue (TO BE UPDATED AT THE DRAFT RATE ORDER STAGE)
A17: 3 | B17: Cost of Service Application Flowchart | E17: 22 | F17: App.2-I: Load Forecast CDM Adjustment Workform
A18: 4 | B18: List of Key References | E18: 23 | F18: App.2-IA: Load Forecast Data Instructions
A19: 5 | B19: App.2-A: List of Requested Approvals | E19: 24 | F19: App.2-IB: Actual and Forecast Load and Customer Data
A20: 6 | B20: App.2-AA: Capital Projects Table | E20: 25 | F20: App.2-JA: OM&A Summary Analysis (TO BE UPDATED AT THE DRAFT RATE ORDER STAGE)
A21: 7 | B21: App.2-AB: Capital Expenditures (TO BE UPDATED AT THE DRAFT RATE ORDER STAGE) | E21: 26 | F21: App.2-JB: Recoverable OM&A Cost Driver Table
A22: 8 | B22: App. 2-AC: Customer Engagement Worksheet | E22: 27 | F22: App.2-JC: OM&A Programs Table
A23: 9 | B23: App.2-B: General Accounting Instructions | E23: 28 | F23: App.2-K: Employee Costs (TO BE UPDATED AT THE DRAFT RATE ORDER STAGE)
A24: 10 | B24: App.2-BA: Fixed Asset Continuity Schedule | E24: 29 | F24: App.2-L: Recoverable OM&A Cost per Customer and per FTE
A25: 11 | B25: Appendix 2-BB: Service Life Comparison | E25: 30 | F25: App.2-M: Regulatory Costs Schedule (TO BE UPDATED AT THE DRAFT RATE ORDER STAGE)
A26: 12 | B26: App.2-C_DepExp: Depreciation and Amortization Expense | E26: 31 | F26: App.2-N: Shared Services and Corporate Cost Allocation
A27: 13 | B27: App.2-D: Overhead Expenses | E27: 32 | F27: App.2-OA: Capital Structure and Cost of Capital
A28: 14 | B28: App.2-EA: Account 1575 PP&E Deferral Account (2015 IFRS Adopters) - CONTACT OEB STAFF IF TAB REQUIRED | E28: 33 | F28: App.2-OB: Debt Instruments
A29: 15 | B29: App.2-EB: Account 1576 - Accounting Changes Under CGAAP (2012 Changes) - CONTACT OEB STAFF IF TAB REQUIRED | E29: 34 | F29: App.2-Q: Cost of Serving Embedded Distributor(s)
A30: 16 | B30: App.2-EC: Account 1576 - Accounting Changes Under CGAAP (2013 Changes) - CONTACT OEB STAFF IF TAB REQUIRED | E30: 35 | F30: App.2-R: Loss Factors
A31: 17 | B31: App.2-FA: Renewable Generation Connection Investment Summary (TO BE UPDATED AT THE DRAFT RATE ORDER STAGE) | E31: 36 | F31: App.2-S: Stranded Meter Treatment- CONTACT OEB STAFF IF TAB REQUIRED
A32: 18 | B32: App.2-FB: Calculation of Renewable Generation Connection Direct Benefits/Provincial Amount: Renewable Enabling Improvement Investments (TO BE UPDATED AT THE DRAFT RATE ORDER STAGE) | E32: 37 | F32: App.2-Y: Transition to MIFRS Summary Impact - CONTACT OEB STAFF IF TAB REQUIRED
A33: 19 | B33: App.2-FC: Calculation of Renewable Generation Connection Direct Benefits/Provincial Amount: Renewable Expansion Investments (TO BE UPDATED AT THE DRAFT RATE ORDER STAGE) | E33: 38 | F33: App.2-YA: One-Time Incremental IFRS Transition Costs - CONTACT OEB STAFF IF TAB REQUIRED
E34: 39 | F34: App.2-ZA: Commodity Expense
E35: 40 | F35: App.2-ZB: Cost of Power
A42: Note: | B42: Appendices for the Tariff of Rates and Charges at Current and Proposed Rates, and for the Bill Impacts are now in a separate spreadsheet model. These appendices were formerly 2-Z and 2-W.

Sheet COS Flowchart
B4: Cost of Service Rate Application Schematic
B6: The Cost of Service Rate Application Schematic is a flowchart that is included as a guide for the components of an application. The schematic demonstrates how demand and costs interrelate to derive the revenue requirement and how the revenue requirement is allocated between classes and through fixed/variable splits to derive rates that will be compensatory for the annual revenue requirement, based on the the forecasted demand. There is no form to be filled out; therefore, this Schedule is not required to be filed.

Sheet List of Key References
B2: List of Key References
A4: A list of key references for understanding the Filing Requirements has been embedded in the document below. To access the list of references and associated hyperlinks double-click the icon below.

Sheet App.2-A_Requested_Approvals
G1: File Number: | H1: =EBNUMBER -> EB-2021-0009
G2: Exhibit:
G3: Tab:
G4: Schedule:
G5: Page:
G7: Date:
B9: Appendix 2-A
B10: List of Requested Approvals
B12: The distributor must fill out the following sheet with the complete list of specific approvals requested and relevant section(s) of the legislation must be provided. All approvals, including accounting orders (deferral and variance accounts) new rate classes, revised specific service charges or retail service charges which the applicant is seeking, must be separately identified, as well being clearly documented in the appropriate sections of the application.
B14: Additional requests may be added by copying and pasting blank input rows, as needed.
B16: If additional requests arise, or requested approvals are removed, during the processing of the application, the distributor should update this list.
B18: =CONCATENATE('LDC Info'!E14," is seeking the following approvals in this application:") -> Brantford Power Inc. is seeking the following approvals in this application:
B20: 1 | F20: Approval to charge distribution rates effective January 1, 2022 to recover a Service Revenue Requirement of $23,846,829 including a revenue deficiency of $4,397,115 as outlined in Exhibit 6 BPI’s proposed schedule of rates is included in Exhibit 8.
B22: 2 | F22: Approval of BPI’s Distribution System Plan as set out in Exhibit 2.
B24: 3 | F24: Approval of updated Retail Transmission Rates as set out in Exhibit 8.
B26: 4 | F26: Approval to continue the Wholesale Market Service Rate and Rural Rate Protection Charges in the Decision and Order to BPI’s 2021 IRM Rate Application (EB-2020-0006);
B28: 5 | F28: Approval to continue the Specific Service Charges and Transformer Allowance approved in EB- 2017-0058;
B30: 6 | F30: Approval of the proposed Loss Factors as calculated in Exhibit 8;
B32: 7 | F32: Approval of the Rate Riders for disposition of Group 1 and Group 2 balances as at December 31, 2020 over a one-year period, as calculated in Exhibit 9;
B34: 8 | F34: Approval for Rate Riders to dispose of the balance in Account 1568- LRAMVA, associated with Lost Revenues in 2018 and 2019 from CDM programs.
B36: 9 | F36: Approval to maintain the Interim Status of Standby Rates, as set out in Exhibit 8.
B38: 10 | F38: Approval to rename the Existing General Service 50 to 4999 kW class to General Service greater than 50 kW.

Sheet App.2-AA_Capital Projects
G1: File Number: | H1: =EBNUMBER -> EB-2021-0009
G2: Exhibit:
G3: Tab:
G4: Schedule:
G5: Page:
G7: Date:
A9: Appendix 2-AA
A10: Capital Projects Table
A13: Projects | B13: =C13-1 -> 2017 | C13: =D13-1 -> 2018 | D13: =E13-1 -> 2019 | E13: =BridgeYear - 1 -> 2020 | F13: =BridgeYear & " Bridge Year" -> 2021 Bridge Year | G13: =TestYear & " Test Year" -> 2022 Test Year
A14: Reporting Basis | B14: MIFRS | C14: MIFRS | D14: MIFRS | E14: MIFRS | F14: MIFRS | G14: MIFRS
A15: System Access
A16: NEW SERVICES - ROLL INS | B16: 78638.64 | C16: 74735.64 | D16: 61837 | E16: 113451.86 | F16: 206250 | G16: 509932.5
A17: NON RESIDENTIAL CONNECTIONS - OVERHEAD | B17: 163087.5 | C17: 186784 | D17: 198292.43 | E17: 287982.35 | F17: 355239.6157 | G17: 351206.7984
A18: New Transformers - OH | B18: 0 | C18: 7404.13 | D18: 184591.98 | E18: 97878.71
A19: NON RESIDENTIAL CONNECTIONS - UNDERGROUND | B19: 394334.26 | C19: 348949.82 | D19: 109309.75 | E19: 207243.44 | F19: 966996.4384 | G19: 1005449.023
A20: New Transformers - UG | B20: 293418.33 | C20: 598122.89 | D20: 792360.67 | E20: 647945.08
A21: NEW METERING | B21: 187941.7 | C21: 155507.41 | D21: 135110.45 | E21: 159579.15 | F21: 159296.152 | G21: 224757.8746
A22: Brant Avenue Secondary | B22: 0 | C22: 12369.44 | D22: 10673.73 | E22: 7293.34
A23: Dalhousie (Clarence - Brant Ave.) - New Build | F23: 0 | G23: 0
A24: Colborne/Dalhouse/Brant Ave/Icomm Intersection | F24: 124000 | G24: 0
A25: NEW SUBDVISIONS AND TOWNHOMES | B25: 1063930.47 | C25: 812271.79 | D25: 2832054.39 | E25: 262459.22 | F25: 3532000 | G25: 4060000
A26: MTO AND CITY RELOCATES | B26: 0 | C26: 0 | D26: 0 | E26: 0 | F26: 50191.58316 | G26: 128018.394
A27: City Rebuilds | B27: 24054.58 | C27: 223745.31 | D27: 873.47 | E27: 0
A28: Relocation- Shellard Lane | F28: 0 | G28: 0
A29: Garden Ave Idle Line (Elgin to Garden Ave) | F29: 0 | G29: 0
A30: HONI CCT Relocation & 64M28 Feeder Enhancement | C30: 873.47 | D30: 689173.02 | E30: 589498.36 | F30: 0 | G30: 0
A31: 3rd Party Infrastructure Requirements (Henry St) | E31: 446642.58 | F31: 0 | G31: 0
A32: Oak Park Road Line Ext. Natures Grand Subdivision (2021-2022) | F32: 1475767.5 | G32: 0
A33: Sub-Total | B33: =SUM(B16:B32) -> 2205405.48 | C33: 2420763.9 | D33: 5014276.89 | E33: 2819974.09 | F33: 6869741.289 | G33: 6279364.59
A34: Capital Contribution
A35: CC - NEW SUBDVISIONS AND TOWNHOMES | B35: -327695.93 | C35: -505936.83 | D35: -1751992.59 | E35: 0 | F35: -2119200 | G35: -2436000
A36: CC - CITY OF BRANTFORD | B36: 0 | C36: -205442.77 | D36: 0 | E36: -369461.84 | F36: -27103.45491 | G36: -69129.93274
A37: CC - ECONOMIC EVALUATIONS - INDUSTRIAL/COMMERCIAL | B37: -196592.81 | C37: -102502.93 | D37: -21034.79 | E37: -94720.75 | F37: -105000 | G37: 0
A40: Sub-Total | B40: =SUM(B35:B39) -> -524288.74 | C40: -813882.53 | D40: -1773027.38 | E40: -464182.59 | F40: -2251303.455 | G40: -2505129.933
A41: Total System Access Net of Capital Contributions | B41: =B40+B33 -> 1681116.74 | C41: =C40+C33 -> 1606881.37 | D41: 3241249.51 | E41: 2355791.5 | F41: 4618437.834 | G41: 3774234.658
A42: System Service
A43: DOWNTOWN AUTOMATION | B43: 0 | C43: 14954.86 | D43: -3.492459655e-10 | E43: 1327912.85 | F43: 0 | G43: 0
A44: SCADA (INCLUDING CONTINGENCY) | B44: 40112.8 | C44: 4000 | D44: 18131.52 | E44: 20999.43 | F44: 107264.4079 | G44: 66185.46899
A45: FAULT INDICATORS | B45: 36946.78 | C45: 1628.26 | D45: 2687.7 | E45: 9821.37 | F45: 30237 | G45: 30691
A46: Smart VU | B46: 32500 | C46: 0 | D46: 0 | E46: 0
A47: AUTOMATED RECLOSE | B47: 121997.16 | C47: 91533.5 | D47: 94287.04 | E47: 185032.91 | F47: 149990.5914 | G47: 154254.7359
A48: LINE CAPACITORS | B48: 39079.25 | C48: 70587.7 | D48: 1763 | E48: 34932.36 | F48: 41923.94634 | G48: 0
A49: COMMUNICATIONS EQUIP FOR RECLOSURES | B49: 3840 | C49: 0 | D49: 0 | E49: 0 | F49: 0 | G49: 0
A50: POWERLINE FEEDER UPGRADES | F50: 0 | G50: 0
A51: NEW LOAD BREAK SWITCH INSTALL | B51: 56389.09 | C51: 0 | D51: 0 | E51: 0 | F51: 0 | G51: 0
A52: SYSTEM MODERNIZATION / AUTOMATION | B52: 0 | C52: 0 | D52: 0 | E52: 0 | F52: 0 | G52: 0
A53: 12M13 - Feeder Egress Brant TS | F53: 0 | G53: 1300000
A54: PM3 - Feeder Egress Powerline TS | F54: 0 | G54: 0
A55: OTHER SYSTEM SERVICE | F55: 0 | G55: 0
A57: Sub-Total | B57: =SUM(B43:B56) -> 330865.08 | C57: 182704.32 | D57: 116869.26 | E57: 1578698.92 | F57: 329415.9457 | G57: 1551131.205
A58: System Renewal
A59: POLE REPLACEMENTS | B59: 685940.34 | C59: 815425.02 | D59: 532561 | E59: 250080.71 | F59: 450000 | G59: 612000
A60: Rebuild- General / Oak Park Rd. | B60: 0 | C60: 0 | D60: 0 | E60: 5586.27 | F60: 0 | G60: 0
A61: TS EQUIP > 50 kV | B61: 0 | C61: 0 | D61: 242861.45 | E61: 309.75 | F61: 10000 | G61: 11399.5768
A62: VAULT AND JUNCTION BOX REPLACEMENTS | B62: 338295.41 | C62: 256851.56 | D62: 239303.11 | E62: 66141.87 | F62: 95214.3245 | G62: 99091.73477
A63: TRANSFORMER REPLACEMENTS | B63: 194853.53 | C63: 252181.06 | D63: 113900.25 | E63: 198198.49 | F63: 200716.8635 | G63: 216789.0733
A64: BRANT AVE SECONDARY | F64: 0 | G64: 0
A65: OH INSPECTIONS | B65: 72751.53 | C65: 87077.26 | D65: 83738.79 | E65: 99891.4 | F65: 85534.1021 | G65: 86678.19623
A66: UG INSPECTIONS | B66: 64701.81 | C66: 23455.43 | D66: 24385.85 | E66: 22659.58 | F66: 25000 | G66: 25453
A67: CONDUCTOR REPLACEMENTS | B67: 0 | C67: 0 | D67: 0 | E67: 0 | F67: 10000 | G67: 0
A68: METER REPLACEMENTS | B68: 0 | C68: 0 | D68: 71875.84 | E68: 34669.97 | F68: 30961.95362 | G68: 46438.72889
A69: METER REPLACEMENT - GE5 TO MIST | B69: 0 | C69: 0 | D69: 89323.76 | E69: 70759.62 | F69: 0 | G69: 0
A70: PORCELAIN DEVICE REPLACMENTS | B70: 0 | C70: 0 | D70: 0 | E70: 81674.1 | F70: 117745.4421 | G70: 118330.5983
A71: Lynwood Drive | F71: 0 | G71: 0
A72: Loadbreak Replacement | F72: 55316.12836 | G72: 56036.74866
A73: CONVERSION (4KV SYSTEM) | F73: 0 | G73: 0
A74: Sub-Total | B74: =SUM(B59:B73) -> 1356542.62 | C74: 1434990.33 | D74: 1397950.05 | E74: 829971.76 | F74: 1080488.814 | G74: 1272217.657
A75: General Plant
A76: VEHICLE REPLACEMENTS | B76: 372056.05 | C76: 321561.74 | D76: 349071 | E76: 22225 | F76: 720000 | G76: 380000
A77: TOOLS & OTHER EQUIPMENT | B77: 22506.13 | C77: 75844.39 | D77: 22482 | E77: 15869 | F77: 30600 | G77: 31212
A78: OFFICE FURNITURE | B78: 0 | C78: 8829.82 | D78: 0 | E78: 0 | F78: 0 | G78: 0
A79: COMPUTER HARDWARE | B79: 18872.9 | C79: 30838.94 | D79: 21442.25 | E79: 28297 | F79: 57200 | G79: 40775
A80: Plotter | E80: 20978
A81: ASSET MGMT UPGRADES / OH DESIGN SOFTWARE | B81: 3377.34 | C81: 0 | D81: 830.95 | E81: 0 | F81: 0 | G81: 0
A82: CUSTOMER INFORMATION SYSTEM (CIS) | B82: 0 | C82: 3.259629011e-09 | D82: 2163533.37 | E82: 47006.82 | F82: 52209.18473 | G82: 47707.14938
A83: SYSTEM INTEGRATION PROJECTS (SIP) | F83: 0 | G83: 21060
A84: OMS | F84: 0 | G84: 0
A85: WFM | F85: 0 | G85: 0
A86: GIS | F86: 0 | G86: 552084.4372
A87: CYBERSECURITY | B87: 0 | C87: 0 | D87: 0 | E87: 0 | F87: 0 | G87: 357332.5675
A88: FIS IMPLEMENTATION / ENHANCEMENTS | B88: 139782.54 | C88: 0 | D88: 1.455191523e-11 | E88: 56366.73 | F88: 31929.27821 | G88: 63055.14194
A89: LAND | B89: 0 | C89: 0 | D89: 0 | E89: 0 | F89: 0 | G89: 0
A90: BUILDING | B90: 0 | C90: 2.328306437e-10 | D90: -1.862645149e-09 | E90: 12691533.67 | F90: 2137583.118 | G90: 53780
A91: BORROWING COSTS | B91: 0 | C91: 0 | D91: 0 | E91: 0 | F91: 0 | G91: 0
A92: FURNITURE, FIXTURES, EQUIP & VEHICLES | B92: 0 | C92: 0 | D92: 0 | E92: 0 | F92: 0 | G92: 0
A93: OTHER (STANDBY/SPARES ADJ.) | B93: -88731.15 | C93: 128503.5 | D93: 109922.16 | E93: -323134 | F93: 0 | G93: 0
A94: Sub-Total | B94: =SUM(B76:B93) -> 467863.81 | C94: 565578.39 | D94: 2667281.73 | E94: 12559142.22 | F94: 3029521.581 | G94: 1547006.296
A95: Miscellaneous
A96: Total | B96: =SUMPRODUCT(--($A15:$A95="Sub-Total"), B$15:B$95)+B95 -> 3836388.25 | C96: 3790154.41 | D96: 7423350.55 | E96: 17323604.4 | F96: 9057864.176 | G96: 8144589.815
A97: Less Renewable Generation Facility Assets and Other Non-Rate-Regulated Utility Assets (input as negative)
A98: Total | B98: =B96+B97 -> 3836388.25 | C98: 3790154.41 | D98: 7423350.55 | E98: 17323604.4 | F98: 9057864.176 | G98: 8144589.815
A100: Notes:
A102: 1 Please provide a breakdown of the major components of each capital project undertaken in each year. Please ensure that all projects below the materiality threshold are included in the miscellaneous line. Add more projects as required.
A103: 2 The applicant should group projects appropriately and avoid presentations that result in classification of significant components of the capital budget in the miscellaneous category.

Sheet App.2-AB_Capital Expenditures
AE1: File Number: | AG1: =EBNUMBER -> EB-2021-0009
AE2: Exhibit:
AE3: Tab:
AE4: Schedule:
A5: TO BE UPDATED AT THE DRAFT RATE ORDER STAGE | AE5: Page:
AE7: Date:
A9: Appendix 2-AB
A10: Table 2 - Capital Expenditure Summary from Chapter 5 Consolidated Distribution System Plan Filing Requirements
A11: First year of Forecast Period:
A12: =TestYear -> 2022
A13: CATEGORY | B13: Historical Period (previous plan1 & actual) | AC13: Forecast Period (planned)
B14: =E14-1 -> 2013 | E14: =H14-1 -> 2014 | H14: =K14-1 -> 2015 | K14: =N14-1 -> 2016 | N14: =Q14-1 -> 2017 | Q14: =T14-1 -> 2018 | T14: =W14-1 -> 2019 | W14: =Z14-1 -> 2020 | Z14: =AC14-1 -> 2021 | AC14: =A12 -> 2022 | AD14: =AC14+1 -> 2023 | AE14: =AD14+1 -> 2024 | AF14: =AE14+1 -> 2025 | AG14: =AF14+1 -> 2026
B15: Plan | C15: Actual | D15: Var | E15: Plan | F15: Actual | G15: Var | H15: Plan | I15: Actual | J15: Var | K15: Plan | L15: Actual | M15: Var | N15: Plan | O15: Actual | P15: Var | Q15: Plan | R15: Actual | S15: Var | T15: Plan | U15: Actual | V15: Var | W15: Plan | X15: Actual | Y15: Var | Z15: Plan | AA15: Actual2 | AB15: Var
B16: $ '000 | D16: % | E16: $ '000 | G16: % | H16: $ '000 | J16: % | K16: $ '000 | M16: % | N16: $ '000 | P16: % | Q16: $ '000 | S16: % | T16: $ '000 | V16: % | W16: $ '000 | Y16: % | Z16: $ '000 | AB16: % | AC16: $ '000
A17: System Access | D17: =IF(ISERROR((C17-B17)/B17),"--",(C17-B17)/B17) -> -- | G17: =IF(ISERROR((F17-E17)/E17),"--",(F17-E17)/E17) -> -- | J17: =IF(ISERROR((I17-H17)/H17),"--",(I17-H17)/H17) -> -- | M17: =IF(ISERROR((L17-K17)/K17),"--",(L17-K17)/K17) -> -- | N17: 2190.016 | O17: 2205.40548 | P17: =IF(ISERROR((O17-N17)/N17),"--",(O17-N17)/N17) -> 0.007027108478 | Q17: 2587.207 | R17: 2420.7639 | S17: =IF(ISERROR((R17-Q17)/Q17),"--",(R17-Q17)/Q17) -> -0.06433312062 | T17: 4004.912 | U17: 5014.27689 | V17: =IF(ISERROR((U17-T17)/T17),"--",(U17-T17)/T17) -> 0.2520317275 | W17: 2820.333 | X17: 2819.97409 | Y17: =IF(ISERROR((X17-W17)/W17),"--",(X17-W17)/W17) -> -0.0001272580224 | Z17: 1748.198593 | AA17: 6869.741289 | AB17: =IF(ISERROR((AA17-Z17)/Z17),"--",(AA17-Z17)/Z17) -> 2.929611497 | AC17: 6279.36459 | AD17: 5496.169794 | AE17: 4321.954036 | AF17: 4400.676988 | AG17: 4349.067683
A18: System Renewal | D18: =IF(ISERROR((C18-B18)/B18),"--",(C18-B18)/B18) -> -- | G18: =IF(ISERROR((F18-E18)/E18),"--",(F18-E18)/E18) -> -- | J18: =IF(ISERROR((I18-H18)/H18),"--",(I18-H18)/H18) -> -- | M18: =IF(ISERROR((L18-K18)/K18),"--",(L18-K18)/K18) -> -- | N18: 460.044 | O18: 1356.54262 | P18: =IF(ISERROR((O18-N18)/N18),"--",(O18-N18)/N18) -> 1.948723644 | Q18: 525.206 | R18: 1434.99033 | S18: =IF(ISERROR((R18-Q18)/Q18),"--",(R18-Q18)/Q18) -> 1.732242834 | T18: 843.801 | U18: 1397.95005 | V18: =IF(ISERROR((U18-T18)/T18),"--",(U18-T18)/T18) -> 0.6567295488 | W18: 696.548 | X18: 829.97176 | Y18: =IF(ISERROR((X18-W18)/W18),"--",(X18-W18)/W18) -> 0.1915499865 | Z18: 545.9888156 | AA18: 1080.488814 | AB18: =IF(ISERROR((AA18-Z18)/Z18),"--",(AA18-Z18)/Z18) -> 0.9789577795 | AC18: 1272.217657 | AD18: 1374.86808 | AE18: 1365.037634 | AF18: 1371.255452 | AG18: 1400.15062
A19: System Service | D19: -- | G19: -- | J19: -- | M19: -- | N19: 345.831 | O19: 330.86508 | P19: -0.04327524138 | Q19: 592.912 | R19: 182.70432 | S19: -0.6918525515 | T19: 159.84 | U19: 116.86926 | V19: -0.268835961 | W19: 208.16 | X19: 1578.69892 | Y19: 6.584064758 | Z19: 295.16 | AA19: 329.4159457 | AB19: 0.1160589025 | AC19: 1551.131205 | AD19: 259.2817503 | AE19: 263.0871213 | AF19: 266.8663653 | AG19: 763.4278126
A20: General Plant | D20: -- | G20: -- | J20: -- | M20: -- | N20: 1312.096 | O20: 467.86381 | P20: -0.6434225773 | Q20: 499.988 | R20: 565.57839 | S20: 0.1311839284 | T20: 808.1 | U20: 2667.28173 | V20: 2.30068275 | W20: 235.4 | X20: 12559.14222 | Y20: 52.35234588 | Z20: 415.8 | AA20: 3029.521581 | AB20: 6.286006689 | AC20: 1547.006296 | AD20: 1285.103355 | AE20: 1041.108074 | AF20: 4172.081695 | AG20: 684.9313955
A21: TOTAL EXPENDITURE | B21: =SUM(B17:B20) -> 0 | C21: =SUM(C17:C20) -> 0 | D21: -- | E21: =SUM(E17:E20) -> 0 | F21: =SUM(F17:F20) -> 0 | G21: -- | H21: =SUM(H17:H20) -> 0 | I21: =SUM(I17:I20) -> 0 | J21: -- | K21: =SUM(K17:K20) -> 0 | L21: =SUM(L17:L20) -> 0 | M21: -- | N21: =SUM(N17:N20) -> 4307.987 | O21: =SUM(O17:O20) -> 4360.67699 | P21: 0.01223076811 | Q21: 4205.313 | R21: 4604.03694 | S21: 0.0948143313 | T21: 5816.653 | U21: 9196.37793 | V21: 0.5810429004 | W21: 3960.441 | X21: 17787.78699 | Y21: 3.491365227 | Z21: 3005.147408 | AA21: 11309.16763 | AB21: 2.763265522 | AC21: 10649.71975 | AD21: 8415.422979 | AE21: 6991.186865 | AF21: 10210.8805 | AG21: =SUM(AG17:AG20) -> 7197.577511
A22: Capital Contributions | D22: -- | G22: -- | J22: -- | M22: -- | N22: 479 | O22: 524.28874 | P22: 0.09454851775 | Q22: 479 | R22: 813.88253 | S22: 0.6991284551 | T22: 479 | U22: 1773.02738 | V22: 2.701518539 | W22: 479 | X22: 464.18259 | Y22: -0.0309340501 | Z22: 479 | AA22: 2251.303455 | AB22: 3.700007213 | AC22: 2505.129933 | AD22: 1949.867943 | AE22: 1304.058271 | AF22: 1460.830169 | AG22: 1363.8432
A23: Net Capital Expenditures | D23: -- | G23: -- | J23: -- | M23: -- | N23: 3828.987 | O23: 3836.38825 | P23: 0.001932952502 | Q23: 3726.313 | R23: 3790.15441 | S23: 0.0171325946 | T23: 5337.653 | U23: =U21-U22 -> 7423.35055 | V23: 0.3907518061 | W23: 3481.441 | X23: 17323.6044 | Y23: 3.975986782 | Z23: 2526.147408 | AA23: 9057.864176 | AB23: 2.585643556 | AC23: 8144.589815 | AD23: 6465.555035 | AE23: 5687.128594 | AF23: 8750.050331 | AG23: 5833.734311
A24: System O&M | D24: -- | G24: -- | J24: -- | M24: -- | O24: 3068.77382 | P24: -- | R24: 3219.20485 | S24: -- | U24: 3569.4647 | V24: -- | X24: 3500.45308 | Y24: -- | AA24: 3449.929791 | AB24: -- | AC24: 3318.686734 | AD24: 3549.965104 | AE24: 3630.609377 | AF24: 3603.599628 | AG24: 3675.671621
A26: Notes to the Table:
A27: 1. Historical “previous plan” data is not required unless a plan has previously been filed. However, use the last OEB-approved, at least on a Total (Capital) Expenditure basis for the last cost of service rebasing year, and the applicant should include their planned budget in each subsequent historical year up to and including the Bridge Year.
A28: 2. Indicate the number of months of 'actual' data included in the last year of the Historical Period (normally a 'bridge' year):
A30: Explanatory Notes on Variances (complete only if applicable)
A31: Notes on shifts in forecast vs. historical budgets by category
A34: Notes on year over year Plan vs. Actual variances for Total Expenditures
A37: Notes on Plan vs. Actual variance trends for individual expenditure categories

Sheet Hidden_CAPEX (hidden)
A1: Utility Name | B1: EB Number | C1: Test Year | D1: Bridge Year | E1: Last Rebasing Year | F1: Category | G1: Year | H1: Plan | I1: Actual
A2: ='LDC Info'!$E$14 -> Brantford Power Inc. | B2: =EBNUMBER -> EB-2021-0009 | C2: =TestYear -> 2022 | D2: =BridgeYear -> 2021 | E2: =RebaseYear -> 2017 | F2: System Access | G2: ='App.2-AB_Capital Expenditures'!B14 -> 2013 | H2: ='App.2-AB_Capital Expenditures'!B17 -> 0 | I2: ='App.2-AB_Capital Expenditures'!C17 -> 0
A3: ='LDC Info'!$E$14 -> Brantford Power Inc. | B3: EB-2021-0009 | C3: 2022 | D3: 2021 | E3: 2017 | F3: System Renewal | G3: ='App.2-AB_Capital Expenditures'!B14 -> 2013 | H3: ='App.2-AB_Capital Expenditures'!B18 -> 0 | I3: ='App.2-AB_Capital Expenditures'!C18 -> 0
A4: ='LDC Info'!$E$14 -> Brantford Power Inc. | B4: EB-2021-0009 | C4: 2022 | D4: 2021 | E4: 2017 | F4: System Service | G4: ='App.2-AB_Capital Expenditures'!B14 -> 2013 | H4: ='App.2-AB_Capital Expenditures'!B19 -> 0 | I4: ='App.2-AB_Capital Expenditures'!C19 -> 0
A5: ='LDC Info'!$E$14 -> Brantford Power Inc. | B5: EB-2021-0009 | C5: 2022 | D5: 2021 | E5: 2017 | F5: General Plant | G5: ='App.2-AB_Capital Expenditures'!B14 -> 2013 | H5: ='App.2-AB_Capital Expenditures'!B20 -> 0 | I5: ='App.2-AB_Capital Expenditures'!C20 -> 0
A6: ='LDC Info'!$E$14 -> Brantford Power Inc. | B6: EB-2021-0009 | C6: 2022 | D6: 2021 | E6: 2017 | F6: Total Expenditure | G6: ='App.2-AB_Capital Expenditures'!B14 -> 2013 | H6: ='App.2-AB_Capital Expenditures'!B21 -> 0 | I6: ='App.2-AB_Capital Expenditures'!C21 -> 0
A7: ='LDC Info'!$E$14 -> Brantford Power Inc. | B7: EB-2021-0009 | C7: 2022 | D7: 2021 | E7: 2017 | F7: Capital Contributions | G7: ='App.2-AB_Capital Expenditures'!B14 -> 2013 | H7: ='App.2-AB_Capital Expenditures'!B22 -> 0 | I7: ='App.2-AB_Capital Expenditures'!C22 -> 0
A8: ='LDC Info'!$E$14 -> Brantford Power Inc. | B8: EB-2021-0009 | C8: 2022 | D8: 2021 | E8: 2017 | F8: Net Capital Expenditures | G8: ='App.2-AB_Capital Expenditures'!B14 -> 2013 | H8: ='App.2-AB_Capital Expenditures'!B23 -> 0 | I8: ='App.2-AB_Capital Expenditures'!C23 -> 0
A9: ='LDC Info'!$E$14 -> Brantford Power Inc. | B9: EB-2021-0009 | C9: 2022 | D9: 2021 | E9: 2017 | F9: System O&M | G9: ='App.2-AB_Capital Expenditures'!B14 -> 2013 | H9: ='App.2-AB_Capital Expenditures'!B24 -> 0 | I9: ='App.2-AB_Capital Expenditures'!C24 -> 0
A10: ='LDC Info'!$E$14 -> Brantford Power Inc. | B10: EB-2021-0009 | C10: 2022 | D10: 2021 | E10: 2017 | F10: System Access | G10: ='App.2-AB_Capital Expenditures'!E14 -> 2014 | H10: ='App.2-AB_Capital Expenditures'!E17 -> 0 | I10: ='App.2-AB_Capital Expenditures'!F17 -> 0
A11: ='LDC Info'!$E$14 -> Brantford Power Inc. | B11: EB-2021-0009 | C11: 2022 | D11: 2021 | E11: 2017 | F11: System Renewal | G11: ='App.2-AB_Capital Expenditures'!E14 -> 2014 | H11: ='App.2-AB_Capital Expenditures'!E18 -> 0 | I11: ='App.2-AB_Capital Expenditures'!F18 -> 0
A12: ='LDC Info'!$E$14 -> Brantford Power Inc. | B12: EB-2021-0009 | C12: 2022 | D12: 2021 | E12: 2017 | F12: System Service | G12: ='App.2-AB_Capital Expenditures'!E14 -> 2014 | H12: ='App.2-AB_Capital Expenditures'!E19 -> 0 | I12: ='App.2-AB_Capital Expenditures'!F19 -> 0
A13: ='LDC Info'!$E$14 -> Brantford Power Inc. | B13: EB-2021-0009 | C13: 2022 | D13: 2021 | E13: 2017 | F13: General Plant | G13: ='App.2-AB_Capital Expenditures'!E14 -> 2014 | H13: ='App.2-AB_Capital Expenditures'!E20 -> 0 | I13: ='App.2-AB_Capital Expenditures'!F20 -> 0
A14: ='LDC Info'!$E$14 -> Brantford Power Inc. | B14: EB-2021-0009 | C14: 2022 | D14: 2021 | E14: 2017 | F14: Total Expenditure | G14: ='App.2-AB_Capital Expenditures'!E14 -> 2014 | H14: ='App.2-AB_Capital Expenditures'!E21 -> 0 | I14: ='App.2-AB_Capital Expenditures'!F21 -> 0
A15: ='LDC Info'!$E$14 -> Brantford Power Inc. | B15: EB-2021-0009 | C15: 2022 | D15: 2021 | E15: 2017 | F15: Capital Contributions | G15: ='App.2-AB_Capital Expenditures'!E14 -> 2014 | H15: ='App.2-AB_Capital Expenditures'!E22 -> 0 | I15: ='App.2-AB_Capital Expenditures'!F22 -> 0
A16: ='LDC Info'!$E$14 -> Brantford Power Inc. | B16: EB-2021-0009 | C16: 2022 | D16: 2021 | E16: 2017 | F16: Net Capital Expenditures | G16: ='App.2-AB_Capital Expenditures'!E14 -> 2014 | H16: ='App.2-AB_Capital Expenditures'!E23 -> 0 | I16: ='App.2-AB_Capital Expenditures'!F23 -> 0
A17: ='LDC Info'!$E$14 -> Brantford Power Inc. | B17: EB-2021-0009 | C17: 2022 | D17: 2021 | E17: 2017 | F17: System O&M | G17: ='App.2-AB_Capital Expenditures'!E14 -> 2014 | H17: ='App.2-AB_Capital Expenditures'!E24 -> 0 | I17: ='App.2-AB_Capital Expenditures'!F24 -> 0
A18: ='LDC Info'!$E$14 -> Brantford Power Inc. | B18: EB-2021-0009 | C18: 2022 | D18: 2021 | E18: 2017 | F18: System Access | G18: ='App.2-AB_Capital Expenditures'!H14 -> 2015 | H18: ='App.2-AB_Capital Expenditures'!H17 -> 0 | I18: ='App.2-AB_Capital Expenditures'!I17 -> 0
A19: ='LDC Info'!$E$14 -> Brantford Power Inc. | B19: EB-2021-0009 | C19: 2022 | D19: 2021 | E19: 2017 | F19: System Renewal | G19: ='App.2-AB_Capital Expenditures'!H14 -> 2015 | H19: ='App.2-AB_Capital Expenditures'!H18 -> 0 | I19: ='App.2-AB_Capital Expenditures'!I18 -> 0
A20: ='LDC Info'!$E$14 -> Brantford Power Inc. | B20: EB-2021-0009 | C20: 2022 | D20: 2021 | E20: 2017 | F20: System Service | G20: ='App.2-AB_Capital Expenditures'!H14 -> 2015 | H20: ='App.2-AB_Capital Expenditures'!H19 -> 0 | I20: ='App.2-AB_Capital Expenditures'!I19 -> 0
A21: ='LDC Info'!$E$14 -> Brantford Power Inc. | B21: EB-2021-0009 | C21: 2022 | D21: 2021 | E21: 2017 | F21: General Plant | G21: ='App.2-AB_Capital Expenditures'!H14 -> 2015 | H21: ='App.2-AB_Capital Expenditures'!H20 -> 0 | I21: ='App.2-AB_Capital Expenditures'!I20 -> 0
A22: ='LDC Info'!$E$14 -> Brantford Power Inc. | B22: EB-2021-0009 | C22: 2022 | D22: 2021 | E22: 2017 | F22: Total Expenditure | G22: ='App.2-AB_Capital Expenditures'!H14 -> 2015 | H22: ='App.2-AB_Capital Expenditures'!H21 -> 0 | I22: ='App.2-AB_Capital Expenditures'!I21 -> 0
A23: ='LDC Info'!$E$14 -> Brantford Power Inc. | B23: EB-2021-0009 | C23: 2022 | D23: 2021 | E23: 2017 | F23: Capital Contributions | G23: ='App.2-AB_Capital Expenditures'!H14 -> 2015 | H23: ='App.2-AB_Capital Expenditures'!H22 -> 0 | I23: ='App.2-AB_Capital Expenditures'!I22 -> 0
A24: ='LDC Info'!$E$14 -> Brantford Power Inc. | B24: EB-2021-0009 | C24: 2022 | D24: 2021 | E24: 2017 | F24: Net Capital Expenditures | G24: ='App.2-AB_Capital Expenditures'!H14 -> 2015 | H24: ='App.2-AB_Capital Expenditures'!H23 -> 0 | I24: ='App.2-AB_Capital Expenditures'!I23 -> 0
A25: ='LDC Info'!$E$14 -> Brantford Power Inc. | B25: EB-2021-0009 | C25: 2022 | D25: 2021 | E25: 2017 | F25: System O&M | G25: ='App.2-AB_Capital Expenditures'!H14 -> 2015 | H25: ='App.2-AB_Capital Expenditures'!H24 -> 0 | I25: ='App.2-AB_Capital Expenditures'!I24 -> 0
A26: ='LDC Info'!$E$14 -> Brantford Power Inc. | B26: EB-2021-0009 | C26: 2022 | D26: 2021 | E26: 2017 | F26: System Access | G26: ='App.2-AB_Capital Expenditures'!K14 -> 2016 | H26: ='App.2-AB_Capital Expenditures'!K17 -> 0 | I26: ='App.2-AB_Capital Expenditures'!L17 -> 0
A27: ='LDC Info'!$E$14 -> Brantford Power Inc. | B27: EB-2021-0009 | C27: 2022 | D27: 2021 | E27: 2017 | F27: System Renewal | G27: ='App.2-AB_Capital Expenditures'!K14 -> 2016 | H27: ='App.2-AB_Capital Expenditures'!K18 -> 0 | I27: ='App.2-AB_Capital Expenditures'!L18 -> 0
A28: ='LDC Info'!$E$14 -> Brantford Power Inc. | B28: EB-2021-0009 | C28: 2022 | D28: 2021 | E28: 2017 | F28: System Service | G28: ='App.2-AB_Capital Expenditures'!K14 -> 2016 | H28: ='App.2-AB_Capital Expenditures'!K19 -> 0 | I28: ='App.2-AB_Capital Expenditures'!L19 -> 0
A29: ='LDC Info'!$E$14 -> Brantford Power Inc. | B29: EB-2021-0009 | C29: 2022 | D29: 2021 | E29: 2017 | F29: General Plant | G29: ='App.2-AB_Capital Expenditures'!K14 -> 2016 | H29: ='App.2-AB_Capital Expenditures'!K20 -> 0 | I29: ='App.2-AB_Capital Expenditures'!L20 -> 0
A30: ='LDC Info'!$E$14 -> Brantford Power Inc. | B30: EB-2021-0009 | C30: 2022 | D30: 2021 | E30: 2017 | F30: Total Expenditure | G30: ='App.2-AB_Capital Expenditures'!K14 -> 2016 | H30: ='App.2-AB_Capital Expenditures'!K21 -> 0 | I30: ='App.2-AB_Capital Expenditures'!L21 -> 0
A31: ='LDC Info'!$E$14 -> Brantford Power Inc. | B31: EB-2021-0009 | C31: 2022 | D31: 2021 | E31: 2017 | F31: Capital Contributions | G31: ='App.2-AB_Capital Expenditures'!K14 -> 2016 | H31: ='App.2-AB_Capital Expenditures'!K22 -> 0 | I31: ='App.2-AB_Capital Expenditures'!L22 -> 0
A32: ='LDC Info'!$E$14 -> Brantford Power Inc. | B32: EB-2021-0009 | C32: 2022 | D32: 2021 | E32: 2017 | F32: Net Capital Expenditures | G32: ='App.2-AB_Capital Expenditures'!K14 -> 2016 | H32: ='App.2-AB_Capital Expenditures'!K23 -> 0 | I32: ='App.2-AB_Capital Expenditures'!L23 -> 0
A33: ='LDC Info'!$E$14 -> Brantford Power Inc. | B33: EB-2021-0009 | C33: 2022 | D33: 2021 | E33: 2017 | F33: System O&M | G33: ='App.2-AB_Capital Expenditures'!K14 -> 2016 | H33: ='App.2-AB_Capital Expenditures'!K24 -> 0 | I33: ='App.2-AB_Capital Expenditures'!L24 -> 0
A34: ='LDC Info'!$E$14 -> Brantford Power Inc. | B34: =EBNUMBER -> EB-2021-0009 | C34: =TestYear -> 2022 | D34: =BridgeYear -> 2021 | E34: =RebaseYear -> 2017 | F34: System Access | G34: ='App.2-AB_Capital Expenditures'!N14 -> 2017 | H34: ='App.2-AB_Capital Expenditures'!N17 -> 2190.016 | I34: ='App.2-AB_Capital Expenditures'!O17 -> 2205.40548
A35: ='LDC Info'!$E$14 -> Brantford Power Inc. | B35: EB-2021-0009 | C35: 2022 | D35: 2021 | E35: 2017 | F35: System Renewal | G35: ='App.2-AB_Capital Expenditures'!N14 -> 2017 | H35: ='App.2-AB_Capital Expenditures'!N18 -> 460.044 | I35: ='App.2-AB_Capital Expenditures'!O18 -> 1356.54262
A36: ='LDC Info'!$E$14 -> Brantford Power Inc. | B36: EB-2021-0009 | C36: 2022 | D36: 2021 | E36: 2017 | F36: System Service | G36: ='App.2-AB_Capital Expenditures'!N14 -> 2017 | H36: ='App.2-AB_Capital Expenditures'!N19 -> 345.831 | I36: ='App.2-AB_Capital Expenditures'!O19 -> 330.86508
A37: ='LDC Info'!$E$14 -> Brantford Power Inc. | B37: EB-2021-0009 | C37: 2022 | D37: 2021 | E37: 2017 | F37: General Plant | G37: ='App.2-AB_Capital Expenditures'!N14 -> 2017 | H37: ='App.2-AB_Capital Expenditures'!N20 -> 1312.096 | I37: ='App.2-AB_Capital Expenditures'!O20 -> 467.86381
A38: ='LDC Info'!$E$14 -> Brantford Power Inc. | B38: EB-2021-0009 | C38: 2022 | D38: 2021 | E38: 2017 | F38: Total Expenditure | G38: ='App.2-AB_Capital Expenditures'!N14 -> 2017 | H38: ='App.2-AB_Capital Expenditures'!N21 -> 4307.987 | I38: ='App.2-AB_Capital Expenditures'!O21 -> 4360.67699
A39: ='LDC Info'!$E$14 -> Brantford Power Inc. | B39: EB-2021-0009 | C39: 2022 | D39: 2021 | E39: 2017 | F39: Capital Contributions | G39: ='App.2-AB_Capital Expenditures'!N14 -> 2017 | H39: ='App.2-AB_Capital Expenditures'!N22 -> 479 | I39: ='App.2-AB_Capital Expenditures'!O22 -> 524.28874
A40: ='LDC Info'!$E$14 -> Brantford Power Inc. | B40: EB-2021-0009 | C40: 2022 | D40: 2021 | E40: 2017 | F40: Net Capital Expenditures | G40: ='App.2-AB_Capital Expenditures'!N14 -> 2017 | H40: ='App.2-AB_Capital Expenditures'!N23 -> 3828.987 | I40: ='App.2-AB_Capital Expenditures'!O23 -> 3836.38825
A41: ='LDC Info'!$E$14 -> Brantford Power Inc. | B41: EB-2021-0009 | C41: 2022 | D41: 2021 | E41: 2017 | F41: System O&M | G41: ='App.2-AB_Capital Expenditures'!N14 -> 2017 | H41: ='App.2-AB_Capital Expenditures'!N24 -> 0 | I41: ='App.2-AB_Capital Expenditures'!O24 -> 3068.77382
A42: ='LDC Info'!$E$14 -> Brantford Power Inc. | B42: EB-2021-0009 | C42: 2022 | D42: 2021 | E42: 2017 | F42: System Access | G42: ='App.2-AB_Capital Expenditures'!Q14 -> 2018 | H42: ='App.2-AB_Capital Expenditures'!Q17 -> 2587.207 | I42: ='App.2-AB_Capital Expenditures'!R17 -> 2420.7639
A43: ='LDC Info'!$E$14 -> Brantford Power Inc. | B43: EB-2021-0009 | C43: 2022 | D43: 2021 | E43: 2017 | F43: System Renewal | G43: ='App.2-AB_Capital Expenditures'!Q14 -> 2018 | H43: ='App.2-AB_Capital Expenditures'!Q18 -> 525.206 | I43: ='App.2-AB_Capital Expenditures'!R18 -> 1434.99033
A44: ='LDC Info'!$E$14 -> Brantford Power Inc. | B44: EB-2021-0009 | C44: 2022 | D44: 2021 | E44: 2017 | F44: System Service | G44: ='App.2-AB_Capital Expenditures'!Q14 -> 2018 | H44: ='App.2-AB_Capital Expenditures'!Q19 -> 592.912 | I44: ='App.2-AB_Capital Expenditures'!R19 -> 182.70432
A45: ='LDC Info'!$E$14 -> Brantford Power Inc. | B45: EB-2021-0009 | C45: 2022 | D45: 2021 | E45: 2017 | F45: General Plant | G45: ='App.2-AB_Capital Expenditures'!Q14 -> 2018 | H45: ='App.2-AB_Capital Expenditures'!Q20 -> 499.988 | I45: ='App.2-AB_Capital Expenditures'!R20 -> 565.57839
A46: ='LDC Info'!$E$14 -> Brantford Power Inc. | B46: EB-2021-0009 | C46: 2022 | D46: 2021 | E46: 2017 | F46: Total Expenditure | G46: ='App.2-AB_Capital Expenditures'!Q14 -> 2018 | H46: ='App.2-AB_Capital Expenditures'!Q21 -> 4205.313 | I46: ='App.2-AB_Capital Expenditures'!R21 -> 4604.03694
A47: ='LDC Info'!$E$14 -> Brantford Power Inc. | B47: EB-2021-0009 | C47: 2022 | D47: 2021 | E47: 2017 | F47: Capital Contributions | G47: ='App.2-AB_Capital Expenditures'!Q14 -> 2018 | H47: ='App.2-AB_Capital Expenditures'!Q22 -> 479 | I47: ='App.2-AB_Capital Expenditures'!R22 -> 813.88253
A48: ='LDC Info'!$E$14 -> Brantford Power Inc. | B48: EB-2021-0009 | C48: 2022 | D48: 2021 | E48: 2017 | F48: Net Capital Expenditures | G48: ='App.2-AB_Capital Expenditures'!Q14 -> 2018 | H48: ='App.2-AB_Capital Expenditures'!Q23 -> 3726.313 | I48: ='App.2-AB_Capital Expenditures'!R23 -> 3790.15441
A49: ='LDC Info'!$E$14 -> Brantford Power Inc. | B49: EB-2021-0009 | C49: 2022 | D49: 2021 | E49: 2017 | F49: System O&M | G49: ='App.2-AB_Capital Expenditures'!Q14 -> 2018 | H49: ='App.2-AB_Capital Expenditures'!Q24 -> 0 | I49: ='App.2-AB_Capital Expenditures'!R24 -> 3219.20485
A50: ='LDC Info'!$E$14 -> Brantford Power Inc. | B50: EB-2021-0009 | C50: 2022 | D50: 2021 | E50: 2017 | F50: System Access | G50: ='App.2-AB_Capital Expenditures'!T14 -> 2019 | H50: ='App.2-AB_Capital Expenditures'!T17 -> 4004.912 | I50: ='App.2-AB_Capital Expenditures'!U17 -> 5014.27689
A51: ='LDC Info'!$E$14 -> Brantford Power Inc. | B51: EB-2021-0009 | C51: 2022 | D51: 2021 | E51: 2017 | F51: System Renewal | G51: ='App.2-AB_Capital Expenditures'!T14 -> 2019 | H51: ='App.2-AB_Capital Expenditures'!T18 -> 843.801 | I51: ='App.2-AB_Capital Expenditures'!U18 -> 1397.95005
A52: ='LDC Info'!$E$14 -> Brantford Power Inc. | B52: EB-2021-0009 | C52: 2022 | D52: 2021 | E52: 2017 | F52: System Service | G52: ='App.2-AB_Capital Expenditures'!T14 -> 2019 | H52: ='App.2-AB_Capital Expenditures'!T19 -> 159.84 | I52: ='App.2-AB_Capital Expenditures'!U19 -> 116.86926
A53: ='LDC Info'!$E$14 -> Brantford Power Inc. | B53: EB-2021-0009 | C53: 2022 | D53: 2021 | E53: 2017 | F53: General Plant | G53: ='App.2-AB_Capital Expenditures'!T14 -> 2019 | H53: ='App.2-AB_Capital Expenditures'!T20 -> 808.1 | I53: ='App.2-AB_Capital Expenditures'!U20 -> 2667.28173
A54: ='LDC Info'!$E$14 -> Brantford Power Inc. | B54: EB-2021-0009 | C54: 2022 | D54: 2021 | E54: 2017 | F54: Total Expenditure | G54: ='App.2-AB_Capital Expenditures'!T14 -> 2019 | H54: ='App.2-AB_Capital Expenditures'!T21 -> 5816.653 | I54: ='App.2-AB_Capital Expenditures'!U21 -> 9196.37793
A55: ='LDC Info'!$E$14 -> Brantford Power Inc. | B55: EB-2021-0009 | C55: 2022 | D55: 2021 | E55: 2017 | F55: Capital Contributions | G55: ='App.2-AB_Capital Expenditures'!T14 -> 2019 | H55: ='App.2-AB_Capital Expenditures'!T22 -> 479 | I55: ='App.2-AB_Capital Expenditures'!U22 -> 1773.02738
A56: ='LDC Info'!$E$14 -> Brantford Power Inc. | B56: EB-2021-0009 | C56: 2022 | D56: 2021 | E56: 2017 | F56: Net Capital Expenditures | G56: ='App.2-AB_Capital Expenditures'!T14 -> 2019 | H56: ='App.2-AB_Capital Expenditures'!T23 -> 5337.653 | I56: ='App.2-AB_Capital Expenditures'!U23 -> 7423.35055
A57: ='LDC Info'!$E$14 -> Brantford Power Inc. | B57: EB-2021-0009 | C57: 2022 | D57: 2021 | E57: 2017 | F57: System O&M | G57: ='App.2-AB_Capital Expenditures'!T14 -> 2019 | H57: ='App.2-AB_Capital Expenditures'!T24 -> 0 | I57: ='App.2-AB_Capital Expenditures'!U24 -> 3569.4647
A58: ='LDC Info'!$E$14 -> Brantford Power Inc. | B58: EB-2021-0009 | C58: 2022 | D58: 2021 | E58: 2017 | F58: System Access | G58: ='App.2-AB_Capital Expenditures'!W14 -> 2020 | H58: ='App.2-AB_Capital Expenditures'!W17 -> 2820.333 | I58: ='App.2-AB_Capital Expenditures'!X17 -> 2819.97409
A59: ='LDC Info'!$E$14 -> Brantford Power Inc. | B59: EB-2021-0009 | C59: 2022 | D59: 2021 | E59: 2017 | F59: System Renewal | G59: ='App.2-AB_Capital Expenditures'!W14 -> 2020 | H59: ='App.2-AB_Capital Expenditures'!W18 -> 696.548 | I59: ='App.2-AB_Capital Expenditures'!X18 -> 829.97176
A60: ='LDC Info'!$E$14 -> Brantford Power Inc. | B60: EB-2021-0009 | C60: 2022 | D60: 2021 | E60: 2017 | F60: System Service | G60: ='App.2-AB_Capital Expenditures'!W14 -> 2020 | H60: ='App.2-AB_Capital Expenditures'!W19 -> 208.16 | I60: ='App.2-AB_Capital Expenditures'!X19 -> 1578.69892
A61: ='LDC Info'!$E$14 -> Brantford Power Inc. | B61: EB-2021-0009 | C61: 2022 | D61: 2021 | E61: 2017 | F61: General Plant | G61: ='App.2-AB_Capital Expenditures'!W14 -> 2020 | H61: ='App.2-AB_Capital Expenditures'!W20 -> 235.4 | I61: ='App.2-AB_Capital Expenditures'!X20 -> 12559.14222
A62: ='LDC Info'!$E$14 -> Brantford Power Inc. | B62: EB-2021-0009 | C62: 2022 | D62: 2021 | E62: 2017 | F62: Total Expenditure | G62: ='App.2-AB_Capital Expenditures'!W14 -> 2020 | H62: ='App.2-AB_Capital Expenditures'!W21 -> 3960.441 | I62: ='App.2-AB_Capital Expenditures'!X21 -> 17787.78699
A63: ='LDC Info'!$E$14 -> Brantford Power Inc. | B63: EB-2021-0009 | C63: 2022 | D63: 2021 | E63: 2017 | F63: Capital Contributions | G63: ='App.2-AB_Capital Expenditures'!W14 -> 2020 | H63: ='App.2-AB_Capital Expenditures'!W22 -> 479 | I63: ='App.2-AB_Capital Expenditures'!X22 -> 464.18259
A64: ='LDC Info'!$E$14 -> Brantford Power Inc. | B64: EB-2021-0009 | C64: 2022 | D64: 2021 | E64: 2017 | F64: Net Capital Expenditures | G64: ='App.2-AB_Capital Expenditures'!W14 -> 2020 | H64: ='App.2-AB_Capital Expenditures'!W23 -> 3481.441 | I64: ='App.2-AB_Capital Expenditures'!X23 -> 17323.6044
A65: ='LDC Info'!$E$14 -> Brantford Power Inc. | B65: EB-2021-0009 | C65: 2022 | D65: 2021 | E65: 2017 | F65: System O&M | G65: ='App.2-AB_Capital Expenditures'!W14 -> 2020 | H65: ='App.2-AB_Capital Expenditures'!W24 -> 0 | I65: ='App.2-AB_Capital Expenditures'!X24 -> 3500.45308
A66: ='LDC Info'!$E$14 -> Brantford Power Inc. | B66: =EBNUMBER -> EB-2021-0009 | C66: =TestYear -> 2022 | D66: =BridgeYear -> 2021 | E66: =RebaseYear -> 2017 | F66: System Access | G66: ='App.2-AB_Capital Expenditures'!Z14 -> 2021 | H66: ='App.2-AB_Capital Expenditures'!Z17 -> 1748.198593 | I66: ='App.2-AB_Capital Expenditures'!AA17 -> 6869.741289
A67: ='LDC Info'!$E$14 -> Brantford Power Inc. | B67: EB-2021-0009 | C67: 2022 | D67: 2021 | E67: 2017 | F67: System Renewal | G67: ='App.2-AB_Capital Expenditures'!Z14 -> 2021 | H67: ='App.2-AB_Capital Expenditures'!Z18 -> 545.9888156 | I67: ='App.2-AB_Capital Expenditures'!AA18 -> 1080.488814
A68: ='LDC Info'!$E$14 -> Brantford Power Inc. | B68: EB-2021-0009 | C68: 2022 | D68: 2021 | E68: 2017 | F68: System Service | G68: ='App.2-AB_Capital Expenditures'!Z14 -> 2021 | H68: ='App.2-AB_Capital Expenditures'!Z19 -> 295.16 | I68: ='App.2-AB_Capital Expenditures'!AA19 -> 329.4159457
A69: ='LDC Info'!$E$14 -> Brantford Power Inc. | B69: EB-2021-0009 | C69: 2022 | D69: 2021 | E69: 2017 | F69: General Plant | G69: ='App.2-AB_Capital Expenditures'!Z14 -> 2021 | H69: ='App.2-AB_Capital Expenditures'!Z20 -> 415.8 | I69: ='App.2-AB_Capital Expenditures'!AA20 -> 3029.521581
A70: ='LDC Info'!$E$14 -> Brantford Power Inc. | B70: EB-2021-0009 | C70: 2022 | D70: 2021 | E70: 2017 | F70: Total Expenditure | G70: ='App.2-AB_Capital Expenditures'!Z14 -> 2021 | H70: ='App.2-AB_Capital Expenditures'!Z21 -> 3005.147408 | I70: ='App.2-AB_Capital Expenditures'!AA21 -> 11309.16763
A71: ='LDC Info'!$E$14 -> Brantford Power Inc. | B71: EB-2021-0009 | C71: 2022 | D71: 2021 | E71: 2017 | F71: Capital Contributions | G71: ='App.2-AB_Capital Expenditures'!Z14 -> 2021 | H71: ='App.2-AB_Capital Expenditures'!Z22 -> 479 | I71: ='App.2-AB_Capital Expenditures'!AA22 -> 2251.303455
A72: ='LDC Info'!$E$14 -> Brantford Power Inc. | B72: EB-2021-0009 | C72: 2022 | D72: 2021 | E72: 2017 | F72: Net Capital Expenditures | G72: ='App.2-AB_Capital Expenditures'!Z14 -> 2021 | H72: ='App.2-AB_Capital Expenditures'!Z23 -> 2526.147408 | I72: ='App.2-AB_Capital Expenditures'!AA23 -> 9057.864176
A73: ='LDC Info'!$E$14 -> Brantford Power Inc. | B73: EB-2021-0009 | C73: 2022 | D73: 2021 | E73: 2017 | F73: System O&M | G73: ='App.2-AB_Capital Expenditures'!Z14 -> 2021 | H73: ='App.2-AB_Capital Expenditures'!Z24 -> 0 | I73: ='App.2-AB_Capital Expenditures'!AA24 -> 3449.929791
A74: ='LDC Info'!$E$14 -> Brantford Power Inc. | B74: EB-2021-0009 | C74: 2022 | D74: 2021 | E74: 2017 | F74: System Access | G74: ='App.2-AB_Capital Expenditures'!AC14 -> 2022 | H74: ='App.2-AB_Capital Expenditures'!AC17 -> 6279.36459
A75: ='LDC Info'!$E$14 -> Brantford Power Inc. | B75: EB-2021-0009 | C75: 2022 | D75: 2021 | E75: 2017 | F75: System Renewal | G75: ='App.2-AB_Capital Expenditures'!AC14 -> 2022 | H75: ='App.2-AB_Capital Expenditures'!AC18 -> 1272.217657
A76: ='LDC Info'!$E$14 -> Brantford Power Inc. | B76: EB-2021-0009 | C76: 2022 | D76: 2021 | E76: 2017 | F76: System Service | G76: ='App.2-AB_Capital Expenditures'!AC14 -> 2022 | H76: ='App.2-AB_Capital Expenditures'!AC19 -> 1551.131205
A77: ='LDC Info'!$E$14 -> Brantford Power Inc. | B77: EB-2021-0009 | C77: 2022 | D77: 2021 | E77: 2017 | F77: General Plant | G77: ='App.2-AB_Capital Expenditures'!AC14 -> 2022 | H77: ='App.2-AB_Capital Expenditures'!AC20 -> 1547.006296
A78: ='LDC Info'!$E$14 -> Brantford Power Inc. | B78: EB-2021-0009 | C78: 2022 | D78: 2021 | E78: 2017 | F78: Total Expenditure | G78: ='App.2-AB_Capital Expenditures'!AC14 -> 2022 | H78: ='App.2-AB_Capital Expenditures'!AC21 -> 10649.71975
A79: ='LDC Info'!$E$14 -> Brantford Power Inc. | B79: EB-2021-0009 | C79: 2022 | D79: 2021 | E79: 2017 | F79: Capital Contributions | G79: ='App.2-AB_Capital Expenditures'!AC14 -> 2022 | H79: ='App.2-AB_Capital Expenditures'!AC22 -> 2505.129933
A80: ='LDC Info'!$E$14 -> Brantford Power Inc. | B80: EB-2021-0009 | C80: 2022 | D80: 2021 | E80: 2017 | F80: Net Capital Expenditures | G80: ='App.2-AB_Capital Expenditures'!AC14 -> 2022 | H80: ='App.2-AB_Capital Expenditures'!AC23 -> 8144.589815
A81: ='LDC Info'!$E$14 -> Brantford Power Inc. | B81: EB-2021-0009 | C81: 2022 | D81: 2021 | E81: 2017 | F81: System O&M | G81: ='App.2-AB_Capital Expenditures'!AC14 -> 2022 | H81: ='App.2-AB_Capital Expenditures'!AC24 -> 3318.686734
A82: ='LDC Info'!$E$14 -> Brantford Power Inc. | B82: EB-2021-0009 | C82: 2022 | D82: 2021 | E82: 2017 | F82: System Access | G82: ='App.2-AB_Capital Expenditures'!AD14 -> 2023 | H82: ='App.2-AB_Capital Expenditures'!AD17 -> 5496.169794
A83: ='LDC Info'!$E$14 -> Brantford Power Inc. | B83: EB-2021-0009 | C83: 2022 | D83: 2021 | E83: 2017 | F83: System Renewal | G83: ='App.2-AB_Capital Expenditures'!AD14 -> 2023 | H83: ='App.2-AB_Capital Expenditures'!AD18 -> 1374.86808
A84: ='LDC Info'!$E$14 -> Brantford Power Inc. | B84: EB-2021-0009 | C84: 2022 | D84: 2021 | E84: 2017 | F84: System Service | G84: ='App.2-AB_Capital Expenditures'!AD14 -> 2023 | H84: ='App.2-AB_Capital Expenditures'!AD19 -> 259.2817503
A85: ='LDC Info'!$E$14 -> Brantford Power Inc. | B85: EB-2021-0009 | C85: 2022 | D85: 2021 | E85: 2017 | F85: General Plant | G85: ='App.2-AB_Capital Expenditures'!AD14 -> 2023 | H85: ='App.2-AB_Capital Expenditures'!AD20 -> 1285.103355
A86: ='LDC Info'!$E$14 -> Brantford Power Inc. | B86: EB-2021-0009 | C86: 2022 | D86: 2021 | E86: 2017 | F86: Total Expenditure | G86: ='App.2-AB_Capital Expenditures'!AD14 -> 2023 | H86: ='App.2-AB_Capital Expenditures'!AD21 -> 8415.422979
A87: ='LDC Info'!$E$14 -> Brantford Power Inc. | B87: EB-2021-0009 | C87: 2022 | D87: 2021 | E87: 2017 | F87: Capital Contributions | G87: ='App.2-AB_Capital Expenditures'!AD14 -> 2023 | H87: ='App.2-AB_Capital Expenditures'!AD22 -> 1949.867943
A88: ='LDC Info'!$E$14 -> Brantford Power Inc. | B88: EB-2021-0009 | C88: 2022 | D88: 2021 | E88: 2017 | F88: Net Capital Expenditures | G88: ='App.2-AB_Capital Expenditures'!AD14 -> 2023 | H88: ='App.2-AB_Capital Expenditures'!AD23 -> 6465.555035
A89: ='LDC Info'!$E$14 -> Brantford Power Inc. | B89: EB-2021-0009 | C89: 2022 | D89: 2021 | E89: 2017 | F89: System O&M | G89: ='App.2-AB_Capital Expenditures'!AD14 -> 2023 | H89: ='App.2-AB_Capital Expenditures'!AD24 -> 3549.965104
A90: ='LDC Info'!$E$14 -> Brantford Power Inc. | B90: EB-2021-0009 | C90: 2022 | D90: 2021 | E90: 2017 | F90: System Access | G90: ='App.2-AB_Capital Expenditures'!AE14 -> 2024 | H90: ='App.2-AB_Capital Expenditures'!AE17 -> 4321.954036
A91: ='LDC Info'!$E$14 -> Brantford Power Inc. | B91: EB-2021-0009 | C91: 2022 | D91: 2021 | E91: 2017 | F91: System Renewal | G91: ='App.2-AB_Capital Expenditures'!AE14 -> 2024 | H91: ='App.2-AB_Capital Expenditures'!AE18 -> 1365.037634
A92: ='LDC Info'!$E$14 -> Brantford Power Inc. | B92: EB-2021-0009 | C92: 2022 | D92: 2021 | E92: 2017 | F92: System Service | G92: ='App.2-AB_Capital Expenditures'!AE14 -> 2024 | H92: ='App.2-AB_Capital Expenditures'!AE19 -> 263.0871213
A93: ='LDC Info'!$E$14 -> Brantford Power Inc. | B93: EB-2021-0009 | C93: 2022 | D93: 2021 | E93: 2017 | F93: General Plant | G93: ='App.2-AB_Capital Expenditures'!AE14 -> 2024 | H93: ='App.2-AB_Capital Expenditures'!AE20 -> 1041.108074
A94: ='LDC Info'!$E$14 -> Brantford Power Inc. | B94: EB-2021-0009 | C94: 2022 | D94: 2021 | E94: 2017 | F94: Total Expenditure | G94: ='App.2-AB_Capital Expenditures'!AE14 -> 2024 | H94: ='App.2-AB_Capital Expenditures'!AE21 -> 6991.186865
A95: ='LDC Info'!$E$14 -> Brantford Power Inc. | B95: EB-2021-0009 | C95: 2022 | D95: 2021 | E95: 2017 | F95: Capital Contributions | G95: ='App.2-AB_Capital Expenditures'!AE14 -> 2024 | H95: ='App.2-AB_Capital Expenditures'!AE22 -> 1304.058271
A96: ='LDC Info'!$E$14 -> Brantford Power Inc. | B96: EB-2021-0009 | C96: 2022 | D96: 2021 | E96: 2017 | F96: Net Capital Expenditures | G96: ='App.2-AB_Capital Expenditures'!AE14 -> 2024 | H96: ='App.2-AB_Capital Expenditures'!AE23 -> 5687.128594
A97: ='LDC Info'!$E$14 -> Brantford Power Inc. | B97: EB-2021-0009 | C97: 2022 | D97: 2021 | E97: 2017 | F97: System O&M | G97: ='App.2-AB_Capital Expenditures'!AE14 -> 2024 | H97: ='App.2-AB_Capital Expenditures'!AE24 -> 3630.609377
A98: ='LDC Info'!$E$14 -> Brantford Power Inc. | B98: =EBNUMBER -> EB-2021-0009 | C98: =TestYear -> 2022 | D98: =BridgeYear -> 2021 | E98: =RebaseYear -> 2017 | F98: System Access | G98: ='App.2-AB_Capital Expenditures'!AF14 -> 2025 | H98: ='App.2-AB_Capital Expenditures'!AF17 -> 4400.676988
A99: ='LDC Info'!$E$14 -> Brantford Power Inc. | B99: EB-2021-0009 | C99: 2022 | D99: 2021 | E99: 2017 | F99: System Renewal | G99: ='App.2-AB_Capital Expenditures'!AF14 -> 2025 | H99: ='App.2-AB_Capital Expenditures'!AF18 -> 1371.255452
A100: ='LDC Info'!$E$14 -> Brantford Power Inc. | B100: EB-2021-0009 | C100: 2022 | D100: 2021 | E100: 2017 | F100: System Service | G100: ='App.2-AB_Capital Expenditures'!AF14 -> 2025 | H100: ='App.2-AB_Capital Expenditures'!AF19 -> 266.8663653
A101: ='LDC Info'!$E$14 -> Brantford Power Inc. | B101: EB-2021-0009 | C101: 2022 | D101: 2021 | E101: 2017 | F101: General Plant | G101: ='App.2-AB_Capital Expenditures'!AF14 -> 2025 | H101: ='App.2-AB_Capital Expenditures'!AF20 -> 4172.081695
A102: ='LDC Info'!$E$14 -> Brantford Power Inc. | B102: EB-2021-0009 | C102: 2022 | D102: 2021 | E102: 2017 | F102: Total Expenditure | G102: ='App.2-AB_Capital Expenditures'!AF14 -> 2025 | H102: ='App.2-AB_Capital Expenditures'!AF21 -> 10210.8805
A103: ='LDC Info'!$E$14 -> Brantford Power Inc. | B103: EB-2021-0009 | C103: 2022 | D103: 2021 | E103: 2017 | F103: Capital Contributions | G103: ='App.2-AB_Capital Expenditures'!AF14 -> 2025 | H103: ='App.2-AB_Capital Expenditures'!AF22 -> 1460.830169
A104: ='LDC Info'!$E$14 -> Brantford Power Inc. | B104: EB-2021-0009 | C104: 2022 | D104: 2021 | E104: 2017 | F104: Net Capital Expenditures | G104: ='App.2-AB_Capital Expenditures'!AF14 -> 2025 | H104: ='App.2-AB_Capital Expenditures'!AF23 -> 8750.050331
A105: ='LDC Info'!$E$14 -> Brantford Power Inc. | B105: EB-2021-0009 | C105: 2022 | D105: 2021 | E105: 2017 | F105: System O&M | G105: ='App.2-AB_Capital Expenditures'!AF14 -> 2025 | H105: ='App.2-AB_Capital Expenditures'!AF24 -> 3603.599628
A106: ='LDC Info'!$E$14 -> Brantford Power Inc. | B106: EB-2021-0009 | C106: 2022 | D106: 2021 | E106: 2017 | F106: System Access | G106: ='App.2-AB_Capital Expenditures'!AG14 -> 2026 | H106: ='App.2-AB_Capital Expenditures'!AG17 -> 4349.067683
A107: ='LDC Info'!$E$14 -> Brantford Power Inc. | B107: EB-2021-0009 | C107: 2022 | D107: 2021 | E107: 2017 | F107: System Renewal | G107: ='App.2-AB_Capital Expenditures'!AG14 -> 2026 | H107: ='App.2-AB_Capital Expenditures'!AG18 -> 1400.15062
A108: ='LDC Info'!$E$14 -> Brantford Power Inc. | B108: EB-2021-0009 | C108: 2022 | D108: 2021 | E108: 2017 | F108: System Service | G108: ='App.2-AB_Capital Expenditures'!AG14 -> 2026 | H108: ='App.2-AB_Capital Expenditures'!AG19 -> 763.4278126
A109: ='LDC Info'!$E$14 -> Brantford Power Inc. | B109: EB-2021-0009 | C109: 2022 | D109: 2021 | E109: 2017 | F109: General Plant | G109: ='App.2-AB_Capital Expenditures'!AG14 -> 2026 | H109: ='App.2-AB_Capital Expenditures'!AG20 -> 684.9313955
A110: ='LDC Info'!$E$14 -> Brantford Power Inc. | B110: EB-2021-0009 | C110: 2022 | D110: 2021 | E110: 2017 | F110: Total Expenditure | G110: ='App.2-AB_Capital Expenditures'!AG14 -> 2026 | H110: ='App.2-AB_Capital Expenditures'!AG21 -> 7197.577511
A111: ='LDC Info'!$E$14 -> Brantford Power Inc. | B111: EB-2021-0009 | C111: 2022 | D111: 2021 | E111: 2017 | F111: Capital Contributions | G111: ='App.2-AB_Capital Expenditures'!AG14 -> 2026 | H111: ='App.2-AB_Capital Expenditures'!AG22 -> 1363.8432
A112: ='LDC Info'!$E$14 -> Brantford Power Inc. | B112: EB-2021-0009 | C112: 2022 | D112: 2021 | E112: 2017 | F112: Net Capital Expenditures | G112: ='App.2-AB_Capital Expenditures'!AG14 -> 2026 | H112: ='App.2-AB_Capital Expenditures'!AG23 -> 5833.734311
A113: ='LDC Info'!$E$14 -> Brantford Power Inc. | B113: EB-2021-0009 | C113: 2022 | D113: 2021 | E113: 2017 | F113: System O&M | G113: ='App.2-AB_Capital Expenditures'!AG14 -> 2026 | H113: ='App.2-AB_Capital Expenditures'!AG24 -> 3675.671621

Sheet App.2-AC_Customer Engagement
B1: File Number: | C1: =EBNUMBER -> EB-2021-0009
B2: Exhibit:
B3: Tab:
B4: Schedule:
B5: Page:
B7: Date:
A9: Appendix 2-AC
A10: Customer Engagement Activities Summary
A12: Provide a list of customer engagement activities | B12: Provide a list of customer needs and preferences identified through each engagement activity | C12: Actions taken to respond to identified needs and preferences. If no action was taken, explain why.
A13: Social Media Activity | B13: Top three reasons customers reply to our tweets or send us direct messages on twitter: 1. Notify us that their power is out. 2. Ask when power will be restored. 3. Ask why the power is out. | C13: An internal process was developed to share power outage information via Twitter.
A14: Social Media Activity | B14: Customer and teacher compliments for School Safety Program | C14: continued budget for School Safety program is included in OM&A budget for 2021, 2022
A15: School Safety Program Evaluation Forms | B15: Average rating is excellent and teachers would welcome more presentations in future years. | C15: Feedback confirmed the value and quality of the presentation resulting in continuing of the sessions.
A16: 2017 Safety Survey | B16: Of those who have a job which requires them to come close to energized power lines, 47% (highest category) of respondents were in construction and outdoor trades | C16: BPI provides and will continue to provide a free contractor safety breakfast
A17: 2018 & 2020 Safety Survey | B17: Electricity Safety is one of BPI's Key Priorities. In 2018 and 2020 BPI engaged with Utility Pulse to conduct the Safety Awareness Survey and achieve Index Score of 84% in 2018 and 85% in 2020. | C17: BPI's public safety scores have improved. BPI will continue with its public safety programs, namely School Safety Presentations, online safety messaging, and Contractor Safety Breakfast,
A18: 2018 & 2020 Safety Survey | B18: QB5: Call before you dig 55.1% would "definitely" and 17.3% very "very likely" to call to locate electrical or underground lines. | C18: a) Ontario One Call was a guest speaker at 2018 and 2019 Contractor Safety Meeting. Reinforced it is the law to call before you dig, identified safety hazards and handed out collateral as a reminder to call or click before you dig. b) Implemented a Twitter and website campaign in March 2019 and April 2020 during Dig Safe Month. c) All school safety sessions implemented in 2019 include safety messaging on the need to contact Ontario One Call for a locate before you dig anywhere on your property. 2020 score was up 1% from previous survey.
A19: 2018 & 2020 Safety Survey | B19: QB6: Impact of touching a power line 96.2%said it was "very dangerous" and 1.9% believed it is "somewhat dangerous" QB6: Impact of touching a power line 91% knew it was "very dangerous" and 8% believed it is "somewhat dangerous" | C19: a) Danger of contacting a powerline is covered all school safety sessions. B) Danger of contacting a powerline was conveyed in Powerline Safety Week Twitter and web messaging in May 2018, 2019 and 2020.
A20: 2018 Safety Survey | B20: Additional Questions for Grid Smart City Clients with some regarding where the public find information related to electrical safety and how many actively speak to their children about electrical safety. | C20: BPI has continued to include school safety sessions in its budget. The school safety sessions will contribute to conversations at home when the child returns home after a session. BPI has observed this via feedback on Twitter.
A21: 2020 Transactional Survey | B21: Call Handling: The impact of the new billing system was felt in H2’19 Lower Resolution resulted in lower Overall Satisfaction with Brantford and lower Call Satisfaction. | C21: The results from 2019 were reflective of our change to NS CIS. During the last wave, the results were impacted by duplicate bills being mailed, as well as a delay in some customer bills. We have now have processes in place to ensure this does not occur including reporting and validation checks.
A22: 2019 Customer Satisfaction Survey | B22: Customer Satisfaction Overall Satisfaction: 97% Overall Satisfaction has significantly improved Reliability and Customer Service are the most frequent reasons for positive ratings. Value and Affordability are the two strongest drivers of Overall Satisfaction. Customer Service has improved since 2017. | C22: This feedback was one of the inputs considered when BPI set its budget objectives for 2021/2022. Based on the overall level of satisfaction, BPI's objective is to maintain the current levels of customer service and reliability, seeking opportunities for improvement in cases where there is a high value for money.
A23: Feedback at Contractor Safety Breakfast | B23: The need to create a direct line for our Emergency Services to reduce wait times and provide quicker access to BPI. | C23: In February 2019, a new emergency line was created for use by first responders only to provide them with quicker access to Brantford Power. The number was shared with Brantford fire, police and ambulance. This number is not publicized and is only meant for emergency situations.
A24: Large Customer feedback - ELT visits, BPI employees who deal directly with them | B24: Manufacturing facilities are heavily impacted by outages. When an outage occurs during a manufacturing process, it is likely the materials in that process can be ruined and wasted. Production cannot restart immediately upon outage restoration, rather the materials from the interrupted process need to be removed, and equipment needs to be cleaned before a production can start again. This can have a big impact on the day’s productivity. | C24: BPI's aim is to maintain the current level of reliability. It is difficult to target reliability improvement measures to certain classes of customers, however surveys indicate customers are generally satisfied with the current level of reliability.
A25: Communications to Customer Service | B25: Request for outage notification option tools from customers also familiar with other LDCs. | C25: BPI has proposed to implement a new Outage Management System in 2023 which may enable greater outage notification options.
A26: Communications to Customer Service | B26: What is the expected restoration time? / What was the cause of the outage? | C26: BPI has proposed to implement a new Outage Management System in 2023 which may enable quicker, more accurate and more automated provision of outage information to customers
A27: Communications to Customer Service | B27: What tools are available to help reduce electricity usage? – spiked in Spring 2020. | C27: BPI continues to refer customers to CDM programs run by the IESO.
A28: Communications to Customer Service | B28: Could improve the number of forms available to fill online, and the ease of the process for filling online forms. | C28: BPI is working to improve the amount of fillable forms online. This measure Is expected to improve customer satisfaction, while also enabling some productivity improvements in the customer services areas. Fillable forms will enable greater accuracy of data, and a lower level of Customer Care Representative intervention for certain processes.
A29: Online Workbook Survey - Pole Replacement | B29: • Pole Replacement Results: Brantford Power is proposing to reduce their overall pole replacement budget. A majority of customers in each rate class feel that Brantford Power should not reduce its spending in this category but would prefer they either stick with the status quo or an even further accelerated approach Among Residential customers, (35%) indicated a preference for an accelerated pace, while (34%) indicated a preference for a status quo and (22%) what was included in the draft plan. Among Small Business Customers, (24%) indicated a preference for an accelerated pace, while (46%) indicated a preference for a status quo and (14%) what was included in the draft plan. Of the GS>50 kW respondents, 15 out of 25 indicated a preference for the status quo and 5 out of 25 what was included in the draft plan. | C29: • Pole Replacement Due to the agreement of overall customer preferences for the accelerated pace (80 poles replaced per year), BPI has decided to change its proposed plan included in Draft Plan (60 per year) to the accelerated pace.
A30: Online Workbook Survey - Porcelain Device Replacements | B30: • Porcelain Device Replacements With regards to replacing porcelain devices, customer preference is clear – a strong majority prefer the approach included in the draft plan (71%), which would see Brantford Power triple the budget for this project from 2020 to 2021 and continue with this pace of replacement in 2022-2026. Small business customers are marginally more likely to select the status quo option (36%), however, GS>50 kW overwhelmingly support the approach included in the draft plan (20/5). | C30: • Porcelain Device Replacements In considering the overall customer preferences from each rate class, BPI has decided to maintain its proposed plan for Porcelain Device Replacement
A31: Online Workbook Survey -Transformer Replacements | B31: • Transformer Replacements A plurality of residential (43%), small business (46%), GS >50 kW customers (17/25) support the pace of transformer replacement that is currently included in Brantford Power’s draft plan. This approach would see Brantford Power increase the number of transformers replaced each year relative to the average approach since 2017. More than 1-in-3 residential and small business customers also support an approach that would further accelerate the pace of replacement and the associated bill impacts of doing so. | C31: • Transformer Replacements In considering the overall customer preferences from each rate class, BPI has decided to maintain its proposed plan for Transformer Replacements
A32: Online Workbook Survey | B32: • Underground Structure Replacements Customer rate classes are more divided on which approach they prefer when it comes to underground structure replacement. A slight majority of residential customers (53%) support the approach included in the draft plan, which would slow down the pace of replacement relative to the current approach. GS>50 kW customers (18/25) also support this approach. Small business customers (62%), however, are more likely to support the status quo approach to underground structure replacement. | C32: • Underground Structure Replacements In considering the overall customer preferences from each rate class, BPI has decided to maintain its proposed plan for Underground Structure Replacements
A33: Online Workbook Survey | B33: • Automated Reclosers A majority of customers in all rate classes (Residential 57%, Small Business 61% and GS>50 kW 18/25) support the status quo option for replacing automated reclosers, which is currently included in the draft plan. With that, more than 1-in-4 residential and small business customers support an accelerated pace, which would lead to a greater likelihood that the program would avoid or limit outages. | C33: • Automated Reclosers In considering the overall customer preferences from each rate class, BPI has decided to maintain its proposed plan for Automated Reclosers
A34: Online Workbook Survey | B34: • Outage Management System A majority or customers support the associated costs with such an investment. More than 60% of customers in each rate class selected the approach included in the utility’s draft plan, which would see the system in place by 2022. | C34: • Outage Management System In considering the overall customer preferences from each rate class, BPI has decided to maintain its proposed plan for Outage Management System. BPI has deferred its GIS project, which is needed to enable an efficient Outage Management System implementation. As a result, the Outage Management System implementation has been deferred to 2023.
A35: Online Workbook Survey | B35: • 24/7 Control Room Coverage A slightly higher proportion of customers support Brantford Power making an investment into 24/7 control room coverage. This investment would assist Brantford Power in responding to after-hours outages more quickly. Support is relatively consistent across customer rate classes, with a slightly higher proportion of residential customers supporting the investment. | C35: • 24/7 Control Room Coverage In considering the overall customer preferences from each rate class, BPI has decided to maintain its proposed plan for 24/7 Control Room Coverage
A36: Online Workbook Survey - Overall Satisfaction with Brantford Power * Commercial GS >50kW: A total of 25 (unweighted) Brantford Power commercial and industrial customers completed the online workbook via unique URL | B36: • Overall Satisfaction with Brantford Power Thinking specifically about the services provided to you and your community by Brantford Power, overall, how satisfied or dissatisfied are you with the services that you receive? Residential Customers: 77% of Residential customers are very satisfied or somewhat satisfied. Small Business customers: 75% of Small Business customers are very or somewhat satisfied GS>50 kW customers: 13 customers indicated "Very satisfied" and 6 customers indicated "Somewhat satisfied" | C36: Given most customers are satisfied with the level of service, BPI will generally strive to continue the level of service currently provided.
A37: Online Workbook Survey - How can Brantford Power Improve Services | B37: • How can Brantford Power Improve Services Is there anything in particular you would like Brantford Power to do to improve its services to you? Residential Customers: 73% of customers surveyed responded "None" Small Business customers: 81% of customers surveyed responded "None" GS>50 kW customers: 17 respondents did not provide additional feedback | C37: While BPI strives for continuous improvements in service, this response does not indicate any strong trends in requests for service improvement. BPI will strive to improved service were opportunities for cost effective improvements exist.
A38: Online Workbook Survey - Building Brantford Power's Plan | B38: • Building Brantford Power's Plan Is there is anything in particular you would change about the approach/objectives above or any other comments you would like to make? Residential Customers: 82% of residential customers surveyed indicated that there are no changes about the approach/objectives or any comments to make. Small Business customers: 90% of residential customers surveyed indicated that there are no changes about the approach/objectives or any comments to make. GS>50 kW customers: 22 respondents did not provide additional information | C38: While some customers provided additional changes to BPI's proposed approach, the majority of respondents did not.
A39: Online Workbook Survey - Brantford Power Background | B39: • Brantford Power Background Based on what you know, do you believe that Brantford Power should be looking to pursue more industry partnership to find efficiencies? Residential Customers: A slight majority of residential customers (57%) responded "Yes" compared to (35%) responded "Don't know enough to say" and (7%) responded "No" Small Business customers: A slight majority of residential customers (59%) responded "Yes" compared to (33%) responded "Don't know enough to say" and (8%) responded "No" GS>50 kW customers: 11 customers responded "Yes" and 11 customers responded "Don't know enough to say" | C39: Brantford Power will continue to pursue industry partnerships in order to find efficiency savings. Since the last COS, BPI joined Utilities Standards Forum, which has resulted in greater productivity in certain key areas. BPI has also entered into purchasing contracts through the GridSmart City which enables it to take advantage of greater purchasing power through a larger consortium of LDCs. Brantford Power is currently in discussions towards a merger with another LDC. Whether these merger discussions are successful or not, Energy+ will occupy some of the space at BPI's new facility and BPI and Energy+ will share certain services, enabling both utilities to obtain cost savings vs. a standalone approach.
A40: Online Workbook Survey - Background Information | B40: • Background Information When mandatory spending exceeds what is included in the budget, what do you feel Brantford Power should do? Residential Customers: Among Residential customers, a plurality (42%) indicated a preference for "Defer or cancel some projects while continuing with other non-mandatory projects, based on Brantford Power's judgement to balance customer benefits and future rate increases" and (39% ) indicated "Defer or cancel planned non-mandatory projects and not increase the overall budget which would avoid further rate increases". Small Business Customers: Among small business customers, a plurality (39%) indicated a preference for "Defer or cancel planned non-mandatory projects and not increase the overall budget which would avoid further rate increases "and (30% ) "Defer or cancel some projects while continuing with other non-mandatory projects, based on Brantford Power's judgement to balance customer benefits" GS>50 kW customers: A plurality of 10 customers indicated a preference for "Defer or cancel some projects while continuing with other non-mandatory projects, based on Brantford Power's judgement to balance customer benefits and future rate increases" and 8 customers indicated "Defer or cancel planned non-mandatory projects and not increase the overall budget which would avoid further rate increases". | C40: Brantford Power will continue to use its judgement to balance capital budget investment decisions, taking into account the impact of spending decisions on identified customer preferences, namely reliability, customer service, value for money and affordability.
A41: Online Workbook Survey - Assessing Brantford Power's drat 2021-2025 plan | B41: • Assessing Brantford Power's drat 2021-2025 plan Residential Customers: Considering what you know about Brantford Power's draft 2022-2026 plan - which would see the typical residential customer's distribution portion of their bill increase by $7.48 over the five-year period - which of the following best represents your point of view? Among Residential customers, a narrow majority (51%) indicated a preference for "Brantford Power should maintain a $7.48 increase to deliver a program that focuses on the priorities of its drat plan over the five-year period, and (24%) indicated a preference for "Brantford Power should improve service, as discussed on the previous pages, even if that mean an increase that exceeds $7.48 over the five-year period". Small Business customers: Considering what you know about Brantford Power's draft 2022-2026 plan - which would see the typical residential customer's distribution portion of their bill increase by $13.34 over the five-year period - which of the following best represents your point of view? A narrow majority (56%) indicated a preference for "Brantford Power should maintain a $13.34 increase to deliver a program that focuses on the priorities of its drat plan over the five-year period, and (20%) indicated a preference for "Brantford Power should improve service, as discussed on the previous pages, even if that mean an increase that exceeds $13.34 over the five-year period". GS>50 kW customers: Considering what you know about Brantford Power's draft 2022-2026 plan - which would see the typical residential customer's distribution portion of their bill increase by $210.84 over the five-year period - which of the following best represents your point of view? A narrow majority of 13 customers indicated a preference for "Brantford Power should maintain a $210.84 increase to deliver a program that focuses on the priorities of its drat plan over the five-year period, and 3 customers indicated a preference for "Brantford Power should improve service, as discussed on the previous pages, even if that mean an increase that exceeds $210.84 over the five-year period". | C41: BPI has selected not to modify the majority of the projects which were consulted on as part of the online survey, given the majority of customers support the proposed plan. BPI notes that the next highest category of answers has typically been to support increased service at an increased rate. There are two exceptions were BPI has made adjustments to the proposals: 1) BPI has increased the level of poles to be replaced consistent with the highest proportion of customer responses. 2) BPI has deferred the project to implement a new OMS beyond the 2022 Test Year. This adjusted timing is related to BPI's potential merger, which has impacted the timing of the GIS project, which is a prerequisite to the OMS implementation.
A42: Online Workbook Survey | B42: • Final Comments Do you have any final comments regarding Brantford Power or the customer engagement that you just completed? Residential Customers: 81% of respondents did not provide additional feedback. Small Business customers: 39 respondents did not provide additional feedback GS>50 kW customers: 20 respondents did not provide additional feedback | C42: While some customers provided additional feedback, there was no additional need or preference identified by a significant component of respondents; BPI sees this as indicating that the opinions and concerns obtained in the other questions represent the main concerns and preferences of customers.
A43: Online Workbook Survey | B43: • Final Thoughts Overall, did you have a favourable or unfavourable impression of the customer engagement you just completed? Residential Customers: 49% of residential customers surveyed responded "Somewhat favourable" and 37% responded "Very favourable" Small Business customers: 41% of residential customers surveyed responded "Somewhat favourable" and 40% responded "Very favourable" GS>50 kW customers: 12 customers surveyed responded "Somewhat favourable" and 8 customers responded "Very favourable" | C43: BPI believes the investment in this form of customer engagement has met multiple objectives, including obtaining valuable feedback from customers as well as increasing customers' awareness of Brantford Power, its future plans, and its role in the electricity sector.
A45: Note: Use "ALT-ENTER" to go to the next line within a cell

Sheet App.2-B_Acctg Instructions
A1: General Instructions to MIFRS Appendices
A2: Types of Schedules to File
A4: The purpose of this tab is to provide general instructions. The specific instructions to each appendix are listed in footnotes of each appendix.
A6: The typical applicant is expected to have made capitalization and depreciation policy changes under CGAAP as permitted by the OEB on January 1, 2012 or mandated by the OEB by January 1, 2013, and adopted IFRS for reporting purposes on January 1, 2015 (transition date January 1, 2014). Most distributors filing for 2021 rates have rebased with these accounting changes reflected in a prior rebasing application. If that is the case, information relating to pre-accounting policy changes is not generally required. Most distributors may have rebased under MIFRS. If that is the case, information related to the accounting standard used prior to IFRS is not generally required. The information to be provided by applicants will depend on when the accounting policy changes were made and when they last rebased. In general, applicants should provide the following information in the appendices:
E9: Reflecting Accounting Policy Changes in Current Application | G9: Reflected Accounting Policy Changes in Prior Application3 | H9: Rebased under MIFRS in Prior Application3
E10: Accounting Policy Changes in 2012 and Adopted IFRS in 2015 | F10: Accounting Policy Changes in 2013 and Adopted IFRS in 2015 | G10: Adopted IFRS in 2015 | H10: IFRS Since 2015
B11: 2021 | C11: Test | E11: MIFRS | F11: MIFRS | G11: MIFRS | H11: MIFRS
A12: Information to be filed in 2019 CoS Application | B12: 2020 | C12: Bridge | E12: MIFRS | F12: MIFRS | G12: MIFRS | H12: MIFRS
B13: 2019 | C13: Bridge | E13: MIFRS | F13: MIFRS | G13: MIFRS | H13: MIFRS
B14: 2018 | C14: Bridge | E14: MIFRS | F14: MIFRS | G14: MIFRS | H14: MIFRS
B15: 2017 | C15: Historical | E15: MIFRS | F15: MIFRS | G15: MIFRS | H15: MIFRS
B16: 2016 | C16: Historical | E16: MIFRS | F16: MIFRS | G16: MIFRS | H16: MIFRS
B17: 2015 | C17: Historical | E17: MIFRS and Revised CGAAP1 | F17: MIFRS and Revised CGAAP1 | G17: MIFRS and Revised CGAAP1 | H17: N/A
B18: 2014 | C18: Historical | E18: Revised CGAAP | F18: CGAAP and Revised CGAAP2 | G18: N/A | H18: N/A
B19: 2013 | C19: Historical | E19: CGAAP and Revised CGAAP2 | F19: N/A | G19: N/A | H19: N/A
A21: 1) For the transition year (2014), the applicant may file two appendices, one under Revised CGAAP and one under MIFRS, depending on the materiality of impacts. See the specific instructions under each appendix below for further details.
A22: 2) For applicants that are reflecting accounting policy changes for the first time in a rebasing application, the applicant must file two appendices in the year that the applicant implemented changes to its capitalization and depreciation policies (2012 or 2013), one before and one after the policy changes.
A23: 3) Applicants should provide CGAAP and Revised CGAAP schedules (i.e. as indicated in the first two columns of the above table) to support balances in Account 1576 if the account has yet to be disposed of.
A26: Appendix 2-BA - Fixed Asset Schedule
A28: Applicants are to provide Appendix 2-BA in accordance with the years and corresponding accounting standards noted in the above table to provide a year over year continuity in fixed assets.
A29: If this is the first application where the applicant is rebasing under MIFRS, the applicant should file two appendices, one under Revised CGAAP and one under MIFRS for the transition year (2014), if the change between Revised CGAAP and MIFRS is material. If the change from the accounting standards is not material, the applicant may choose to only provide one appendix under MIFRS. However, the applicant must also indicate the fixed asset net book value balance under Revised CGAAP, the total dollar value of the change and explain why it is not material.
A33: The applicant must establish the continuity of historical cost for gross assets and accumulated depreciation by asset class by ensuring that the opening balance in the year agrees to the closing balance in the prior year.
A36: Appendix 2-Cx - Depreciation and Amortization
A38: Applicants are to provide Appendix 2-C in accordance with the years and corresponding accounting standards listed in the above table.
A39: Appendix 2-C is to be used under all of the scenarios presented in the table above. In the appendix, the applicant will need to indicate which scenario applies. The appendix is to be duplicated for each year and for each accounting standard required as per the above table.
A40: Depreciation accounting policy changes were mandated by the OEB by January 1, 2013. In general, no further changes to an applicant's depreciation policy (i.e. assets' service lives) are expected after the OEB mandated changes by January 1, 2013, unless a change is determined to be necessary in accordance with the depreciation review required under IFRS. If the applicant has made any changes to its depreciation policy subsequent to the OEB mandated changes, for the year of the change, applicants must quantify the change in depreciation. If there are significant changes to multiple asset classes, the applicant must complete Appendix 2-C before and after the change. Applicants must also explain the nature of the change, the reason for the change, quantify the impact of the change.
A42: Appendix 2-E - Account 1575, IFRS-CGAAP Transitional PP&E Amounts (2-EA), Account 1576, Accounting Changes Under CGAAP (2-EB, 2-EC) CONTACT OEB STAFF IF TAB REQUIRED
A44: 1) For an applicant that has a balance in Account 1576 to dispose:
A45: · | B45: If an applicant changed capitalization and depreciation policies effective January 1, 2012, the applicant must complete Appendix 2-EB
A46: · | B46: If an applicant changed capitalization and depreciation policies effective January 1, 2013, the applicant must complete Appendix 2-EC
A48: 2) For an applicant that has a balance in Account 1575 to dispose:
A49: · | B49: The applicant must complete 2-EA
A50: If the applicant did not make any further PP&E accounting policy changes beyond the capitalization and depreciation policy changes as mandated by the OEB by January 1, 2013 (i.e. no further changes made on transition to IFRS), the applicant must indicate this and does not need to complete Appendix 2-EA.
A54: Appendix 2-Y - Summary of Impacts to Revenue Requirement from Transition to MIFRS CONTACT OEB STAFF IF TAB REQUIRED
A56: Applicants must complete Appendix 2-Y if this is the first rebasing application under MIFRS. An applicant must provide a summary of the dollar impacts of MIFRS to each component of the revenue requirement (e.g. rate base, operating costs, etc.), including the overall impact on the proposed revenue requirement. Accordingly, the applicant must identify financial differences and resulting revenue requirement impacts arising from the adoption of MIFRS as compared to CGAAP. If the applicant is reflecting the changes in capitalization and depreciation policies for the first time in a rebasing application as well, then a comparison between MIFRS and CGAAP before the change in accounting policies should be completed. If the applicant changed capitalization and depreciation policies and reflected these changes in a prior rebasing application, then a comparison between MIFRS and CGAAP after the change in accounting policies should be completed.

Sheet App.2-BA_Fixed Asset Cont
L1: File Number: | M1: =EBNUMBER -> EB-2021-0009 | Z1: File Number: | AA1: =EBNUMBER -> EB-2021-0009 | AN1: File Number: | AO1: =EBNUMBER -> EB-2021-0009 | BB1: File Number: | BC1: =EBNUMBER -> EB-2021-0009 | BP1: File Number: | BQ1: =EBNUMBER -> EB-2021-0009 | CD1: File Number: | CE1: =EBNUMBER -> EB-2021-0009
L2: Exhibit: | Z2: Exhibit: | AN2: Exhibit: | BB2: Exhibit: | BP2: Exhibit: | CD2: Exhibit:
L3: Tab: | Z3: Tab: | AN3: Tab: | BB3: Tab: | BP3: Tab: | CD3: Tab:
L4: Schedule: | Z4: Schedule: | AN4: Schedule: | BB4: Schedule: | BP4: Schedule: | CD4: Schedule:
L5: Page: | Z5: Page: | AN5: Page: | BB5: Page: | BP5: Page: | CD5: Page:
L7: Date: | Z7: Date: | AN7: Date: | BB7: Date: | BP7: Date: | CD7: Date:
A9: Appendix 2-BA | O9: Appendix 2-BA
A10: Fixed Asset Continuity Schedule 1 | O10: Fixed Asset Continuity Schedule 1
E12: Accounting Standard | F12: MIFRS | S12: Accounting Standard | T12: MIFRS | AG12: Accounting Standard | AH12: MIFRS | AU12: Accounting Standard | AV12: MIFRS | BI12: Accounting Standard | BJ12: MIFRS | BW12: Accounting Standard | BX12: MIFRS
E13: Year | F13: 2017 | S13: Year | T13: 2018 | AG13: Year | AH13: 2019 | AU13: Year | AV13: 2020 | BI13: Year | BJ13: 2021 | BW13: Year | BX13: 2022
D15: Cost | J15: Accumulated Depreciation | R15: Cost | X15: Accumulated Depreciation | AF15: Cost | AL15: Accumulated Depreciation | AT15: Cost | AZ15: Accumulated Depreciation | BH15: Cost | BN15: Accumulated Depreciation | BV15: Cost | CB15: Accumulated Depreciation
A16: CCA Class 2 | B16: OEB Account 3 | D16: Opening Balance | E16: Additions 4 | F16: Disposals 6 | G16: Closing Balance | I16: Opening Balance | J16: Additions | K16: Disposals 6 | L16: Closing Balance | M16: Net Book Value | O16: CCA Class 2 | P16: OEB Account 3 | R16: Opening Balance | S16: Additions 4 | T16: Disposals 6 | U16: Closing Balance | W16: Opening Balance | X16: Additions | Y16: Disposals 6 | Z16: Closing Balance | AA16: Net Book Value | AC16: CCA Class 2 | AD16: OEB Account 3 | AE16: Description 3 | AF16: Opening Balance | AG16: Additions 4 | AH16: Disposals 6 | AI16: Closing Balance | AK16: Opening Balance | AL16: Additions | AM16: Disposals 6 | AN16: Closing Balance | AO16: Net Book Value | AQ16: CCA Class 2 | AR16: OEB Account 3 | AT16: Opening Balance | AU16: Additions 4 | AV16: Disposals 6 | AW16: Closing Balance | AY16: Opening Balance | AZ16: Additions | BA16: Disposals 6 | BB16: Closing Balance | BC16: Net Book Value | BE16: CCA Class 2 | BF16: OEB Account 3 | BH16: Opening Balance | BI16: Additions 4 | BJ16: Disposals 6 | BK16: Closing Balance | BM16: Opening Balance | BN16: Additions | BO16: Disposals 6 | BP16: Closing Balance | BQ16: Net Book Value | BS16: CCA Class 2 | BT16: OEB Account 3 | BV16: Opening Balance | BW16: Additions 4 | BX16: Disposals 6 | BY16: Closing Balance | CA16: Opening Balance | CB16: Additions | CC16: Disposals 6 | CD16: Closing Balance | CE16: Net Book Value
B17: 1609 | C17: Capital Contributions Paid | G17: =D17+E17+F17 -> 0 | L17: =I17+J17+K17 -> 0 | M17: =G17+L17 -> 0 | P17: 1609 | Q17: Capital Contributions Paid | U17: =R17+S17+T17 -> 0 | Z17: =W17+X17+Y17 -> 0 | AA17: =U17+Z17 -> 0 | AD17: 1609 | AE17: Capital Contributions Paid | AI17: =AF17+AG17+AH17 -> 0 | AN17: =AK17+AL17+AM17 -> 0 | AO17: =AI17+AN17 -> 0 | AR17: 1609 | AS17: Capital Contributions Paid | AW17: =AT17+AU17+AV17 -> 0 | BB17: =AY17+AZ17+BA17 -> 0 | BC17: =AW17+BB17 -> 0 | BF17: 1609 | BG17: Capital Contributions Paid | BK17: =BH17+BI17+BJ17 -> 0 | BP17: =BM17+BN17+BO17 -> 0 | BQ17: =BK17+BP17 -> 0 | BT17: 1609 | BU17: Capital Contributions Paid | BY17: =BV17+BW17+BX17 -> 0 | CD17: =CA17+CB17+CC17 -> 0 | CE17: =BY17+CD17 -> 0
A18: 12 | B18: 1611 | C18: Computer Software (Formally known as Account 1925) | D18: 1596436.47 | E18: 143159.88 | F18: 0 | G18: =D18+E18+F18 -> 1739596.35 | I18: -512622.53 | J18: -318702.98 | K18: 0 | L18: =I18+J18+K18 -> -831325.51 | M18: =G18+L18 -> 908270.84 | O18: 12 | P18: 1611 | Q18: Computer Software (Formally known as Account 1925) | R18: 1739596.35 | S18: 8582 | T18: 0 | U18: =R18+S18+T18 -> 1748178.35 | W18: -831325.51 | X18: -181202.4 | Y18: 0 | Z18: =W18+X18+Y18 -> -1012527.91 | AA18: =U18+Z18 -> 735650.44 | AC18: 12 | AD18: 1611 | AE18: Computer Software (Formally known as Account 1925) | AF18: 1748178.35 | AG18: 2164364.32 | AH18: 0 | AI18: =AF18+AG18+AH18 -> 3912542.67 | AK18: -1012527.91 | AL18: -340728.9 | AM18: 0 | AN18: =AK18+AL18+AM18 -> -1353256.81 | AO18: =AI18+AN18 -> 2559285.86 | AQ18: 12 | AR18: 1611 | AS18: Computer Software (Formally known as Account 1925) | AT18: 3912542.67 | AU18: 103373.55 | AV18: 0 | AW18: =AT18+AU18+AV18 -> 4015916.22 | AY18: -1353256.81 | AZ18: -219914.78 | BA18: 0 | BB18: =AY18+AZ18+BA18 -> -1573171.59 | BC18: =AW18+BB18 -> 2442744.63 | BE18: 12 | BF18: 1611 | BG18: Computer Software (Formally known as Account 1925) | BH18: 4015916.22 | BI18: 84138.46203 | BJ18: 0 | BK18: =BH18+BI18+BJ18 -> 4100054.682 | BM18: =BB18 -> -1573171.59 | BN18: -329588.5897 | BO18: 0 | BP18: =BM18+BN18+BO18 -> -1902760.18 | BQ18: =BK18+BP18 -> 2197294.502 | BS18: 12 | BT18: 1611 | BU18: Computer Software (Formally known as Account 1925) | BV18: 4100054.682 | BW18: 1041241.297 | BX18: 0 | BY18: =BV18+BW18+BX18 -> 5141295.979 | CA18: =BP18 -> -1902760.18 | CB18: -403376.6211 | CC18: 0 | CD18: =CA18+CB18+CC18 -> -2306136.801 | CE18: =BY18+CD18 -> 2835159.178
A19: CEC | B19: 1612 | C19: Land Rights (Formally known as Account 1906) | D19: 0 | E19: 0 | F19: 0 | G19: =D19+E19+F19 -> 0 | I19: 0 | J19: 0 | K19: 0 | L19: =I19+J19+K19 -> 0 | M19: =G19+L19 -> 0 | O19: CEC | P19: 1612 | Q19: Land Rights (Formally known as Account 1906) | R19: 0 | S19: 0 | T19: 0 | U19: =R19+S19+T19 -> 0 | W19: 0 | X19: 0 | Y19: 0 | Z19: =W19+X19+Y19 -> 0 | AA19: =U19+Z19 -> 0 | AC19: CEC | AD19: 1612 | AE19: Land Rights (Formally known as Account 1906) | AF19: 0 | AG19: 0 | AH19: 0 | AI19: =AF19+AG19+AH19 -> 0 | AK19: 0 | AL19: 0 | AM19: 0 | AN19: =AK19+AL19+AM19 -> 0 | AO19: =AI19+AN19 -> 0 | AQ19: CEC | AR19: 1612 | AS19: Land Rights (Formally known as Account 1906) | AT19: 0 | AU19: 0 | AV19: 0 | AW19: =AT19+AU19+AV19 -> 0 | AY19: 0 | AZ19: 0 | BA19: 0 | BB19: =AY19+AZ19+BA19 -> 0 | BC19: =AW19+BB19 -> 0 | BE19: CEC | BF19: 1612 | BG19: Land Rights (Formally known as Account 1906) | BH19: 0 | BI19: 0 | BJ19: 0 | BK19: =BH19+BI19+BJ19 -> 0 | BM19: =BB19 -> 0 | BN19: 0 | BO19: 0 | BP19: =BM19+BN19+BO19 -> 0 | BQ19: =BK19+BP19 -> 0 | BS19: CEC | BT19: 1612 | BU19: Land Rights (Formally known as Account 1906) | BV19: 0 | BW19: 0 | BX19: 0 | BY19: =BV19+BW19+BX19 -> 0 | CA19: =BP19 -> 0 | CB19: 0 | CC19: 0 | CD19: =CA19+CB19+CC19 -> 0 | CE19: =BY19+CD19 -> 0
A20: N/A | B20: 1805 | C20: Land | D20: 181960.63 | E20: 0 | F20: 0 | G20: =D20+E20+F20 -> 181960.63 | I20: 0 | J20: 0 | K20: 0 | L20: =I20+J20+K20 -> 0 | M20: =G20+L20 -> 181960.63 | O20: N/A | P20: 1805 | Q20: Land | R20: 181960.63 | S20: 0 | T20: 0 | U20: =R20+S20+T20 -> 181960.63 | W20: 0 | X20: 0 | Y20: 0 | Z20: =W20+X20+Y20 -> 0 | AA20: =U20+Z20 -> 181960.63 | AC20: N/A | AD20: 1805 | AE20: Land | AF20: 181960.63 | AG20: 0 | AH20: 0 | AI20: =AF20+AG20+AH20 -> 181960.63 | AK20: 0 | AL20: 0 | AM20: 0 | AN20: =AK20+AL20+AM20 -> 0 | AO20: =AI20+AN20 -> 181960.63 | AQ20: N/A | AR20: 1805 | AS20: Land | AT20: 181960.63 | AU20: 0 | AV20: 0 | AW20: =AT20+AU20+AV20 -> 181960.63 | AY20: 0 | AZ20: 0 | BA20: 0 | BB20: =AY20+AZ20+BA20 -> 0 | BC20: =AW20+BB20 -> 181960.63 | BE20: N/A | BF20: 1805 | BG20: Land | BH20: 181960.63 | BI20: 0 | BJ20: 0 | BK20: =BH20+BI20+BJ20 -> 181960.63 | BM20: 0 | BN20: 0 | BO20: 0 | BP20: =BM20+BN20+BO20 -> 0 | BQ20: =BK20+BP20 -> 181960.63 | BS20: N/A | BT20: 1805 | BU20: Land | BV20: 181960.63 | BW20: 0 | BX20: 0 | BY20: =BV20+BW20+BX20 -> 181960.63 | CA20: 0 | CB20: 0 | CC20: 0 | CD20: =CA20+CB20+CC20 -> 0 | CE20: =BY20+CD20 -> 181960.63
A21: CEC | B21: 1806 | C21: Land Rights | D21: 98187.18 | E21: 0 | F21: 0 | G21: =D21+E21+F21 -> 98187.18 | I21: -5851.87 | J21: -2017.01 | K21: 0 | L21: =I21+J21+K21 -> -7868.88 | M21: =G21+L21 -> 90318.3 | O21: CEC | P21: 1806 | Q21: Land Rights | R21: 98187.18 | S21: 0 | T21: 0 | U21: =R21+S21+T21 -> 98187.18 | W21: -7868.88 | X21: -2017.01 | Y21: 0 | Z21: =W21+X21+Y21 -> -9885.89 | AA21: =U21+Z21 -> 88301.29 | AC21: CEC | AD21: 1806 | AE21: Land Rights | AF21: 98187.18 | AG21: 0 | AH21: 0 | AI21: =AF21+AG21+AH21 -> 98187.18 | AK21: -9885.89 | AL21: -2017.01 | AM21: 0 | AN21: =AK21+AL21+AM21 -> -11902.9 | AO21: =AI21+AN21 -> 86284.28 | AQ21: CEC | AR21: 1806 | AS21: Land Rights | AT21: 98187.18 | AU21: 29280 | AV21: 0 | AW21: =AT21+AU21+AV21 -> 127467.18 | AY21: -11902.9 | AZ21: -2022.54 | BA21: 0 | BB21: =AY21+AZ21+BA21 -> -13925.44 | BC21: =AW21+BB21 -> 113541.74 | BE21: CEC | BF21: 1806 | BG21: Land Rights | BH21: 127467.18 | BI21: 0 | BJ21: 0 | BK21: =BH21+BI21+BJ21 -> 127467.18 | BM21: -13925.44 | BN21: -1963.7436 | BO21: 0 | BP21: =BM21+BN21+BO21 -> -15889.1836 | BQ21: =BK21+BP21 -> 111577.9964 | BS21: CEC | BT21: 1806 | BU21: Land Rights | BV21: 127467.18 | BW21: 0 | BX21: 0 | BY21: =BV21+BW21+BX21 -> 127467.18 | CA21: -15889.1836 | CB21: -1963.7436 | CC21: 0 | CD21: =CA21+CB21+CC21 -> -17852.9272 | CE21: =BY21+CD21 -> 109614.2528
A22: 47 | B22: 1808 | C22: Buildings | D22: 945584.81 | E22: 0 | F22: 0 | G22: 945584.81 | I22: -82811.82 | J22: -27078.35 | K22: 0 | L22: -109890.17 | M22: 835694.64 | O22: 47 | P22: 1808 | Q22: Buildings | R22: 945584.81 | S22: 0 | T22: 0 | U22: 945584.81 | W22: -109890.17 | X22: -27078.35 | Y22: 0 | Z22: -136968.52 | AA22: 808616.29 | AC22: 47 | AD22: 1808 | AE22: Buildings | AF22: 945584.81 | AG22: 0 | AH22: 0 | AI22: 945584.81 | AK22: -136968.52 | AL22: -27078.35 | AM22: 0 | AN22: -164046.87 | AO22: 781537.94 | AQ22: 47 | AR22: 1808 | AS22: Buildings | AT22: 945584.81 | AU22: 0 | AV22: 0 | AW22: 945584.81 | AY22: -164046.87 | AZ22: -27152.54 | BA22: 0 | BB22: -191199.41 | BC22: 754385.4 | BE22: 47 | BF22: 1808 | BG22: Buildings | BH22: 945584.81 | BI22: 0 | BJ22: 0 | BK22: 945584.81 | BM22: -191199.41 | BN22: -20571.7179 | BO22: 0 | BP22: -211771.1279 | BQ22: 733813.6821 | BS22: 47 | BT22: 1808 | BU22: Buildings | BV22: 945584.81 | BW22: 0 | BX22: 0 | BY22: 945584.81 | CA22: -211771.1279 | CB22: -20571.7179 | CC22: 0 | CD22: -232342.8458 | CE22: 713241.9642
A23: 13 | B23: 1810 | C23: Leasehold Improvements | D23: 0 | E23: 0 | F23: 0 | G23: 0 | I23: 0 | J23: 0 | K23: 0 | L23: 0 | M23: 0 | O23: 13 | P23: 1810 | Q23: Leasehold Improvements | R23: 0 | S23: 0 | T23: 0 | U23: 0 | W23: 0 | X23: 0 | Y23: 0 | Z23: 0 | AA23: 0 | AC23: 13 | AD23: 1810 | AE23: Leasehold Improvements | AF23: 0 | AG23: 0 | AH23: 0 | AI23: 0 | AK23: 0 | AL23: 0 | AM23: 0 | AN23: 0 | AO23: 0 | AQ23: 13 | AR23: 1810 | AS23: Leasehold Improvements | AT23: 0 | AU23: 0 | AV23: 0 | AW23: 0 | AY23: 0 | AZ23: 0 | BA23: 0 | BB23: 0 | BC23: 0 | BE23: 13 | BF23: 1810 | BG23: Leasehold Improvements | BH23: 0 | BI23: 0 | BJ23: 0 | BK23: 0 | BM23: 0 | BN23: 0 | BO23: 0 | BP23: 0 | BQ23: 0 | BS23: 13 | BT23: 1810 | BU23: Leasehold Improvements | BV23: 0 | BW23: 0 | BX23: 0 | BY23: 0 | CA23: 0 | CB23: 0 | CC23: 0 | CD23: 0 | CE23: 0
A24: 47 | B24: 1815 | C24: Transformer Station Equipment >50 kV | D24: 3798230.95 | E24: 0 | F24: 0 | G24: 3798230.95 | I24: -330577.69 | J24: -120591.66 | K24: 0 | L24: -451169.35 | M24: 3347061.6 | O24: 47 | P24: 1815 | Q24: Transformer Station Equipment >50 kV | R24: 3798230.95 | S24: 0 | T24: 0 | U24: 3798230.95 | W24: -451169.35 | X24: -120591.66 | Y24: 0 | Z24: -571761.01 | AA24: 3226469.94 | AC24: 47 | AD24: 1815 | AE24: Transformer Station Equipment >50 kV | AF24: 3798230.95 | AG24: 0 | AH24: 0 | AI24: 3798230.95 | AK24: -571761.01 | AL24: -120591.66 | AM24: 0 | AN24: -692352.67 | AO24: 3105878.28 | AQ24: 47 | AR24: 1815 | AS24: Transformer Station Equipment >50 kV | AT24: 3798230.95 | AU24: 0 | AV24: 0 | AW24: 3798230.95 | AY24: -692352.67 | AZ24: -120922.07 | BA24: 0 | BB24: -813274.74 | BC24: 2984956.21 | BE24: 47 | BF24: 1815 | BG24: Transformer Station Equipment >50 kV | BH24: 3798230.95 | BI24: 10198.12018 | BJ24: 0 | BK24: 3808429.07 | BM24: -813274.74 | BN24: -101747.4964 | BO24: 0 | BP24: -915022.2364 | BQ24: 2893406.834 | BS24: 47 | BT24: 1815 | BU24: Transformer Station Equipment >50 kV | BV24: 3808429.07 | BW24: 11699.41284 | BX24: 0 | BY24: 3820128.483 | CA24: -915022.2364 | CB24: -102198.3343 | CC24: 0 | CD24: -1017220.571 | CE24: 2802907.912
A25: 47 | B25: 1820 | C25: Distribution Station Equipment <50 kV | D25: 47955.73 | E25: 0 | F25: 0 | G25: 47955.73 | I25: -42418.33 | J25: -208.86 | K25: 0 | L25: -42627.19 | M25: 5328.54 | O25: 47 | P25: 1820 | Q25: Distribution Station Equipment <50 kV | R25: 47955.73 | S25: 0 | T25: 0 | U25: 47955.73 | W25: -42627.19 | X25: -208.86 | Y25: 0 | Z25: -42836.05 | AA25: 5119.68 | AC25: 47 | AD25: 1820 | AE25: Distribution Station Equipment <50 kV | AF25: 47955.73 | AG25: 0 | AH25: 0 | AI25: 47955.73 | AK25: -42836.05 | AL25: -208.86 | AM25: 0 | AN25: -43044.91 | AO25: 4910.82 | AQ25: 47 | AR25: 1820 | AS25: Distribution Station Equipment <50 kV | AT25: 47955.73 | AU25: 0 | AV25: 0 | AW25: 47955.73 | AY25: -43044.91 | AZ25: -209.43 | BA25: 0 | BB25: -43254.34 | BC25: 4701.39 | BE25: 47 | BF25: 1820 | BG25: Distribution Station Equipment <50 kV | BH25: 47955.73 | BI25: 0 | BJ25: 0 | BK25: 47955.73 | BM25: -43254.34 | BN25: -651.9956667 | BO25: 0 | BP25: -43906.33567 | BQ25: 4049.394333 | BS25: 47 | BT25: 1820 | BU25: Distribution Station Equipment <50 kV | BV25: 47955.73 | BW25: 0 | BX25: 0 | BY25: 47955.73 | CA25: -43906.33567 | CB25: -651.9956667 | CC25: 0 | CD25: -44558.33133 | CE25: 3397.398667
A26: 47 | B26: 1825 | C26: Storage Battery Equipment | D26: 0 | E26: 0 | F26: 0 | G26: 0 | I26: 0 | J26: 0 | K26: 0 | L26: 0 | M26: 0 | O26: 47 | P26: 1825 | Q26: Storage Battery Equipment | R26: 0 | S26: 0 | T26: 0 | U26: 0 | W26: 0 | X26: 0 | Y26: 0 | Z26: 0 | AA26: 0 | AC26: 47 | AD26: 1825 | AE26: Storage Battery Equipment | AF26: 0 | AG26: 0 | AH26: 0 | AI26: 0 | AK26: 0 | AL26: 0 | AM26: 0 | AN26: 0 | AO26: 0 | AQ26: 47 | AR26: 1825 | AS26: Storage Battery Equipment | AT26: 0 | AU26: 0 | AV26: 0 | AW26: 0 | AY26: 0 | AZ26: 0 | BA26: 0 | BB26: 0 | BC26: 0 | BE26: 47 | BF26: 1825 | BG26: Storage Battery Equipment | BH26: 0 | BI26: 0 | BJ26: 0 | BK26: 0 | BM26: 0 | BN26: 0 | BO26: 0 | BP26: 0 | BQ26: 0 | BS26: 47 | BT26: 1825 | BU26: Storage Battery Equipment | BV26: 0 | BW26: 0 | BX26: 0 | BY26: 0 | CA26: 0 | CB26: 0 | CC26: 0 | CD26: 0 | CE26: 0
A27: 47 | B27: 1830 | C27: Poles, Towers & Fixtures | D27: 12712157.72 | E27: 638736.35 | F27: -27611.62 | G27: 13323282.45 | I27: -1170582.82 | J27: -388637.02 | K27: 3582.75 | L27: -1555637.09 | M27: 11767645.36 | O27: 47 | P27: 1830 | Q27: Poles, Towers & Fixtures | R27: 13323282.45 | S27: 943037.44 | T27: -78686.04 | U27: 14187633.85 | W27: -1555637.09 | X27: -403386.77 | Y27: 12467.17 | Z27: -1946556.69 | AA27: 12241077.16 | AC27: 47 | AD27: 1830 | AE27: Poles, Towers & Fixtures | AF27: 14187633.85 | AG27: 952802.02 | AH27: -65009.32 | AI27: 15075426.55 | AK27: -1946556.69 | AL27: -421264.67 | AM27: 13219.42 | AN27: -2354601.94 | AO27: 12720824.61 | AQ27: 47 | AR27: 1830 | AS27: Poles, Towers & Fixtures | AT27: 15075426.55 | AU27: 710782.65 | AV27: -112833.1 | AW27: 15673376.1 | AY27: -2354601.94 | AZ27: -442958.89 | BA27: 13464.01 | BB27: -2784096.82 | BC27: 12889279.28 | BE27: 47 | BF27: 1830 | BG27: Poles, Towers & Fixtures | BH27: 15673376.1 | BI27: 501943.0813 | BJ27: -100000 | BK27: 16075319.18 | BM27: -2784096.82 | BN27: -350868.6816 | BO27: 20000 | BP27: -3114965.502 | BQ27: 12960353.68 | BS27: 47 | BT27: 1830 | BU27: Poles, Towers & Fixtures | BV27: 16075319.18 | BW27: 741800.4858 | BX27: -100000 | BY27: 16717119.67 | CA27: -3114965.502 | CB27: -366758.6661 | CC27: 18400 | CD27: -3463324.168 | CE27: 13253795.5
A28: 47 | B28: 1835 | C28: Overhead Conductors & Devices | D28: 10013793.44 | E28: 546970.48 | F28: 0 | G28: 10560763.92 | I28: -742729.86 | J28: -260104.85 | K28: 0 | L28: -1002834.71 | M28: 9557929.21 | O28: 47 | P28: 1835 | Q28: Overhead Conductors & Devices | R28: 10560763.92 | S28: 588291.81 | T28: 0 | U28: 11149055.73 | W28: -1002834.71 | X28: -274194.27 | Y28: 0 | Z28: -1277028.98 | AA28: 9872026.75 | AC28: 47 | AD28: 1835 | AE28: Overhead Conductors & Devices | AF28: 11149055.73 | AG28: 762639.34 | AH28: 0 | AI28: 11911695.07 | AK28: -1277028.98 | AL28: -292604.97 | AM28: 0 | AN28: -1569633.95 | AO28: 10342061.12 | AQ28: 47 | AR28: 1835 | AS28: Overhead Conductors & Devices | AT28: 11911695.07 | AU28: 1266066.71 | AV28: 0 | AW28: 13177761.78 | AY28: -1569633.95 | AZ28: -314325.55 | BA28: 0 | BB28: -1883959.5 | BC28: 11293802.28 | BE28: 47 | BF28: 1835 | BG28: Overhead Conductors & Devices | BH28: 13177761.78 | BI28: 2161963.087 | BJ28: 0 | BK28: 15339724.87 | BM28: -1883959.5 | BN28: -327357.9578 | BO28: 0 | BP28: -2211317.458 | BQ28: 13128407.41 | BS28: 47 | BT28: 1835 | BU28: Overhead Conductors & Devices | BV28: 15339724.87 | BW28: 1820427.607 | BX28: 0 | BY28: 17160152.47 | CA28: -2211317.458 | CB28: -420456.2346 | CC28: 0 | CD28: -2631773.692 | CE28: 14528378.78
A29: 47 | B29: 1840 | C29: Underground Conduit | D29: 9468988.78 | E29: 715418.7 | F29: 0 | G29: 10184407.48 | I29: -737325.2 | J29: -246568.07 | K29: 0 | L29: -983893.27 | M29: 9200514.21 | O29: 47 | P29: 1840 | Q29: Underground Conduit | R29: 10184407.48 | S29: 240734.5 | T29: 0 | U29: 10425141.98 | W29: -983893.27 | X29: -260822.01 | Y29: 0 | Z29: -1244715.28 | AA29: 9180426.7 | AC29: 47 | AD29: 1840 | AE29: Underground Conduit | AF29: 10425141.98 | AG29: 863030.6 | AH29: -14.23 | AI29: 11288158.35 | AK29: -1244715.28 | AL29: -270362.02 | AM29: -129.07 | AN29: -1515206.37 | AO29: 9772951.98 | AQ29: 47 | AR29: 1840 | AS29: Underground Conduit | AT29: 11288158.35 | AU29: 155140.58 | AV29: 0 | AW29: 11443298.93 | AY29: -1515206.37 | AZ29: -277491.71 | BA29: 0 | BB29: -1792698.08 | BC29: 9650600.85 | BE29: 47 | BF29: 1840 | BG29: Underground Conduit | BH29: 11443298.93 | BI29: 178037.1352 | BJ29: 0 | BK29: 11621336.07 | BM29: -1792698.08 | BN29: -252896.1664 | BO29: 0 | BP29: -2045594.246 | BQ29: 9575741.819 | BS29: 47 | BT29: 1840 | BU29: Underground Conduit | BV29: 11621336.07 | BW29: 183130.5635 | BX29: 0 | BY29: 11804466.63 | CA29: -2045594.246 | CB29: -257998.8805 | CC29: 0 | CD29: -2303593.127 | CE29: 9500873.502
A30: 47 | B30: 1845 | C30: Underground Conductors & Devices | D30: 15945786.09 | E30: 837212.92 | F30: 0 | G30: 16782999.01 | I30: -1990883.32 | J30: -669773.22 | K30: 0 | L30: -2660656.54 | M30: 14122342.47 | O30: 47 | P30: 1845 | Q30: Underground Conductors & Devices | R30: 16782999.01 | S30: 728109.65 | T30: 0 | U30: 17511108.66 | W30: -2660656.54 | X30: -688687.02 | Y30: 0 | Z30: -3349343.56 | AA30: 14161765.1 | AC30: 47 | AD30: 1845 | AE30: Underground Conductors & Devices | AF30: 17511108.66 | AG30: 2003673.2 | AH30: -709.37 | AI30: 19514072.49 | AK30: -3349343.56 | AL30: -722644.14 | AM30: 92.83 | AN30: -4071894.87 | AO30: 15442177.62 | AQ30: 47 | AR30: 1845 | AS30: Underground Conductors & Devices | AT30: 19514072.49 | AU30: 1647127.51 | AV30: 0 | AW30: 21161200 | AY30: -4071894.87 | AZ30: -766431.46 | BA30: 0 | BB30: -4838326.33 | BC30: 16322873.67 | BE30: 47 | BF30: 1845 | BG30: Underground Conductors & Devices | BH30: 21161200 | BI30: 3697847.291 | BJ30: 0 | BK30: 24859047.29 | BM30: -4838326.33 | BN30: -701017.5716 | BO30: 0 | BP30: -5539343.902 | BQ30: 19319703.39 | BS30: 47 | BT30: 1845 | BU30: Underground Conductors & Devices | BV30: 24859047.29 | BW30: 4225617.057 | BX30: 0 | BY30: 29084664.35 | CA30: -5539343.902 | CB30: -815907.882 | CC30: 0 | CD30: -6355251.784 | CE30: 22729412.56
A31: 47 | B31: 1850 | C31: Line Transformers | D31: 13439458.91 | E31: 813568.66 | F31: -103074.07 | G31: 14149953.5 | I31: -1414244.14 | J31: -504362.82 | K31: 14637.78 | L31: -1903969.18 | M31: 12245984.32 | O31: 47 | P31: 1850 | Q31: Line Transformers | R31: 14149953.5 | S31: 1273360.05 | T31: -196701.97 | U31: 15226611.58 | W31: -1903969.18 | X31: -526582.69 | Y31: 39960.05 | Z31: -2390591.82 | AA31: 12836019.76 | AC31: 47 | AD31: 1850 | AE31: Line Transformers | AF31: 15226611.58 | AG31: 1364208.24 | AH31: -142576.31 | AI31: 16448243.51 | AK31: -2390591.82 | AL31: -542168.22 | AM31: 29057.23 | AN31: -2903702.81 | AO31: 13544540.7 | AQ31: 47 | AR31: 1850 | AS31: Line Transformers | AT31: 16448243.51 | AU31: 709014.35 | AV31: -208864.73 | AW31: 16948393.13 | AY31: -2903702.81 | AZ31: -498124.39 | BA31: 41616.89 | BB31: -3360210.31 | BC31: 13588182.82 | BE31: 47 | BF31: 1850 | BG31: Line Transformers | BH31: 16948393.13 | BI31: 1027822.1 | BJ31: -200000 | BK31: 17776215.23 | BM31: -3360210.31 | BN31: -449555.6922 | BO31: 100000 | BP31: -3709766.002 | BQ31: 14066449.23 | BS31: 47 | BT31: 1850 | BU31: Line Transformers | BV31: 17776215.23 | BW31: 1068484.558 | BX31: -200000 | BY31: 18644699.79 | CA31: -3709766.002 | CB31: -477376.6335 | CC31: 123500 | CD31: -4063642.636 | CE31: 14581057.15
A32: 47 | B32: 1855 | C32: Services (Overhead & Underground) | D32: 1852665.15 | E32: 48324.89 | F32: 0 | G32: 1900990.04 | I32: -233148.08 | J32: -86646.78 | K32: 0 | L32: -319794.86 | M32: 1581195.18 | O32: 47 | P32: 1855 | Q32: Services (Overhead & Underground) | R32: 1900990.04 | S32: 66821.2 | T32: 0 | U32: 1967811.24 | W32: -319794.86 | X32: -88946.9 | Y32: 0 | Z32: -408741.76 | AA32: 1559069.48 | AC32: 47 | AD32: 1855 | AE32: Services (Overhead & Underground) | AF32: 1967811.24 | AG32: 67322.29 | AH32: 0 | AI32: 2035133.53 | AK32: -408741.76 | AL32: -91629.78 | AM32: 0 | AN32: -500371.54 | AO32: 1534761.99 | AQ32: 47 | AR32: 1855 | AS32: Services (Overhead & Underground) | AT32: 2035133.53 | AU32: 146119.67 | AV32: 0 | AW32: 2181253.2 | AY32: -500371.54 | AZ32: -96135.08 | BA32: 0 | BB32: -596506.62 | BC32: 1584746.58 | BE32: 47 | BF32: 1855 | BG32: Services (Overhead & Underground) | BH32: 2181253.2 | BI32: 237187.3849 | BJ32: 0 | BK32: 2418440.585 | BM32: -596506.62 | BN32: -97743.33361 | BO32: 0 | BP32: -694249.9536 | BQ32: 1724190.631 | BS32: 47 | BT32: 1855 | BU32: Services (Overhead & Underground) | BV32: 2418440.585 | BW32: 542654.5339 | BX32: 0 | BY32: 2961095.119 | CA32: -694249.9536 | CB32: -111157.4653 | CC32: 0 | CD32: -805407.4189 | CE32: 2155687.7
A33: 47 | B33: 1860 | C33: Meters | D33: 7486134.78 | E33: 95145.53 | F33: 0 | G33: 7581280.31 | I33: -1902561.37 | J33: -576950.79 | K33: 0 | L33: -2479512.16 | M33: 5101768.15 | O33: 47 | P33: 1860 | Q33: Meters | R33: 7581280.31 | S33: 192747.85 | T33: 0 | U33: 7774028.16 | W33: -2479512.16 | X33: -585421.32 | Y33: 0 | Z33: -3064933.48 | AA33: 4709094.68 | AC33: 47 | AD33: 1860 | AE33: Meters | AF33: 7774028.16 | AG33: 359899.5 | AH33: 0 | AI33: 8133927.66 | AK33: -3064933.48 | AL33: -592565.55 | AM33: 0 | AN33: -3657499.03 | AO33: 4476428.63 | AQ33: 47 | AR33: 1860 | AS33: Meters | AT33: 8133927.66 | AU33: 175917.15 | AV33: -117925.95 | AW33: 8191918.86 | AY33: -3657499.03 | AZ33: -562777.79 | BA33: 47247.65 | BB33: -4173029.17 | BC33: 4018889.69 | BE33: 47 | BF33: 1860 | BG33: Meters | BH33: 8191918.86 | BI33: 190258.1056 | BJ33: -40000 | BK33: 8342176.966 | BM33: -4173029.17 | BN33: -477785.4904 | BO33: 20056 | BP33: -4630758.66 | BQ33: 3711418.305 | BS33: 47 | BT33: 1860 | BU33: Meters | BV33: 8342176.966 | BW33: 271196.6035 | BX33: -50000 | BY33: 8563373.569 | CA33: -4630758.66 | CB33: -488754.5524 | CC33: 29200 | CD33: -5090313.213 | CE33: 3473060.356
A34: 47 | B34: 1860 | C34: Meters (Smart Meters) | D34: 0 | E34: 0 | F34: 0 | G34: 0 | I34: 0 | J34: 0 | K34: 0 | L34: 0 | M34: 0 | O34: 47 | P34: 1860 | Q34: Meters (Smart Meters) | R34: 0 | S34: 0 | T34: 0 | U34: 0 | W34: 0 | X34: 0 | Y34: 0 | Z34: 0 | AA34: 0 | AC34: 47 | AD34: 1860 | AE34: Meters (Smart Meters) | AF34: 0 | AG34: 0 | AH34: 0 | AI34: 0 | AK34: 0 | AL34: 0 | AM34: 0 | AN34: 0 | AO34: 0 | AQ34: 47 | AR34: 1860 | AS34: Meters (Smart Meters) | AT34: 0 | AU34: 0 | AV34: 0 | AW34: 0 | AY34: 0 | AZ34: 0 | BA34: 0 | BB34: 0 | BC34: 0 | BE34: 47 | BF34: 1860 | BG34: Meters (Smart Meters) | BH34: 0 | BI34: 0 | BJ34: 0 | BK34: 0 | BM34: 0 | BN34: 0 | BO34: 0 | BP34: 0 | BQ34: 0 | BS34: 47 | BT34: 1860 | BU34: Meters (Smart Meters) | BV34: 0 | BW34: 0 | BX34: 0 | BY34: 0 | CA34: 0 | CB34: 0 | CC34: 0 | CD34: 0 | CE34: 0
A35: N/A | B35: 1905 | C35: Land | D35: 0 | E35: 0 | F35: 0 | G35: 0 | I35: 0 | J35: 0 | K35: 0 | L35: 0 | M35: 0 | O35: N/A | P35: 1905 | Q35: Land | R35: 0 | S35: 0 | T35: 0 | U35: 0 | W35: 0 | X35: 0 | Y35: 0 | Z35: 0 | AA35: 0 | AC35: N/A | AD35: 1905 | AE35: Land | AF35: 0 | AG35: 0 | AH35: 0 | AI35: 0 | AK35: 0 | AL35: 0 | AM35: 0 | AN35: 0 | AO35: 0 | AQ35: N/A | AR35: 1905 | AS35: Land | AT35: 0 | AU35: 1841669.06 | AV35: 0 | AW35: 1841669.06 | AY35: 0 | AZ35: 0 | BA35: 0 | BB35: 0 | BC35: 1841669.06 | BE35: N/A | BF35: 1905 | BG35: Land | BH35: 1841669.06 | BI35: 0 | BJ35: 0 | BK35: 1841669.06 | BM35: 0 | BN35: 0 | BO35: 0 | BP35: 0 | BQ35: 1841669.06 | BS35: N/A | BT35: 1905 | BU35: Land | BV35: 1841669.06 | BW35: 0 | BX35: 0 | BY35: 1841669.06 | CA35: 0 | CB35: 0 | CC35: 0 | CD35: 0 | CE35: 1841669.06
A36: 47 | B36: 1908 | C36: Buildings & Fixtures | D36: 0 | E36: 0 | F36: 0 | G36: 0 | I36: 0 | J36: 0 | K36: 0 | L36: 0 | M36: 0 | O36: 47 | P36: 1908 | Q36: Buildings & Fixtures | R36: 0 | S36: 0 | T36: 0 | U36: 0 | W36: 0 | X36: 0 | Y36: 0 | Z36: 0 | AA36: 0 | AC36: 47 | AD36: 1908 | AE36: Buildings & Fixtures | AF36: 0 | AG36: 0 | AH36: 0 | AI36: 0 | AK36: 0 | AL36: 0 | AM36: 0 | AN36: 0 | AO36: 0 | AQ36: 47 | AR36: 1908 | AS36: Buildings & Fixtures | AT36: 0 | AU36: 10250833.41 | AV36: 0 | AW36: 10250833.41 | AY36: 0 | AZ36: -309782.44 | BA36: 0 | BB36: -309782.44 | BC36: 9941050.97 | BE36: 47 | BF36: 1908 | BG36: Buildings & Fixtures | BH36: 10250833.41 | BI36: 1972583.118 | BJ36: 0 | BK36: 12223416.53 | BM36: -309782.44 | BN36: -340061.9394 | BO36: 0 | BP36: -649844.3794 | BQ36: 11573572.15 | BS36: 47 | BT36: 1908 | BU36: Buildings & Fixtures | BV36: 12223416.53 | BW36: 53780 | BX36: 0 | BY36: 12277196.53 | CA36: -649844.3794 | CB36: -327850.0352 | CC36: 0 | CD36: -977694.4146 | CE36: 11299502.11
A37: 13 | B37: 1910 | C37: Leasehold Improvements | D37: 49438.19 | E37: 0 | F37: 0 | G37: 49438.19 | I37: -40475.82 | J37: -6560.39 | K37: 0 | L37: -47036.21 | M37: 2401.98 | O37: 13 | P37: 1910 | Q37: Leasehold Improvements | R37: 49438.19 | S37: 0 | T37: 0 | U37: 49438.19 | W37: -47036.21 | X37: -2267.83 | Y37: 0 | Z37: -49304.04 | AA37: 134.15 | AC37: 13 | AD37: 1910 | AE37: Leasehold Improvements | AF37: 49438.19 | AG37: 0 | AH37: 0 | AI37: 49438.19 | AK37: -49304.04 | AL37: -134.15 | AM37: 0 | AN37: -49438.19 | AO37: 0 | AQ37: 13 | AR37: 1910 | AS37: Leasehold Improvements | AT37: 49438.19 | AU37: 0 | AV37: -49438.19 | AW37: 0 | AY37: -49438.19 | AZ37: 0 | BA37: 49438.19 | BB37: 0 | BC37: 0 | BE37: 13 | BF37: 1910 | BG37: Leasehold Improvements | BH37: 0 | BI37: 0 | BJ37: 0 | BK37: 0 | BM37: 0 | BN37: 0 | BO37: 0 | BP37: 0 | BQ37: 0 | BS37: 13 | BT37: 1910 | BU37: Leasehold Improvements | BV37: 0 | BW37: 0 | BX37: 0 | BY37: 0 | CA37: 0 | CB37: 0 | CC37: 0 | CD37: 0 | CE37: 0
A38: 8 | B38: 1915 | C38: Office Furniture & Equipment (10 years) | D38: 25819.67 | E38: 0 | F38: 0 | G38: 25819.67 | I38: -6561.7 | J38: -2667.79 | K38: 0 | L38: -9229.49 | M38: 16590.18 | O38: 8 | P38: 1915 | Q38: Office Furniture & Equipment (10 years) | R38: 25819.67 | S38: 8829.82 | T38: 0 | U38: 34649.49 | W38: -9229.49 | X38: -3109.28 | Y38: 0 | Z38: -12338.77 | AA38: 22310.72 | AC38: 8 | AD38: 1915 | AE38: Office Furniture & Equipment (10 years) | AF38: 34649.49 | AG38: 0 | AH38: 0 | AI38: 34649.49 | AK38: -12338.77 | AL38: -3550.77 | AM38: 0 | AN38: -15889.54 | AO38: 18759.95 | AQ38: 8 | AR38: 1915 | AS38: Office Furniture & Equipment (10 years) | AT38: 34649.49 | AU38: 53620.91 | AV38: -34649.49 | AW38: 53620.91 | AY38: -15889.54 | AZ38: -3679.26 | BA38: 17668.48 | BB38: -1900.32 | BC38: 51720.59 | BE38: 8 | BF38: 1915 | BG38: Office Furniture & Equipment (10 years) | BH38: 53620.91 | BI38: 165000 | BJ38: 0 | BK38: 218620.91 | BM38: -1900.32 | BN38: -26394.30255 | BO38: 0 | BP38: -28294.62255 | BQ38: 190326.2874 | BS38: 8 | BT38: 1915 | BU38: Office Furniture & Equipment (10 years) | BV38: 218620.91 | BW38: 0 | BX38: 0 | BY38: 218620.91 | CA38: -28294.62255 | CB38: -38653.92979 | CC38: 0 | CD38: -66948.55234 | CE38: 151672.3577
A39: 8 | B39: 1915 | C39: Office Furniture & Equipment (5 years) | G39: 0 | L39: 0 | M39: 0 | O39: 8 | P39: 1915 | Q39: Office Furniture & Equipment (5 years) | U39: 0 | Z39: 0 | AA39: 0 | AC39: 8 | AD39: 1915 | AE39: Office Furniture & Equipment (5 years) | AI39: 0 | AN39: 0 | AO39: 0 | AQ39: 8 | AR39: 1915 | AS39: Office Furniture & Equipment (5 years) | AW39: 0 | BB39: 0 | BC39: 0 | BE39: 8 | BF39: 1915 | BG39: Office Furniture & Equipment (5 years) | BK39: 0 | BM39: 0 | BP39: 0 | BQ39: 0 | BS39: 8 | BT39: 1915 | BU39: Office Furniture & Equipment (5 years) | BY39: 0 | CA39: 0 | CD39: 0 | CE39: 0
A40: 10 | B40: 1920 | C40: Computer Equipment - Hardware | D40: 100974.74 | E40: 18872.9 | F40: 0 | G40: 119847.64 | I40: -87068.01 | J40: -11774.48 | K40: 0 | L40: -98842.49 | M40: 21005.15 | O40: 10 | P40: 1920 | Q40: Computer Equipment - Hardware | R40: 119847.64 | S40: 22213.94 | T40: 0 | U40: 142061.58 | W40: -98842.49 | X40: -10810.95 | Y40: 0 | Z40: -109653.44 | AA40: 32408.14 | AC40: 10 | AD40: 1920 | AE40: Computer Equipment - Hardware | AF40: 142061.58 | AG40: 21442.25 | AH40: 0 | AI40: 163503.83 | AK40: -109653.44 | AL40: -13608.3 | AM40: 0 | AN40: -123261.74 | AO40: 40242.09 | AQ40: 10 | AR40: 1920 | AS40: Computer Equipment - Hardware | AT40: 163503.83 | AU40: 106192.72 | AV40: 0 | AW40: 269696.55 | AY40: -123261.74 | AZ40: -27868.18 | BA40: 0 | BB40: -151129.92 | BC40: 118566.63 | BE40: 10 | BF40: 1920 | BG40: Computer Equipment - Hardware | BH40: 269696.55 | BI40: 57200 | BJ40: 0 | BK40: 326896.55 | BM40: -151129.92 | BN40: -22553.17061 | BO40: 0 | BP40: -173683.0906 | BQ40: 153213.4594 | BS40: 10 | BT40: 1920 | BU40: Computer Equipment - Hardware | BV40: 326896.55 | BW40: 40775 | BX40: 0 | BY40: 367671.55 | CA40: -173683.0906 | CB40: -30225.82811 | CC40: 0 | CD40: -203908.9187 | CE40: 163762.6313
A41: 45 | B41: 1920 | C41: Computer Equip.-Hardware(Post Mar. 22/04) | G41: 0 | L41: 0 | M41: 0 | O41: 45 | P41: 1920 | Q41: Computer Equip.-Hardware(Post Mar. 22/04) | U41: 0 | Z41: 0 | AA41: 0 | AC41: 45 | AD41: 1920 | AE41: Computer Equip.-Hardware(Post Mar. 22/04) | AI41: 0 | AN41: 0 | AO41: 0 | AQ41: 45 | AR41: 1920 | AS41: Computer Equip.-Hardware(Post Mar. 22/04) | AW41: 0 | BB41: 0 | BC41: 0 | BE41: 45 | BF41: 1920 | BG41: Computer Equip.-Hardware(Post Mar. 22/04) | BK41: 0 | BM41: 0 | BP41: 0 | BQ41: 0 | BS41: 45 | BT41: 1920 | BU41: Computer Equip.-Hardware(Post Mar. 22/04) | BY41: 0 | CA41: 0 | CD41: 0 | CE41: 0
A42: 50 | B42: 1920 | C42: Computer Equip.-Hardware(Post Mar. 19/07) | G42: 0 | L42: 0 | M42: 0 | O42: 50 | P42: 1920 | Q42: Computer Equip.-Hardware(Post Mar. 19/07) | U42: 0 | Z42: 0 | AA42: 0 | AC42: 50 | AD42: 1920 | AE42: Computer Equip.-Hardware(Post Mar. 19/07) | AI42: 0 | AN42: 0 | AO42: 0 | AQ42: 50 | AR42: 1920 | AS42: Computer Equip.-Hardware(Post Mar. 19/07) | AW42: 0 | BB42: 0 | BC42: 0 | BE42: 50 | BF42: 1920 | BG42: Computer Equip.-Hardware(Post Mar. 19/07) | BK42: 0 | BM42: 0 | BP42: 0 | BQ42: 0 | BS42: 50 | BT42: 1920 | BU42: Computer Equip.-Hardware(Post Mar. 19/07) | BY42: 0 | CA42: 0 | CD42: 0 | CE42: 0
A43: 10 | B43: 1930 | C43: Transportation Equipment | D43: 1747553.78 | E43: 372056.05 | F43: 0 | G43: 2119609.83 | I43: -480412.46 | J43: -183314.52 | K43: 0 | L43: -663726.98 | M43: 1455882.85 | O43: 10 | P43: 1930 | Q43: Transportation Equipment | R43: 2119609.83 | S43: 321561.74 | T43: -1208 | U43: 2439963.57 | W43: -663726.98 | X43: -236493.11 | Y43: 1208 | Z43: -899012.09 | AA43: 1540951.48 | AC43: 10 | AD43: 1930 | AE43: Transportation Equipment | AF43: 2439963.57 | AG43: 349071 | AH43: -134836.9 | AI43: 2654197.67 | AK43: -899012.09 | AL43: -244700.53 | AM43: 118158.26 | AN43: -1025554.36 | AO43: 1628643.31 | AQ43: 10 | AR43: 1930 | AS43: Transportation Equipment | AT43: 2654197.67 | AU43: 22225 | AV43: 0 | AW43: 2676422.67 | AY43: -1025554.36 | AZ43: -244814.36 | BA43: 0 | BB43: -1270368.72 | BC43: 1406053.95 | BE43: 10 | BF43: 1930 | BG43: Transportation Equipment | BH43: 2676422.67 | BI43: 720000 | BJ43: 0 | BK43: 3396422.67 | BM43: -1270368.72 | BN43: -224788.7843 | BO43: 0 | BP43: -1495157.504 | BQ43: 1901265.166 | BS43: 10 | BT43: 1930 | BU43: Transportation Equipment | BV43: 3396422.67 | BW43: 380000 | BX43: 0 | BY43: 3776422.67 | CA43: -1495157.504 | CB43: -268310.9733 | CC43: 0 | CD43: -1763468.478 | CE43: 2012954.192
A44: 8 | B44: 1935 | C44: Stores Equipment | D44: 4925.25 | E44: 0 | F44: 0 | G44: 4925.25 | I44: -1477.56 | J44: -530.52 | K44: 0 | L44: -2008.08 | M44: 2917.17 | O44: 8 | P44: 1935 | Q44: Stores Equipment | R44: 4925.25 | S44: 0 | T44: 0 | U44: 4925.25 | W44: -2008.08 | X44: -530.53 | Y44: 0 | Z44: -2538.61 | AA44: 2386.64 | AC44: 8 | AD44: 1935 | AE44: Stores Equipment | AF44: 4925.25 | AG44: 0 | AH44: 0 | AI44: 4925.25 | AK44: -2538.61 | AL44: -530.52 | AM44: 0 | AN44: -3069.13 | AO44: 1856.12 | AQ44: 8 | AR44: 1935 | AS44: Stores Equipment | AT44: 4925.25 | AU44: 45719.59 | AV44: 0 | AW44: 50644.84 | AY44: -3069.13 | AZ44: -2482.12 | BA44: 0 | BB44: -5551.25 | BC44: 45093.59 | BE44: 8 | BF44: 1935 | BG44: Stores Equipment | BH44: 50644.84 | BI44: 0 | BJ44: 0 | BK44: 50644.84 | BM44: -5551.25 | BN44: -4392.81594 | BO44: 0 | BP44: -9944.06594 | BQ44: 40700.77406 | BS44: 8 | BT44: 1935 | BU44: Stores Equipment | BV44: 50644.84 | BW44: 0 | BX44: 0 | BY44: 50644.84 | CA44: -9944.06594 | CB44: -3900.29094 | CC44: 0 | CD44: -13844.35688 | CE44: 36800.48312
A45: 8 | B45: 1940 | C45: Tools, Shop & Garage Equipment | D45: 147090.24 | E45: 22506.13 | F45: 0 | G45: 169596.37 | I45: -55181.49 | J45: -17126.91 | K45: 0 | L45: -72308.4 | M45: 97287.97 | O45: 8 | P45: 1940 | Q45: Tools, Shop & Garage Equipment | R45: 169596.37 | S45: 75844.39 | T45: 0 | U45: 245440.76 | W45: -72308.4 | X45: -21105.7 | Y45: 0 | Z45: -93414.1 | AA45: 152026.66 | AC45: 8 | AD45: 1940 | AE45: Tools, Shop & Garage Equipment | AF45: 245440.76 | AG45: 22482 | AH45: 0 | AI45: 267922.76 | AK45: -93414.1 | AL45: -23656.08 | AM45: 0 | AN45: -117070.18 | AO45: 150852.58 | AQ45: 8 | AR45: 1940 | AS45: Tools, Shop & Garage Equipment | AT45: 267922.76 | AU45: 15868.5 | AV45: 0 | AW45: 283791.26 | AY45: -117070.18 | AZ45: -23544.86 | BA45: 0 | BB45: -140615.04 | BC45: 143176.22 | BE45: 8 | BF45: 1940 | BG45: Tools, Shop & Garage Equipment | BH45: 283791.26 | BI45: 30600 | BJ45: 0 | BK45: 314391.26 | BM45: -140615.04 | BN45: -23005.877 | BO45: 0 | BP45: -163620.917 | BQ45: 150770.343 | BS45: 8 | BT45: 1940 | BU45: Tools, Shop & Garage Equipment | BV45: 314391.26 | BW45: 31212 | BX45: 0 | BY45: 345603.26 | CA45: -163620.917 | CB45: -24021.105 | CC45: 0 | CD45: -187642.022 | CE45: 157961.238
A46: 8 | B46: 1945 | C46: Measurement & Testing Equipment | D46: 8114.49 | E46: 0 | F46: 0 | G46: 8114.49 | I46: -2028.61 | J46: -811.3 | K46: 0 | L46: -2839.91 | M46: 5274.58 | O46: 8 | P46: 1945 | Q46: Measurement & Testing Equipment | R46: 8114.49 | S46: 8625 | T46: 0 | U46: 16739.49 | W46: -2839.91 | X46: -1242.55 | Y46: 0 | Z46: -4082.46 | AA46: 12657.03 | AC46: 8 | AD46: 1945 | AE46: Measurement & Testing Equipment | AF46: 16739.49 | AG46: 0 | AH46: 0 | AI46: 16739.49 | AK46: -4082.46 | AL46: -1673.81 | AM46: 0 | AN46: -5756.27 | AO46: 10983.22 | AQ46: 8 | AR46: 1945 | AS46: Measurement & Testing Equipment | AT46: 16739.49 | AU46: 0 | AV46: 0 | AW46: 16739.49 | AY46: -5756.27 | AZ46: -1676.02 | BA46: 0 | BB46: -7432.29 | BC46: 9307.2 | BE46: 8 | BF46: 1945 | BG46: Measurement & Testing Equipment | BH46: 16739.49 | BI46: 0 | BJ46: 0 | BK46: 16739.49 | BM46: -7432.29 | BN46: -1673.949 | BO46: 0 | BP46: -9106.239 | BQ46: 7633.251 | BS46: 8 | BT46: 1945 | BU46: Measurement & Testing Equipment | BV46: 16739.49 | BW46: 0 | BX46: 0 | BY46: 16739.49 | CA46: -9106.239 | CB46: -1673.949 | CC46: 0 | CD46: -10780.188 | CE46: 5959.302
A47: 8 | B47: 1950 | C47: Power Operated Equipment | D47: 0 | E47: 0 | F47: 0 | G47: 0 | I47: 0 | J47: 0 | K47: 0 | L47: 0 | M47: 0 | O47: 8 | P47: 1950 | Q47: Power Operated Equipment | R47: 0 | S47: 0 | T47: 0 | U47: 0 | W47: 0 | X47: 0 | Y47: 0 | Z47: 0 | AA47: 0 | AC47: 8 | AD47: 1950 | AE47: Power Operated Equipment | AF47: 0 | AG47: 0 | AH47: 0 | AI47: 0 | AK47: 0 | AL47: 0 | AM47: 0 | AN47: 0 | AO47: 0 | AQ47: 8 | AR47: 1950 | AS47: Power Operated Equipment | AT47: 0 | AU47: 0 | AV47: 0 | AW47: 0 | AY47: 0 | AZ47: 0 | BA47: 0 | BB47: 0 | BC47: 0 | BE47: 8 | BF47: 1950 | BG47: Power Operated Equipment | BH47: 0 | BI47: 0 | BJ47: 0 | BK47: 0 | BM47: 0 | BN47: 0 | BO47: 0 | BP47: 0 | BQ47: 0 | BS47: 8 | BT47: 1950 | BU47: Power Operated Equipment | BV47: 0 | BW47: 0 | BX47: 0 | BY47: 0 | CA47: 0 | CB47: 0 | CC47: 0 | CD47: 0 | CE47: 0
A48: 8 | B48: 1955 | C48: Communications Equipment | D48: 41506.73 | E48: 0 | F48: 0 | G48: 41506.73 | I48: -26707.15 | J48: -5207.94 | K48: 0 | L48: -31915.09 | M48: 9591.64 | O48: 8 | P48: 1955 | Q48: Communications Equipment | R48: 41506.73 | S48: 0 | T48: 0 | U48: 41506.73 | W48: -31915.09 | X48: -5207.93 | Y48: 0 | Z48: -37123.02 | AA48: 4383.71 | AC48: 8 | AD48: 1955 | AE48: Communications Equipment | AF48: 41506.73 | AG48: 0 | AH48: 0 | AI48: 41506.73 | AK48: -37123.02 | AL48: -3035.94 | AM48: 0 | AN48: -40158.96 | AO48: 1347.77 | AQ48: 8 | AR48: 1955 | AS48: Communications Equipment | AT48: 41506.73 | AU48: 442772.72 | AV48: 0 | AW48: 484279.45 | AY48: -40158.96 | AZ48: -20960.74 | BA48: 0 | BB48: -61119.7 | BC48: 423159.75 | BE48: 8 | BF48: 1955 | BG48: Communications Equipment | BH48: 484279.45 | BI48: 0 | BJ48: 0 | BK48: 484279.45 | BM48: -61119.7 | BN48: -141190.578 | BO48: 0 | BP48: -202310.278 | BQ48: 281969.172 | BS48: 8 | BT48: 1955 | BU48: Communications Equipment | BV48: 484279.45 | BW48: 0 | BX48: 0 | BY48: 484279.45 | CA48: -202310.278 | CB48: -141190.578 | CC48: 0 | CD48: -343500.856 | CE48: 140778.594
A49: 8 | B49: 1955 | C49: Communication Equipment (Smart Meters) | G49: 0 | L49: 0 | M49: 0 | O49: 8 | P49: 1955 | Q49: Communication Equipment (Smart Meters) | U49: 0 | Z49: 0 | AA49: 0 | AC49: 8 | AD49: 1955 | AE49: Communication Equipment (Smart Meters) | AI49: 0 | AN49: 0 | AO49: 0 | AQ49: 8 | AR49: 1955 | AS49: Communication Equipment (Smart Meters) | AW49: 0 | BB49: 0 | BC49: 0 | BE49: 8 | BF49: 1955 | BG49: Communication Equipment (Smart Meters) | BK49: 0 | BM49: 0 | BP49: 0 | BQ49: 0 | BS49: 8 | BT49: 1955 | BU49: Communication Equipment (Smart Meters) | BY49: 0 | CA49: 0 | CD49: 0 | CE49: 0
A50: 8 | B50: 1960 | C50: Miscellaneous Equipment | D50: 0 | E50: 0 | F50: 0 | G50: 0 | I50: 0 | J50: 0 | K50: 0 | L50: 0 | M50: 0 | O50: 8 | P50: 1960 | Q50: Miscellaneous Equipment | R50: 0 | S50: 0 | T50: 0 | U50: 0 | W50: 0 | X50: 0 | Y50: 0 | Z50: 0 | AA50: 0 | AC50: 8 | AD50: 1960 | AE50: Miscellaneous Equipment | AF50: 0 | AG50: 0 | AH50: 0 | AI50: 0 | AK50: 0 | AL50: 0 | AM50: 0 | AN50: 0 | AO50: 0 | AQ50: 8 | AR50: 1960 | AS50: Miscellaneous Equipment | AT50: 0 | AU50: 0 | AV50: 0 | AW50: 0 | AY50: 0 | AZ50: 0 | BA50: 0 | BB50: 0 | BC50: 0 | BE50: 8 | BF50: 1960 | BG50: Miscellaneous Equipment | BH50: 0 | BI50: 0 | BJ50: 0 | BK50: 0 | BM50: 0 | BN50: 0 | BO50: 0 | BP50: 0 | BQ50: 0 | BS50: 8 | BT50: 1960 | BU50: Miscellaneous Equipment | BV50: 0 | BW50: 0 | BX50: 0 | BY50: 0 | CA50: 0 | CB50: 0 | CC50: 0 | CD50: 0 | CE50: 0
A51: 47 | B51: 1970 | C51: Load Management Controls Customer Premises | D51: 0 | E51: 0 | F51: 0 | G51: 0 | I51: 0 | J51: 0 | K51: 0 | L51: 0 | M51: 0 | O51: 47 | P51: 1970 | Q51: Load Management Controls Customer Premises | R51: 0 | S51: 0 | T51: 0 | U51: 0 | W51: 0 | X51: 0 | Y51: 0 | Z51: 0 | AA51: 0 | AC51: 47 | AD51: 1970 | AE51: Load Management Controls Customer Premises | AF51: 0 | AG51: 0 | AH51: 0 | AI51: 0 | AK51: 0 | AL51: 0 | AM51: 0 | AN51: 0 | AO51: 0 | AQ51: 47 | AR51: 1970 | AS51: Load Management Controls Customer Premises | AT51: 0 | AU51: 0 | AV51: 0 | AW51: 0 | AY51: 0 | AZ51: 0 | BA51: 0 | BB51: 0 | BC51: 0 | BE51: 47 | BF51: 1970 | BG51: Load Management Controls Customer Premises | BH51: 0 | BI51: 0 | BJ51: 0 | BK51: 0 | BM51: 0 | BN51: 0 | BO51: 0 | BP51: 0 | BQ51: 0 | BS51: 47 | BT51: 1970 | BU51: Load Management Controls Customer Premises | BV51: 0 | BW51: 0 | BX51: 0 | BY51: 0 | CA51: 0 | CB51: 0 | CC51: 0 | CD51: 0 | CE51: 0
A52: 47 | B52: 1975 | C52: Load Management Controls Utility Premises | D52: 0 | E52: 0 | F52: 0 | G52: 0 | I52: 0 | J52: 0 | K52: 0 | L52: 0 | M52: 0 | O52: 47 | P52: 1975 | Q52: Load Management Controls Utility Premises | R52: 0 | S52: 0 | T52: 0 | U52: 0 | W52: 0 | X52: 0 | Y52: 0 | Z52: 0 | AA52: 0 | AC52: 47 | AD52: 1975 | AE52: Load Management Controls Utility Premises | AF52: 0 | AG52: 0 | AH52: 0 | AI52: 0 | AK52: 0 | AL52: 0 | AM52: 0 | AN52: 0 | AO52: 0 | AQ52: 47 | AR52: 1975 | AS52: Load Management Controls Utility Premises | AT52: 0 | AU52: 0 | AV52: 0 | AW52: 0 | AY52: 0 | AZ52: 0 | BA52: 0 | BB52: 0 | BC52: 0 | BE52: 47 | BF52: 1975 | BG52: Load Management Controls Utility Premises | BH52: 0 | BI52: 0 | BJ52: 0 | BK52: 0 | BM52: 0 | BN52: 0 | BO52: 0 | BP52: 0 | BQ52: 0 | BS52: 47 | BT52: 1975 | BU52: Load Management Controls Utility Premises | BV52: 0 | BW52: 0 | BX52: 0 | BY52: 0 | CA52: 0 | CB52: 0 | CC52: 0 | CD52: 0 | CE52: 0
A53: 47 | B53: 1980 | C53: System Supervisor Equipment | D53: 924832.58 | E53: 108704.5 | F53: 0 | G53: 1033537.08 | I53: -160626.74 | J53: -74995.51 | K53: 0 | L53: -235622.25 | M53: 797914.83 | O53: 47 | P53: 1980 | Q53: System Supervisor Equipment | R53: 1033537.08 | S53: 29539.62 | T53: 0 | U53: 1063076.7 | W53: -235622.25 | X53: -79591.54 | Y53: 0 | Z53: =W53+X53+Y53 -> -315213.79 | AA53: 747862.91 | AC53: 47 | AD53: 1980 | AE53: System Supervisor Equipment | AF53: 1063076.7 | AG53: 265443.67 | AH53: 0 | AI53: 1328520.37 | AK53: -315213.79 | AL53: -89424.33 | AM53: 0 | AN53: =AK53+AL53+AM53 -> -404638.12 | AO53: =AI53+AN53 -> 923882.25 | AQ53: 47 | AR53: 1980 | AS53: System Supervisor Equipment | AT53: 1328520.37 | AU53: 66062.91 | AV53: 0 | AW53: 1394583.28 | AY53: -404638.12 | AZ53: -99367.65 | BA53: 0 | BB53: =AY53+AZ53+BA53 -> -504005.77 | BC53: 890577.51 | BE53: 47 | BF53: 1980 | BG53: System Supervisor Equipment | BH53: 1394583.28 | BI53: 274389.0606 | BJ53: 0 | BK53: 1668972.341 | BM53: -504005.77 | BN53: -111065.2507 | BO53: 0 | BP53: =BM53+BN53+BO53 -> -615071.0207 | BQ53: 1053901.32 | BS53: 47 | BT53: 1980 | BU53: System Supervisor Equipment | BV53: 1668972.341 | BW53: 237702.4135 | BX53: 0 | BY53: 1906674.754 | CA53: -615071.0207 | CB53: -118088.9973 | CC53: 0 | CD53: =CA53+CB53+CC53 -> -733160.018 | CE53: 1173514.736
A54: 47 | B54: 1985 | C54: Miscellaneous Fixed Assets | D54: 0 | E54: 0 | F54: 0 | G54: 0 | I54: 0 | J54: 0 | K54: 0 | L54: 0 | M54: 0 | O54: 47 | P54: 1985 | Q54: Miscellaneous Fixed Assets | R54: 0 | S54: 0 | T54: 0 | U54: 0 | W54: 0 | X54: 0 | Y54: 0 | Z54: 0 | AA54: 0 | AC54: 47 | AD54: 1985 | AE54: Miscellaneous Fixed Assets | AF54: 0 | AG54: 0 | AH54: 0 | AI54: 0 | AK54: 0 | AL54: 0 | AM54: 0 | AN54: =AK54+AL54+AM54 -> 0 | AO54: 0 | AQ54: 47 | AR54: 1985 | AS54: Miscellaneous Fixed Assets | AT54: 0 | AU54: 0 | AV54: 0 | AW54: 0 | AY54: 0 | AZ54: 0 | BA54: 0 | BB54: =AY54+AZ54+BA54 -> 0 | BC54: 0 | BE54: 47 | BF54: 1985 | BG54: Miscellaneous Fixed Assets | BH54: 0 | BI54: 0 | BJ54: 0 | BK54: 0 | BM54: 0 | BN54: 0 | BO54: 0 | BP54: =BM54+BN54+BO54 -> 0 | BQ54: 0 | BS54: 47 | BT54: 1985 | BU54: Miscellaneous Fixed Assets | BV54: 0 | BW54: 0 | BX54: 0 | BY54: 0 | CA54: 0 | CB54: 0 | CC54: 0 | CD54: =CA54+CB54+CC54 -> 0 | CE54: 0
A55: 47 | B55: 1990 | C55: Other Tangible Property | D55: 0 | E55: 0 | F55: 0 | G55: 0 | I55: 0 | J55: 0 | K55: 0 | L55: 0 | M55: 0 | O55: 47 | P55: 1990 | Q55: Other Tangible Property | R55: 0 | S55: 0 | T55: 0 | U55: 0 | W55: 0 | X55: 0 | Y55: 0 | Z55: 0 | AA55: 0 | AC55: 47 | AD55: 1990 | AE55: Other Tangible Property | AF55: 0 | AG55: 0 | AH55: 0 | AI55: 0 | AK55: 0 | AL55: 0 | AM55: 0 | AN55: 0 | AO55: 0 | AQ55: 47 | AR55: 1990 | AS55: Other Tangible Property | AT55: 0 | AU55: 0 | AV55: 0 | AW55: 0 | AY55: 0 | AZ55: 0 | BA55: 0 | BB55: 0 | BC55: 0 | BE55: 47 | BF55: 1990 | BG55: Other Tangible Property | BH55: 0 | BI55: 0 | BJ55: 0 | BK55: 0 | BM55: 0 | BN55: 0 | BO55: 0 | BP55: 0 | BQ55: 0 | BS55: 47 | BT55: 1990 | BU55: Other Tangible Property | BV55: 0 | BW55: 0 | BX55: 0 | BY55: 0 | CA55: 0 | CB55: 0 | CC55: 0 | CD55: 0 | CE55: 0
A56: 47 | B56: 1995 | C56: Contributions & Grants | D56: -5331387.39 | E56: -524288.74 | F56: 0 | G56: -5855676.13 | I56: 394279.31 | J56: 150777.12 | K56: 0 | L56: =I56+J56+K56 -> 545056.43 | M56: =G56+L56 -> -5310619.7 | O56: 47 | P56: 1995 | Q56: Contributions & Grants | R56: -5855676.13 | S56: -718145.7 | T56: 0 | U56: -6573821.83 | W56: 545056.43 | X56: 166852.04 | Y56: 0 | Z56: =W56+X56+Y56 -> 711908.47 | AA56: =U56+Z56 -> -5861913.36 | AC56: 47 | AD56: 1995 | AE56: Contributions & Grants | AF56: -6573821.83 | AG56: -1773026.38 | AH56: 0 | AI56: -8346848.21 | AK56: 711908.47 | AL56: 197266.13 | AM56: 0 | AN56: 909174.6 | AO56: -7437673.61 | AQ56: 47 | AR56: 1995 | AS56: Contributions & Grants | AT56: -8346848.21 | AU56: -464182.59 | AV56: 0 | AW56: -8811030.8 | AY56: 909174.6 | AZ56: 222805.37 | BA56: 0 | BB56: 1131979.97 | BC56: -7679050.83 | BE56: 47 | BF56: 1995 | BG56: Contributions & Grants | BH56: -8811030.8 | BI56: -2251303 | BJ56: 0 | BK56: -11062333.8 | BM56: 1131979.97 | BN56: 189364.0658 | BO56: 0 | BP56: 1321344.036 | BQ56: -9740989.764 | BS56: 47 | BT56: 1995 | BU56: Contributions & Grants | BV56: -11062333.8 | BW56: -2505130 | BX56: 0 | BY56: -13567463.8 | CA56: 1321344.036 | CB56: 246775.1967 | CC56: 0 | CD56: 1568119.233 | CE56: -11999344.57
A57: 47 | B57: 2440 | C57: Deferred Revenue5 | D57: 0 | E57: 0 | F57: 0 | G57: 0 | I57: 0 | J57: 0 | K57: 0 | L57: =I57+J57+K57 -> 0 | M57: =G57+L57 -> 0 | O57: 47 | P57: 2440 | Q57: Deferred Revenue5 | R57: 0 | S57: 0 | T57: 0 | U57: =R57+S57+T57 -> 0 | W57: 0 | X57: 0 | Y57: 0 | Z57: =W57+X57+Y57 -> 0 | AA57: =U57+Z57 -> 0 | AC57: 47 | AD57: 2440 | AE57: Deferred Revenue5 | AF57: 0 | AG57: 0 | AH57: 0 | AI57: 0 | AK57: 0 | AL57: 0 | AM57: 0 | AN57: 0 | AO57: 0 | AQ57: 47 | AR57: 2440 | AS57: Deferred Revenue5 | AT57: 0 | AU57: 0 | AV57: 0 | AW57: 0 | AY57: 0 | AZ57: 0 | BA57: 0 | BB57: 0 | BC57: 0 | BE57: 47 | BF57: 2440 | BG57: Deferred Revenue5 | BH57: 0 | BI57: 0 | BJ57: 0 | BK57: 0 | BM57: 0 | BN57: 0 | BO57: 0 | BP57: 0 | BQ57: 0 | BS57: 47 | BT57: 2440 | BU57: Deferred Revenue5 | BV57: 0 | BW57: 0 | BX57: 0 | BY57: 0 | CA57: 0 | CB57: 0 | CC57: 0 | CD57: 0 | CE57: 0
C58: Sub-Total | D58: =SUM(D17:D57) -> 75306208.92 | E58: =SUM(E17:E57) -> 3836388.25 | F58: =SUM(F17:F57) -> -130685.69 | G58: =SUM(G17:G57) -> 79011911.48 | I58: =SUM(I17:I57) -> -9632017.26 | J58: =SUM(J17:J57) -> -3353854.65 | K58: =SUM(K17:K57) -> 18220.53 | L58: =SUM(L17:L57) -> -12967651.38 | M58: =SUM(M17:M57) -> 66044260.1 | Q58: Sub-Total | R58: =SUM(R17:R57) -> 79011911.48 | S58: =SUM(S17:S57) -> 3790153.31 | T58: =SUM(T17:T57) -> -276596.01 | U58: =SUM(U17:U57) -> 82525468.78 | W58: =SUM(W16:W57) -> -12967651.38 | X58: =SUM(X16:X57) -> -3352646.64 | Y58: =SUM(Y16:Y57) -> 53635.22 | Z58: =SUM(Z17:Z57) -> -16266662.8 | AA58: =SUM(AA17:AA57) -> 66258805.98 | AE58: Sub-Total | AF58: =SUM(AF17:AF57) -> 82525468.78 | AG58: =SUM(AG17:AG57) -> 7423352.05 | AH58: =SUM(AH17:AH57) -> -343146.13 | AI58: =SUM(AI17:AI57) -> 89605674.7 | AK58: =SUM(AK16:AK57) -> -16266662.8 | AL58: =SUM(AL16:AL57) -> -3606912.43 | AM58: =SUM(AM16:AM57) -> 160398.67 | AN58: =SUM(AN17:AN57) -> -19713176.56 | AO58: =SUM(AO17:AO57) -> 69892498.14 | AS58: Sub-Total | AT58: =SUM(AT17:AT57) -> 89605674.7 | AU58: 17323604.4 | AV58: -523711.46 | AW58: =SUM(AW17:AW57) -> 106405567.6 | AY58: =SUM(AY16:AY57) -> -19713176.56 | AZ58: =SUM(AZ16:AZ57) -> -3839836.49 | BA58: =SUM(BA16:BA57) -> 169435.22 | BB58: =SUM(BB17:BB57) -> -23383577.83 | BC58: =SUM(BC17:BC57) -> 83021989.81 | BG58: Sub-Total | BH58: =SUM(BH17:BH57) -> 106405567.6 | BI58: =SUM(BI17:BI57) -> 9057863.946 | BJ58: =SUM(BJ17:BJ57) -> -340000 | BK58: =SUM(BK17:BK57) -> 115123431.6 | BM58: =SUM(BM16:BM57) -> -23383577.83 | BN58: =SUM(BN16:BN57) -> -3817511.039 | BO58: =SUM(BO16:BO57) -> 140056 | BP58: =SUM(BP17:BP57) -> -27061032.87 | BQ58: =SUM(BQ17:BQ57) -> 88062398.72 | BU58: Sub-Total | BV58: =SUM(BV17:BV57) -> 115123431.6 | BW58: =SUM(BW17:BW57) -> 8144591.532 | BX58: =SUM(BX17:BX57) -> -350000 | BY58: =SUM(BY17:BY57) -> 122918023.1 | CA58: =SUM(CA16:CA57) -> -27061032.87 | CB58: =SUM(CB16:CB57) -> -4174313.217 | CC58: =SUM(CC16:CC57) -> 171100 | CD58: =SUM(CD17:CD57) -> -31064246.09 | CE58: =SUM(CE17:CE57) -> 91853777.03
C59: Less Socialized Renewable Energy Generation Investments (input as negative) | G59: =D59+E59+F59 -> 0 | L59: =I59+J59+K59 -> 0 | M59: =G59+L59 -> 0 | Q59: Less Socialized Renewable Energy Generation Investments (input as negative) | U59: =R59+S59+T59 -> 0 | Z59: =W59+X59+Y59 -> 0 | AA59: =U59+Z59 -> 0 | AE59: Less Socialized Renewable Energy Generation Investments (input as negative) | AI59: =AF59+AG59+AH59 -> 0 | AN59: =AK59+AL59+AM59 -> 0 | AO59: =AI59+AN59 -> 0 | AS59: Less Socialized Renewable Energy Generation Investments (input as negative) | AW59: =AT59+AU59+AV59 -> 0 | BB59: =AY59+AZ59+BA59 -> 0 | BC59: =AW59+BB59 -> 0 | BG59: Less Socialized Renewable Energy Generation Investments (input as negative) | BK59: =BH59+BI59+BJ59 -> 0 | BP59: =BM59+BN59+BO59 -> 0 | BQ59: =BK59+BP59 -> 0 | BU59: Less Socialized Renewable Energy Generation Investments (input as negative) | BY59: =BV59+BW59+BX59 -> 0 | CD59: =CA59+CB59+CC59 -> 0 | CE59: =BY59+CD59 -> 0
C60: Less Other Non Rate-Regulated Utility Assets (input as negative) | G60: 0 | L60: =I60+J60+K60 -> 0 | M60: 0 | Q60: Less Other Non Rate-Regulated Utility Assets (input as negative) | U60: =R60+S60+T60 -> 0 | Z60: =W60+X60+Y60 -> 0 | AA60: =U60+Z60 -> 0 | AE60: Less Other Non Rate-Regulated Utility Assets (input as negative) | AI60: =AF60+AG60+AH60 -> 0 | AN60: =AK60+AL60+AM60 -> 0 | AO60: =AI60+AN60 -> 0 | AS60: Less Other Non Rate-Regulated Utility Assets (input as negative) | AW60: =AT60+AU60+AV60 -> 0 | BB60: =AY60+AZ60+BA60 -> 0 | BC60: =AW60+BB60 -> 0 | BG60: Less Other Non Rate-Regulated Utility Assets (input as negative) | BK60: =BH60+BI60+BJ60 -> 0 | BP60: =BM60+BN60+BO60 -> 0 | BQ60: =BK60+BP60 -> 0 | BU60: Less Other Non Rate-Regulated Utility Assets (input as negative) | BY60: =BV60+BW60+BX60 -> 0 | CD60: =CA60+CB60+CC60 -> 0 | CE60: =BY60+CD60 -> 0
C61: Total PP&E | D61: =SUM(D58:D60) -> 75306208.92 | E61: =SUM(E58:E60) -> 3836388.25 | F61: =SUM(F58:F60) -> -130685.69 | G61: =SUM(G58:G60) -> 79011911.48 | I61: =SUM(I58:I60) -> -9632017.26 | J61: =SUM(J58:J60) -> -3353854.65 | K61: =SUM(K58:K60) -> 18220.53 | L61: =SUM(L58:L60) -> -12967651.38 | M61: =SUM(M58:M60) -> 66044260.1 | Q61: Total PP&E | R61: =SUM(R58:R60) -> 79011911.48 | S61: =SUM(S58:S60) -> 3790153.31 | T61: =SUM(T58:T60) -> -276596.01 | U61: =SUM(U58:U60) -> 82525468.78 | W61: =SUM(W58:W60) -> -12967651.38 | X61: =SUM(X58:X60) -> -3352646.64 | Y61: =SUM(Y58:Y60) -> 53635.22 | Z61: =SUM(Z58:Z60) -> -16266662.8 | AA61: =SUM(AA58:AA60) -> 66258805.98 | AE61: Total PP&E | AF61: =SUM(AF58:AF60) -> 82525468.78 | AG61: =SUM(AG58:AG60) -> 7423352.05 | AH61: =SUM(AH58:AH60) -> -343146.13 | AI61: =SUM(AI58:AI60) -> 89605674.7 | AK61: =SUM(AK58:AK60) -> -16266662.8 | AL61: =SUM(AL58:AL60) -> -3606912.43 | AM61: =SUM(AM58:AM60) -> 160398.67 | AN61: =SUM(AN58:AN60) -> -19713176.56 | AO61: =SUM(AO58:AO60) -> 69892498.14 | AS61: Total PP&E | AT61: =SUM(AT58:AT60) -> 89605674.7 | AU61: =SUM(AU58:AU60) -> 17323604.4 | AV61: =SUM(AV58:AV60) -> -523711.46 | AW61: =SUM(AW58:AW60) -> 106405567.6 | AY61: =SUM(AY58:AY60) -> -19713176.56 | AZ61: =SUM(AZ58:AZ60) -> -3839836.49 | BA61: =SUM(BA58:BA60) -> 169435.22 | BB61: =SUM(BB58:BB60) -> -23383577.83 | BC61: =SUM(BC58:BC60) -> 83021989.81 | BG61: Total PP&E | BH61: =SUM(BH58:BH60) -> 106405567.6 | BI61: =SUM(BI58:BI60) -> 9057863.946 | BJ61: =SUM(BJ58:BJ60) -> -340000 | BK61: =SUM(BK58:BK60) -> 115123431.6 | BM61: =SUM(BM58:BM60) -> -23383577.83 | BN61: =SUM(BN58:BN60) -> -3817511.039 | BO61: =SUM(BO58:BO60) -> 140056 | BP61: =SUM(BP58:BP60) -> -27061032.87 | BQ61: =SUM(BQ58:BQ60) -> 88062398.72 | BU61: Total PP&E | BV61: =SUM(BV58:BV60) -> 115123431.6 | BW61: =SUM(BW58:BW60) -> 8144591.532 | BX61: =SUM(BX58:BX60) -> -350000 | BY61: =SUM(BY58:BY60) -> 122918023.1 | CA61: =SUM(CA58:CA60) -> -27061032.87 | CB61: =SUM(CB58:CB60) -> -4174313.217 | CC61: =SUM(CC58:CC60) -> 171100 | CD61: =SUM(CD58:CD60) -> -31064246.09 | CE61: =SUM(CE58:CE60) -> 91853777.03
C62: Depreciation Expense adj. from gain or loss on the retirement of assets (pool of like assets), if applicable6 | Q62: Depreciation Expense adj. from gain or loss on the retirement of assets (pool of like assets), if applicable6 | AE62: Depreciation Expense adj. from gain or loss on the retirement of assets (pool of like assets), if applicable6 | AS62: Depreciation Expense adj. from gain or loss on the retirement of assets (pool of like assets), if applicable6 | BG62: Depreciation Expense adj. from gain or loss on the retirement of assets (pool of like assets), if applicable6 | BU62: Depreciation Expense adj. from gain or loss on the retirement of assets (pool of like assets), if applicable6
C63: Total | J63: =J61+J62 -> -3353854.65 | Q63: Total | X63: =X61+X62 -> -3352646.64 | AE63: Total | AL63: =AL61+AL62 -> -3606912.43 | AS63: Total | AZ63: =AZ61+AZ62 -> -3839836.49 | BG63: Total | BN63: =BN61+BN62 -> -3817511.039 | BU63: Total | CB63: =CB61+CB62 -> -4174313.217
I65: Less: Fully Allocated Depreciation | W65: Less: Fully Allocated Depreciation | AK65: Less: Fully Allocated Depreciation | AY65: Less: Fully Allocated Depreciation | BM65: Less: Fully Allocated Depreciation | CA65: Less: Fully Allocated Depreciation
A66: 10 | C66: Transportation | I66: Transportation | K66: -183314.52 | O66: 10 | Q66: Transportation | W66: Transportation | Y66: -236493.11 | AC66: 10 | AE66: Transportation | AK66: Transportation | AM66: -244700.53 | AQ66: 10 | AS66: Transportation | AY66: Transportation | BA66: -244814.36 | BE66: 10 | BG66: Transportation | BM66: Transportation | BO66: -224788.7843 | BS66: 10 | BU66: Transportation | CA66: Transportation | CC66: -268310.9733
A67: 8 | C67: Stores Equipment | I67: Stores Equipment | O67: 8 | Q67: Stores Equipment | W67: Stores Equipment | AC67: 8 | AE67: Stores Equipment | AK67: Stores Equipment | AQ67: 8 | AS67: Stores Equipment | AY67: Stores Equipment | BE67: 8 | BG67: Stores Equipment | BM67: Stores Equipment | BS67: 8 | BU67: Stores Equipment | CA67: Stores Equipment
A68: 47 | C68: Deferred Revenue | I68: Deferred Revenue | O68: 47 | Q68: Deferred Revenue | W68: Deferred Revenue | AC68: 47 | AE68: Deferred Revenue | AK68: Deferred Revenue | AQ68: 47 | AS68: Deferred Revenue | AY68: Deferred Revenue | BE68: 47 | BG68: Deferred Revenue | BM68: Deferred Revenue | BS68: 47 | BU68: Deferred Revenue | CA68: Deferred Revenue
I69: Net Depreciation | K69: =J63-K66-K67-K68 -> -3170540.13 | W69: Net Depreciation | Y69: =X63-Y66-Y67-Y68 -> -3116153.53 | AK69: Net Depreciation | AM69: =AL63-AM66-AM67-AM68 -> -3362211.9 | AY69: Net Depreciation | BA69: =AZ63-BA66-BA67-BA68 -> -3595022.13 | BM69: Net Depreciation | BO69: =BN63-BO66-BO67-BO68 -> -3592722.254 | CA69: Net Depreciation | CC69: =CB63-CC66-CC67-CC68 -> -3906002.244
A71: Notes: | O71: Notes: | AC71: Notes: | AQ71: Notes: | BE71: Notes: | BS71: Notes:
A73: 1 | B73: Tables in the format outlined above covering all fixed asset accounts should be submitted for the Test Year, Bridge Year and all relevant historical years. At a minimum , the applicant must provide data for the earlier of: 1) all historical years back to its last rebasing; or 2) at least three years of historical actuals, in addition to Bridge Year and Test Year forecasts. | O73: 1 | P73: Tables in the format outlined above covering all fixed asset accounts should be submitted for the Test Year, Bridge Year and all relevant historical years. At a minimum , the applicant must provide data for the earlier of: 1) all historical years back to its last rebasing; or 2) at least three years of historical actuals, in addition to Bridge Year and Test Year forecasts. | AC73: 1 | AD73: Tables in the format outlined above covering all fixed asset accounts should be submitted for the Test Year, Bridge Year and all relevant historical years. At a minimum , the applicant must provide data for the earlier of: 1) all historical years back to its last rebasing; or 2) at least three years of historical actuals, in addition to Bridge Year and Test Year forecasts. | AQ73: 1 | AR73: Tables in the format outlined above covering all fixed asset accounts should be submitted for the Test Year, Bridge Year and all relevant historical years. At a minimum , the applicant must provide data for the earlier of: 1) all historical years back to its last rebasing; or 2) at least three years of historical actuals, in addition to Bridge Year and Test Year forecasts. | BE73: 1 | BF73: Tables in the format outlined above covering all fixed asset accounts should be submitted for the Test Year, Bridge Year and all relevant historical years. At a minimum , the applicant must provide data for the earlier of: 1) all historical years back to its last rebasing; or 2) at least three years of historical actuals, in addition to Bridge Year and Test Year forecasts. | BS73: 1 | BT73: Tables in the format outlined above covering all fixed asset accounts should be submitted for the Test Year, Bridge Year and all relevant historical years. At a minimum , the applicant must provide data for the earlier of: 1) all historical years back to its last rebasing; or 2) at least three years of historical actuals, in addition to Bridge Year and Test Year forecasts.
A76: 2 | B76: The "CCA Class" for fixed assets should generally agree with the CCA Class used for tax purposes in Tax Returns. Fixed Assets sub-components may be used where the underlying asset components are classified under multiple CCA Classes for tax purposes. If an applicant uses any different classes from those shown in the table, an explanation should be provided. (also see note 3). | O76: 2 | P76: The "CCA Class" for fixed assets should generally agree with the CCA Class used for tax purposes in Tax Returns. Fixed Assets sub-components may be used where the underlying asset components are classified under multiple CCA Classes for tax purposes. If an applicant uses any different classes from those shown in the table, an explanation should be provided. (also see note 3). | AC76: 2 | AD76: The "CCA Class" for fixed assets should generally agree with the CCA Class used for tax purposes in Tax Returns. Fixed Assets sub-components may be used where the underlying asset components are classified under multiple CCA Classes for tax purposes. If an applicant uses any different classes from those shown in the table, an explanation should be provided. (also see note 3). | AQ76: 2 | AR76: The "CCA Class" for fixed assets should generally agree with the CCA Class used for tax purposes in Tax Returns. Fixed Assets sub-components may be used where the underlying asset components are classified under multiple CCA Classes for tax purposes. If an applicant uses any different classes from those shown in the table, an explanation should be provided. (also see note 3). | BE76: 2 | BF76: The "CCA Class" for fixed assets should generally agree with the CCA Class used for tax purposes in Tax Returns. Fixed Assets sub-components may be used where the underlying asset components are classified under multiple CCA Classes for tax purposes. If an applicant uses any different classes from those shown in the table, an explanation should be provided. (also see note 3). | BS76: 2 | BT76: The "CCA Class" for fixed assets should generally agree with the CCA Class used for tax purposes in Tax Returns. Fixed Assets sub-components may be used where the underlying asset components are classified under multiple CCA Classes for tax purposes. If an applicant uses any different classes from those shown in the table, an explanation should be provided. (also see note 3).
A79: 3 | B79: The table may need to be customized for a utility's asset categories or for any new asset accounts announced or authorized by the OEB. | O79: 3 | P79: The table may need to be customized for a utility's asset categories or for any new asset accounts announced or authorized by the OEB. | AC79: 3 | AD79: The table may need to be customized for a utility's asset categories or for any new asset accounts announced or authorized by the OEB. | AQ79: 3 | AR79: The table may need to be customized for a utility's asset categories or for any new asset accounts announced or authorized by the OEB. | BE79: 3 | BF79: The table may need to be customized for a utility's asset categories or for any new asset accounts announced or authorized by the OEB. | BS79: 3 | BT79: The table may need to be customized for a utility's asset categories or for any new asset accounts announced or authorized by the OEB.
A81: 4 | B81: The additions in column (E) must not include construction work in progress (CWIP). | O81: 4 | P81: The additions in column (E) must not include construction work in progress (CWIP). | AC81: 4 | AD81: The additions in column (E) must not include construction work in progress (CWIP). | AQ81: 4 | AR81: The additions in column (E) must not include construction work in progress (CWIP). | BE81: 4 | BF81: The additions in column (E) must not include construction work in progress (CWIP). | BS81: 4 | BT81: The additions in column (E) must not include construction work in progress (CWIP).
A83: 5 | B83: Effective on the date of IFRS adoption, customer contributions will no longer be recorded in Account 1995 Contributions & Grants, but will be recorded in Account 2440, Deferred Revenues. Amortization of deferred revenue will be removed from the depreciation expense shown on this fixed asset continuity schedule as it should be included as income in Appendix 2-H Other Revenues. | O83: 5 | P83: Effective on the date of IFRS adoption, customer contributions will no longer be recorded in Account 1995 Contributions & Grants, but will be recorded in Account 2440, Deferred Revenues. Amortization of deferred revenue will be removed from the depreciation expense shown on this fixed asset continuity schedule as it should be included as income in Appendix 2-H Other Revenues. | AC83: 5 | AD83: Effective on the date of IFRS adoption, customer contributions will no longer be recorded in Account 1995 Contributions & Grants, but will be recorded in Account 2440, Deferred Revenues. Amortization of deferred revenue will be removed from the depreciation expense shown on this fixed asset continuity schedule as it should be included as income in Appendix 2-H Other Revenues. | AQ83: 5 | AR83: Effective on the date of IFRS adoption, customer contributions will no longer be recorded in Account 1995 Contributions & Grants, but will be recorded in Account 2440, Deferred Revenues. Amortization of deferred revenue will be removed from the depreciation expense shown on this fixed asset continuity schedule as it should be included as income in Appendix 2-H Other Revenues. | BE83: 5 | BF83: Effective on the date of IFRS adoption, customer contributions will no longer be recorded in Account 1995 Contributions & Grants, but will be recorded in Account 2440, Deferred Revenues. Amortization of deferred revenue will be removed from the depreciation expense shown on this fixed asset continuity schedule as it should be included as income in Appendix 2-H Other Revenues. | BS83: 5 | BT83: Effective on the date of IFRS adoption, customer contributions will no longer be recorded in Account 1995 Contributions & Grants, but will be recorded in Account 2440, Deferred Revenues. Amortization of deferred revenue will be removed from the depreciation expense shown on this fixed asset continuity schedule as it should be included as income in Appendix 2-H Other Revenues.
A85: 6 | B85: The applicant must ensure that all asset disposals have been clearly identified in the Chapter 2 Appendices for all historic, bridge and test years. Where a distributor for general financial reporting purposes under IFRS has accounted for the amount of gain or loss on the retirement of assets in a pool of like assets as a charge or credit to income, for reporting and rate application filings, the distributor shall reclassify such gains and losses as depreciation expense, and disclose the amount separately. | O85: 6 | P85: The applicant must ensure that all asset disposals have been clearly identified in the Chapter 2 Appendices for all historic, bridge and test years. Where a distributor for general financial reporting purposes under IFRS has accounted for the amount of gain or loss on the retirement of assets in a pool of like assets as a charge or credit to income, for reporting and rate application filings, the distributor shall reclassify such gains and losses as depreciation expense, and disclose the amount separately. | AC85: 6 | AD85: The applicant must ensure that all asset disposals have been clearly identified in the Chapter 2 Appendices for all historic, bridge and test years. Where a distributor for general financial reporting purposes under IFRS has accounted for the amount of gain or loss on the retirement of assets in a pool of like assets as a charge or credit to income, for reporting and rate application filings, the distributor shall reclassify such gains and losses as depreciation expense, and disclose the amount separately. | AQ85: 6 | AR85: The applicant must ensure that all asset disposals have been clearly identified in the Chapter 2 Appendices for all historic, bridge and test years. Where a distributor for general financial reporting purposes under IFRS has accounted for the amount of gain or loss on the retirement of assets in a pool of like assets as a charge or credit to income, for reporting and rate application filings, the distributor shall reclassify such gains and losses as depreciation expense, and disclose the amount separately. | BE85: 6 | BF85: The applicant must ensure that all asset disposals have been clearly identified in the Chapter 2 Appendices for all historic, bridge and test years. Where a distributor for general financial reporting purposes under IFRS has accounted for the amount of gain or loss on the retirement of assets in a pool of like assets as a charge or credit to income, for reporting and rate application filings, the distributor shall reclassify such gains and losses as depreciation expense, and disclose the amount separately. | BS85: 6 | BT85: The applicant must ensure that all asset disposals have been clearly identified in the Chapter 2 Appendices for all historic, bridge and test years. Where a distributor for general financial reporting purposes under IFRS has accounted for the amount of gain or loss on the retirement of assets in a pool of like assets as a charge or credit to income, for reporting and rate application filings, the distributor shall reclassify such gains and losses as depreciation expense, and disclose the amount separately.
A89: 7 | B89: This account includes the amount recorded under finance leases for plant leased from others and used by the utility in its utility operations. | O89: 7 | P89: This account includes the amount recorded under finance leases for plant leased from others and used by the utility in its utility operations. | AC89: 7 | AD89: This account includes the amount recorded under finance leases for plant leased from others and used by the utility in its utility operations. | AQ89: 7 | AR89: This account includes the amount recorded under finance leases for plant leased from others and used by the utility in its utility operations. | BE89: 7 | BF89: This account includes the amount recorded under finance leases for plant leased from others and used by the utility in its utility operations. | BS89: 7 | BT89: This account includes the amount recorded under finance leases for plant leased from others and used by the utility in its utility operations.

Sheet Appendix 2-BB Service Life
N1: File Number: | P1: ='LDC Info'!E16 -> EB-2021-0009
N2: Exhibit:
N3: Tab:
N4: Schedule:
N5: Page:
N7: Date:
A9: Appendix 2-BB
A10: Service Life Comparison
A11: Table F-1 from Kinetrics Report1
C15: Asset Details | F15: Useful Life | J15: USoA Account Number | K15: USoA Account Description | L15: Current | N15: Proposed | P15: Outside Range of Min, Max TUL?
A16: Parent* | B16: # | C16: Category| Component | Type | F16: MIN UL | G16: TUL | H16: MAX UL | L16: Years | M16: Rate | N16: Years | O16: Rate | P16: Below Min TUL | Q16: Above Max TUL
A17: OH | B17: 1 | C17: Fully Dressed Wood Poles | D17: Overall | F17: 35 | G17: 45 | H17: 75 | J17: 1830 | K17: Poles, Towers and Fixtures | L17: 45 | M17: =IF(ISERROR(1/L17), "", 1/L17) -> 0.02222222222 | N17: 45 | O17: =IF(ISERROR(1/N17), "", 1/N17) -> 0.02222222222 | P17: =IF(ISBLANK(N17),"",IF(N17<F17,"Yes","No")) -> No | Q17: =IF(ISBLANK(N17),"",IF(N17>H17,"Yes","No")) -> No
D18: Cross Arm | E18: Wood | F18: 20 | G18: 40 | H18: 55 | M18: =IF(ISERROR(1/L18), "", 1/L18) ->  | O18: =IF(ISERROR(1/N18), "", 1/N18) ->  | P18: =IF(ISBLANK(N18),"",IF(N18<F18,"Yes","No")) ->  | Q18: =IF(ISBLANK(N18),"",IF(N18>H18,"Yes","No")) -> 
E19: Steel | F19: 30 | G19: 70 | H19: 95
B20: 2 | C20: Fully Dressed Concrete Poles | D20: Overall | F20: 50 | G20: 60 | H20: 80 | J20: 1830 | K20: Poles, Towers and Fixtures | L20: 60 | M20: 0.01666666667 | N20: 60 | O20: 0.01666666667 | P20: No | Q20: No
D21: Cross Arm | E21: Wood | F21: 20 | G21: 40 | H21: 55
E22: Steel | F22: 30 | G22: 70 | H22: 95
B23: 3 | C23: Fully Dressed Steel Poles | D23: Overall | F23: 60 | G23: 60 | H23: 80 | J23: 1830 | K23: Poles, Towers and Fixtures | L23: 60 | M23: 0.01666666667 | N23: 60 | O23: 0.01666666667 | P23: No | Q23: No
D24: Cross Arm | E24: Wood | F24: 20 | G24: 40 | H24: 55
E25: Steel | F25: 30 | G25: 70 | H25: 95
B26: 4 | C26: OH Line Switch | F26: 30 | G26: 45 | H26: 55 | J26: 1835 | K26: Overhead Conductors and Devices | L26: 45 | M26: 0.02222222222 | N26: 45 | O26: 0.02222222222 | P26: No | Q26: No
B27: 5 | C27: OH Line Switch Motor | F27: 15 | G27: 25 | H27: 25
B28: 6 | C28: OH Line Switch RTU | F28: 15 | G28: 20 | H28: 20
B29: 7 | C29: OH Integral Switches | F29: 35 | G29: 45 | H29: 60 | J29: 1835 | K29: Overhead Conductors and Devices | L29: 45 | M29: 0.02222222222 | N29: 45 | O29: 0.02222222222 | P29: No | Q29: No
B30: 8 | C30: OH Conductors | F30: 50 | G30: 60 | H30: 75 | J30: 1835 | K30: Overhead Conductors and Devices | L30: 60 | M30: 0.01666666667 | N30: 60 | O30: 0.01666666667 | P30: No | Q30: No
B31: 9 | C31: OH Transformers & Voltage Regulators | F31: 30 | G31: 40 | H31: 60 | J31: 1850 | K31: Line Transformers | L31: 40 | M31: 0.025 | N31: 40 | O31: 0.025 | P31: No | Q31: No
B32: 10 | C32: OH Shunt Capacitor Banks | F32: 25 | G32: 30 | H32: 40 | J32: 1835 | K32: Overhead Conductors and Devices | L32: 30 | M32: 0.03333333333 | N32: 30 | O32: 0.03333333333 | P32: No | Q32: No
B33: 11 | C33: Reclosers | F33: 25 | G33: 40 | H33: 55 | J33: 1835 | K33: Overhead Conductors and Devices | L33: 40 | M33: 0.025 | N33: 40 | O33: 0.025 | P33: No | Q33: No
A34: TS & MS | B34: 12 | C34: Power Transformers | D34: Overall | F34: 30 | G34: 45 | H34: 60 | J34: 1815 | K34: Transformer Station Equipment - Normally Primary Above 50 kV | L34: 45 | M34: 0.02222222222 | N34: 45 | O34: 0.02222222222 | P34: No | Q34: No
D35: Bushing | F35: 10 | G35: 20 | H35: 30
D36: Tap Changer | F36: 20 | G36: 30 | H36: 60
B37: 13 | C37: Station Service Transformer | F37: 30 | G37: 45 | H37: 55 | J37: 1815 | K37: Transformer Station Equipment - Normally Primary Above 50 kV | L37: 45 | M37: 0.02222222222 | N37: 45 | O37: 0.02222222222 | P37: No | Q37: No
B38: 14 | C38: Station Grounding Transformer | F38: 30 | G38: 40 | H38: 40
B39: 15 | C39: Station DC System | D39: Overall | F39: 10 | G39: 20 | H39: 30 | J39: 1815 | K39: Transformer Station Equipment - Normally Primary Above 50 kV | L39: 20 | M39: 0.05 | N39: 20 | O39: 0.05 | P39: No | Q39: No
D40: Battery Bank | F40: 10 | G40: 15 | H40: 15
D41: Charger | F41: 20 | G41: 20 | H41: 30
B42: 16 | C42: Station Metal Clad Switchgear | D42: Overall | F42: 30 | G42: 40 | H42: 60 | J42: 1815 | K42: Transformer Station Equipment - Normally Primary Above 50 kV | L42: 40 | M42: 0.025 | N42: 40 | O42: 0.025 | P42: No | Q42: No
D43: Removable Breaker | F43: 25 | G43: 40 | H43: 60
B44: 17 | C44: Station Independent Breakers | F44: 35 | G44: 45 | H44: 65
B45: 18 | C45: Station Switch | F45: 30 | G45: 50 | H45: 60 | J45: 1815 | K45: Transformer Station Equipment - Normally Primary Above 50 kV | L45: 50 | M45: 0.02 | N45: 50 | O45: 0.02 | P45: No | Q45: No
B46: 19 | C46: Electromechanical Relays | F46: 25 | G46: 35 | H46: 50
B47: 20 | C47: Solid State Relays | F47: 10 | G47: 30 | H47: 45
B48: 21 | C48: Digital & Numeric Relays | F48: 15 | G48: 20 | H48: 20 | J48: 1815 | K48: Transformer Station Equipment - Normally Primary Above 50 kV | L48: 20 | M48: 0.05 | N48: 20 | O48: 0.05 | P48: No | Q48: No
B49: 22 | C49: Rigid Busbars | F49: 30 | G49: 55 | H49: 60
B50: 23 | C50: Steel Structure | F50: 35 | G50: 50 | H50: 90
A51: UG | B51: 24 | C51: Primary Paper Insulated Lead Covered (PILC) Cables | F51: 60 | G51: 65 | H51: 75
B52: 25 | C52: Primary Ethylene-Propylene Rubber (EPR) Cables | F52: 20 | G52: 25 | H52: 25
B53: 26 | C53: Primary Non-Tree Retardant (TR) Cross Linked Polyethylene (XLPE) Cables Direct Buried | F53: 20 | G53: 25 | H53: 30
B54: 27 | C54: Primary Non-TR XLPE Cables in Duct | F54: 20 | G54: 25 | H54: 30
B55: 30 | C55: Secondary PILC Cables | F55: 70 | G55: 75 | H55: 80
B56: 31 | C56: Secondary Cables Direct Buried | F56: 25 | G56: 35 | H56: 40 | J56: 1845 | K56: Underground Conductors and Devices | L56: 35 | M56: 0.02857142857 | N56: 35 | O56: 0.02857142857 | P56: No | Q56: No
B57: 32 | C57: Secondary Cables in Duct | F57: 35 | G57: 40 | H57: 60
B58: 33 | C58: Network Tranformers | D58: Overall | F58: 20 | G58: 35 | H58: 50
D59: Protector | F59: 20 | G59: 35 | H59: 40
B60: 34 | C60: Pad-Mounted Transformers | F60: 25 | G60: 40 | H60: 45 | J60: 1850 | K60: Line Transformers | L60: 40 | M60: 0.025 | N60: 40 | O60: 0.025 | P60: No | Q60: No
B61: 35 | C61: Submersible/Vault Transformers | F61: 25 | G61: 35 | H61: 45 | J61: 1850 | K61: Line Transformers | L61: 35 | M61: 0.02857142857 | N61: 35 | O61: 0.02857142857 | P61: No | Q61: No
B62: 36 | C62: UG Foundation | F62: 35 | G62: 55 | H62: 70 | J62: 1840 | K62: Underground Conduit | L62: 55 | M62: 0.01818181818 | N62: 55 | O62: 0.01818181818 | P62: No | Q62: No
B63: 37 | C63: UG Vaults | D63: Overall | F63: 40 | G63: 60 | H63: 80 | J63: 1840 | K63: Underground Conduit | L63: 60 | M63: 0.01666666667 | N63: 60 | O63: 0.01666666667 | P63: No | Q63: No
D64: Roof | F64: 20 | G64: 30 | H64: 45 | J64: 1840 | K64: Underground Conduit | L64: 30 | M64: 0.03333333333 | N64: 30 | O64: 0.03333333333 | P64: No | Q64: No
B65: 38 | C65: UG Vault Switches | F65: 20 | G65: 35 | H65: 50 | J65: 1845 | K65: Underground Conductors and Devices | L65: 35 | M65: 0.02857142857 | N65: 35 | O65: 0.02857142857 | P65: No | Q65: No
B66: 39 | C66: Pad-Mounted Switchgear | F66: 20 | G66: 30 | H66: 45 | J66: 1845 | K66: Underground Conductors and Devices | L66: 30 | M66: 0.03333333333 | N66: 30 | O66: 0.03333333333 | P66: No | Q66: No
B67: 40 | C67: Ducts | F67: 30 | G67: 50 | H67: 85 | J67: 1840 | K67: Underground Conduit | L67: 50 | M67: 0.02 | N67: 50 | O67: 0.02 | P67: No | Q67: No
B68: 41 | C68: Concrete Encased Duct Banks | F68: 35 | G68: 55 | H68: 80 | J68: 1840 | K68: Underground Conduit | L68: 55 | M68: 0.01818181818 | N68: 55 | O68: 0.01818181818 | P68: No | Q68: No
B69: 42 | C69: Cable Chambers | F69: 50 | G69: 60 | H69: 80 | J69: 1840 | K69: Underground Conduit | L69: 60 | M69: 0.01666666667 | N69: 60 | O69: 0.01666666667 | P69: No | Q69: No
A70: S | B70: 43 | C70: Remote SCADA | F70: 15 | G70: 20 | H70: 30 | J70: 1980 | K70: System Supervisory Equipment | L70: 15 | M70: 0.06666666667 | N70: 15 | O70: 0.06666666667 | P70: No | Q70: No
A73: Table F-2 from Kinetrics Report1
C75: Asset Details | F75: Useful Life Range | J75: USoA Account Number | K75: USoA Account Description | L75: Current | N75: Proposed | P75: Outside Range of Min, Max TUL?
B76: # | C76: Category| Component | Type | L76: Years | M76: Rate | N76: Years | O76: Rate | P76: Below Min Range | Q76: Above Max Range
B77: 1 | C77: Office Equipment | F77: 5 | G77: 15 | J77: 1915 | K77: Office Furniture and Equipment | L77: 10 | M77: =IF(ISERROR(1/L77), "", 1/L77) -> 0.1 | N77: 10 | O77: =IF(ISERROR(1/N77), "", 1/N77) -> 0.1 | P77: =IF(ISBLANK(N77),"",IF(N77<F77,"Yes","No")) -> No | Q77: =IF(ISBLANK(N77),"",IF(N77>G77,"Yes","No")) -> No
B78: 2 | C78: Vehicles | D78: Large - Trucks & Buckets | F78: 5 | G78: 15 | J78: 1930 | K78: Transportation Equipment | L78: 13 | M78: =IF(ISERROR(1/L78), "", 1/L78) -> 0.07692307692 | N78: =L78 -> 13 | O78: =IF(ISERROR(1/N78), "", 1/N78) -> 0.07692307692 | P78: =IF(ISBLANK(N78),"",IF(N78<F78,"Yes","No")) -> No | Q78: =IF(ISBLANK(N78),"",IF(N78>G78,"Yes","No")) -> No
D79: Small - Trucks & Buckets | F79: 5 | G79: 15 | J79: 1930 | K79: Transportation Equipment | L79: 8 | M79: 0.125 | N79: =L79 -> 8 | O79: =IF(ISERROR(1/N79), "", 1/N79) -> 0.125 | P79: =IF(ISBLANK(N79),"",IF(N79<F79,"Yes","No")) -> No | Q79: =IF(ISBLANK(N79),"",IF(N79>G79,"Yes","No")) -> No
D80: Trailers | F80: 5 | G80: 20 | J80: 1930 | K80: Transportation Equipment | L80: 20 | M80: 0.05 | N80: 20 | O80: 0.05 | P80: No | Q80: No
D81: Vans | F81: 5 | G81: 10 | J81: 1930 | K81: Transportation Equipment | L81: 08 | M81: 0.125 | N81: 8 | O81: 0.125 | P81: No | Q81: No
B82: 3 | C82: Administrative Buildings | F82: 50 | G82: 75 | J82: 1908 | K82: Buildings and Fixtures | L82: 50 | M82: 0.02 | N82: 50 | O82: 0.02 | P82: No | Q82: No
B83: 4 | C83: Leasehold Improvements | F83: Lease dependent | J83: 1910 | K83: Leasehold Improvement | L83: 03 | M83: 0.3333333333 | N83: 3 | O83: 0.3333333333 | P83: Lease dependent
B84: 5 | C84: Station Buildings | D84: Station Buildings | F84: 50 | G84: 75 | J84: 1808 | K84: Buildings and Fixtures | L84: 50 | M84: 0.02 | N84: 50 | O84: 0.02 | P84: No | Q84: No
D85: Parking | F85: 25 | G85: 30 | J85: 1808 | K85: Buildings and Fixtures | L85: 25 | M85: 0.04 | N85: 25 | O85: 0.04 | P85: No | Q85: No
D86: Fence | F86: 25 | G86: 60 | J86: 1808 | K86: Buildings and Fixtures | L86: 25 | M86: 0.04 | N86: 25 | O86: 0.04 | P86: No | Q86: No
D87: Roof | F87: 20 | G87: 30 | J87: 1808 | K87: Buildings and Fixtures | L87: 20 | M87: 0.05 | N87: 20 | O87: 0.05 | P87: No | Q87: No
B88: 6 | C88: Computer Equipment | D88: Hardware | F88: 3 | G88: 5 | J88: 1920 | K88: Computer Equipment - Hardware | L88: 04 | M88: 0.25 | N88: 4 | O88: 0.25 | P88: No | Q88: No
D89: Software | F89: 2 | G89: 5 | J89: 1611 | K89: Computer Software | L89: 05 | M89: 0.2 | N89: 5 | O89: 0.2 | P89: No | Q89: No
B90: 7 | C90: Equipment | D90: Power Operated | F90: 5 | G90: 10
D91: Stores | F91: 5 | G91: 10 | J91: 1935 | K91: Stores Equipment | L91: 10 | M91: 0.1 | N91: 10 | O91: 0.1 | P91: No | Q91: No
D92: Tools, Shop, Garage Equipment | F92: 5 | G92: 10 | J92: 1940 | K92: Tools, Shop and Garage Equipment | L92: 10 | M92: 0.1 | N92: 10 | O92: 0.1 | P92: No | Q92: No
D93: Measurement & Testing Equipment | F93: 5 | G93: 10
B94: 8 | C94: Communication | D94: Towers | F94: 60 | G94: 70
D95: Wireless | F95: 2 | G95: 10 | J95: 1955 | K95: Communication Equipment | L95: 05 | M95: 0.2 | N95: 5 | O95: 0.2 | P95: No | Q95: No
B96: 9 | C96: Residential Energy Meters | F96: 25 | G96: 35
B97: 10 | C97: Industrial/Commercial Energy Meters | F97: 25 | G97: 35 | J97: 1860 | K97: Meters | L97: 25 | M97: 0.04 | N97: 25 | O97: 0.04 | P97: No | Q97: No
B98: 11 | C98: Wholesale Energy Meters | F98: 15 | G98: 30 | J98: 1860 | K98: Meters | L98: 15 | M98: 0.06666666667 | N98: 15 | O98: 0.06666666667 | P98: No | Q98: No
B99: 12 | C99: Current & Potential Transformer (CT & PT) | F99: 35 | G99: 50 | J99: 1860 | K99: Meters | L99: 35 | M99: 0.02857142857 | N99: 35 | O99: 0.02857142857 | P99: No | Q99: No
B100: 13 | C100: Smart Meters | F100: 5 | G100: 15 | J100: 1860 | K100: Meters | L100: 15 | M100: 0.06666666667 | N100: 15 | O100: 0.06666666667 | P100: No | Q100: No
B101: 14 | C101: Repeaters - Smart Metering | F101: 10 | G101: 15 | J101: 1860 | K101: Meters | L101: 15 | M101: 0.06666666667 | N101: 15 | O101: 0.06666666667 | P101: No | Q101: No
B102: 15 | C102: Data Collectors - Smart Metering | F102: 15 | G102: 20 | J102: 1860 | K102: Meters | L102: 15 | M102: 0.06666666667 | N102: 15 | O102: 0.06666666667 | P102: No | Q102: No
A105: * TS & MS = Transformer and Municipal Stations UG = Underground Systems S = Monitoring and Control Systems
A107: Note 1: | B107: Tables F-1 and F-2 above are to be used as a reference in order to complete columns J, K, L and N.
B108: See pages 17-19 of Kinetrics Report

Sheet App.2-C_DepExp
A9: Appendix 2-C | Y9: CGAAP
A10: Depreciation and Amortization Expense | Y10: Revised CGAAP
Y11: MIFRS
A12: This appendix is to be completed in conjunction with the accounting instructions in Appendix 2-B
A14: Scenario that applies | C14: Applicable Years and Accounting Standard | R14: Year Reflected in Schedule Below | S14: Accounting Standard Reflected in Schedule Below | Y14: 2012
A15: Rebasing for the first time with depreciation policy changes made in 2012. | C15: ="This appendix must be duplicated and completed for the years 2012 to " & TestYear & ". The appendix for 2012 is to be completed under CGAAP (prior to changes in depreciation policies)." &" The appendix for 2012 to 2014 must be completed under Revised CGAAP (after changes in depreciation policies). The appendix for 2014 to " & TestYear & " is to be completed under MIFRS (2014 if changes to MIFRS are material)." -> This appendix must be duplicated and completed for the years 2012 to 2022. The appendix for 2012 is to be completed under CGAAP (prior to changes in depreciation policies). The appendix for 2012 to 2014 must be completed under Revised CGAAP (after changes in depreciation policies). The appendix for 2014 to 2022 is to be completed under MIFRS (2014 if changes to MIFRS are material). | Y15: 2013
A16: Rebasing for the first time with depreciation policy changes made in 2013. | C16: ="This appendix must be duplicated and completed for the years 2013 to " & TestYear & ". The appendix for 2013 is to be completed under CGAAP (prior to changes in depreciation policies)."&" The appendix for 2013 to 2014 must be completed under Revised CGAAP (after changes in depreciation policies). The appendix for 2014 to " & TestYear & " is to be completed under MIFRS (2014 if changes to MIFRS are material)." -> This appendix must be duplicated and completed for the years 2013 to 2022. The appendix for 2013 is to be completed under CGAAP (prior to changes in depreciation policies). The appendix for 2013 to 2014 must be completed under Revised CGAAP (after changes in depreciation policies). The appendix for 2014 to 2022 is to be completed under MIFRS (2014 if changes to MIFRS are material). | Y16: 2014
A17: Already rebased with depreciation policy changes in a prior rate application and rebasing MIFRS for the first time. | C17: This appendix must be completed for 2014 to the test year. The appendix for 2014 is to be completed under Revised CGAAP (after changes in depreciation policies). The appendix for 2014 to the test year is to be completed under MIFRS (2014 if changes to MIFRS are material). | Y17: 2015
A18: Already rebased under MIFRS in a prior rate application | C18: ="This appendix must be completed under MIFRS for each year for the earlier of: 1) all historical years back to its last rebasing; or 2) at least three years of historical actuals, in addition to Bridge Year and Test Year forecasts." -> This appendix must be completed under MIFRS for each year for the earlier of: 1) all historical years back to its last rebasing; or 2) at least three years of historical actuals, in addition to Bridge Year and Test Year forecasts. | R18: 2017 | S18: MIFRS | Y18: 2016
Y19: 2017
A20: 2017 | B20: MIFRS | C20: Book Values | J20: Service Lives | N20: Depreciation Expense | Y20: 2018
A21: Account | B21: Description | C21: Opening Net Book Value of Existing Assets as at Date of Policy Change (Jan. 1) 1 | D21: Less Fully Depreciated 7 | E21: Net Amount of Existing Assets Before Policy Change to be Depreciated | F21: Opening Gross Book Value of Assets Acquired After Policy Change 2 | G21: Less Fully Depreciated 8 | H21: Net Amount of Assets Acquired After Policy Change to be Depreciated | I21: Current Year Additions | J21: Average Remaining Life of Assets Existing Before Policy Change 3 | K21: Depreciation Rate Assets Acquired After Policy Change | L21: Life of Assets Acquired After Policy Change 4 | M21: Depreciation Rate on New Additions | N21: Depreciation Expense on Assets Existing Before Policy Change | O21: Depreciation Expense on Assets Acquired After Policy Change | P21: Depreciation Expense on Current Year Additions 5 | Q21: Total Current Year Depreciation Expense | R21: Depreciation Expense per Appendix 2-BA Fixed Assets, Column J | S21: Variance 6
C22: a | D22: b | E22: c = a-b | F22: d | G22: e | H22: f = d- e | I22: g | J22: h | K22: i = 1/h | L22: j | M22: k = 1/j | N22: l = c/h | O22: m = f/j | P22: n = g*0.5/j | Q22: o = l+m+n | R22: p | S22: q = p-o
A23: 1611 | B23: Computer Software (Formally known as Account 1925) | C23: 310513 | D23: 309197 | E23: =C23-D23 -> 1316 | F23: 1596436 | G23: 0 | H23: =F23-G23 -> 1596436 | I23: 143159.88 | J23: 3.27 | K23: =IF(J23=0,0,1/J23) -> 0.3058103976 | L23: 5 | M23: =IF(L23=0,0,1/L23) -> 0.2 | N23: =IF(J23=0,0,+E23/J23) -> 402.4464832 | O23: =IF(L23=0,0,+H23/L23) -> 319287.2 | P23: =IF(L23=0,0,+(I23*0.5)/L23) -> 14315.988 | Q23: =IF(ISERROR(+N23+O23+P23), 0, +N23+O23+P23) -> 334005.6345 | R23: 318702.98 | S23: =IF(ISERROR(+R23-Q23), 0, +R23-Q23) -> -15302.65448
A24: 1612 | B24: Land Rights (Formally known as Account 1906) | C24: 81274 | D24: 0 | E24: =C24-D24 -> 81274 | F24: 12725 | G24: 12725 | H24: =F24-G24 -> 0 | I24: 0 | J24: 49 | K24: =IF(J24=0,0,1/J24) -> 0.02040816327 | L24: 0 | M24: =IF(L24=0,0,1/L24) -> 0 | N24: =IF(J24=0,0,+E24/J24) -> 1658.653061 | O24: =IF(L24=0,0,+H24/L24) -> 0 | P24: =IF(L24=0,0,+(I24*0.5)/L24) -> 0 | Q24: =IF(ISERROR(+N24+O24+P24), 0, +N24+O24+P24) -> 1658.653061 | R24: 0 | S24: =IF(ISERROR(+R24-Q24), 0, +R24-Q24) -> -1658.653061
A25: 1805 | B25: Land | C25: 181961 | D25: 181961 | E25: 0 | F25: 0 | G25: 0 | H25: 0 | I25: 0 | J25: 0 | K25: 0 | L25: 0 | M25: 0 | N25: 0 | O25: =IF(L25=0,0,+H25/L25) -> 0 | P25: 0 | Q25: 0 | R25: 0 | S25: 0
A26: 1806 | B26: Land Rights | C26: 0 | D26: 0 | E26: 0 | F26: 0 | G26: 0 | H26: 0 | I26: 0 | J26: 0 | K26: 0 | L26: 0 | M26: 0 | N26: 0 | O26: 0 | P26: 0 | Q26: 0 | R26: 2017.01 | S26: 2017.01
A27: 1808 | B27: Buildings | C27: 969200 | D27: 0 | E27: 969200 | F27: 3405.25 | G27: 0 | H27: 3405.25 | I27: 0 | J27: 35.45 | K27: 0.02820874471 | L27: 30 | M27: 0.03333333333 | N27: 27339.91537 | O27: 113.5083333 | P27: 0 | Q27: 27453.42371 | R27: 27078.35 | S27: -375.0737071
A28: 1810 | B28: Leasehold Improvements | C28: 0 | D28: 0 | E28: 0 | F28: 0 | G28: 0 | H28: 0 | I28: 0 | J28: 0 | K28: 0 | L28: 0 | M28: 0 | N28: 0 | O28: 0 | P28: 0 | Q28: 0 | R28: 0 | S28: 0
A29: 1815 | B29: Transformer Station Equipment >50 kV | C29: 3614381 | D29: 0 | E29: 3614381 | F29: 731339.9694 | G29: 0 | H29: 731339.9694 | I29: 0 | J29: 33.32 | K29: 0.0300120048 | L29: 36.66666667 | M29: 0.02727272727 | N29: 108474.8199 | O29: 19945.63553 | P29: 0 | Q29: 128420.4555 | R29: 120591.66 | S29: -7828.795457
A30: 1820 | B30: Distribution Station Equipment <50 kV | C30: 44402.06 | D30: 0 | E30: 44402.06 | F30: 5318.1695 | G30: 0 | H30: 5318.1695 | I30: 0 | J30: 8.63 | K30: 0.1158748552 | L30: 0 | M30: 0 | N30: 5145.082271 | O30: 0 | P30: 0 | Q30: 5145.082271 | R30: 208.86 | S30: -4936.222271
A31: 1825 | B31: Storage Battery Equipment | C31: 0 | D31: 0 | E31: 0 | F31: 0 | G31: 0 | H31: 0 | I31: 0 | J31: 0 | K31: 0 | L31: 0 | M31: 0 | N31: 0 | O31: 0 | P31: 0 | Q31: 0 | R31: 0 | S31: 0
A32: 1830 | B32: Poles, Towers & Fixtures | C32: 10525576 | D32: 127285.95 | E32: 10398290.05 | F32: 2969887.453 | G32: 0 | H32: 2969887.453 | I32: 638736.35 | J32: 28.13 | K32: 0.03554923569 | L32: 55 | M32: 0.01818181818 | N32: 369651.2638 | O32: 53997.95369 | P32: 5806.694091 | Q32: 429455.9116 | R32: 388637.02 | S32: -40818.89155
A33: 1835 | B33: Overhead Conductors & Devices | C33: 8177214 | D33: 0 | E33: 8177214 | F33: 1910277.366 | G33: 0 | H33: 1910277.366 | I33: 546970.48 | J33: 38.1 | K33: 0.02624671916 | L33: 44 | M33: 0.02272727273 | N33: 214625.0394 | O33: 43415.39467 | P33: 6215.573636 | Q33: 264256.0077 | R33: 260104.85 | S33: -4151.157679
A34: 1840 | B34: Underground Conduit | C34: 8530811 | D34: 27565.96 | E34: 8503245.04 | F34: 1405507.52 | G34: 0 | H34: 1405507.52 | I34: 715418.7 | J34: 37.56 | K34: 0.02662406816 | L34: 51.66666667 | M34: 0.01935483871 | N34: 226390.9755 | O34: 27203.37136 | P34: 6923.406774 | Q34: 260517.7536 | R34: 246568.07 | S34: -13949.68364
A35: 1845 | B35: Underground Conductors & Devices | C35: 13805642 | D35: 93916.84 | E35: 13711725.16 | F35: 2776030.058 | G35: 0 | H35: 2776030.058 | I35: 837212.92 | J35: 23.32 | K35: 0.04288164666 | L35: 33.33333333 | M35: 0.03 | N35: 587981.3533 | O35: 83280.90174 | P35: 12558.1938 | Q35: 683820.4489 | R35: 669773.22 | S35: -14047.22888
A36: 1850 | B36: Line Transformers | C36: 11018260 | D36: 23468.6 | E36: =C36-D36 -> 10994791.4 | F36: 3378583.073 | G36: 0 | H36: =F36-G36 -> 3378583.073 | I36: 813568.66 | J36: 26.28 | K36: =IF(J36=0,0,1/J36) -> 0.03805175038 | L36: 38.33333333 | M36: =IF(L36=0,0,1/L36) -> 0.02608695652 | N36: =IF(J36=0,0,+E36/J36) -> 418371.0578 | O36: =IF(L36=0,0,+H36/L36) -> 88136.94974 | P36: =IF(L36=0,0,+(I36*0.5)/L36) -> 10611.76513 | Q36: =IF(ISERROR(+N36+O36+P36), 0, +N36+O36+P36) -> 517119.7727 | R36: 504362.82 | S36: =IF(ISERROR(+R36-Q36), 0, +R36-Q36) -> -12756.95271
A37: 1855 | B37: Services (Overhead & Underground) | C37: 1293039 | D37: 0 | E37: 1293039 | F37: 707130.0538 | G37: 0 | H37: 707130.0538 | I37: 48324.89 | J37: 20.13 | K37: 0.04967709886 | L37: 25 | M37: 0.04 | N37: 64234.42623 | O37: 28285.20215 | P37: 966.4978 | Q37: 93486.12618 | R37: 86646.78 | S37: -6839.346182
A38: 1860 | B38: Meters | C38: 2917143 | D38: 164962.05 | E38: 2752180.95 | F38: 317369.6517 | G38: 0 | H38: 317369.6517 | I38: 95145.53 | J38: 7.62 | K38: 0.1312335958 | L38: 20 | M38: 0.05 | N38: 361178.6024 | O38: 15868.48259 | P38: 2378.63825 | Q38: 379425.7232 | R38: 576950.79 | S38: 197525.0668
A39: 1860 | B39: Meters (Smart Meters) | C39: 4351098 | D39: 0 | E39: 4351098 | F39: 392975.4675 | G39: 0 | H39: 392975.4675 | I39: 0 | J39: 12.69 | K39: 0.07880220646 | L39: 20 | M39: 0.05 | N39: 342876.1229 | O39: 19648.77338 | P39: 0 | Q39: 362524.8963 | R39: 0 | S39: -362524.8963
A40: 1905 | B40: Land | C40: 0 | D40: 0 | E40: 0 | F40: 0 | G40: 0 | H40: 0 | I40: 0 | J40: 0 | K40: 0 | L40: 0 | M40: 0 | N40: 0 | O40: 0 | P40: 0 | Q40: 0 | R40: 0 | S40: 0
A41: 1908 | B41: Buildings & Fixtures | C41: 0 | D41: 0 | E41: 0 | F41: 0 | G41: 0 | H41: 0 | I41: 0 | J41: 0 | K41: 0 | L41: 50 | M41: 0.02 | N41: 0 | O41: 0 | P41: 0 | Q41: 0 | R41: 0 | S41: 0
A42: 1910 | B42: Leasehold Improvements | C42: 0 | D42: 0 | E42: 0 | F42: 5779.781333 | G42: 13573.07 | H42: -7793.288667 | I42: 0 | J42: 0 | K42: 0 | L42: 3 | M42: 0.3333333333 | N42: 0 | O42: -2597.762889 | P42: 0 | Q42: -2597.762889 | R42: 6560.39 | S42: 9158.152889
A43: 1915 | B43: Office Furniture & Equipment (10 years) | C43: 2799 | D43: 0 | E43: 2799 | F43: 15553.0485 | G43: 0 | H43: 15553.0485 | I43: 0 | J43: 9 | K43: 0.1111111111 | L43: 10 | M43: 0.1 | N43: 311 | O43: 1555.30485 | P43: 0 | Q43: 1866.30485 | R43: 2667.79 | S43: 801.48515
A44: 1915 | B44: Office Furniture & Equipment (5 years) | C44: 0 | D44: 0 | E44: 0 | F44: 0 | G44: 0 | H44: 0 | I44: 0 | J44: 0 | K44: 0 | L44: 10 | M44: 0.1 | N44: 0 | O44: 0 | P44: 0 | Q44: 0 | R44: 0 | S44: 0
A45: 1920 | B45: Computer Equipment - Hardware | C45: 90579 | D45: 77580 | E45: 12999 | F45: 0 | G45: 0 | H45: 0 | I45: 18872.9 | J45: 3 | K45: 0.3333333333 | L45: 4 | M45: 0.25 | N45: 4333 | O45: 0 | P45: 2359.1125 | Q45: 6692.1125 | R45: 11774.48 | S45: 5082.3675
A46: 1920 | B46: Computer Equip.-Hardware(Post Mar. 22/04) | C46: 0 | D46: 0 | E46: 0 | F46: 0 | G46: 0 | H46: 0 | I46: 0 | J46: 0 | K46: 0 | L46: 4 | M46: 0.25 | N46: 0 | O46: 0 | P46: 0 | Q46: 0 | R46: 0 | S46: 0
A47: 1920 | B47: Computer Equip.-Hardware(Post Mar. 19/07) | C47: 0 | D47: 0 | E47: 0 | F47: 4637.48375 | G47: 45494.65 | H47: -40857.16625 | I47: 0 | J47: 0 | K47: 0 | L47: 4 | M47: 0.25 | N47: 0 | O47: -10214.29156 | P47: 0 | Q47: -10214.29156 | R47: 0 | S47: 10214.29156
A48: 1930 | B48: Transportation Equipment | C48: 796298 | D48: 22409 | E48: 773889 | F48: 1200622.072 | G48: 0 | H48: 1200622.072 | I48: 372056.05 | J48: 8.817589639 | K48: 0.1134096778 | L48: 12.25 | M48: 0.08163265306 | N48: 87766.50215 | O48: 98009.9651 | P48: 15185.96122 | Q48: 200962.4285 | R48: 183314.52 | S48: -17647.90847
A49: 1935 | B49: Stores Equipment | C49: 0 | D49: 0 | E49: 0 | F49: 2851.3375 | G49: 0 | H49: 2851.3375 | I49: 0 | J49: 0 | K49: 0 | L49: 10 | M49: 0.1 | N49: 0 | O49: 285.13375 | P49: 0 | Q49: 285.13375 | R49: 530.52 | S49: 245.38625
A50: 1940 | B50: Tools, Shop & Garage Equipment | C50: 70317 | D50: 18107 | E50: 52210 | F50: 89637.6805 | G50: 0 | H50: 89637.6805 | I50: 22506.13 | J50: 10 | K50: 0.1 | L50: 10 | M50: 0.1 | N50: 5221 | O50: 8963.76805 | P50: 1125.3065 | Q50: 15310.07455 | R50: 17126.91 | S50: 1816.83545
A51: 1945 | B51: Measurement & Testing Equipment | C51: 0 | D51: 0 | E51: 0 | F51: 5274.4185 | G51: 0 | H51: 5274.4185 | I51: 0 | J51: 0 | K51: 0 | L51: 10 | M51: 0.1 | N51: 0 | O51: 527.44185 | P51: 0 | Q51: 527.44185 | R51: 811.3 | S51: 283.85815
A52: 1950 | B52: Power Operated Equipment | C52: 0 | D52: 0 | E52: 0 | F52: 0 | G52: 0 | H52: 0 | I52: 0 | J52: 0 | K52: 0 | L52: 0 | M52: 0 | N52: 0 | O52: 0 | P52: 0 | Q52: 0 | R52: 0 | S52: 0
A53: 1955 | B53: Communications Equipment | C53: 0 | D53: 0 | E53: 0 | F53: 14094.299 | G53: 0 | H53: 14094.299 | I53: 0 | J53: 0 | K53: 0 | L53: 5 | M53: 0.2 | N53: 0 | O53: 2818.8598 | P53: 0 | Q53: 2818.8598 | R53: 5207.94 | S53: 2389.0802
A54: 1955 | B54: Communication Equipment (Smart Meters) | C54: 0 | D54: 0 | E54: 0 | F54: 0 | G54: 0 | H54: 0 | I54: 0 | J54: 0 | K54: 0 | L54: 5 | M54: 0.2 | N54: 0 | O54: 0 | P54: 0 | Q54: 0 | R54: 0 | S54: 0
A55: 1960 | B55: Miscellaneous Equipment | C55: 0 | D55: 0 | E55: 0 | F55: 0 | G55: 0 | H55: 0 | I55: 0 | J55: 0 | K55: 0 | L55: 0 | M55: 0 | N55: 0 | O55: 0 | P55: 0 | Q55: 0 | R55: 0 | S55: 0
A56: 1970 | B56: Load Management Controls Customer Premises | C56: 0 | D56: 0 | E56: 0 | F56: 0 | G56: 0 | H56: 0 | I56: 0 | J56: 0 | K56: 0 | L56: 0 | M56: 0 | N56: 0 | O56: 0 | P56: 0 | Q56: 0 | R56: 0 | S56: 0
A57: 1975 | B57: Load Management Controls Utility Premises | C57: 0 | D57: 0 | E57: 0 | F57: 0 | G57: 0 | H57: 0 | I57: 0 | J57: 0 | K57: 0 | L57: 0 | M57: 0 | N57: 0 | O57: 0 | P57: 0 | Q57: 0 | R57: 0 | S57: 0
A58: 1980 | B58: System Supervisor Equipment | C58: 500578 | D58: 0 | E58: 500578 | F58: 698438.453 | G58: 0 | H58: 698438.453 | I58: 108704.5 | J58: 15 | K58: 0.06666666667 | L58: 15 | M58: 0.06666666667 | N58: 33371.86667 | O58: 46562.56353 | P58: 3623.483333 | Q58: 83557.91353 | R58: 74995.51 | S58: -8562.403533
A59: 1985 | B59: Miscellaneous Fixed Assets | C59: 0 | D59: 0 | E59: 0 | F59: 0 | G59: 0 | H59: 0 | I59: 0 | J59: 0 | K59: 0 | L59: 0 | M59: 0 | N59: 0 | O59: 0 | P59: 0 | Q59: 0 | R59: 0 | S59: 0
A60: 1990 | B60: Other Tangible Property | D60: 0 | E60: 0 | F60: 0 | G60: 0 | H60: 0 | I60: 0 | J60: 0 | K60: 0 | L60: 0 | M60: 0 | N60: 0 | O60: 0 | P60: 0 | Q60: 0 | R60: 0 | S60: 0
A61: 2040 | B61: Plant Held for Future use | C61: -0.16 | D61: -0.16 | E61: 0 | F61: 0 | G61: 0 | H61: 0 | I61: 0 | J61: 0 | K61: 0 | L61: 0 | M61: 0 | N61: 0 | O61: 0 | P61: 0 | Q61: 0 | R61: 0 | S61: 0
A62: 2055 | B62: Work in Progress | C62: 0 | D62: 0 | E62: 0 | F62: 0 | G62: 0 | H62: 0 | I62: 0 | J62: 0 | K62: 0 | L62: 0 | M62: 0 | N62: 0 | O62: 0 | P62: 0 | Q62: 0 | R62: 0 | S62: 0
A63: 1995 | B63: Contributions & Grants | C63: -3594055 | D63: 0 | E63: -3594055 | F63: -2201760.717 | G63: 0 | H63: -2201760.717 | I63: -524288.74 | J63: 39.72727859 | K63: 0.025171621 | L63: 45 | M63: 0.02222222222 | N63: -90468.1903 | O63: =IF(L63=0,0,+H63/L63) -> -48928.01592 | P63: =IF(L63=0,0,+(I63*0.5)/L63) -> -5825.430444 | Q63: =IF(ISERROR(+N63+O63+P63), 0, +N63+O63+P63) -> -145221.6367 | R63: -150777.12 | S63: -5555.483332
B64: Total | C64: =SUM(C23:C63) -> 63687029.9 | D64: =SUM(D23:D63) -> 1046453.24 | E64: =SUM(E23:E63) -> 62640576.66 | F64: 16042112.89 | G64: 71792.72 | H64: 15970320.17 | I64: 3836388.25 | N64: =SUM(N23:N63) -> 2768864.937 | O64: =SUM(O23:O63) -> 796166.3397 | P64: 76245.1906 | Q64: 3641276.467 | R64: 3353854.65 | S64: -287421.8173
A67: 2018 | B67: MIFRS | C67: Book Values | J67: Service Lives | N67: Depreciation Expense | Y67: 2018
A68: Account | B68: Description | C68: Opening Net Book Value of Existing Assets as at Date of Policy Change (Jan. 1) 1 | D68: Less Fully Depreciated 7 | E68: Net Amount of Existing Assets Before Policy Change to be Depreciated | F68: Opening Gross Book Value of Assets Acquired After Policy Change 2 | G68: Less Fully Depreciated 8 | H68: Net Amount of Assets Acquired After Policy Change to be Depreciated | I68: Current Year Additions | J68: Average Remaining Life of Assets Existing Before Policy Change 3 | K68: Depreciation Rate Assets Acquired After Policy Change | L68: Life of Assets Acquired After Policy Change 4 | M68: Depreciation Rate on New Additions | N68: Depreciation Expense on Assets Existing Before Policy Change | O68: Depreciation Expense on Assets Acquired After Policy Change | P68: Depreciation Expense on Current Year Additions 5 | Q68: Total Current Year Depreciation Expense | R68: Depreciation Expense per Appendix 2-BA Fixed Assets, Column J | S68: Variance 6
C69: a | D69: b | E69: c = a-b | F69: d | G69: e | H69: f = d- e | I69: g | J69: h | K69: i = 1/h | L69: j | M69: k = 1/j | N69: l = c/h | O69: m = f/j | P69: n = g*0.5/j | Q69: o = l+m+n | R69: p | S69: q = p-o
A70: 1611 | B70: Computer Software (Formally known as Account 1925) | C70: 310513 | D70: 309197 | E70: =C70-D70 -> 1316 | F70: 1739595.88 | G70: 175520.54 | H70: =F70-G70 -> 1564075.34 | I70: 8582 | J70: 3.27 | K70: =IF(J70=0,0,1/J70) -> 0.3058103976 | L70: 5 | M70: =IF(L70=0,0,1/L70) -> 0.2 | N70: =IF(J70=0,0,+E70/J70) -> 402.4464832 | O70: =IF(L70=0,0,+H70/L70) -> 312815.068 | P70: =IF(L70=0,0,+(I70*0.5)/L70) -> 858.2 | Q70: =IF(ISERROR(+N70+O70+P70), 0, +N70+O70+P70) -> 314075.7145 | R70: 181202.4 | S70: =IF(ISERROR(+R70-Q70), 0, +R70-Q70) -> -132873.3145
A71: 1612 | B71: Land Rights (Formally known as Account 1906) | C71: 81274 | D71: 0 | E71: =C71-D71 -> 81274 | F71: 12725 | G71: 12725 | H71: =F71-G71 -> 0 | I71: 0 | J71: 49 | K71: =IF(J71=0,0,1/J71) -> 0.02040816327 | L71: 0 | M71: =IF(L71=0,0,1/L71) -> 0 | N71: =IF(J71=0,0,+E71/J71) -> 1658.653061 | O71: =IF(L71=0,0,+H71/L71) -> 0 | P71: =IF(L71=0,0,+(I71*0.5)/L71) -> 0 | Q71: =IF(ISERROR(+N71+O71+P71), 0, +N71+O71+P71) -> 1658.653061 | R71: 0 | S71: =IF(ISERROR(+R71-Q71), 0, +R71-Q71) -> -1658.653061
A72: 1805 | B72: Land | C72: 181961 | D72: 181961 | E72: 0 | F72: 0 | G72: 0 | H72: 0 | I72: 0 | J72: 0 | K72: 0 | L72: 0 | M72: 0 | N72: 0 | O72: =IF(L72=0,0,+H72/L72) -> 0 | P72: 0 | Q72: 0 | R72: 0 | S72: 0
A73: 1806 | B73: Land Rights | C73: 0 | D73: 0 | E73: 0 | F73: 0 | G73: 0 | H73: 0 | I73: 0 | J73: 0 | K73: 0 | L73: 0 | M73: 0 | N73: 0 | O73: 0 | P73: 0 | Q73: 0 | R73: 2017.01 | S73: 2017.01
A74: 1808 | B74: Buildings | C74: 969200 | D74: 0 | E74: 969200 | F74: 3405.25 | G74: 0 | H74: 3405.25 | I74: 0 | J74: 35.45 | K74: 0.02820874471 | L74: 30 | M74: 0.03333333333 | N74: 27339.91537 | O74: 113.5083333 | P74: 0 | Q74: 27453.42371 | R74: 27078.35 | S74: -375.0737071
A75: 1810 | B75: Leasehold Improvements | C75: 0 | D75: 0 | E75: 0 | F75: 0 | G75: 0 | H75: 0 | I75: 0 | J75: 0 | K75: 0 | L75: 0 | M75: 0 | N75: 0 | O75: 0 | P75: 0 | Q75: 0 | R75: 0 | S75: 0
A76: 1815 | B76: Transformer Station Equipment >50 kV | C76: 3614381 | D76: 0 | E76: 3614381 | F76: 731339.9694 | G76: 0 | H76: 731339.9694 | I76: 0 | J76: 33.32 | K76: 0.0300120048 | L76: 36.66666667 | M76: 0.02727272727 | N76: 108474.8199 | O76: 19945.63553 | P76: 0 | Q76: 128420.4555 | R76: 120591.66 | S76: -7828.795457
A77: 1820 | B77: Distribution Station Equipment <50 kV | C77: 44402.06 | D77: 0 | E77: 44402.06 | F77: 5318.1695 | G77: 0 | H77: 5318.1695 | I77: 0 | J77: 8.63 | K77: 0.1158748552 | L77: 0 | M77: 0 | N77: 5145.082271 | O77: 0 | P77: 0 | Q77: 5145.082271 | R77: 208.86 | S77: -4936.222271
A78: 1825 | B78: Storage Battery Equipment | C78: 0 | D78: 0 | E78: 0 | F78: 0 | G78: 0 | H78: 0 | I78: 0 | J78: 0 | K78: 0 | L78: 0 | M78: 0 | N78: 0 | O78: 0 | P78: 0 | Q78: 0 | R78: 0 | S78: 0
A79: 1830 | B79: Poles, Towers & Fixtures | C79: 10525576 | D79: 127285.95 | E79: 10398290.05 | F79: 3608623.803 | G79: 0 | H79: 3608623.803 | I79: 943037.44 | J79: 28.13 | K79: 0.03554923569 | L79: 55 | M79: 0.01818181818 | N79: 369651.2638 | O79: 65611.34187 | P79: 8573.067636 | Q79: 443835.6733 | R79: 403386.77 | S79: -40448.90328
A80: 1835 | B80: Overhead Conductors & Devices | C80: 8177214 | D80: 0 | E80: 8177214 | F80: 2457247.846 | G80: 0 | H80: 2457247.846 | I80: 588291.81 | J80: 38.1 | K80: 0.02624671916 | L80: 44 | M80: 0.02272727273 | N80: 214625.0394 | O80: 55846.54195 | P80: 6685.134205 | Q80: 277156.7155 | R80: 274194.27 | S80: -2962.44552
A81: 1840 | B81: Underground Conduit | C81: 8530811 | D81: 32211.86 | E81: 8498599.14 | F81: 2120926.22 | G81: 0 | H81: 2120926.22 | I81: 240734.5 | J81: 37.56 | K81: 0.02662406816 | L81: 51.66666667 | M81: 0.01935483871 | N81: 226267.2827 | O81: 41050.18491 | P81: 2329.68871 | Q81: 269647.1564 | R81: 260822.01 | S81: -8825.146368
A82: 1845 | B82: Underground Conductors & Devices | C82: 13805642 | D82: 104948.22 | E82: 13700693.78 | F82: 3613242.978 | G82: 0 | H82: 3613242.978 | I82: 728109.65 | J82: 23.32 | K82: 0.04288164666 | L82: 33.33333333 | M82: 0.03 | N82: 587508.3096 | O82: 108397.2893 | P82: 10921.64475 | Q82: 706827.2437 | R82: 688687.02 | S82: -18140.22369
A83: 1850 | B83: Line Transformers | C83: 11018260 | D83: 30816.85 | E83: 10987443.15 | F83: 4192151.733 | G83: 0 | H83: 4192151.733 | I83: 1273360.05 | J83: 26.28 | K83: 0.03805175038 | L83: 38.33333333 | M83: 0.02608695652 | N83: 418091.4441 | O83: 109360.48 | P83: 16609.04413 | Q83: 544060.9682 | R83: 526582.69 | S83: -17478.27819
A84: 1855 | B84: Services (Overhead & Underground) | C84: 1293039 | D84: 0 | E84: 1293039 | F84: 755454.9438 | G84: 0 | H84: 755454.9438 | I84: 66821.2 | J84: 20.13 | K84: 0.04967709886 | L84: 25 | M84: 0.04 | N84: 64234.42623 | O84: 30218.19775 | P84: 1336.424 | Q84: 95789.04798 | R84: 88946.9 | S84: -6842.147982
A85: 1860 | B85: Meters | C85: 2917143 | D85: 191133.12 | E85: 2726009.88 | F85: 412515.1817 | G85: 0 | H85: 412515.1817 | I85: 192747.85 | J85: 7.62 | K85: 0.1312335958 | L85: 20 | M85: 0.05 | N85: 357744.0787 | O85: 20625.75909 | P85: 4818.69625 | Q85: 383188.5341 | R85: 585421.32 | S85: 202232.7859
A86: 1860 | B86: Meters (Smart Meters) | C86: 4351098 | D86: 0 | E86: 4351098 | F86: 392975.4675 | G86: 0 | H86: 392975.4675 | I86: 0 | J86: 12.69 | K86: 0.07880220646 | L86: 20 | M86: 0.05 | N86: 342876.1229 | O86: 19648.77338 | P86: 0 | Q86: 362524.8963 | R86: 0 | S86: -362524.8963
A87: 1905 | B87: Land | C87: 0 | D87: 0 | E87: 0 | F87: 0 | G87: 0 | H87: 0 | I87: 0 | J87: 0 | K87: 0 | L87: 0 | M87: 0 | N87: 0 | O87: 0 | P87: 0 | Q87: 0 | R87: 0 | S87: 0
A88: 1908 | B88: Buildings & Fixtures | C88: 0 | D88: 0 | E88: 0 | F88: 0 | G88: 0 | H88: 0 | I88: 0 | J88: 0 | K88: 0 | L88: 50 | M88: 0.02 | N88: 0 | O88: 0 | P88: 0 | Q88: 0 | R88: 0 | S88: 0
A89: 1910 | B89: Leasehold Improvements | C89: 0 | D89: 0 | E89: 0 | F89: 5779.781333 | G89: 51183.95 | H89: -45404.16867 | I89: 0 | J89: 0 | K89: 0 | L89: 3 | M89: 0.3333333333 | N89: 0 | O89: -15134.72289 | P89: 0 | Q89: -15134.72289 | R89: 2267.83 | S89: 17402.55289
A90: 1915 | B90: Office Furniture & Equipment (10 years) | C90: 2799 | D90: 0 | E90: 2799 | F90: 15553.0485 | G90: 0 | H90: 15553.0485 | I90: 8829.82 | J90: 9 | K90: 0.1111111111 | L90: 10 | M90: 0.1 | N90: 311 | O90: 1555.30485 | P90: 441.491 | Q90: 2307.79585 | R90: 3109.28 | S90: 801.48415
A91: 1915 | B91: Office Furniture & Equipment (5 years) | C91: 0 | D91: 0 | E91: 0 | F91: 0 | G91: 0 | H91: 0 | I91: 0 | J91: 0 | K91: 0 | L91: 10 | M91: 0.1 | N91: 0 | O91: 0 | P91: 0 | Q91: 0 | R91: 0 | S91: 0
A92: 1920 | B92: Computer Equipment - Hardware | C92: 90579 | D92: 77580 | E92: 12999 | F92: 18872.9 | G92: 0 | H92: 18872.9 | I92: 22213.94 | J92: 3 | K92: 0.3333333333 | L92: 4 | M92: 0.25 | N92: 4333 | O92: 4718.225 | P92: 2776.7425 | Q92: 11827.9675 | R92: 10810.95 | S92: -1017.0175
A93: 1920 | B93: Computer Equip.-Hardware(Post Mar. 22/04) | C93: 0 | D93: 0 | E93: 0 | F93: 0 | G93: 0 | H93: 0 | I93: 0 | J93: 0 | K93: 0 | L93: 4 | M93: 0.25 | N93: 0 | O93: 0 | P93: 0 | Q93: 0 | R93: 0 | S93: 0
A94: 1920 | B94: Computer Equip.-Hardware(Post Mar. 19/07) | C94: 0 | D94: 0 | E94: 0 | F94: 4637.48375 | G94: 54198.35 | H94: -49560.86625 | I94: 0 | J94: 0 | K94: 0 | L94: 4 | M94: 0.25 | N94: 0 | O94: -12390.21656 | P94: 0 | Q94: -12390.21656 | R94: 0 | S94: 12390.21656
A95: 1930 | B95: Transportation Equipment | C95: 796298 | D95: 75645 | E95: 720653 | F95: 1572678.122 | G95: 0 | H95: 1572678.122 | I95: 321561.74 | J95: 8.817589639 | K95: 0.1134096778 | L95: 12.25 | M95: 0.08163265306 | N95: 81729.02454 | O95: 128381.8875 | P95: 13124.96898 | Q95: 223235.8811 | R95: 236493.11 | S95: 13257.22893
A96: 1935 | B96: Stores Equipment | C96: 0 | D96: 0 | E96: 0 | F96: 2851.3375 | G96: 0 | H96: 2851.3375 | I96: 0 | J96: 0 | K96: 0 | L96: 10 | M96: 0.1 | N96: 0 | O96: 285.13375 | P96: 0 | Q96: 285.13375 | R96: 530.53 | S96: 245.39625
A97: 1940 | B97: Tools, Shop & Garage Equipment | C97: 70317 | D97: 34077 | E97: 36240 | F97: 112143.8105 | G97: 0 | H97: 112143.8105 | I97: 75844.39 | J97: 10 | K97: 0.1 | L97: 10 | M97: 0.1 | N97: 3624 | O97: 11214.38105 | P97: 3792.2195 | Q97: 18630.60055 | R97: 21105.7 | S97: 2475.09945
A98: 1945 | B98: Measurement & Testing Equipment | C98: 0 | D98: 0 | E98: 0 | F98: 5274.4185 | G98: 0 | H98: 5274.4185 | I98: 8625 | J98: 0 | K98: 0 | L98: 10 | M98: 0.1 | N98: 0 | O98: 527.44185 | P98: 431.25 | Q98: 958.69185 | R98: 1242.55 | S98: 283.85815
A99: 1950 | B99: Power Operated Equipment | C99: 0 | D99: 0 | E99: 0 | F99: 0 | G99: 0 | H99: 0 | I99: 0 | J99: 0 | K99: 0 | L99: 0 | M99: 0 | N99: 0 | O99: 0 | P99: 0 | Q99: 0 | R99: 0 | S99: 0
A100: 1955 | B100: Communications Equipment | C100: 0 | D100: 0 | E100: 0 | F100: 14094.299 | G100: 0 | H100: 14094.299 | I100: 0 | J100: 0 | K100: 0 | L100: 5 | M100: 0.2 | N100: 0 | O100: 2818.8598 | P100: 0 | Q100: 2818.8598 | R100: 5207.93 | S100: 2389.0702
A101: 1955 | B101: Communication Equipment (Smart Meters) | C101: 0 | D101: 0 | E101: 0 | F101: 0 | G101: 0 | H101: 0 | I101: 0 | J101: 0 | K101: 0 | L101: 5 | M101: 0.2 | N101: 0 | O101: 0 | P101: 0 | Q101: 0 | R101: 0 | S101: 0
A102: 1960 | B102: Miscellaneous Equipment | C102: 0 | D102: 0 | E102: 0 | F102: 0 | G102: 0 | H102: 0 | I102: 0 | J102: 0 | K102: 0 | L102: 0 | M102: 0 | N102: 0 | O102: 0 | P102: 0 | Q102: 0 | R102: 0 | S102: 0
A103: 1970 | B103: Load Management Controls Customer Premises | C103: 0 | D103: 0 | E103: 0 | F103: 0 | G103: 0 | H103: 0 | I103: 0 | J103: 0 | K103: 0 | L103: 0 | M103: 0 | N103: 0 | O103: 0 | P103: 0 | Q103: 0 | R103: 0 | S103: 0
A104: 1975 | B104: Load Management Controls Utility Premises | C104: 0 | D104: 0 | E104: 0 | F104: 0 | G104: 0 | H104: 0 | I104: 0 | J104: 0 | K104: 0 | L104: 0 | M104: 0 | N104: 0 | O104: 0 | P104: 0 | Q104: 0 | R104: 0 | S104: 0
A105: 1980 | B105: System Supervisor Equipment | C105: 500578 | D105: 0 | E105: 500578 | F105: 807142.953 | G105: 0 | H105: 807142.953 | I105: 29539.62 | J105: 15 | K105: 0.06666666667 | L105: 15 | M105: 0.06666666667 | N105: 33371.86667 | O105: 53809.5302 | P105: 984.654 | Q105: 88166.05087 | R105: 79591.54 | S105: -8574.510867
A106: 1985 | B106: Miscellaneous Fixed Assets | C106: 0 | D106: 0 | E106: 0 | F106: 0 | G106: 0 | H106: 0 | I106: 0 | J106: 0 | K106: 0 | L106: 0 | M106: 0 | N106: 0 | O106: 0 | P106: 0 | Q106: 0 | R106: 0 | S106: 0
A107: 1990 | B107: Other Tangible Property | C107: 0 | D107: 0 | E107: 0 | F107: 0 | G107: 0 | H107: 0 | I107: 0 | J107: 0 | K107: 0 | L107: 0 | M107: 0 | N107: 0 | O107: 0 | P107: 0 | Q107: 0 | R107: 0 | S107: 0
A108: 2040 | B108: Plant Held for Future use | C108: -0.16 | D108: -0.16 | E108: 0 | F108: 0 | G108: 0 | H108: 0 | I108: 0 | J108: 0 | K108: 0 | L108: 0 | M108: 0 | N108: 0 | O108: 0 | P108: 0 | Q108: 0 | R108: 0 | S108: 0
A109: 2055 | B109: Work in Progress | C109: 0 | D109: 0 | E109: 0 | F109: 0 | G109: 0 | H109: 0 | I109: 0 | J109: 0 | K109: 0 | L109: 0 | M109: 0 | N109: 0 | O109: 0 | P109: 0 | Q109: 0 | R109: 0 | S109: 0
A110: 1995 | B110: Contributions & Grants | C110: -3594055 | D110: 0 | E110: -3594055 | F110: -2726049.457 | G110: 0 | H110: -2726049.457 | I110: -718145.7 | J110: 39.72727859 | K110: 0.025171621 | L110: 45 | M110: 0.02222222222 | N110: -90468.1903 | O110: -60578.87681 | P110: -7979.396667 | Q110: -159026.4638 | R110: -166852.04 | S110: -7825.576221
B111: Total | C111: =SUM(C70:C110) -> 63687029.9 | D111: =SUM(D70:D110) -> 1164855.84 | E111: =SUM(E70:E110) -> 62522174.06 | F111: 19878501.14 | G111: 293627.84 | H111: 19584873.3 | I111: 3790153.31 | N111: =SUM(N70:N110) -> 2756919.585 | O111: =SUM(O70:O110) -> 898839.7279 | P111: 65703.82899 | Q111: 3721463.142 | R111: 3352646.64 | S111: -368816.5024
A113: 2019 | B113: MIFRS | C113: Book Values | J113: Service Lives | N113: Depreciation Expense | Y113: 2018
A114: Account | B114: Description | C114: Opening Net Book Value of Existing Assets as at Date of Policy Change (Jan. 1) 1 | D114: Less Fully Depreciated 7 | E114: Net Amount of Existing Assets Before Policy Change to be Depreciated | F114: Opening Gross Book Value of Assets Acquired After Policy Change 2 | G114: Less Fully Depreciated 8 | H114: Net Amount of Assets Acquired After Policy Change to be Depreciated | I114: Current Year Additions | J114: Average Remaining Life of Assets Existing Before Policy Change 3 | K114: Depreciation Rate Assets Acquired After Policy Change | L114: Life of Assets Acquired After Policy Change 4 | M114: Depreciation Rate on New Additions | N114: Depreciation Expense on Assets Existing Before Policy Change | O114: Depreciation Expense on Assets Acquired After Policy Change | P114: Depreciation Expense on Current Year Additions 5 | Q114: Total Current Year Depreciation Expense | R114: Depreciation Expense per Appendix 2-BA Fixed Assets, Column J | S114: Variance 6
C115: a | D115: b | E115: c = a-b | F115: d | G115: e | H115: f = d- e | I115: g | J115: h | K115: i = 1/h | L115: j | M115: k = 1/j | N115: l = c/h | O115: m = f/j | P115: n = g*0.5/j | Q115: o = l+m+n | R115: p | S115: q = p-o
A116: 1611 | B116: Computer Software (Formally known as Account 1925) | C116: 310513 | D116: 309197 | E116: =C116-D116 -> 1316 | F116: 1748177.88 | G116: 292182.9 | H116: =F116-G116 -> 1455994.98 | I116: 0 | J116: 3.27 | K116: =IF(J116=0,0,1/J116) -> 0.3058103976 | L116: 5 | M116: =IF(L116=0,0,1/L116) -> 0.2 | N116: =IF(J116=0,0,+E116/J116) -> 402.4464832 | O116: =IF(L116=0,0,+H116/L116) -> 291198.996 | P116: =IF(L116=0,0,+(I116*0.5)/L116) -> 0 | Q116: =IF(ISERROR(+N116+O116+P116), 0, +N116+O116+P116) -> 291601.4425 | R116: 340728.9 | S116: =IF(ISERROR(+R116-Q116), 0, +R116-Q116) -> 49127.45752
A117: 1612 | B117: Land Rights (Formally known as Account 1906) | C117: 81274 | D117: 0 | E117: =C117-D117 -> 81274 | F117: 12725 | G117: 12725 | H117: =F117-G117 -> 0 | I117: 0 | J117: 49 | K117: =IF(J117=0,0,1/J117) -> 0.02040816327 | L117: 0 | M117: =IF(L117=0,0,1/L117) -> 0 | N117: =IF(J117=0,0,+E117/J117) -> 1658.653061 | O117: =IF(L117=0,0,+H117/L117) -> 0 | P117: =IF(L117=0,0,+(I117*0.5)/L117) -> 0 | Q117: =IF(ISERROR(+N117+O117+P117), 0, +N117+O117+P117) -> 1658.653061 | R117: 0 | S117: =IF(ISERROR(+R117-Q117), 0, +R117-Q117) -> -1658.653061
A118: 1805 | B118: Land | C118: 181961 | D118: 181961 | E118: 0 | F118: 0 | G118: 0 | H118: 0 | I118: 0 | J118: 0 | K118: 0 | L118: 0 | M118: 0 | N118: 0 | O118: =IF(L118=0,0,+H118/L118) -> 0 | P118: 0 | Q118: 0 | R118: 0 | S118: 0
A119: 1806 | B119: Land Rights | C119: 0 | D119: 0 | E119: 0 | F119: 0 | G119: 0 | H119: 0 | I119: 0 | J119: 0 | K119: 0 | L119: 0 | M119: 0 | N119: 0 | O119: 0 | P119: 0 | Q119: 0 | R119: 2017.01 | S119: 2017.01
A120: 1808 | B120: Buildings | C120: 969200 | D120: 0 | E120: 969200 | F120: 3405.25 | G120: 0 | H120: 3405.25 | I120: 0 | J120: 35.45 | K120: 0.02820874471 | L120: 30 | M120: 0.03333333333 | N120: 27339.91537 | O120: 113.5083333 | P120: 0 | Q120: 27453.42371 | R120: 27078.35 | S120: -375.0737071
A121: 1810 | B121: Leasehold Improvements | C121: 0 | D121: 0 | E121: 0 | F121: 0 | G121: 0 | H121: 0 | I121: 0 | J121: 0 | K121: 0 | L121: 0 | M121: 0 | N121: 0 | O121: 0 | P121: 0 | Q121: 0 | R121: 0 | S121: 0
A122: 1815 | B122: Transformer Station Equipment >50 kV | C122: 3614381 | D122: 0 | E122: 3614381 | F122: 731339.9694 | G122: 0 | H122: 731339.9694 | I122: 0 | J122: 33.32 | K122: 0.0300120048 | L122: 36.66666667 | M122: 0.02727272727 | N122: 108474.8199 | O122: 19945.63553 | P122: 0 | Q122: 128420.4555 | R122: 120591.66 | S122: -7828.795457
A123: 1820 | B123: Distribution Station Equipment <50 kV | C123: 44402.06 | D123: 0 | E123: 44402.06 | F123: 5318.1695 | G123: 0 | H123: 5318.1695 | I123: 0 | J123: 8.63 | K123: 0.1158748552 | L123: 0 | M123: 0 | N123: 5145.082271 | O123: 0 | P123: 0 | Q123: 5145.082271 | R123: 208.86 | S123: -4936.222271
A124: 1825 | B124: Storage Battery Equipment | C124: 0 | D124: 0 | E124: 0 | F124: 0 | G124: 0 | H124: 0 | I124: 0 | J124: 0 | K124: 0 | L124: 0 | M124: 0 | N124: 0 | O124: 0 | P124: 0 | Q124: 0 | R124: 0 | S124: 0
A125: 1830 | B125: Poles, Towers & Fixtures | C125: 10525576 | D125: 127285.95 | E125: 10398290.05 | F125: 4551661.243 | G125: 0 | H125: 4551661.243 | I125: 952802.02 | J125: 28.13 | K125: 0.03554923569 | L125: 55 | M125: 0.01818181818 | N125: 369651.2638 | O125: 82757.47714 | P125: 8661.836545 | Q125: 461070.5775 | R125: 421264.67 | S125: -39805.90746
A126: 1835 | B126: Overhead Conductors & Devices | C126: 8177214 | D126: 0 | E126: 8177214 | F126: 3045539.656 | G126: 0 | H126: 3045539.656 | I126: 762639.34 | J126: 38.1 | K126: 0.02624671916 | L126: 44 | M126: 0.02272727273 | N126: 214625.0394 | O126: 69216.81035 | P126: 8666.356136 | Q126: 292508.2059 | R126: 292604.97 | S126: 96.76413922
A127: 1840 | B127: Underground Conduit | C127: 8530811 | D127: 45402.37 | E127: 8485408.63 | F127: 2361660.72 | G127: 0 | H127: 2361660.72 | I127: 863030.6 | J127: 37.56 | K127: 0.02662406816 | L127: 51.66666667 | M127: 0.01935483871 | N127: 225916.0977 | O127: 45709.56233 | P127: 8351.909032 | Q127: 279977.5691 | R127: 270362.02 | S127: -9615.549073
A128: 1845 | B128: Underground Conductors & Devices | C128: 13805642 | D128: 131840.79 | E128: 13673801.21 | F128: 4341352.628 | G128: 0 | H128: 4341352.628 | I128: 2003673.2 | J128: 23.32 | K128: 0.04288164666 | L128: 33.33333333 | M128: 0.03 | N128: 586355.1119 | O128: 130240.5788 | P128: 30055.098 | Q128: 746650.7888 | R128: 722644.14 | S128: -24006.64876
A129: 1850 | B129: Line Transformers | C129: 11018260 | D129: 39099.5 | E129: 10979160.5 | F129: 5465511.783 | G129: 0 | H129: 5465511.783 | I129: 1364208.24 | J129: 26.28 | K129: 0.03805175038 | L129: 38.33333333 | M129: 0.02608695652 | N129: 417776.2747 | O129: 142578.5683 | P129: 17794.02052 | Q129: 578148.8635 | R129: 542168.22 | S129: -35980.64352
A130: 1855 | B130: Services (Overhead & Underground) | C130: 1293039 | D130: 0 | E130: 1293039 | F130: 822276.1438 | G130: 0 | H130: 822276.1438 | I130: 67322.29 | J130: 20.13 | K130: 0.04967709886 | L130: 25 | M130: 0.04 | N130: 64234.42623 | O130: 32891.04575 | P130: 1346.4458 | Q130: 98471.91778 | R130: 91629.78 | S130: -6842.137782
A131: 1860 | B131: Meters | C131: 2917143 | D131: 244903.96 | E131: 2672239.04 | F131: 605263.0317 | G131: 0 | H131: 605263.0317 | I131: 359899.5 | J131: 7.62 | K131: 0.1312335958 | L131: 20 | M131: 0.05 | N131: 350687.5381 | O131: 30263.15159 | P131: 8997.4875 | Q131: 389948.1771 | R131: 592565.55 | S131: 202617.3729
A132: 1860 | B132: Meters (Smart Meters) | C132: 4351098 | D132: 0 | E132: 4351098 | F132: 392975.4675 | G132: 0 | H132: 392975.4675 | I132: 0 | J132: 12.69 | K132: 0.07880220646 | L132: 20 | M132: 0.05 | N132: 342876.1229 | O132: 19648.77338 | P132: 0 | Q132: 362524.8963 | R132: 0 | S132: -362524.8963
A133: 1905 | B133: Land | C133: 0 | D133: 0 | E133: 0 | F133: 0 | G133: 0 | H133: 0 | I133: 0 | J133: 0 | K133: 0 | L133: 0 | M133: 0 | N133: 0 | O133: 0 | P133: 0 | Q133: 0 | R133: 0 | S133: 0
A134: 1908 | B134: Buildings & Fixtures | C134: 0 | D134: 0 | E134: 0 | F134: 0 | G134: 0 | H134: 0 | I134: 0 | J134: 0 | K134: 0 | L134: 50 | M134: 0.02 | N134: 0 | O134: 0 | P134: 0 | Q134: 0 | R134: 0 | S134: 0
A135: 1910 | B135: Leasehold Improvements | C135: 0 | D135: 0 | E135: 0 | F135: 5779.781333 | G135: 51994.19 | H135: -46214.40867 | I135: 0 | J135: 0 | K135: 0 | L135: 3 | M135: 0.3333333333 | N135: 0 | O135: -15404.80289 | P135: 0 | Q135: -15404.80289 | R135: 134.15 | S135: 15538.95289
A136: 1915 | B136: Office Furniture & Equipment (10 years) | C136: 2799 | D136: 0 | E136: 2799 | F136: 24382.8685 | G136: 0 | H136: 24382.8685 | I136: 0 | J136: 9 | K136: 0.1111111111 | L136: 10 | M136: 0.1 | N136: 311 | O136: 2438.28685 | P136: 0 | Q136: 2749.28685 | R136: 3550.77 | S136: 801.48315
A137: 1915 | B137: Office Furniture & Equipment (5 years) | C137: 0 | D137: 0 | E137: 0 | F137: 0 | G137: 0 | H137: 0 | I137: 0 | J137: 0 | K137: 0 | L137: 10 | M137: 0.1 | N137: 0 | O137: 0 | P137: 0 | Q137: 0 | R137: 0 | S137: 0
A138: 1920 | B138: Computer Equipment - Hardware | C138: 90579 | D138: 77580 | E138: 12999 | F138: 41086.84 | G138: 0 | H138: 41086.84 | I138: 21442.25 | J138: 3 | K138: 0.3333333333 | L138: 4 | M138: 0.25 | N138: 4333 | O138: 10271.71 | P138: 2680.28125 | Q138: 17284.99125 | R138: 13608.3 | S138: -3676.69125
A139: 1920 | B139: Computer Equip.-Hardware(Post Mar. 22/04) | C139: 0 | D139: 0 | E139: 0 | F139: 0 | G139: 0 | H139: 0 | I139: 0 | J139: 0 | K139: 0 | L139: 4 | M139: 0.25 | N139: 0 | O139: 0 | P139: 0 | Q139: 0 | R139: 0 | S139: 0
A140: 1920 | B140: Computer Equip.-Hardware(Post Mar. 19/07) | C140: 0 | D140: 0 | E140: 0 | F140: 4637.48375 | G140: 63663.74 | H140: -59026.25625 | I140: 0 | J140: 0 | K140: 0 | L140: 4 | M140: 0.25 | N140: 0 | O140: -14756.56406 | P140: 0 | Q140: -14756.56406 | R140: 0 | S140: 14756.56406
A141: 1930 | B141: Transportation Equipment | C141: 796298 | D141: 92751 | E141: 703547 | F141: 1894239.862 | G141: 0 | H141: 1894239.862 | I141: 349071 | J141: 8.817589639 | K141: 0.1134096778 | L141: 12.25 | M141: 0.08163265306 | N141: 79789.03859 | O141: 154631.8255 | P141: 14247.79592 | Q141: 248668.66 | R141: 244700.53 | S141: -3968.130018
A142: 1935 | B142: Stores Equipment | C142: 0 | D142: 0 | E142: 0 | F142: 2851.3375 | G142: 0 | H142: 2851.3375 | I142: 0 | J142: 0 | K142: 0 | L142: 10 | M142: 0.1 | N142: 0 | O142: 285.13375 | P142: 0 | Q142: 285.13375 | R142: 530.52 | S142: 245.38625
A143: 1940 | B143: Tools, Shop & Garage Equipment | C143: 70317 | D143: 55551 | E143: 14766 | F143: 187988.2005 | G143: 0 | H143: 187988.2005 | I143: 22482 | J143: 10 | K143: 0.1 | L143: 10 | M143: 0.1 | N143: 1476.6 | O143: 18798.82005 | P143: 1124.1 | Q143: 21399.52005 | R143: 23656.08 | S143: 2256.55995
A144: 1945 | B144: Measurement & Testing Equipment | C144: 0 | D144: 0 | E144: 0 | F144: 13899.4185 | G144: 0 | H144: 13899.4185 | I144: 0 | J144: 0 | K144: 0 | L144: 10 | M144: 0.1 | N144: 0 | O144: 1389.94185 | P144: 0 | Q144: 1389.94185 | R144: 1673.81 | S144: 283.86815
A145: 1950 | B145: Power Operated Equipment | C145: 0 | D145: 0 | E145: 0 | F145: 0 | G145: 0 | H145: 0 | I145: 0 | J145: 0 | K145: 0 | L145: 0 | M145: 0 | N145: 0 | O145: 0 | P145: 0 | Q145: 0 | R145: 0 | S145: 0
A146: 1955 | B146: Communications Equipment | C146: 0 | D146: 0 | E146: 0 | F146: 14094.299 | G146: 21507.63 | H146: -7413.331 | I146: 0 | J146: 0 | K146: 0 | L146: 5 | M146: 0.2 | N146: 0 | O146: -1482.6662 | P146: 0 | Q146: -1482.6662 | R146: 3035.94 | S146: 4518.6062
A147: 1955 | B147: Communication Equipment (Smart Meters) | C147: 0 | D147: 0 | E147: 0 | F147: 0 | G147: 0 | H147: 0 | I147: 0 | J147: 0 | K147: 0 | L147: 5 | M147: 0.2 | N147: 0 | O147: 0 | P147: 0 | Q147: 0 | R147: 0 | S147: 0
A148: 1960 | B148: Miscellaneous Equipment | C148: 0 | D148: 0 | E148: 0 | F148: 0 | G148: 0 | H148: 0 | I148: 0 | J148: 0 | K148: 0 | L148: 0 | M148: 0 | N148: 0 | O148: 0 | P148: 0 | Q148: 0 | R148: 0 | S148: 0
A149: 1970 | B149: Load Management Controls Customer Premises | C149: 0 | D149: 0 | E149: 0 | F149: 0 | G149: 0 | H149: 0 | I149: 0 | J149: 0 | K149: 0 | L149: 0 | M149: 0 | N149: 0 | O149: 0 | P149: 0 | Q149: 0 | R149: 0 | S149: 0
A150: 1975 | B150: Load Management Controls Utility Premises | C150: 0 | D150: 0 | E150: 0 | F150: 0 | G150: 0 | H150: 0 | I150: 0 | J150: 0 | K150: 0 | L150: 0 | M150: 0 | N150: 0 | O150: 0 | P150: 0 | Q150: 0 | R150: 0 | S150: 0
A151: 1980 | B151: System Supervisor Equipment | C151: 500578 | D151: 0 | E151: 500578 | F151: 836682.573 | G151: 0 | H151: 836682.573 | I151: 265443.67 | J151: 15 | K151: 0.06666666667 | L151: 15 | M151: 0.06666666667 | N151: 33371.86667 | O151: 55778.8382 | P151: 8848.122333 | Q151: 97998.8272 | R151: 89424.33 | S151: -8574.4972
A152: 1985 | B152: Miscellaneous Fixed Assets | C152: 0 | D152: 0 | E152: 0 | F152: 0 | G152: 0 | H152: 0 | I152: 0 | J152: 0 | K152: 0 | L152: 0 | M152: 0 | N152: 0 | O152: 0 | P152: 0 | Q152: 0 | R152: 0 | S152: 0
A153: 1990 | B153: Other Tangible Property | C153: 0 | D153: 0 | E153: 0 | F153: 0 | G153: 0 | H153: 0 | I153: 0 | J153: 0 | K153: 0 | L153: 0 | M153: 0 | N153: 0 | O153: 0 | P153: 0 | Q153: 0 | R153: 0 | S153: 0
A154: 2040 | B154: Plant Held for Future use | C154: -0.16 | D154: -0.16 | E154: 0 | F154: 0 | G154: 0 | H154: 0 | I154: 0 | J154: 0 | K154: 0 | L154: 0 | M154: 0 | N154: 0 | O154: 0 | P154: 0 | Q154: 0 | R154: 0 | S154: 0
A155: 2055 | B155: Work in Progress | C155: 0 | D155: 0 | E155: 0 | F155: 0 | G155: 0 | H155: 0 | I155: 0 | J155: 0 | K155: 0 | L155: 0 | M155: 0 | N155: 0 | O155: 0 | P155: 0 | Q155: 0 | R155: 0 | S155: 0
A156: 1995 | B156: Contributions & Grants | C156: -3594055 | D156: 0 | E156: -3594055 | F156: -3444195.157 | G156: 0 | H156: -3444195.157 | I156: -1773026.38 | J156: 39.72727859 | K156: 0.025171621 | L156: 45 | M156: 0.02222222222 | N156: -90468.1903 | O156: -76537.67015 | P156: -19700.29311 | Q156: -186706.1536 | R156: -197266.13 | S156: -10559.97644
B157: Total | C157: =SUM(C116:C156) -> 63687029.9 | D157: =SUM(D116:D156) -> 1305572.41 | E157: =SUM(E116:E156) -> 62381457.49 | F157: 23668654.45 | G157: 442073.46 | H157: 23226580.99 | I157: 5258987.73 | N157: =SUM(N116:N156) -> 2743956.107 | O157: =SUM(O116:O156) -> 999976.9604 | P157: 91073.15993 | Q157: 3835006.227 | R157: 3606912.43 | S157: -228093.7971
A159: 2020 | B159: MIFRS | C159: Book Values | J159: Service Lives | N159: Depreciation Expense | Y159: 2018
A160: Account | B160: Description | C160: Opening Net Book Value of Existing Assets as at Date of Policy Change (Jan. 1) 1 | D160: Less Fully Depreciated 7 | E160: Net Amount of Existing Assets Before Policy Change to be Depreciated | F160: Opening Gross Book Value of Assets Acquired After Policy Change 2 | G160: Less Fully Depreciated 8 | H160: Net Amount of Assets Acquired After Policy Change to be Depreciated | I160: Current Year Additions | J160: Average Remaining Life of Assets Existing Before Policy Change 3 | K160: Depreciation Rate Assets Acquired After Policy Change | L160: Life of Assets Acquired After Policy Change 4 | M160: Depreciation Rate on New Additions | N160: Depreciation Expense on Assets Existing Before Policy Change | O160: Depreciation Expense on Assets Acquired After Policy Change | P160: Depreciation Expense on Current Year Additions 5 | Q160: Total Current Year Depreciation Expense | R160: Depreciation Expense per Appendix 2-BA Fixed Assets, Column J | S160: Variance 6
C161: a | D161: b | E161: c = a-b | F161: d | G161: e | H161: f = d- e | I161: g | J161: h | K161: i = 1/h | L161: j | M161: k = 1/j | N161: l = c/h | O161: m = f/j | P161: n = g*0.5/j | Q161: o = l+m+n | R161: p | S161: q = p-o
A162: 1611 | B162: Computer Software (Formally known as Account 1925) | C162: 310513 | D162: 309197 | E162: =C162-D162 -> 1316 | F162: 1748177.88 | G162: 405108.1 | H162: =F162-G162 -> 1343069.78 | I162: 0 | J162: 3.27 | K162: =IF(J162=0,0,1/J162) -> 0.3058103976 | L162: 5 | M162: =IF(L162=0,0,1/L162) -> 0.2 | N162: =IF(J162=0,0,+E162/J162) -> 402.4464832 | O162: =IF(L162=0,0,+H162/L162) -> 268613.956 | P162: =IF(L162=0,0,+(I162*0.5)/L162) -> 0 | Q162: =IF(ISERROR(+N162+O162+P162), 0, +N162+O162+P162) -> 269016.4025 | R162: 219914.78 | S162: =IF(ISERROR(+R162-Q162), 0, +R162-Q162) -> -49101.62248
A163: 1612 | B163: Land Rights (Formally known as Account 1906) | C163: 81274 | D163: 0 | E163: =C163-D163 -> 81274 | F163: 12725 | G163: 12725 | H163: =F163-G163 -> 0 | I163: 0 | J163: 49 | K163: =IF(J163=0,0,1/J163) -> 0.02040816327 | L163: 0 | M163: =IF(L163=0,0,1/L163) -> 0 | N163: =IF(J163=0,0,+E163/J163) -> 1658.653061 | O163: =IF(L163=0,0,+H163/L163) -> 0 | P163: =IF(L163=0,0,+(I163*0.5)/L163) -> 0 | Q163: =IF(ISERROR(+N163+O163+P163), 0, +N163+O163+P163) -> 1658.653061 | R163: 0 | S163: =IF(ISERROR(+R163-Q163), 0, +R163-Q163) -> -1658.653061
A164: 1805 | B164: Land | C164: 181961 | D164: 181961 | E164: 0 | F164: 0 | G164: 0 | H164: 0 | I164: 0 | J164: 0 | K164: 0 | L164: 0 | M164: 0 | N164: 0 | O164: =IF(L164=0,0,+H164/L164) -> 0 | P164: 0 | Q164: 0 | R164: 0 | S164: 0
A165: 1806 | B165: Land Rights | C165: 0 | D165: 0 | E165: 0 | F165: 0 | G165: 29280 | H165: -29280 | I165: 29280 | J165: 0 | K165: 0 | L165: 0 | M165: 0 | N165: 0 | O165: 0 | P165: 0 | Q165: 0 | R165: 2022.54 | S165: 2022.54
A166: 1808 | B166: Buildings | C166: 969200 | D166: 0 | E166: 969200 | F166: 3405.25 | G166: 0 | H166: 3405.25 | I166: 0 | J166: 35.45 | K166: 0.02820874471 | L166: 30 | M166: 0.03333333333 | N166: 27339.91537 | O166: 113.5083333 | P166: 0 | Q166: 27453.42371 | R166: 27152.54 | S166: -300.8837071
A167: 1810 | B167: Leasehold Improvements | C167: 0 | D167: 0 | E167: 0 | F167: 0 | G167: 0 | H167: 0 | I167: 0 | J167: 0 | K167: 0 | L167: 0 | M167: 0 | N167: 0 | O167: 0 | P167: 0 | Q167: 0 | R167: 0 | S167: 0
A168: 1815 | B168: Transformer Station Equipment >50 kV | C168: 3614381 | D168: 0 | E168: 3614381 | F168: 731339.9694 | G168: 0 | H168: 731339.9694 | I168: 0 | J168: 33.32 | K168: 0.0300120048 | L168: 36.66666667 | M168: 0.02727272727 | N168: 108474.8199 | O168: 19945.63553 | P168: 0 | Q168: 128420.4555 | R168: 120922.07 | S168: -7498.385457
A169: 1820 | B169: Distribution Station Equipment <50 kV | C169: 44402.06 | D169: 0 | E169: 44402.06 | F169: 5318.1695 | G169: 0 | H169: 5318.1695 | I169: 0 | J169: 8.63 | K169: 0.1158748552 | L169: 0 | M169: 0 | N169: 5145.082271 | O169: 0 | P169: 0 | Q169: 5145.082271 | R169: 209.43 | S169: -4935.652271
A170: 1825 | B170: Storage Battery Equipment | C170: 0 | D170: 0 | E170: 0 | F170: 0 | G170: 0 | H170: 0 | I170: 0 | J170: 0 | K170: 0 | L170: 0 | M170: 0 | N170: 0 | O170: 0 | P170: 0 | Q170: 0 | R170: 0 | S170: 0
A171: 1830 | B171: Poles, Towers & Fixtures | C171: 10525576 | D171: 127285.95 | E171: 10398290.05 | F171: 5504463.263 | G171: 0 | H171: 5504463.263 | I171: 710782.65 | J171: 28.13 | K171: 0.03554923569 | L171: 55 | M171: 0.01818181818 | N171: 369651.2638 | O171: 100081.1502 | P171: 6461.660455 | Q171: 476194.0745 | R171: 442958.89 | S171: -33235.18446
A172: 1835 | B172: Overhead Conductors & Devices | C172: 8177214 | D172: 0 | E172: 8177214 | F172: 3808178.996 | G172: 0 | H172: 3808178.996 | I172: 1266066.71 | J172: 38.1 | K172: 0.02624671916 | L172: 44 | M172: 0.02272727273 | N172: 214625.0394 | O172: 86549.52263 | P172: 14387.1217 | Q172: 315561.6837 | R172: 314325.55 | S172: -1236.133702
A173: 1840 | B173: Underground Conduit | C173: 8530811 | D173: 57914.52 | E173: 8472896.48 | F173: 3224691.32 | G173: 0 | H173: 3224691.32 | I173: 155140.58 | J173: 37.56 | K173: 0.02662406816 | L173: 51.66666667 | M173: 0.01935483871 | N173: 225582.9734 | O173: 62413.3804 | P173: 1501.360452 | Q173: 289497.7142 | R173: 277491.71 | S173: -12006.00422
A174: 1845 | B174: Underground Conductors & Devices | C174: 13805642 | D174: 161205.37 | E174: 13644436.63 | F174: 6345025.828 | G174: 0 | H174: 6345025.828 | I174: 1647127.51 | J174: 23.32 | K174: 0.04288164666 | L174: 33.33333333 | M174: 0.03 | N174: 585095.9104 | O174: 190350.7748 | P174: 24706.91265 | Q174: 800153.5979 | R174: 766431.46 | S174: -33722.13786
A175: 1850 | B175: Line Transformers | C175: 11018260 | D175: 61802.07 | E175: 10956457.93 | F175: 6829720.023 | G175: 0 | H175: 6829720.023 | I175: 709014.35 | J175: 26.28 | K175: 0.03805175038 | L175: 38.33333333 | M175: 0.02608695652 | N175: 416912.4022 | O175: 178166.6093 | P175: 9248.013261 | Q175: 604327.0248 | R175: 498124.39 | S175: -106202.6348
A176: 1855 | B176: Services (Overhead & Underground) | C176: 1293039 | D176: 0 | E176: 1293039 | F176: 889598.4338 | G176: 0 | H176: 889598.4338 | I176: 146119.67 | J176: 20.13 | K176: 0.04967709886 | L176: 25 | M176: 0.04 | N176: 64234.42623 | O176: 35583.93735 | P176: 2922.3934 | Q176: 102740.757 | R176: 96135.08 | S176: -6605.676982
A177: 1860 | B177: Meters | C177: 2917143 | D177: 300063.67 | E177: 2617079.33 | F177: 965162.5317 | G177: 0 | H177: 965162.5317 | I177: 175917.15 | J177: 7.62 | K177: 0.1312335958 | L177: 20 | M177: 0.05 | N177: 343448.731 | O177: 48258.12659 | P177: 4397.92875 | Q177: 396104.7863 | R177: 562777.79 | S177: 166673.0037
A178: 1860 | B178: Meters (Smart Meters) | C178: 4351098 | D178: 0 | E178: 4351098 | F178: 392975.4675 | G178: 0 | H178: 392975.4675 | I178: 0 | J178: 12.69 | K178: 0.07880220646 | L178: 20 | M178: 0.05 | N178: 342876.1229 | O178: 19648.77338 | P178: 0 | Q178: 362524.8963 | R178: 0 | S178: -362524.8963
A179: 1905 | B179: Land | C179: 0 | D179: 0 | E179: 0 | F179: 0 | G179: 1841669.06 | H179: -1841669.06 | I179: 1841669.06 | J179: 0 | K179: 0 | L179: 0 | M179: 0 | N179: 0 | O179: 0 | P179: 0 | Q179: 0 | R179: 0 | S179: 0
A180: 1908 | B180: Buildings & Fixtures | C180: 0 | D180: 0 | E180: 0 | F180: 0 | G180: 0 | H180: 0 | I180: 10250833.41 | J180: 0 | K180: 0 | L180: 50 | M180: 0.02 | N180: 0 | O180: 0 | P180: 102508.3341 | Q180: 102508.3341 | R180: 139402.94 | S180: 36894.6059
A181: 1910 | B181: Leasehold Improvements | C181: 0 | D181: 0 | E181: 0 | F181: 5779.781333 | G181: 51994.19 | H181: -46214.40867 | I181: 0 | J181: 0 | K181: 0 | L181: 3 | M181: 0.3333333333 | N181: 0 | O181: -15404.80289 | P181: 0 | Q181: -15404.80289 | R181: 0 | S181: 15404.80289
A182: 1915 | B182: Office Furniture & Equipment (10 years) | C182: 2799 | D182: 0 | E182: 2799 | F182: 24382.8685 | G182: 0 | H182: 24382.8685 | I182: 53620.91 | J182: 9 | K182: 0.1111111111 | L182: 10 | M182: 0.1 | N182: 311 | O182: 2438.28685 | P182: 2681.0455 | Q182: 5430.33235 | R182: 3679.26 | S182: -1751.07235
A183: 1915 | B183: Office Furniture & Equipment (5 years) | C183: 0 | D183: 0 | E183: 0 | F183: 0 | G183: 0 | H183: 0 | I183: 0 | J183: 0 | K183: 0 | L183: 10 | M183: 0.1 | N183: 0 | O183: 0 | P183: 0 | Q183: 0 | R183: 0 | S183: 0
A184: 1920 | B184: Computer Equipment - Hardware | C184: 90579 | D184: 77580 | E184: 12999 | F184: 62529.09 | G184: 0 | H184: 62529.09 | I184: 106192.72 | J184: 3 | K184: 0.3333333333 | L184: 4 | M184: 0.25 | N184: 4333 | O184: 15632.2725 | P184: 13274.09 | Q184: 33239.3625 | R184: 27868.18 | S184: -5371.1825
A185: 1920 | B185: Computer Equip.-Hardware(Post Mar. 22/04) | C185: 0 | D185: 0 | E185: 0 | F185: 0 | G185: 0 | H185: 0 | I185: 0 | J185: 0 | K185: 0 | L185: 4 | M185: 0.25 | N185: 0 | O185: 0 | P185: 0 | Q185: 0 | R185: 0 | S185: 0
A186: 1920 | B186: Computer Equip.-Hardware(Post Mar. 19/07) | C186: 0 | D186: 0 | E186: 0 | F186: 4637.48375 | G186: 63663.74 | H186: -59026.25625 | I186: 0 | J186: 0 | K186: 0 | L186: 4 | M186: 0.25 | N186: 0 | O186: -14756.56406 | P186: 0 | Q186: -14756.56406 | R186: 0 | S186: 14756.56406
A187: 1930 | B187: Transportation Equipment | C187: 796298 | D187: 308945 | E187: 487353 | F187: 2243310.862 | G187: 0 | H187: 2243310.862 | I187: 22225 | J187: 8.817589639 | K187: 0.1134096778 | L187: 12.25 | M187: 0.08163265306 | N187: 55270.54671 | O187: 183127.4173 | P187: 907.1428571 | Q187: 239305.1069 | R187: 244814.36 | S187: 5509.253091
A188: 1935 | B188: Stores Equipment | C188: 0 | D188: 0 | E188: 0 | F188: 2851.3375 | G188: 0 | H188: 2851.3375 | I188: 45719.59 | J188: 0 | K188: 0 | L188: 10 | M188: 0.1 | N188: 0 | O188: 285.13375 | P188: 2285.9795 | Q188: 2571.11325 | R188: 2482.12 | S188: -88.99325
A189: 1940 | B189: Tools, Shop & Garage Equipment | C189: 70317 | D189: 65883 | E189: 4434 | F189: 210470.2005 | G189: 0 | H189: 210470.2005 | I189: 15868.5 | J189: 10 | K189: 0.1 | L189: 10 | M189: 0.1 | N189: 443.4 | O189: 21047.02005 | P189: 793.425 | Q189: 22283.84505 | R189: 23544.86 | S189: 1261.01495
A190: 1945 | B190: Measurement & Testing Equipment | C190: 0 | D190: 0 | E190: 0 | F190: 13899.4185 | G190: 0 | H190: 13899.4185 | I190: 0 | J190: 0 | K190: 0 | L190: 10 | M190: 0.1 | N190: 0 | O190: 1389.94185 | P190: 0 | Q190: 1389.94185 | R190: 1676.02 | S190: 286.07815
A191: 1950 | B191: Power Operated Equipment | C191: 0 | D191: 0 | E191: 0 | F191: 0 | G191: 0 | H191: 0 | I191: 0 | J191: 0 | K191: 0 | L191: 0 | M191: 0 | N191: 0 | O191: 0 | P191: 0 | Q191: 0 | R191: 0 | S191: 0
A192: 1955 | B192: Communications Equipment | C192: 0 | D192: 0 | E192: 0 | F192: 14094.299 | G192: 21507.63 | H192: -7413.331 | I192: 442772.72 | J192: 0 | K192: 0 | L192: 5 | M192: 0.2 | N192: 0 | O192: -1482.6662 | P192: 44277.272 | Q192: 42794.6058 | R192: 20960.74 | S192: -21833.8658
A193: 1955 | B193: Communication Equipment (Smart Meters) | C193: 0 | D193: 0 | E193: 0 | F193: 0 | G193: 0 | H193: 0 | I193: 0 | J193: 0 | K193: 0 | L193: 5 | M193: 0.2 | N193: 0 | O193: 0 | P193: 0 | Q193: 0 | R193: 0 | S193: 0
A194: 1960 | B194: Miscellaneous Equipment | C194: 0 | D194: 0 | E194: 0 | F194: 0 | G194: 0 | H194: 0 | I194: 0 | J194: 0 | K194: 0 | L194: 0 | M194: 0 | N194: 0 | O194: 0 | P194: 0 | Q194: 0 | R194: 0 | S194: 0
A195: 1970 | B195: Load Management Controls Customer Premises | C195: 0 | D195: 0 | E195: 0 | F195: 0 | G195: 0 | H195: 0 | I195: 0 | J195: 0 | K195: 0 | L195: 0 | M195: 0 | N195: 0 | O195: 0 | P195: 0 | Q195: 0 | R195: 0 | S195: 0
A196: 1975 | B196: Load Management Controls Utility Premises | C196: 0 | D196: 0 | E196: 0 | F196: 0 | G196: 0 | H196: 0 | I196: 0 | J196: 0 | K196: 0 | L196: 0 | M196: 0 | N196: 0 | O196: 0 | P196: 0 | Q196: 0 | R196: 0 | S196: 0
A197: 1980 | B197: System Supervisor Equipment | C197: 500578 | D197: 21220.24 | E197: 479357.76 | F197: 1102126.243 | G197: 0 | H197: 1102126.243 | I197: 66062.91 | J197: 15 | K197: 0.06666666667 | L197: 15 | M197: 0.06666666667 | N197: 31957.184 | O197: 73475.08287 | P197: 2202.097 | Q197: 107634.3639 | R197: 99367.65 | S197: -8266.713867
A198: 1985 | B198: Miscellaneous Fixed Assets | C198: 0 | D198: 0 | E198: 0 | F198: 0 | G198: 0 | H198: 0 | I198: 0 | J198: 0 | K198: 0 | L198: 0 | M198: 0 | N198: 0 | O198: 0 | P198: 0 | Q198: 0 | R198: 0 | S198: 0
A199: 1990 | B199: Other Tangible Property | C199: 0 | D199: 0 | E199: 0 | F199: 0 | G199: 0 | H199: 0 | I199: 0 | J199: 0 | K199: 0 | L199: 0 | M199: 0 | N199: 0 | O199: 0 | P199: 0 | Q199: 0 | R199: 0 | S199: 0
A200: 2040 | B200: Plant Held for Future use | C200: -0.16 | D200: -0.16 | E200: 0 | F200: 0 | G200: 0 | H200: 0 | I200: 0 | J200: 0 | K200: 0 | L200: 0 | M200: 0 | N200: 0 | O200: 0 | P200: 0 | Q200: 0 | R200: 0 | S200: 0
A201: 2055 | B201: Work in Progress | C201: 0 | D201: 0 | E201: 0 | F201: 0 | G201: 0 | H201: 0 | I201: 0 | J201: 0 | K201: 0 | L201: 0 | M201: 0 | N201: 0 | O201: 0 | P201: 0 | Q201: 0 | R201: 0 | S201: 0
A202: 1995 | B202: Contributions & Grants | C202: -3594055 | D202: 0 | E202: -3594055 | F202: -5217221.537 | G202: 0 | H202: -5217221.537 | I202: -464182.59 | J202: 39.72727859 | K202: 0.025171621 | L202: 45 | M202: 0.02222222222 | N202: -90468.1903 | O202: -115938.2564 | P202: -5157.584333 | Q202: -211564.031 | R202: -222805.37 | S202: -11241.339
B203: Total | C203: =SUM(C162:C202) -> 63687029.9 | D203: =SUM(D162:D202) -> 1673057.66 | E203: =SUM(E162:E202) -> 62013972.24 | F203: 28927642.18 | G203: 2425947.72 | H203: 26501694.46 | I203: 17220230.85 | N203: =SUM(N162:N202) -> 2707294.727 | O203: =SUM(O162:O202) -> 1159538.24 | P203: 227397.1923 | Q203: 4094230.159 | R203: 3669456.99 | S203: -424773.1693
A205: 2021 | B205: MIFRS | C205: Book Values | J205: Service Lives | N205: Depreciation Expense | Y205: 2018
A206: Account | B206: Description | C206: Opening Net Book Value of Existing Assets as at Date of Policy Change (Jan. 1) 1 | D206: Less Fully Depreciated 7 | E206: Net Amount of Existing Assets Before Policy Change to be Depreciated | F206: Opening Gross Book Value of Assets Acquired After Policy Change 2 | G206: Less Fully Depreciated 8 | H206: Net Amount of Assets Acquired After Policy Change to be Depreciated | I206: Current Year Additions | J206: Average Remaining Life of Assets Existing Before Policy Change 3 | K206: Depreciation Rate Assets Acquired After Policy Change | L206: Life of Assets Acquired After Policy Change 4 | M206: Depreciation Rate on New Additions | N206: Depreciation Expense on Assets Existing Before Policy Change | O206: Depreciation Expense on Assets Acquired After Policy Change | P206: Depreciation Expense on Current Year Additions 5 | Q206: Total Current Year Depreciation Expense | R206: Depreciation Expense per Appendix 2-BA Fixed Assets, Column J | S206: Variance 6
C207: a | D207: b | E207: c = a-b | F207: d | G207: e | H207: f = d- e | I207: g | J207: h | K207: i = 1/h | L207: j | M207: k = 1/j | N207: l = c/h | O207: m = f/j | P207: n = g*0.5/j | Q207: o = l+m+n | R207: p | S207: q = p-o
A208: 1611 | B208: Computer Software (Formally known as Account 1925) | C208: 310513 | D208: 309197 | E208: =C208-D208 -> 1316 | F208: 1748177.88 | G208: 1397396.47 | H208: =F208-G208 -> 350781.41 | I208: 0 | J208: 3.27 | K208: =IF(J208=0,0,1/J208) -> 0.3058103976 | L208: 5 | M208: =IF(L208=0,0,1/L208) -> 0.2 | N208: =IF(J208=0,0,+E208/J208) -> 402.4464832 | O208: =IF(L208=0,0,+H208/L208) -> 70156.282 | P208: =IF(L208=0,0,+(I208*0.5)/L208) -> 0 | Q208: =IF(ISERROR(+N208+O208+P208), 0, +N208+O208+P208) -> 70558.72848 | R208: 375515.8065 | S208: =IF(ISERROR(+R208-Q208), 0, +R208-Q208) -> 304957.0781
A209: 1612 | B209: Land Rights (Formally known as Account 1906) | C209: 81274 | D209: 0 | E209: =C209-D209 -> 81274 | F209: 12725 | G209: 12725 | H209: =F209-G209 -> 0 | I209: 0 | J209: 49 | K209: =IF(J209=0,0,1/J209) -> 0.02040816327 | L209: 0 | M209: =IF(L209=0,0,1/L209) -> 0 | N209: =IF(J209=0,0,+E209/J209) -> 1658.653061 | O209: =IF(L209=0,0,+H209/L209) -> 0 | P209: =IF(L209=0,0,+(I209*0.5)/L209) -> 0 | Q209: =IF(ISERROR(+N209+O209+P209), 0, +N209+O209+P209) -> 1658.653061 | R209: 0 | S209: =IF(ISERROR(+R209-Q209), 0, +R209-Q209) -> -1658.653061
A210: 1805 | B210: Land | C210: 181961 | D210: 181961 | E210: 0 | F210: 0 | G210: 0 | H210: 0 | I210: 0 | J210: 0 | K210: 0 | L210: 0 | M210: 0 | N210: 0 | O210: =IF(L210=0,0,+H210/L210) -> 0 | P210: 0 | Q210: 0 | R210: 0 | S210: 0
A211: 1806 | B211: Land Rights | C211: 0 | D211: 0 | E211: 0 | F211: 29280 | G211: 29280 | H211: 0 | I211: 0 | J211: 0 | K211: 0 | L211: 0 | M211: 0 | N211: 0 | O211: 0 | P211: 0 | Q211: 0 | R211: 1963.7436 | S211: 1963.7436
A212: 1808 | B212: Buildings | C212: 969200 | D212: 0 | E212: 969200 | F212: 3405.25 | G212: 0 | H212: 3405.25 | I212: 0 | J212: 35.45 | K212: 0.02820874471 | L212: 30 | M212: 0.03333333333 | N212: 27339.91537 | O212: 113.5083333 | P212: 0 | Q212: 27453.42371 | R212: 20571.7179 | S212: -6881.705807
A213: 1810 | B213: Leasehold Improvements | C213: 0 | D213: 0 | E213: 0 | F213: 0 | G213: 0 | H213: 0 | I213: 0 | J213: 0 | K213: 0 | L213: 0 | M213: 0 | N213: 0 | O213: 0 | P213: 0 | Q213: 0 | R213: 0 | S213: 0
A214: 1815 | B214: Transformer Station Equipment >50 kV | C214: 3614381 | D214: 0 | E214: 3614381 | F214: 731339.9694 | G214: 0 | H214: 731339.9694 | I214: 10198.12018 | J214: 33.32 | K214: 0.0300120048 | L214: 36.66666667 | M214: 0.02727272727 | N214: 108474.8199 | O214: 19945.63553 | P214: 139.0652752 | Q214: 128559.5207 | R214: 101747.4964 | S214: -26812.02438
... 91 more rows

Sheet App.2-D_Overhead
G1: File Number: | H1: =EBNUMBER -> EB-2021-0009
G2: Exhibit:
G3: Tab:
G4: Schedule:
G5: Page:
G7: Date:
A9: Appendix 2-D
A10: Overhead Expense
A12: Applicants are to provide a breakdown of OM&A before capitalization in the below table. OM&A before capitalization may be broken down by cost center, program, drivers or another format best suited to focus on capitalized vs. uncapitalized OM&A.
A14: OM&A Before Capitalization
B15: =F15-4 -> 2018 | C15: =F15-3 -> 2019 | D15: =F15-2 -> 2020 | E15: =F15-1 -> 2021 | F15: =TestYear -> 2022
B16: Historical Year | C16: Historical Year | D16: Historical Year | E16: Bridge Year | F16: Test Year
A17: Fleet | B17: 550870.12 | C17: 480491.01 | D17: 486582.48 | E17: 445702.6622 | F17: 476218.2454
A18: Direct Labour - Operations/Engineering | B18: 2956705.45 | C18: 2831356.76 | D18: 2958804.24 | E18: 3194084.422 | F18: 3552693.523
A19: Direct Labour - Billing/Customer Service | B19: 1388728.94 | C19: 1239638.32 | D19: 1619540.96 | E19: 1640682.94 | F19: 1623658.542
A20: Direct Labour - Admin | B20: 2252077.95 | C20: 1959892.93 | D20: 2229581.77 | E20: 2571987.509 | F20: 2601479.042
A21: Distribution Operations and Maintenance | B21: 851106.61 | C21: 1467553.94 | D21: 1348005.26 | E21: 1255224.139 | F21: 1247454.711
A22: Billing and Collecting | B22: 2071260.34 | C22: 2278651.97 | D22: 2182833.36 | E22: 2287665.28 | F22: 2215769.486
A23: Community Relations | B23: 81117.28 | C23: 65678.63 | D23: 53416.29 | E23: 141539.9468 | F23: 122231.7679
A24: Administrative and General | B24: 2113865.92 | C24: 2260967.165 | D24: 2572365.25 | E24: 3481524.042 | F24: 3719266.498
A27: Total OM&A Before Capitalization (B) | B27: =SUM(B17:B26) -> 12265732.61 | C27: =SUM(C17:C26) -> 12584230.73 | D27: =SUM(D17:D26) -> 13451129.61 | E27: =SUM(E17:E26) -> 15018410.94 | F27: =SUM(F17:F26) -> 15558771.82
A29: Applicants are to provide a breakdown of capitalized OM&A in the below table. Capitalized OM&A may be broken down using the categories listed in the table below if possible. Otherwise, applicants are to provide its own break down of capitalized OM&A.
A31: Capitalized OM&A | G31: Directly | H31: Explanation for Change in Overhead Capitalized
B32: =F32-4 -> 2018 | C32: =F32-3 -> 2019 | D32: =F32-2 -> 2020 | E32: =F32-1 -> 2021 | F32: =TestYear -> 2022 | G32: Attributable?
B33: Historical Year | C33: Historical Year | D33: Historical Year | E33: Bridge Year | F33: Test Year | G33: (Yes/No)
A34: Employee Labour and Benefits | B34: 1235556.49 | C34: 1337065.46 | D34: 1081286.22 | E34: 1291410.83 | F34: 1478445.392 | G34: Y | H34: Directly attributable to total labour costs charged to capital
A35: Fleet/Truck Time | B35: 259525.34 | C35: 235418.56 | D35: 253684.68 | E35: 260392.0315 | F35: 271686.7153 | G35: Y | H35: Directly attributable to total fleet costs charged to capital
A36: Capitalized Interest | C36: 119212 | D36: 202469 | G36: Y | H36: Directly attributable to the interest on the building loan during the time it took to get the building into service
A47: Total Capitalized OM&A (A) | B47: =SUM(B34:B46) -> 1495081.83 | C47: =SUM(C34:C46) -> 1691696.02 | D47: =SUM(D34:D46) -> 1537439.9 | E47: =SUM(E34:E46) -> 1551802.862 | F47: =SUM(F34:F46) -> 1750132.108
A49: % of Capitalized OM&A (=A/B) | B49: =IF(ISERROR(B47/B27),"0%",B47/B27) -> 0.1218909524 | C49: =IF(ISERROR(C47/C27),"0%",C47/C27) -> 0.1344298318 | D49: =IF(ISERROR(D47/D27),"0%",D47/D27) -> 0.1142981998 | E49: =IF(ISERROR(E47/E27),"0%",E47/E27) -> 0.1033267013 | F49: =IF(ISERROR(F47/F27),"0%",F47/F27) -> 0.1124852352

Sheet App.2-EA_Account 1575 (2015) (hidden)
H1: File Number: | I1: =EBNUMBER -> EB-2021-0009
H2: Exhibit:
H3: Tab:
H4: Schedule:
H5: Page:
H7: Date:
A9: Appendix 2-EA
A10: Account 1575 - IFRS-CGAAP Transitional PP&E Amounts
A11: 2015 Adopters of IFRS for Financial Reporting Purposes
A13: For applicants that adopted IFRS on January 1, 2015 for financial reporting purposes
B17: 2014 | C17: =TestYear-3 -> 2019 | D17: =TestYear-2 -> 2020 | E17: =CONCATENATE(TestYear-1," Bridge Year") -> 2021 Bridge Year | F17: =CONCATENATE(TestYear," Rebasing Year") -> 2022 Rebasing Year
A18: Reporting Basis | B18: CGAAP | C18: CGAAP | D18: CGAAP | E18: MIFRS | F18: MIFRS
B19: Actual | C19: Actual | D19: Actual | E19: Forecast | F19: Forecast
D20: $ | E20: $
A21: PP&E Values under CGAAP
A22: Opening net PP&E - Note 1 | C22: =+B25 -> 0 | D22: =+C25 -> 0 | E22: =+D25 -> 0
A23: Net Additions - Note 4
A24: Net Depreciation (amounts should be negative) - Note 4
A25: Closing net PP&E (1) | B25: =SUM(B22:B24) -> 0 | C25: =SUM(C22:C24) -> 0 | D25: =SUM(D22:D24) -> 0 | E25: =SUM(E22:E24) -> 0
A27: PP&E Values under MIFRS (Starts from 2014, the transition year)
A28: Opening net PP&E - Note 1 | C28: =+B31 -> 0 | D28: =+C31 -> 0 | E28: =+D31 -> 0
A29: Net Additions - Note 4
A30: Net Depreciation (amounts should be negative) - Note 4
A31: Closing net PP&E (2) | B31: =SUM(B28:B30) -> 0 | C31: =SUM(C28:C30) -> 0 | D31: =SUM(D28:D30) -> 0 | E31: =SUM(E28:E30) -> 0
A33: Difference in Closing net PP&E, former CGAAP vs. revised CGAAP | B33: =B25-B31 -> 0 | C33: =C25-C31 -> 0 | D33: =D25-D31 -> 0 | E33: =E25-E31 -> 0
A36: Effect on Deferral and Variance Account Rate Riders
A37: Closing balance in Account 1575 | F37: =IF(ISERROR(E33), 0, E33) -> 0 | H37: WACC
A38: Return on Rate Base Associated with Account 1575 balance at WACC - Note 2 | F38: =E33*I37*I38 -> 0 | G38: # of years of rate rider disposition period
A39: Amount included in Deferral and Variance Account Rate Rider Calculation | F39: =F37+F38 -> 0
A41: Notes:
A42: 1 For an applicant that adopted IFRS on January 1, 2015, the PP&E values as of January 1, 2014 under both CGAAP and MIFRS should be the same.
A43: 2 Return on rate base associated with deferred balance is calculated as:
A44: the deferral account closing balance as of 2017 x WACC X # of years of rate rider disposition period
A45: * Please note that the calculation should be adjusted once WACC is updated and finalized in the rate application.
A46: 3 The PP&E deferral account is cleared by including the total balance in the deferral and variance account rate rider calculation.
A47: 4 Net additions are additions net of disposals; Net depreciation is additions to depreciation net of disposals.

Sheet App.2-EB_Account 1576 (2012) (hidden)
K1: File Number: | L1: =EBNUMBER -> EB-2021-0009
K2: Exhibit:
K3: Tab:
K4: Schedule:
K5: Page:
K7: Date:
A9: Appendix 2-EB
A10: Account 1576 - Accounting Changes under CGAAP
A11: 2012 Changes in Accounting Policies under CGAAP
A13: For applicants with a balance in Account 1576 and made capitalization and depreciation expense accounting policy changes under CGAAP effective January 1, 2012. This is the first time the applicant is rebasing with changes in these accounting policies.
B17: Prior Years Rebasing | C17: 2012 | D17: 2013 | E17: 2014 | F17: 2015 | G17: 2016 | H17: 2017 | I17: 2018 Rebasing Year
A18: Reporting Basis | B18: CGAAP | C18: CGAAP | D18: CGAAP | E18: CGAAP | F18: MIFRS - Note 5 | G18: MIFRS | H18: MIFRS | I18: MIFRS
B19: Forecast | C19: Actual | D19: Actual | E19: Actual | F19: Actual | G19: Actual | H19: Forecast | I19: Forecast
C20: $ | D20: $ | E20: $ | F20: $ | G20: $ | H20: $
A21: PP&E Values under former CGAAP
A22: Opening net PP&E - Note 1 | D22: =+C25 -> 0 | E22: =+D25 -> 0 | F22: =+E25 -> 0 | G22: =+F25 -> 0 | H22: =+G25 -> 0
A23: Net Additions - Note 4
A24: Net Depreciation (amounts should be negative) - Note 4
A25: Closing net PP&E (1) | C25: =C22+C23+C24 -> 0 | D25: 0 | E25: 0 | F25: 0 | G25: 0 | H25: 0
A27: PP&E Values under revised CGAAP (Starts from 2012)
A28: Opening net PP&E - Note 1 | D28: =+C31 -> 0 | E28: =+D31 -> 0 | F28: =+E31 -> 0 | G28: =+F31 -> 0 | H28: =+G31 -> 0
A29: Net Additions - Note 4
A30: Net Depreciation (amounts should be negative) - Note 4
A31: Closing net PP&E (2) | C31: =SUM(C28:C30) -> 0 | D31: 0 | E31: 0 | F31: 0 | G31: 0 | H31: 0
A33: Difference in Closing net PP&E, former CGAAP vs. revised CGAAP | C33: =C25-C31 -> 0 | D33: 0 | E33: 0 | F33: 0 | G33: 0 | H33: 0
A36: Effect on Deferral and Variance Account Rate Riders
A37: Closing balance in Account 1576 | I37: =IF(ISERROR(H33), 0, H33) -> 0 | K37: WACC
A38: Return on Rate Base Associated with Account 1576 balance at WACC - Note 2 | I38: =H33*L37*L38 -> 0 | J38: # of years of rate rider disposition period
A39: Amount included in Deferral and Variance Account Rate Rider Calculation | I39: =I37+I38 -> 0
A41: Notes:
A42: 1 For an applicant that made the capitalization and depreciation expense accounting policy changes on January 1, 2012, the PP&E values as of January 1, 2012 under both former CGAAP and revised CGAAP should be the same.
A43: 2 Return on rate base associated with Account 1576 balance is calculated as:
A44: the variance account ending balance as of 2017 x WACC X # of years of rate rider disposition period
A45: * Please note that the calculation should be adjusted once WACC is updated and finalized in the rate application.
A46: 3 Account 1576 is cleared by including the total balance in the deferral and variance account rate rider calculation.
A47: 4 Net additions are additions net of disposals; Net depreciation is additions to depreciation net of disposals.
A48: 5 Differences due to the adoption of MIFRS are to be shown separately in Account 1575 in Appendix 2-EA as Accounts 1575 and 1576 cannot be used interchangably.

Sheet App.2-EC_Account 1576 (2013) (hidden)
J1: File Number: | K1: =EBNUMBER -> EB-2021-0009
J2: Exhibit:
J3: Tab:
J4: Schedule:
J5: Page:
J7: Date:
A9: Appendix 2-EC
A10: Account 1576 - Accounting Changes under CGAAP
A11: 2013 Changes in Accounting Policies under CGAAP
A13: For applicants with a balance in Account 1576 and made capitalization and depreciation expense accounting policy changes under CGAAP effective January 1, 2013. This is the first time the applicant is rebasing with changes in these accounting policies.
B17: Prior Years Rebasing | C17: 2013 | D17: 2014 | E17: 2015 | F17: 2016 | G17: 2017 | H17: 2018 Rebasing Year
A18: Reporting Basis | B18: CGAAP | C18: CGAAP | D18: CGAAP | E18: MIFRS - Note 5 | F18: MIFRS | G18: MIFRS | H18: MIFRS
B19: Actual | C19: Actual | D19: Actual | E19: Actual | F19: Actual | G19: Forecast | H19: Forecast
C20: $ | D20: $ | F20: $
A21: PP&E Values under former CGAAP
A22: Opening net PP&E - Note 1 | D22: =+C25 -> 0 | E22: =+D25 -> 0 | F22: =+E25 -> 0 | G22: =+F25 -> 0
A23: Net Additions - Note 4
A24: Net Depreciation (amounts should be negative) - Note 4
A25: Closing net PP&E (1) | C25: =C22+C23+C24 -> 0 | D25: =D22+D23+D24 -> 0 | E25: =E22+E23+E24 -> 0 | F25: =F22+F23+F24 -> 0 | G25: =G22+G23+G24 -> 0
A27: PP&E Values under revised CGAAP (Starts from 2012)
A28: Opening net PP&E - Note 1 | D28: =+C31 -> 0 | E28: =+D31 -> 0 | F28: =+E31 -> 0 | G28: =+F31 -> 0
A29: Net Additions - Note 4
A30: Net Depreciation (amounts should be negative) - Note 4
A31: Closing net PP&E (2) | C31: =SUM(C28:C30) -> 0 | D31: =SUM(D28:D30) -> 0 | E31: =SUM(E28:E30) -> 0 | F31: =SUM(F28:F30) -> 0 | G31: =SUM(G28:G30) -> 0
A33: Difference in Closing net PP&E, former CGAAP vs. revised CGAAP | C33: =C25-C31 -> 0 | D33: =D25-D31 -> 0 | E33: =E25-E31 -> 0 | F33: =F25-F31 -> 0 | G33: =G25-G31 -> 0
A36: Effect on Deferral and Variance Account Rate Riders
A37: Closing balance in Account 1576 | H37: =IF(ISERROR(G33), 0, G33) -> 0 | J37: WACC
A38: Return on Rate Base Associated with Account 1576 balance at WACC - Note 2 | H38: =G33*K37*K38 -> 0 | I38: # of years of rate rider disposition period
A39: Amount included in Deferral and Variance Account Rate Rider Calculation | H39: =H37+H38 -> 0
A41: Notes:
A42: 1 For an applicant that made the capitalization and depreciation expense accounting policy changes on January 1, 2013, the PP&E values as of January 1, 2013 under both former CGAAP and revised CGAAP should be the same.
A43: 2 Return on rate base associated with Account 1576 balance is calculated as:
A44: the variance account ending balance as of 2017 x WACC X # of years of rate rider disposition period
A45: * Please note that the calculation should be adjusted once WACC is updated and finalized in the rate application.
A46: 3 Account 1576 is cleared by including the total balance in the deferral and variance account rate rider calculation.
A47: 4 Net additions are additions net of disposals; Net depreciation is additions to depreciation net of disposals.
A48: 5 Differences due to the adoption of MIFRS are to be shown separately in Account 1575 in Appendix 2-EA as Accounts 1575 and 1576 cannot be used interchangably.

Sheet Hidden_REG Invest. (hidden)
A1: Utility Name | B1: EB Number | C1: Test Year | D1: Bridge Year | E1: Last Rebasing Year | F1: Renewable Generation Connection Investment Summary | G1: Year | H1: Amount
A2: ='LDC Info'!$E$14 -> Brantford Power Inc. | B2: =EBNUMBER -> EB-2021-0009 | C2: =TestYear -> 2022 | D2: =BridgeYear -> 2021 | E2: =RebaseYear -> 2017 | F2: REI Investments_A_Total Capital Costs | G2: ='App.2-FA Proposed REG Invest.'!$C$31 -> 2017 | H2: ='App.2-FA Proposed REG Invest.'!C62 -> 0
A3: ='LDC Info'!$E$14 -> Brantford Power Inc. | B3: EB-2021-0009 | C3: 2022 | D3: 2021 | E3: 2017 | F3: REI Investments_A_Total OM&A Start-Up | G3: ='App.2-FA Proposed REG Invest.'!$C$31 -> 2017 | H3: ='App.2-FA Proposed REG Invest.'!$C63 -> 0
A4: ='LDC Info'!$E$14 -> Brantford Power Inc. | B4: EB-2021-0009 | C4: 2022 | D4: 2021 | E4: 2017 | F4: REI Investments_A_Total OM&A Ongoing | G4: ='App.2-FA Proposed REG Invest.'!$C$31 -> 2017 | H4: ='App.2-FA Proposed REG Invest.'!$C64 -> 0
A5: ='LDC Info'!$E$14 -> Brantford Power Inc. | B5: EB-2021-0009 | C5: 2022 | D5: 2021 | E5: 2017 | F5: REI Investments_A_Total Capital Costs | G5: ='App.2-FA Proposed REG Invest.'!$D$31 -> 2018 | H5: ='App.2-FA Proposed REG Invest.'!D62 -> 0
A6: ='LDC Info'!$E$14 -> Brantford Power Inc. | B6: EB-2021-0009 | C6: 2022 | D6: 2021 | E6: 2017 | F6: REI Investments_A_Total OM&A Start-Up | G6: ='App.2-FA Proposed REG Invest.'!$D$31 -> 2018 | H6: ='App.2-FA Proposed REG Invest.'!D63 -> 0
A7: ='LDC Info'!$E$14 -> Brantford Power Inc. | B7: EB-2021-0009 | C7: 2022 | D7: 2021 | E7: 2017 | F7: REI Investments_A_Total OM&A Ongoing | G7: ='App.2-FA Proposed REG Invest.'!$D$31 -> 2018 | H7: ='App.2-FA Proposed REG Invest.'!D64 -> 0
A8: ='LDC Info'!$E$14 -> Brantford Power Inc. | B8: EB-2021-0009 | C8: 2022 | D8: 2021 | E8: 2017 | F8: REI Investments_A_Total Capital Costs | G8: ='App.2-FA Proposed REG Invest.'!$E$31 -> 2019 | H8: ='App.2-FA Proposed REG Invest.'!E62 -> 0
A9: ='LDC Info'!$E$14 -> Brantford Power Inc. | B9: EB-2021-0009 | C9: 2022 | D9: 2021 | E9: 2017 | F9: REI Investments_A_Total OM&A Start-Up | G9: ='App.2-FA Proposed REG Invest.'!$E$31 -> 2019 | H9: ='App.2-FA Proposed REG Invest.'!E63 -> 0
A10: ='LDC Info'!$E$14 -> Brantford Power Inc. | B10: EB-2021-0009 | C10: 2022 | D10: 2021 | E10: 2017 | F10: REI Investments_A_Total OM&A Ongoing | G10: ='App.2-FA Proposed REG Invest.'!$E$31 -> 2019 | H10: ='App.2-FA Proposed REG Invest.'!E64 -> 0
A11: ='LDC Info'!$E$14 -> Brantford Power Inc. | B11: EB-2021-0009 | C11: 2022 | D11: 2021 | E11: 2017 | F11: REI Investments_A_Total Capital Costs | G11: ='App.2-FA Proposed REG Invest.'!$F$31 -> 2020 | H11: ='App.2-FA Proposed REG Invest.'!F62 -> 0
A12: ='LDC Info'!$E$14 -> Brantford Power Inc. | B12: EB-2021-0009 | C12: 2022 | D12: 2021 | E12: 2017 | F12: REI Investments_A_Total OM&A Start-Up | G12: ='App.2-FA Proposed REG Invest.'!$F$31 -> 2020 | H12: ='App.2-FA Proposed REG Invest.'!F63 -> 0
A13: ='LDC Info'!$E$14 -> Brantford Power Inc. | B13: EB-2021-0009 | C13: 2022 | D13: 2021 | E13: 2017 | F13: REI Investments_A_Total OM&A Ongoing | G13: ='App.2-FA Proposed REG Invest.'!$F$31 -> 2020 | H13: ='App.2-FA Proposed REG Invest.'!F64 -> 0
A14: ='LDC Info'!$E$14 -> Brantford Power Inc. | B14: EB-2021-0009 | C14: 2022 | D14: 2021 | E14: 2017 | F14: REI Investments_A_Total Capital Costs | G14: ='App.2-FA Proposed REG Invest.'!$G$31 -> 2021 | H14: ='App.2-FA Proposed REG Invest.'!G62 -> 0
A15: ='LDC Info'!$E$14 -> Brantford Power Inc. | B15: EB-2021-0009 | C15: 2022 | D15: 2021 | E15: 2017 | F15: REI Investments_A_Total OM&A Start-Up | G15: ='App.2-FA Proposed REG Invest.'!$G$31 -> 2021 | H15: ='App.2-FA Proposed REG Invest.'!G63 -> 0
A16: ='LDC Info'!$E$14 -> Brantford Power Inc. | B16: EB-2021-0009 | C16: 2022 | D16: 2021 | E16: 2017 | F16: REI Investments_A_Total OM&A Ongoing | G16: ='App.2-FA Proposed REG Invest.'!$G$31 -> 2021 | H16: ='App.2-FA Proposed REG Invest.'!G64 -> 0
A17: ='LDC Info'!$E$14 -> Brantford Power Inc. | B17: EB-2021-0009 | C17: 2022 | D17: 2021 | E17: 2017 | F17: REI Investments_A_Total Capital Costs | G17: ='App.2-FA Proposed REG Invest.'!$H$31 -> 2022 | H17: ='App.2-FA Proposed REG Invest.'!H62 -> 0
A18: ='LDC Info'!$E$14 -> Brantford Power Inc. | B18: EB-2021-0009 | C18: 2022 | D18: 2021 | E18: 2017 | F18: REI Investments_A_Total OM&A Start-Up | G18: ='App.2-FA Proposed REG Invest.'!$H$31 -> 2022 | H18: ='App.2-FA Proposed REG Invest.'!H63 -> 0
A19: ='LDC Info'!$E$14 -> Brantford Power Inc. | B19: EB-2021-0009 | C19: 2022 | D19: 2021 | E19: 2017 | F19: REI Investments_A_Total OM&A Ongoing | G19: ='App.2-FA Proposed REG Invest.'!$H$31 -> 2022 | H19: ='App.2-FA Proposed REG Invest.'!H64 -> 0
A20: ='LDC Info'!$E$14 -> Brantford Power Inc. | B20: EB-2021-0009 | C20: 2022 | D20: 2021 | E20: 2017 | F20: REI Investments_A_Total Capital Costs | G20: ='App.2-FA Proposed REG Invest.'!$I$31 -> 2023 | H20: ='App.2-FA Proposed REG Invest.'!I62 -> 0
A21: ='LDC Info'!$E$14 -> Brantford Power Inc. | B21: EB-2021-0009 | C21: 2022 | D21: 2021 | E21: 2017 | F21: REI Investments_A_Total OM&A Start-Up | G21: ='App.2-FA Proposed REG Invest.'!$I$31 -> 2023 | H21: ='App.2-FA Proposed REG Invest.'!I63 -> 0
A22: ='LDC Info'!$E$14 -> Brantford Power Inc. | B22: EB-2021-0009 | C22: 2022 | D22: 2021 | E22: 2017 | F22: REI Investments_A_Total OM&A Ongoing | G22: ='App.2-FA Proposed REG Invest.'!$I$31 -> 2023 | H22: ='App.2-FA Proposed REG Invest.'!I64 -> 0
A23: ='LDC Info'!$E$14 -> Brantford Power Inc. | B23: EB-2021-0009 | C23: 2022 | D23: 2021 | E23: 2017 | F23: REI Investments_A_Total Capital Costs | G23: ='App.2-FA Proposed REG Invest.'!$J$31 -> 2024 | H23: ='App.2-FA Proposed REG Invest.'!J62 -> 0
A24: ='LDC Info'!$E$14 -> Brantford Power Inc. | B24: EB-2021-0009 | C24: 2022 | D24: 2021 | E24: 2017 | F24: REI Investments_A_Total OM&A Start-Up | G24: ='App.2-FA Proposed REG Invest.'!$J$31 -> 2024 | H24: ='App.2-FA Proposed REG Invest.'!J63 -> 0
A25: ='LDC Info'!$E$14 -> Brantford Power Inc. | B25: EB-2021-0009 | C25: 2022 | D25: 2021 | E25: 2017 | F25: REI Investments_A_Total OM&A Ongoing | G25: ='App.2-FA Proposed REG Invest.'!$J$31 -> 2024 | H25: ='App.2-FA Proposed REG Invest.'!J64 -> 0
A26: ='LDC Info'!$E$14 -> Brantford Power Inc. | B26: EB-2021-0009 | C26: 2022 | D26: 2021 | E26: 2017 | F26: REI Investments_A_Total Capital Costs | G26: ='App.2-FA Proposed REG Invest.'!$K$31 -> 2025 | H26: ='App.2-FA Proposed REG Invest.'!K62 -> 0
A27: ='LDC Info'!$E$14 -> Brantford Power Inc. | B27: EB-2021-0009 | C27: 2022 | D27: 2021 | E27: 2017 | F27: REI Investments_A_Total OM&A Start-Up | G27: ='App.2-FA Proposed REG Invest.'!$K$31 -> 2025 | H27: ='App.2-FA Proposed REG Invest.'!K63 -> 0
A28: ='LDC Info'!$E$14 -> Brantford Power Inc. | B28: EB-2021-0009 | C28: 2022 | D28: 2021 | E28: 2017 | F28: REI Investments_A_Total OM&A Ongoing | G28: ='App.2-FA Proposed REG Invest.'!$K$31 -> 2025 | H28: ='App.2-FA Proposed REG Invest.'!K64 -> 0
A29: ='LDC Info'!$E$14 -> Brantford Power Inc. | B29: EB-2021-0009 | C29: 2022 | D29: 2021 | E29: 2017 | F29: REI Investments_A_Total Capital Costs | G29: ='App.2-FA Proposed REG Invest.'!$L$31 -> 2026 | H29: ='App.2-FA Proposed REG Invest.'!L62 -> 0
A30: ='LDC Info'!$E$14 -> Brantford Power Inc. | B30: EB-2021-0009 | C30: 2022 | D30: 2021 | E30: 2017 | F30: REI Investments_A_Total OM&A Start-Up | G30: ='App.2-FA Proposed REG Invest.'!$L$31 -> 2026 | H30: ='App.2-FA Proposed REG Invest.'!L63 -> 0
A31: ='LDC Info'!$E$14 -> Brantford Power Inc. | B31: EB-2021-0009 | C31: 2022 | D31: 2021 | E31: 2017 | F31: REI Investments_A_Total OM&A Ongoing | G31: ='App.2-FA Proposed REG Invest.'!$L$31 -> 2026 | H31: ='App.2-FA Proposed REG Invest.'!L64 -> 0
A32: ='LDC Info'!$E$14 -> Brantford Power Inc. | B32: EB-2021-0009 | C32: 2022 | D32: 2021 | E32: 2017 | F32: Expansion Investments_B_Total Capital Costs | G32: ='App.2-FA Proposed REG Invest.'!$C$31 -> 2017 | H32: ='App.2-FA Proposed REG Invest.'!C99 -> 0
A33: ='LDC Info'!$E$14 -> Brantford Power Inc. | B33: EB-2021-0009 | C33: 2022 | D33: 2021 | E33: 2017 | F33: Expansion Investments_B_Total OM&A Start-Up | G33: ='App.2-FA Proposed REG Invest.'!$C$31 -> 2017 | H33: ='App.2-FA Proposed REG Invest.'!C100 -> 0
A34: ='LDC Info'!$E$14 -> Brantford Power Inc. | B34: EB-2021-0009 | C34: 2022 | D34: 2021 | E34: 2017 | F34: Expansion Investments_B_Total OM&A Ongoing | G34: ='App.2-FA Proposed REG Invest.'!$C$31 -> 2017 | H34: ='App.2-FA Proposed REG Invest.'!C101 -> 0
A35: ='LDC Info'!$E$14 -> Brantford Power Inc. | B35: EB-2021-0009 | C35: 2022 | D35: 2021 | E35: 2017 | F35: Expansion Investments_B_Total Capital Costs | G35: ='App.2-FA Proposed REG Invest.'!$D$31 -> 2018 | H35: ='App.2-FA Proposed REG Invest.'!D99 -> 0
A36: ='LDC Info'!$E$14 -> Brantford Power Inc. | B36: EB-2021-0009 | C36: 2022 | D36: 2021 | E36: 2017 | F36: Expansion Investments_B_Total OM&A Start-Up | G36: ='App.2-FA Proposed REG Invest.'!$D$31 -> 2018 | H36: ='App.2-FA Proposed REG Invest.'!D100 -> 0
A37: ='LDC Info'!$E$14 -> Brantford Power Inc. | B37: EB-2021-0009 | C37: 2022 | D37: 2021 | E37: 2017 | F37: Expansion Investments_B_Total OM&A Ongoing | G37: ='App.2-FA Proposed REG Invest.'!$D$31 -> 2018 | H37: ='App.2-FA Proposed REG Invest.'!D101 -> 0
A38: ='LDC Info'!$E$14 -> Brantford Power Inc. | B38: EB-2021-0009 | C38: 2022 | D38: 2021 | E38: 2017 | F38: Expansion Investments_B_Total Capital Costs | G38: ='App.2-FA Proposed REG Invest.'!$E$31 -> 2019 | H38: ='App.2-FA Proposed REG Invest.'!E99 -> 0
A39: ='LDC Info'!$E$14 -> Brantford Power Inc. | B39: EB-2021-0009 | C39: 2022 | D39: 2021 | E39: 2017 | F39: Expansion Investments_B_Total OM&A Start-Up | G39: ='App.2-FA Proposed REG Invest.'!$E$31 -> 2019 | H39: ='App.2-FA Proposed REG Invest.'!E100 -> 0
A40: ='LDC Info'!$E$14 -> Brantford Power Inc. | B40: EB-2021-0009 | C40: 2022 | D40: 2021 | E40: 2017 | F40: Expansion Investments_B_Total OM&A Ongoing | G40: ='App.2-FA Proposed REG Invest.'!$E$31 -> 2019 | H40: ='App.2-FA Proposed REG Invest.'!E101 -> 0
A41: ='LDC Info'!$E$14 -> Brantford Power Inc. | B41: EB-2021-0009 | C41: 2022 | D41: 2021 | E41: 2017 | F41: Expansion Investments_B_Total Capital Costs | G41: ='App.2-FA Proposed REG Invest.'!$F$31 -> 2020 | H41: ='App.2-FA Proposed REG Invest.'!F99 -> 0
A42: ='LDC Info'!$E$14 -> Brantford Power Inc. | B42: EB-2021-0009 | C42: 2022 | D42: 2021 | E42: 2017 | F42: Expansion Investments_B_Total OM&A Start-Up | G42: ='App.2-FA Proposed REG Invest.'!$F$31 -> 2020 | H42: ='App.2-FA Proposed REG Invest.'!F100 -> 0
A43: ='LDC Info'!$E$14 -> Brantford Power Inc. | B43: EB-2021-0009 | C43: 2022 | D43: 2021 | E43: 2017 | F43: Expansion Investments_B_Total OM&A Ongoing | G43: ='App.2-FA Proposed REG Invest.'!$F$31 -> 2020 | H43: ='App.2-FA Proposed REG Invest.'!F101 -> 0
A44: ='LDC Info'!$E$14 -> Brantford Power Inc. | B44: EB-2021-0009 | C44: 2022 | D44: 2021 | E44: 2017 | F44: Expansion Investments_B_Total Capital Costs | G44: ='App.2-FA Proposed REG Invest.'!$G$31 -> 2021 | H44: ='App.2-FA Proposed REG Invest.'!G99 -> 0
A45: ='LDC Info'!$E$14 -> Brantford Power Inc. | B45: EB-2021-0009 | C45: 2022 | D45: 2021 | E45: 2017 | F45: Expansion Investments_B_Total OM&A Start-Up | G45: ='App.2-FA Proposed REG Invest.'!$G$31 -> 2021 | H45: ='App.2-FA Proposed REG Invest.'!G100 -> 0
A46: ='LDC Info'!$E$14 -> Brantford Power Inc. | B46: EB-2021-0009 | C46: 2022 | D46: 2021 | E46: 2017 | F46: Expansion Investments_B_Total OM&A Ongoing | G46: ='App.2-FA Proposed REG Invest.'!$G$31 -> 2021 | H46: ='App.2-FA Proposed REG Invest.'!G101 -> 0
A47: ='LDC Info'!$E$14 -> Brantford Power Inc. | B47: EB-2021-0009 | C47: 2022 | D47: 2021 | E47: 2017 | F47: Expansion Investments_B_Total Capital Costs | G47: ='App.2-FA Proposed REG Invest.'!$H$31 -> 2022 | H47: ='App.2-FA Proposed REG Invest.'!H99 -> 0
A48: ='LDC Info'!$E$14 -> Brantford Power Inc. | B48: EB-2021-0009 | C48: 2022 | D48: 2021 | E48: 2017 | F48: Expansion Investments_B_Total OM&A Start-Up | G48: ='App.2-FA Proposed REG Invest.'!$H$31 -> 2022 | H48: ='App.2-FA Proposed REG Invest.'!H100 -> 0
A49: ='LDC Info'!$E$14 -> Brantford Power Inc. | B49: EB-2021-0009 | C49: 2022 | D49: 2021 | E49: 2017 | F49: Expansion Investments_B_Total OM&A Ongoing | G49: ='App.2-FA Proposed REG Invest.'!$H$31 -> 2022 | H49: ='App.2-FA Proposed REG Invest.'!H101 -> 0
A50: ='LDC Info'!$E$14 -> Brantford Power Inc. | B50: EB-2021-0009 | C50: 2022 | D50: 2021 | E50: 2017 | F50: Expansion Investments_B_Total Capital Costs | G50: ='App.2-FA Proposed REG Invest.'!$I$31 -> 2023 | H50: ='App.2-FA Proposed REG Invest.'!I99 -> 0
A51: ='LDC Info'!$E$14 -> Brantford Power Inc. | B51: EB-2021-0009 | C51: 2022 | D51: 2021 | E51: 2017 | F51: Expansion Investments_B_Total OM&A Start-Up | G51: ='App.2-FA Proposed REG Invest.'!$I$31 -> 2023 | H51: ='App.2-FA Proposed REG Invest.'!I100 -> 0
A52: ='LDC Info'!$E$14 -> Brantford Power Inc. | B52: EB-2021-0009 | C52: 2022 | D52: 2021 | E52: 2017 | F52: Expansion Investments_B_Total OM&A Ongoing | G52: ='App.2-FA Proposed REG Invest.'!$I$31 -> 2023 | H52: ='App.2-FA Proposed REG Invest.'!I101 -> 0
A53: ='LDC Info'!$E$14 -> Brantford Power Inc. | B53: EB-2021-0009 | C53: 2022 | D53: 2021 | E53: 2017 | F53: Expansion Investments_B_Total Capital Costs | G53: ='App.2-FA Proposed REG Invest.'!$J$31 -> 2024 | H53: ='App.2-FA Proposed REG Invest.'!J99 -> 0
A54: ='LDC Info'!$E$14 -> Brantford Power Inc. | B54: EB-2021-0009 | C54: 2022 | D54: 2021 | E54: 2017 | F54: Expansion Investments_B_Total OM&A Start-Up | G54: ='App.2-FA Proposed REG Invest.'!$J$31 -> 2024 | H54: ='App.2-FA Proposed REG Invest.'!J100 -> 0
A55: ='LDC Info'!$E$14 -> Brantford Power Inc. | B55: EB-2021-0009 | C55: 2022 | D55: 2021 | E55: 2017 | F55: Expansion Investments_B_Total OM&A Ongoing | G55: ='App.2-FA Proposed REG Invest.'!$J$31 -> 2024 | H55: ='App.2-FA Proposed REG Invest.'!J101 -> 0
A56: ='LDC Info'!$E$14 -> Brantford Power Inc. | B56: EB-2021-0009 | C56: 2022 | D56: 2021 | E56: 2017 | F56: Expansion Investments_B_Total Capital Costs | G56: ='App.2-FA Proposed REG Invest.'!$K$31 -> 2025 | H56: ='App.2-FA Proposed REG Invest.'!K99 -> 0
A57: ='LDC Info'!$E$14 -> Brantford Power Inc. | B57: EB-2021-0009 | C57: 2022 | D57: 2021 | E57: 2017 | F57: Expansion Investments_B_Total OM&A Start-Up | G57: ='App.2-FA Proposed REG Invest.'!$K$31 -> 2025 | H57: ='App.2-FA Proposed REG Invest.'!K100 -> 0
A58: ='LDC Info'!$E$14 -> Brantford Power Inc. | B58: EB-2021-0009 | C58: 2022 | D58: 2021 | E58: 2017 | F58: Expansion Investments_B_Total OM&A Ongoing | G58: ='App.2-FA Proposed REG Invest.'!$K$31 -> 2025 | H58: ='App.2-FA Proposed REG Invest.'!K101 -> 0
A59: ='LDC Info'!$E$14 -> Brantford Power Inc. | B59: EB-2021-0009 | C59: 2022 | D59: 2021 | E59: 2017 | F59: Expansion Investments_B_Total Capital Costs | G59: ='App.2-FA Proposed REG Invest.'!$L$31 -> 2026 | H59: ='App.2-FA Proposed REG Invest.'!L99 -> 0
A60: ='LDC Info'!$E$14 -> Brantford Power Inc. | B60: EB-2021-0009 | C60: 2022 | D60: 2021 | E60: 2017 | F60: Expansion Investments_B_Total OM&A Start-Up | G60: ='App.2-FA Proposed REG Invest.'!$L$31 -> 2026 | H60: ='App.2-FA Proposed REG Invest.'!L100 -> 0
A61: ='LDC Info'!$E$14 -> Brantford Power Inc. | B61: EB-2021-0009 | C61: 2022 | D61: 2021 | E61: 2017 | F61: Expansion Investments_B_Total OM&A Ongoing | G61: ='App.2-FA Proposed REG Invest.'!$L$31 -> 2026 | H61: ='App.2-FA Proposed REG Invest.'!L101 -> 0

Sheet Hidden_REG Improvement (hidden)
A1: Utility Name | B1: EB Number | C1: Test Year | D1: Bridge Year | E1: Last Rebasing Year | F1: Renewable Generation Connection Direct Benefits/Provincial Amount Renewable Enabling Improvement Investments | G1: Year | H1: Amount
A2: ='LDC Info'!$E$14 -> Brantford Power Inc. | B2: =EBNUMBER -> EB-2021-0009 | C2: =TestYear -> 2022 | D2: =BridgeYear -> 2021 | E2: =RebaseYear -> 2017 | F2: Provincial Rate Protection | G2: ='App.2-FB Calc of REG Improvemnt'!D17 -> 2017 | H2: ='App.2-FB Calc of REG Improvemnt'!F$44 -> 0
A3: ='LDC Info'!$E$14 -> Brantford Power Inc. | B3: EB-2021-0009 | C3: 2022 | D3: 2021 | E3: 2017 | F3: Provincial Rate Protection | G3: ='App.2-FB Calc of REG Improvemnt'!G17 -> 2018 | H3: ='App.2-FB Calc of REG Improvemnt'!I$44 -> 0
A4: ='LDC Info'!$E$14 -> Brantford Power Inc. | B4: EB-2021-0009 | C4: 2022 | D4: 2021 | E4: 2017 | F4: Provincial Rate Protection | G4: ='App.2-FB Calc of REG Improvemnt'!J17 -> 2019 | H4: ='App.2-FB Calc of REG Improvemnt'!L$44 -> 0
A5: ='LDC Info'!$E$14 -> Brantford Power Inc. | B5: EB-2021-0009 | C5: 2022 | D5: 2021 | E5: 2017 | F5: Provincial Rate Protection | G5: ='App.2-FB Calc of REG Improvemnt'!M17 -> 2020 | H5: ='App.2-FB Calc of REG Improvemnt'!O$44 -> 0
A6: ='LDC Info'!$E$14 -> Brantford Power Inc. | B6: EB-2021-0009 | C6: 2022 | D6: 2021 | E6: 2017 | F6: Provincial Rate Protection | G6: ='App.2-FB Calc of REG Improvemnt'!P17 -> 2021 | H6: ='App.2-FB Calc of REG Improvemnt'!R$44 -> 0
A7: ='LDC Info'!$E$14 -> Brantford Power Inc. | B7: EB-2021-0009 | C7: 2022 | D7: 2021 | E7: 2017 | F7: Provincial Rate Protection | G7: ='App.2-FB Calc of REG Improvemnt'!S17 -> 2022 | H7: ='App.2-FB Calc of REG Improvemnt'!U$44 -> 0
A8: ='LDC Info'!$E$14 -> Brantford Power Inc. | B8: EB-2021-0009 | C8: 2022 | D8: 2021 | E8: 2017 | F8: Provincial Rate Protection | G8: ='App.2-FB Calc of REG Improvemnt'!V17 -> 2023 | H8: ='App.2-FB Calc of REG Improvemnt'!X$44 -> 0
A9: ='LDC Info'!$E$14 -> Brantford Power Inc. | B9: EB-2021-0009 | C9: 2022 | D9: 2021 | E9: 2017 | F9: Provincial Rate Protection | G9: ='App.2-FB Calc of REG Improvemnt'!Y17 -> 2024 | H9: ='App.2-FB Calc of REG Improvemnt'!AA$44 -> 0
A10: ='LDC Info'!$E$14 -> Brantford Power Inc. | B10: EB-2021-0009 | C10: 2022 | D10: 2021 | E10: 2017 | F10: Provincial Rate Protection | G10: ='App.2-FB Calc of REG Improvemnt'!AB17 -> 2025 | H10: ='App.2-FB Calc of REG Improvemnt'!AD$44 -> 0
A11: ='LDC Info'!$E$14 -> Brantford Power Inc. | B11: EB-2021-0009 | C11: 2022 | D11: 2021 | E11: 2017 | F11: Provincial Rate Protection | G11: ='App.2-FB Calc of REG Improvemnt'!AE17 -> 2026 | H11: ='App.2-FB Calc of REG Improvemnt'!AG$44 -> 0

Sheet Hidden_REG Expansion (hidden)
A1: Utility Name | B1: EB Number | C1: Test Year | D1: Bridge Year | E1: Last Rebasing Year | F1: Calculation of Renewable Generation Connection Direct Benefits/Provincial Amount Renewable Expansion Investments | G1: Year | H1: Amount
A2: ='LDC Info'!$E$14 -> Brantford Power Inc. | B2: =EBNUMBER -> EB-2021-0009 | C2: =TestYear -> 2022 | D2: =BridgeYear -> 2021 | E2: =RebaseYear -> 2017 | F2: Provincial Rate Protection | G2: ='App.2-FC Calc of REG Expansion'!D$17 -> 2017 | H2: ='App.2-FC Calc of REG Expansion'!F$44 -> 0
A3: ='LDC Info'!$E$14 -> Brantford Power Inc. | B3: EB-2021-0009 | C3: 2022 | D3: 2021 | E3: 2017 | F3: Provincial Rate Protection | G3: ='App.2-FC Calc of REG Expansion'!G$17 -> 2018 | H3: ='App.2-FC Calc of REG Expansion'!I$44 -> 0
A4: ='LDC Info'!$E$14 -> Brantford Power Inc. | B4: EB-2021-0009 | C4: 2022 | D4: 2021 | E4: 2017 | F4: Provincial Rate Protection | G4: ='App.2-FC Calc of REG Expansion'!J$17 -> 2019 | H4: ='App.2-FC Calc of REG Expansion'!L$44 -> 0
A5: ='LDC Info'!$E$14 -> Brantford Power Inc. | B5: EB-2021-0009 | C5: 2022 | D5: 2021 | E5: 2017 | F5: Provincial Rate Protection | G5: ='App.2-FC Calc of REG Expansion'!M$17 -> 2020 | H5: ='App.2-FC Calc of REG Expansion'!O$44 -> 0
A6: ='LDC Info'!$E$14 -> Brantford Power Inc. | B6: EB-2021-0009 | C6: 2022 | D6: 2021 | E6: 2017 | F6: Provincial Rate Protection | G6: ='App.2-FC Calc of REG Expansion'!P$17 -> 2021 | H6: ='App.2-FC Calc of REG Expansion'!R$44 -> 0
A7: ='LDC Info'!$E$14 -> Brantford Power Inc. | B7: EB-2021-0009 | C7: 2022 | D7: 2021 | E7: 2017 | F7: Provincial Rate Protection | G7: ='App.2-FC Calc of REG Expansion'!S$17 -> 2022 | H7: ='App.2-FC Calc of REG Expansion'!U$44 -> 0
A8: ='LDC Info'!$E$14 -> Brantford Power Inc. | B8: EB-2021-0009 | C8: 2022 | D8: 2021 | E8: 2017 | F8: Provincial Rate Protection | G8: ='App.2-FC Calc of REG Expansion'!V$17 -> 2023 | H8: ='App.2-FC Calc of REG Expansion'!X$44 -> 0
A9: ='LDC Info'!$E$14 -> Brantford Power Inc. | B9: EB-2021-0009 | C9: 2022 | D9: 2021 | E9: 2017 | F9: Provincial Rate Protection | G9: ='App.2-FC Calc of REG Expansion'!Y$17 -> 2024 | H9: ='App.2-FC Calc of REG Expansion'!AA$44 -> 0
A10: ='LDC Info'!$E$14 -> Brantford Power Inc. | B10: EB-2021-0009 | C10: 2022 | D10: 2021 | E10: 2017 | F10: Provincial Rate Protection | G10: ='App.2-FC Calc of REG Expansion'!AB$17 -> 2025 | H10: ='App.2-FC Calc of REG Expansion'!AD$44 -> 0
A11: ='LDC Info'!$E$14 -> Brantford Power Inc. | B11: EB-2021-0009 | C11: 2022 | D11: 2021 | E11: 2017 | F11: Provincial Rate Protection | G11: ='App.2-FC Calc of REG Expansion'!AE$17 -> 2026 | H11: ='App.2-FC Calc of REG Expansion'!AG$44 -> 0

Sheet App.2-FA Proposed REG Invest.
K1: File Number: | L1: 0
K2: Exhibit:
K3: Tab:
A4: TO BE UPDATED AT DRAFT RATE ORDER STAGE | K4: Schedule:
K5: Page:
K7: Date:
A9: Appendix 2-FA
A10: Renewable Generation Connection Investment Summary (past investments or over the future rate setting period)
A12: Enter the details of the Renewable Generation Connection projects as described in the appropriate section of the Filing Requirements.
A13: All costs entered on this page will be transferred to the appropriate cells in the appendices that follow.
A14: For Part A, Renewable Enabling Improvements (REI), these amounts will be transferred to Appendix 2 - FB
A15: For Part B, Expansions, these amounts will be transferred to Appendix 2 - FC
A17: If there are more than five projects proposed to be in-service in a certain year, please amend the tables below and ensure that the formulae for the Total Amounts in any given rate year are updated.
A18: Based on the current methodology and allocation, amounts allocated represent 6% for REI Connection Investments and 17% for Expansion Investments. (EB-2009-0349, 6-10-2010, p. 15, note 9)
A19: Ensure that OM&A costs below are not included in Recoverable OM&A (App. 2-JA)
A20: There are two scenarios described below. Separate sets of spreadsheets (2-FA, 2-FB, 2-FC) should be submited for each scenario as required.
A21: Scenario 1: | B21: Past Investments with No Recovery. The distributor has made investments in the past (during the IRM Years), but has not received approval for these projects and therefore did not receive
B22: revenue from the IESO under Regulation 330/09 and did not receive ratepayer revenue for the direct benefit portion of the investment.
B23: The WCA percentage, debt percentages, interest rates, kWh, tax rates, amortization period, CCA Class and percentage should correspond to the distributor's last Cost of Service approval.
B24: The Direct Benefit portion of the calculated Revenue Requirement for each year should be summed and can be applied for recovery from the distributor's ratepayers through a rate rider.
B25: The Provincial Recovery portion of the calculated Revenue Requirement for each year should be summed and can be applied for recovery from the IESO through a separate order.
A27: Scenario 2: | B27: Investments in the Test Year and Beyond. Distributor plans to make investments in 2021 and/or beyond. These investments should be added to 2-FA in the appropriate year.
B28: The WCA percentage, debt percentages, interest rates, kWh, tax rates, amortization period, CCA Class and percentage should correspond to the distributor's current application.
A30: Part A | H30: Test Year
A31: REI Investments (Direct Benefit at 6%) | C31: =D31-1 -> 2017 | D31: =E31-1 -> 2018 | E31: =F31-1 -> 2019 | F31: =G31-1 -> 2020 | G31: =H31-1 -> 2021 | H31: ='LDC Info'!$E$24 -> 2022 | I31: =H31+1 -> 2023 | J31: =I31+1 -> 2024 | K31: =J31+1 -> 2025 | L31: =K31+1 -> 2026
A32: Project 1
A33: Name: REI Connection Project
A34: Capital Costs | C34: 0 | D34: 0 | E34: 0 | F34: 0 | G34: 0 | H34: 0 | I34: 0 | J34: 0 | K34: 0 | L34: 0
A35: Incremental OM&A (Start-Up) | C35: 0 | D35: 0 | E35: 0 | F35: 0 | G35: 0 | H35: 0 | I35: 0 | J35: 0 | K35: 0 | L35: 0
A36: Incremental OM&A (Ongoing) | C36: 0 | D36: 0 | E36: 0 | F36: 0 | G36: 0 | H36: 0 | I36: 0 | J36: 0 | K36: 0 | L36: 0
A38: Project 2
A39: Name: REI Connection Project
A40: Capital Costs | C40: 0 | D40: 0 | E40: 0 | F40: 0 | G40: 0 | H40: 0 | I40: 0 | J40: 0 | K40: 0 | L40: 0
A41: Incremental OM&A (Start-Up) | C41: 0 | D41: 0 | E41: 0 | F41: 0 | G41: 0 | H41: 0 | I41: 0 | J41: 0 | K41: 0 | L41: 0
A42: Incremental OM&A (Ongoing) | C42: 0 | D42: 0 | E42: 0 | F42: 0 | G42: 0 | H42: 0 | I42: 0 | J42: 0 | K42: 0 | L42: 0
A44: Project 3
A45: Name: REI Connection Project
A46: Capital Costs | C46: 0 | D46: 0 | E46: 0 | F46: 0 | G46: 0 | H46: 0 | I46: 0 | J46: 0 | K46: 0 | L46: 0
A47: Incremental OM&A (Start-Up) | C47: 0 | D47: 0 | E47: 0 | F47: 0 | G47: 0 | H47: 0 | I47: 0 | J47: 0 | K47: 0 | L47: 0
A48: Incremental OM&A (Ongoing) | C48: 0 | D48: 0 | E48: 0 | F48: 0 | G48: 0 | H48: 0 | I48: 0 | J48: 0 | K48: 0 | L48: 0
A50: Project 4
A51: Name: REI Connection Project
A52: Capital Costs | C52: 0 | D52: 0 | E52: 0 | F52: 0 | G52: 0 | H52: 0 | I52: 0 | J52: 0 | K52: 0 | L52: 0
A53: Incremental OM&A (Start-Up) | C53: 0 | D53: 0 | E53: 0 | F53: 0 | G53: 0 | H53: 0 | I53: 0 | J53: 0 | K53: 0 | L53: 0
A54: Incremental OM&A (Ongoing) | C54: 0 | D54: 0 | E54: 0 | F54: 0 | G54: 0 | H54: 0 | I54: 0 | J54: 0 | K54: 0 | L54: 0
A56: Project 5
A57: Name: REI Connection Project
A58: Capital Costs | C58: 0 | D58: 0 | E58: 0 | F58: 0 | G58: 0 | H58: 0 | I58: 0 | J58: 0 | K58: 0 | L58: 0
A59: Incremental OM&A (Start-Up) | C59: 0 | D59: 0 | E59: 0 | F59: 0 | G59: 0 | H59: 0 | I59: 0 | J59: 0 | K59: 0 | L59: 0
A60: Incremental OM&A (Ongoing) | C60: 0 | D60: 0 | E60: 0 | F60: 0 | G60: 0 | H60: 0 | I60: 0 | J60: 0 | K60: 0 | L60: 0
A62: Total Capital Costs | C62: =SUM(C58,C52,C46,C40,C34) -> 0 | D62: 0 | E62: 0 | F62: 0 | G62: 0 | H62: 0 | I62: 0 | J62: 0 | K62: 0 | L62: 0
A63: Total Incremental OM&A (Start-Up) | C63: 0 | D63: 0 | E63: 0 | F63: 0 | G63: 0 | H63: 0 | I63: 0 | J63: 0 | K63: 0 | L63: 0
A64: Total Incremental OM&A (Ongoing) | C64: 0 | D64: 0 | E64: 0 | F64: 0 | G64: 0 | H64: 0 | I64: 0 | J64: 0 | K64: 0 | L64: 0
A67: Part B | H67: Test Year
A68: Expansion Investments (Direct Benefit at 17%) | C68: =D68-1 -> 2017 | D68: =E68-1 -> 2018 | E68: =F68-1 -> 2019 | F68: =G68-1 -> 2020 | G68: =H68-1 -> 2021 | H68: =H31 -> 2022 | I68: =H68+1 -> 2023 | J68: =I68+1 -> 2024 | K68: =J68+1 -> 2025 | L68: =K68+1 -> 2026
A69: Project 1
A70: Name: Expansion Connection Project
A71: Capital Costs | C71: 0 | D71: 0 | E71: 0 | F71: 0 | G71: 0 | H71: 0 | I71: 0 | J71: 0 | K71: 0 | L71: 0
A72: Incremental OM&A (Start-Up) | C72: 0 | D72: 0 | E72: 0 | F72: 0 | G72: 0 | H72: 0 | I72: 0 | J72: 0 | K72: 0 | L72: 0
A73: Incremental OM&A (Ongoing) | C73: 0 | D73: 0 | E73: 0 | F73: 0 | G73: 0 | H73: 0 | I73: 0 | J73: 0 | K73: 0 | L73: 0
A75: Project 2
A76: Name: Expansion Connection Project
A77: Capital Costs | C77: 0 | D77: 0 | E77: 0 | F77: 0 | G77: 0 | H77: 0 | I77: 0 | J77: 0 | K77: 0 | L77: 0
A78: Incremental OM&A (Start-Up) | C78: 0 | D78: 0 | E78: 0 | F78: 0 | G78: 0 | H78: 0 | I78: 0 | J78: 0 | K78: 0 | L78: 0
A79: Incremental OM&A (Ongoing) | C79: 0 | D79: 0 | E79: 0 | F79: 0 | G79: 0 | H79: 0 | I79: 0 | J79: 0 | K79: 0 | L79: 0
A81: Project 3
A82: Name: Expansion Connection Project
A83: Capital Costs | C83: 0 | D83: 0 | E83: 0 | F83: 0 | G83: 0 | H83: 0 | I83: 0 | J83: 0 | K83: 0 | L83: 0
A84: Incremental OM&A (Start-Up) | C84: 0 | D84: 0 | E84: 0 | F84: 0 | G84: 0 | H84: 0 | I84: 0 | J84: 0 | K84: 0 | L84: 0
A85: Incremental OM&A (Ongoing) | C85: 0 | D85: 0 | E85: 0 | F85: 0 | G85: 0 | H85: 0 | I85: 0 | J85: 0 | K85: 0 | L85: 0
A87: Project 4
A88: Name: Expansion Connection Project
A89: Capital Costs | C89: 0 | D89: 0 | E89: 0 | F89: 0 | G89: 0 | H89: 0 | I89: 0 | J89: 0 | K89: 0 | L89: 0
A90: Incremental OM&A (Start-Up) | C90: 0 | D90: 0 | E90: 0 | F90: 0 | G90: 0 | H90: 0 | I90: 0 | J90: 0 | K90: 0 | L90: 0
A91: Incremental OM&A (Ongoing) | C91: 0 | D91: 0 | E91: 0 | F91: 0 | G91: 0 | H91: 0 | I91: 0 | J91: 0 | K91: 0 | L91: 0
A93: Project 5
A94: Name: Expansion Connection Project
A95: Capital Costs | C95: 0 | D95: 0 | E95: 0 | F95: 0 | G95: 0 | H95: 0 | I95: 0 | J95: 0 | K95: 0 | L95: 0
A96: Incremental OM&A (Start-Up) | C96: 0 | D96: 0 | E96: 0 | F96: 0 | G96: 0 | H96: 0 | I96: 0 | J96: 0 | K96: 0 | L96: 0
A97: Incremental OM&A (Ongoing) | C97: 0 | D97: 0 | E97: 0 | F97: 0 | G97: 0 | H97: 0 | I97: 0 | J97: 0 | K97: 0 | L97: 0
A99: Total Capital Costs | C99: =SUM(C95,C89,C83,C77,C71) -> 0 | D99: 0 | E99: 0 | F99: 0 | G99: 0 | H99: 0 | I99: 0 | J99: 0 | K99: 0 | L99: 0
A100: Total Incremental OM&A (Start-Up) | C100: 0 | D100: 0 | E100: 0 | F100: 0 | G100: 0 | H100: 0 | I100: 0 | J100: 0 | K100: 0 | L100: 0
A101: Total Incremental OM&A (Ongoing) | C101: 0 | D101: 0 | E101: 0 | F101: 0 | G101: 0 | H101: 0 | I101: 0 | J101: 0 | K101: 0 | L101: 0

Sheet App.2-FB Calc of REG Improvemnt
R1: File Number: | S1: 0
R2: Exhibit:
R3: Tab:
A4: TO BE UPDATED AT DRAFT RATE ORDER STAGE | R4: Schedule:
R5: Page:
R7: Date:
A9: Appendix 2-FB
A10: Calculation of Renewable Generation Connection Direct Benefits/Provincial Amount: Renewable Enabling Improvement Investments
A12: This table will calculate the distributor/provincial shares of the investments entered in Part A of Appendix 2-FA.
A13: Enter values in green shaded cells: WCA percentage, debt percentages, interest rates, kWh, tax rates, amortization period, CCA Class and percentage.
A14: For historical investments, enter these variables that were approved in your last cost of service test year. For 2021 and beyond, enter variables as in the application.
A15: Rate Riders related to the direct benefit portion of the renewable investments are not calculated for the Test Year as these assets and costs are already in the distributor's rate base/revenue requirement.
S16: Test Year
D17: =G17-1 -> 2017 | G17: =J17-1 -> 2018 | J17: =M17-1 -> 2019 | M17: =P17-1 -> 2020 | P17: =S17-1 -> 2021 | S17: ='LDC Info'!$E$24 -> 2022 | V17: =S17+1 -> 2023 | Y17: =V17+1 -> 2024 | Z17: 2016 | AB17: =Y17+1 -> 2025 | AE17: =AB17+1 -> 2026 | AH17: =AE17+1 -> 2027
E18: Direct Benefit | F18: Provincial | H18: Direct Benefit | I18: Provincial | K18: Direct Benefit | L18: Provincial | N18: Direct Benefit | O18: Provincial | Q18: Direct Benefit | R18: Provincial | T18: Direct Benefit | U18: Provincial | W18: Direct Benefit | X18: Provincial | Z18: Direct Benefit | AA18: Provincial | AC18: Direct Benefit | AD18: Provincial | AF18: Direct Benefit | AG18: Provincial | AI18: Direct Benefit | AJ18: Provincial
D19: Total | E19: 0.06 | F19: 0.94 | G19: Total | H19: 0.06 | I19: 0.94 | J19: Total | K19: 0.06 | L19: 0.94 | M19: Total | N19: 0.06 | O19: 0.94 | P19: Total | Q19: 0.06 | R19: 0.94 | S19: Total | T19: 0.06 | U19: 0.94 | V19: Total | W19: 0.06 | X19: 0.94 | Y19: Total | Z19: 0.06 | AA19: 0.94 | AB19: Total | AC19: 0.06 | AD19: 0.94 | AE19: Total | AF19: 0.06 | AG19: 0.94 | AH19: Total | AI19: 0.06 | AJ19: 0.94
A20: Net Fixed Assets (average) | D20: =E83 -> 0 | E20: =D20*E19 -> 0 | F20: =D20*F19 -> 0 | G20: =F83 -> 0 | H20: =G20*H19 -> 0 | I20: =G20*I19 -> 0 | J20: =G83 -> 0 | K20: =J20*K19 -> 0 | L20: =J20*L19 -> 0 | M20: =H83 -> 0 | N20: =M20*N19 -> 0 | O20: =M20*O19 -> 0 | P20: =I83 -> 0 | Q20: =P20*Q19 -> 0 | R20: =P20*R19 -> 0 | S20: =J83 -> 0 | T20: =S20*T19 -> 0 | U20: =S20*U19 -> 0 | V20: =K83 -> 0 | W20: =V20*W19 -> 0 | X20: =V20*X19 -> 0 | Y20: =L83 -> 0 | Z20: =Y20*Z19 -> 0 | AA20: =Y20*AA19 -> 0 | AB20: =M83 -> 0 | AC20: =AB20*AC19 -> 0 | AD20: =AB20*AD19 -> 0 | AE20: =N83 -> 0 | AF20: =AE20*AF19 -> 0 | AG20: =AE20*AG19 -> 0 | AH20: =O83 -> 0 | AI20: =AH20*AI19 -> 0 | AJ20: =AH20*AJ19 -> 0
A21: Incremental OM&A (on-going, N/A for Provincial Recovery) | D21: 0 | E21: =D21*E19 -> 0 | F21: =D21*F19 -> 0 | G21: 0 | H21: =G21*H19 -> 0 | I21: =G21*I19 -> 0 | J21: 0 | K21: =J21*K19 -> 0 | L21: =J21*L19 -> 0 | M21: 0 | N21: =M21*N19 -> 0 | O21: =M21*O19 -> 0 | P21: 0 | Q21: =P21*Q19 -> 0 | R21: =P21*R19 -> 0 | S21: 0 | T21: =S21*T19 -> 0 | U21: =S21*U19 -> 0 | V21: 0 | W21: =V21*W19 -> 0 | X21: =V21*X19 -> 0 | Y21: 0 | Z21: =Y21*Z19 -> 0 | AA21: =Y21*AA19 -> 0 | AB21: 0 | AC21: =AB21*AC19 -> 0 | AD21: =AB21*AD19 -> 0 | AE21: 0 | AF21: =AE21*AF19 -> 0 | AG21: =AE21*AG19 -> 0 | AH21: 0 | AI21: =AH21*AI19 -> 0 | AJ21: =AH21*AJ19 -> 0
A22: Incremental OM&A (start-up, applicable for Provincial Recovery) | D22: 0 | E22: =D22*E19 -> 0 | F22: =D22*F19 -> 0 | G22: 0 | H22: =G22*H19 -> 0 | I22: =G22*I19 -> 0 | J22: 0 | K22: =J22*K19 -> 0 | L22: =J22*L19 -> 0 | M22: 0 | N22: =M22*N19 -> 0 | O22: =M22*O19 -> 0 | P22: 0 | Q22: =P22*Q19 -> 0 | R22: =P22*R19 -> 0 | S22: 0 | T22: =S22*T19 -> 0 | U22: =S22*U19 -> 0 | V22: 0 | W22: =V22*W19 -> 0 | X22: =V22*X19 -> 0 | Y22: 0 | Z22: =Y22*Z19 -> 0 | AA22: =Y22*AA19 -> 0 | AB22: 0 | AC22: =AB22*AC19 -> 0 | AD22: =AB22*AD19 -> 0 | AE22: 0 | AF22: =AE22*AF19 -> 0 | AG22: =AE22*AG19 -> 0 | AH22: 0 | AI22: =AH22*AI19 -> 0 | AJ22: =AH22*AJ19 -> 0
A23: Rebasing Year vs. Test Year | B23: ='LDC Info'!E28 -> 2017 | C23: ='LDC Info'!E24 -> 2022
A24: Allowance for Working Capital (enter rate) | E24: =IF(AND(D$17>=$B$23, D$17<$C$23),(E21+E22)*$B$24,(E21+E22)*$C$24) -> 0 | F24: =IF(AND(D$17>=$B$23, D$17<$C$23),(F22)*$B$24,(F22)*$C$24) -> 0 | H24: =IF(AND(G$17>=$B$23, G$17<$C$23),(H21+H22)*$B$24,(H21+H22)*$C$24) -> 0 | I24: =IF(AND(G$17>=$B$23, G$17<$C$23),(I22)*$B$24,(I22)*$C$24) -> 0 | K24: =IF(AND(J$17>=$B$23, J$17<$C$23),(K21+K22)*$B$24,(K21+K22)*$C$24) -> 0 | L24: =IF(AND(J$17>=$B$23, J$17<$C$23),(L22)*$B$24,(L22)*$C$24) -> 0 | N24: =IF(AND(M$17>=$B$23, M$17<$C$23),(N21+N22)*$B$24,(N21+N22)*$C$24) -> 0 | O24: =IF(AND(M$17>=$B$23, M$17<$C$23),(O22)*$B$24,(O22)*$C$24) -> 0 | Q24: =IF(AND(P$17>=$B$23, P$17<$C$23),(Q21+Q22)*$B$24,(Q21+Q22)*$C$24) -> 0 | R24: =IF(AND(P$17>=$B$23, P$17<$C$23),(R22)*$B$24,(R22)*$C$24) -> 0 | T24: =IF(AND(S$17>=$B$23, S$17<$C$23),(T21+T22)*$B$24,(T21+T22)*$C$24) -> 0 | U24: =IF(AND(S$17>=$B$23, S$17<$C$23),(U22)*$B$24,(U22)*$C$24) -> 0 | W24: =IF(AND(V$17>=$B$23, V$17<$C$23),(W21+W22)*$B$24,(W21+W22)*$C$24) -> 0 | X24: =IF(AND(V$17>=$B$23, V$17<$C$23),(X22)*$B$24,(X22)*$C$24) -> 0 | Z24: =IF(AND(Y$17>=$B$23, Y$17<$C$23),(Z21+Z22)*$B$24,(Z21+Z22)*$C$24) -> 0 | AA24: =IF(AND(Y$17>=$B$23, Y$17<$C$23),(AA22)*$B$24,(AA22)*$C$24) -> 0 | AC24: =IF(AND(AB$17>=$B$23, AB$17<$C$23),(AC21+AC22)*$B$24,(AC21+AC22)*$C$24) -> 0 | AD24: =IF(AND(AB$17>=$B$23, AB$17<$C$23),(AD22)*$B$24,(AD22)*$C$24) -> 0 | AF24: =IF(AND(AE$17>=$B$23, AE$17<$C$23),(AF21+AF22)*$B$24,(AF21+AF22)*$C$24) -> 0 | AG24: =IF(AND(AE$17>=$B$23, AE$17<$C$23),(AG22)*$B$24,(AG22)*$C$24) -> 0 | AI24: =IF(AND(AH$17>=$B$23, AH$17<$C$23),(AI21+AI22)*$B$24,(AI21+AI22)*$C$24) -> 0 | AJ24: =IF(AND(AH$17>=$B$23, AH$17<$C$23),(AJ22)*$B$24,(AJ22)*$C$24) -> 0
A25: Rate Base | E25: =SUM(E20+E24) -> 0 | F25: =SUM(F20+F24) -> 0 | H25: =SUM(H20+H24) -> 0 | I25: =SUM(I20+I24) -> 0 | K25: =SUM(K20+K24) -> 0 | L25: =SUM(L20+L24) -> 0 | N25: =SUM(N20+N24) -> 0 | O25: =SUM(O20+O24) -> 0 | Q25: =SUM(Q20+Q24) -> 0 | R25: =SUM(R20+R24) -> 0 | T25: =SUM(T20+T24) -> 0 | U25: =SUM(U20+U24) -> 0 | W25: =SUM(W20+W24) -> 0 | X25: =SUM(X20+X24) -> 0 | Z25: =SUM(Z20+Z24) -> 0 | AA25: =SUM(AA20+AA24) -> 0 | AC25: =SUM(AC20+AC24) -> 0 | AD25: =SUM(AD20+AD24) -> 0 | AF25: =SUM(AF20+AF24) -> 0 | AG25: =SUM(AG20+AG24) -> 0 | AI25: =SUM(AI20+AI24) -> 0 | AJ25: =SUM(AJ20+AJ24) -> 0
A27: Rebasing Year vs. Test Year | B27: =B23 -> 2017 | C27: =C23 -> 2022
A28: Deemed ST Debt | B28: 0.04 | C28: 0.04 | E28: =E25*$B$28 -> 0 | F28: =F25*$B$28 -> 0 | H28: =H25*$B$28 -> 0 | I28: =I25*$B$28 -> 0 | K28: =K25*$B$28 -> 0 | L28: =L25*$B$28 -> 0 | N28: =N25*$B$28 -> 0 | O28: =O25*$B$28 -> 0 | Q28: =Q25*$B$28 -> 0 | R28: =R25*$B$28 -> 0 | T28: =T25*$C$28 -> 0 | U28: =U25*$C$28 -> 0 | W28: =W25*$C$28 -> 0 | X28: =X25*$C$28 -> 0 | Z28: =Z25*$C$28 -> 0 | AA28: =AA25*$C$28 -> 0 | AC28: =AC25*$C$28 -> 0 | AD28: =AD25*$C$28 -> 0 | AF28: =AF25*$C$28 -> 0 | AG28: =AG25*$C$28 -> 0 | AI28: =AI25*$C$28 -> 0 | AJ28: =AJ25*$C$28 -> 0
A29: Deemed LT Debt | B29: 0.56 | C29: 0.56 | E29: =E25*$B$29 -> 0 | F29: =F25*$B$29 -> 0 | H29: =H25*$B$29 -> 0 | I29: =I25*$B$29 -> 0 | K29: =K25*$B$29 -> 0 | L29: =L25*$B$29 -> 0 | N29: =N25*$B$29 -> 0 | O29: =O25*$B$29 -> 0 | Q29: =Q25*$B$29 -> 0 | R29: =R25*$B$29 -> 0 | T29: =T25*$C$29 -> 0 | U29: =U25*$C$29 -> 0 | W29: =W25*$C$29 -> 0 | X29: =X25*$C$29 -> 0 | Z29: =Z25*$C$29 -> 0 | AA29: =AA25*$C$29 -> 0 | AC29: =AC25*$C$29 -> 0 | AD29: =AD25*$C$29 -> 0 | AF29: =AF25*$C$29 -> 0 | AG29: =AG25*$C$29 -> 0 | AI29: =AI25*$C$29 -> 0 | AJ29: =AJ25*$C$29 -> 0
A30: Deemed Equity | B30: 0.4 | C30: 0.4 | E30: =E25*$B$30 -> 0 | F30: =F25*$B$30 -> 0 | H30: =H25*$B$30 -> 0 | I30: =I25*$B$30 -> 0 | K30: =K25*$B$30 -> 0 | L30: =L25*$B$30 -> 0 | N30: =N25*$B$30 -> 0 | O30: =O25*$B$30 -> 0 | Q30: =Q25*$B$30 -> 0 | R30: =R25*$B$30 -> 0 | T30: =T25*$C$30 -> 0 | U30: =U25*$C$30 -> 0 | W30: =W25*$C$30 -> 0 | X30: =X25*$C$30 -> 0 | Z30: =Z25*$C$30 -> 0 | AA30: =AA25*$C$30 -> 0 | AC30: =AC25*$C$30 -> 0 | AD30: =AD25*$C$30 -> 0 | AF30: =AF25*$C$30 -> 0 | AG30: =AG25*$C$30 -> 0 | AI30: =AI25*$C$30 -> 0 | AJ30: =AJ25*$C$30 -> 0
A32: ST Interest (enter rate) | E32: =E28*$B32 -> 0 | F32: 0 | H32: 0 | I32: 0 | K32: 0 | L32: 0 | N32: 0 | O32: 0 | Q32: 0 | R32: 0 | T32: =T28*$C32 -> 0 | U32: 0 | W32: =W28*$C32 -> 0 | X32: 0 | Z32: =Z28*$C32 -> 0 | AA32: 0 | AC32: =AC28*$C32 -> 0 | AD32: 0 | AF32: =AF28*$C32 -> 0 | AG32: 0 | AI32: =AI28*$C32 -> 0 | AJ32: 0
A33: LT Interest (enter rate) | E33: 0 | F33: 0 | H33: 0 | I33: 0 | K33: 0 | L33: 0 | N33: 0 | O33: 0 | Q33: 0 | R33: 0 | T33: 0 | U33: 0 | W33: 0 | X33: 0 | Z33: 0 | AA33: 0 | AC33: 0 | AD33: 0 | AF33: 0 | AG33: 0 | AI33: =AI29*$C33 -> 0 | AJ33: 0
A34: Return on Equity (enter rate) | E34: 0 | F34: 0 | H34: 0 | I34: 0 | K34: 0 | L34: 0 | N34: 0 | O34: 0 | Q34: 0 | R34: 0 | T34: 0 | U34: 0 | W34: 0 | X34: 0 | Z34: 0 | AA34: 0 | AC34: 0 | AD34: 0 | AF34: 0 | AG34: 0 | AI34: =AI30*$C34 -> 0 | AJ34: 0
A35: Cost of Capital Total | E35: =SUM(E32:E34) -> 0 | F35: =SUM(F32:F34) -> 0 | H35: =SUM(H32:H34) -> 0 | I35: =SUM(I32:I34) -> 0 | K35: =SUM(K32:K34) -> 0 | L35: =SUM(L32:L34) -> 0 | N35: =SUM(N32:N34) -> 0 | O35: =SUM(O32:O34) -> 0 | Q35: =SUM(Q32:Q34) -> 0 | R35: =SUM(R32:R34) -> 0 | T35: =SUM(T32:T34) -> 0 | U35: =SUM(U32:U34) -> 0 | W35: =SUM(W32:W34) -> 0 | X35: =SUM(X32:X34) -> 0 | Z35: =SUM(Z32:Z34) -> 0 | AA35: =SUM(AA32:AA34) -> 0 | AC35: =SUM(AC32:AC34) -> 0 | AD35: =SUM(AD32:AD34) -> 0 | AF35: =SUM(AF32:AF34) -> 0 | AG35: =SUM(AG32:AG34) -> 0 | AI35: =SUM(AI32:AI34) -> 0 | AJ35: =SUM(AJ32:AJ34) -> 0
A37: OM&A | E37: =E21+E22 -> 0 | F37: =F22 -> 0 | H37: =H21+H22 -> 0 | I37: =I22 -> 0 | K37: =K21+K22 -> 0 | L37: =L22 -> 0 | N37: =N21+N22 -> 0 | O37: =O22 -> 0 | Q37: =Q21+Q22 -> 0 | R37: =R22 -> 0 | T37: =T21+T22 -> 0 | U37: =U22 -> 0 | W37: =W21+W22 -> 0 | X37: =X22 -> 0 | Z37: =Z21+Z22 -> 0 | AA37: =AA22 -> 0 | AC37: =AC21+AC22 -> 0 | AD37: =AD22 -> 0 | AF37: =AF21+AF22 -> 0 | AG37: =AG22 -> 0 | AI37: =AI21+AI22 -> 0 | AJ37: =AJ22 -> 0
A38: Amortization | D38: =+E77+E78 -> 0 | E38: =D38*E$19 -> 0 | F38: =D38*F$19 -> 0 | G38: =+F77+F78 -> 0 | H38: =G38*H$19 -> 0 | I38: =G38*I$19 -> 0 | J38: =+G77+G78 -> 0 | K38: =J38*K$19 -> 0 | L38: =J38*L$19 -> 0 | M38: =+H77+H78 -> 0 | N38: =M38*N$19 -> 0 | O38: =M38*O$19 -> 0 | P38: =+I77+I78 -> 0 | Q38: =P38*Q$19 -> 0 | R38: =P38*R$19 -> 0 | S38: =+J77+J78 -> 0 | T38: =S38*T$19 -> 0 | U38: =S38*U$19 -> 0 | V38: =+K77+K78 -> 0 | W38: =V38*W$19 -> 0 | X38: =V38*X$19 -> 0 | Y38: =+L77+L78 -> 0 | Z38: =Y38*Z$19 -> 0 | AA38: =Y38*AA$19 -> 0 | AB38: =+M77+M78 -> 0 | AC38: =AB38*AC$19 -> 0 | AD38: =AB38*AD$19 -> 0 | AE38: =+N77+N78 -> 0 | AF38: =AE38*AF$19 -> 0 | AG38: =AE38*AG$19 -> 0 | AH38: =+O77+O78 -> 0 | AI38: =AH38*AI$19 -> 0 | AJ38: =AH38*AJ$19 -> 0
A39: Grossed-up PILs | E39: =+E66 -> 0 | F39: =+F66 -> 0 | H39: =+H66 -> 0 | I39: =+I66 -> 0 | K39: =+K66 -> 0 | L39: =+L66 -> 0 | N39: =+N66 -> 0 | O39: =+O66 -> 0 | Q39: =+Q66 -> 0 | R39: =+R66 -> 0 | T39: =+T66 -> 0 | U39: =+U66 -> 0 | W39: =+W66 -> 0 | X39: =+X66 -> 0 | Z39: =+Z66 -> 0 | AA39: =+AA66 -> 0 | AC39: =+AC66 -> 0 | AD39: =+AD66 -> 0 | AF39: =+AF66 -> 0 | AG39: =+AG66 -> 0 | AI39: =+AI66 -> 0 | AJ39: =+AJ66 -> 0
A41: Revenue Requirement | E41: =SUM(E35:E39) -> 0 | F41: =SUM(F35:F39) -> 0 | H41: =SUM(H35:H39) -> 0 | I41: 0 | K41: =SUM(K35:K39) -> 0 | L41: 0 | N41: =SUM(N35:N39) -> 0 | O41: 0 | Q41: =SUM(Q35:Q39) -> 0 | R41: 0 | T41: =SUM(T35:T39) -> 0 | U41: 0 | W41: =SUM(W35:W39) -> 0 | X41: 0 | Z41: =SUM(Z35:Z39) -> 0 | AA41: 0 | AC41: =SUM(AC35:AC39) -> 0 | AD41: 0 | AF41: =SUM(AF35:AF39) -> 0 | AG41: 0 | AI41: =SUM(AI35:AI39) -> 0 | AJ41: 0
A44: Provincial Rate Protection | F44: =F41 -> 0 | I44: =I41 -> 0 | L44: =L41 -> 0 | O44: =O41 -> 0 | R44: =R41 -> 0 | U44: =U41 -> 0 | X44: =X41 -> 0 | AA44: =AA41 -> 0 | AD44: =AD41 -> 0 | AG44: =AG41 -> 0 | AJ44: =AJ41 -> 0
A46: Monthly Amount Paid by IESO | F46: =F44/12 -> 0 | I46: =I44/12 -> 0 | L46: =L44/12 -> 0 | O46: =O44/12 -> 0 | R46: =R44/12 -> 0 | U46: =U44/12 -> 0 | X46: =X44/12 -> 0 | AA46: =AA44/12 -> 0 | AD46: =AD44/12 -> 0 | AG46: =AG44/12 -> 0 | AJ46: =AJ44/12 -> 0
A48: Note 1: The distributor should follow the regulatory accounting set out in the Accounting Procedure Handbook Guidance FAQs issued in March 2015. Q10 of the APH FAQs states that: “For approved eligible investments as defined under O.Reg. 330/09 under the OEB Act, a variance account will continue to be used for the purpose of recording variances between the revenue requirement based on actual costs of approved eligible investments and the revenue received from the IESO.” The answer for Q10 provides the accounting guidance for this variance account: “Distributors that have included eligible investments to connect qualifying facilities in their DS plans are to establish the variance Account 1533 Renewable Generation Connection Funding Adder Deferral Account, Sub-account Provincial Rate Protection Payment Variances following OEB approval for investments forecast to enter service beyond the test year for purposes of implementing rate protection pursuant to O.Reg. 330/09. The purpose of this variance account is to track the variance between the distributor’s revenue requirement associated with the portion of the actual capital and/or operating costs that are eligible for rate protection, as incurred by the distributor for eligible renewable enabling and expansion investments, and the rate protection payments collected from the IESO.” The answer further provides the journal entries to record the variances. Distributors should follow the instructions in the answer for recording the journal entries in the variance account 1533.
A50: Note 2: For the Test Year, Costs and Revenues of the Direct Benefit are to be included in the test year applicant Rate Base and Revenues.
A52: PILs Calculation | T52: Test Year
E53: =G17-1 -> 2017 | H53: =G17 -> 2018 | K53: =J17 -> 2019 | N53: =M17 -> 2020 | Q53: =P17 -> 2021 | T53: =S17 -> 2022 | W53: =V17 -> 2023 | Z53: =Y17 -> 2024 | AC53: =AB17 -> 2025 | AF53: =AE17 -> 2026 | AI53: =AH17 -> 2027
A54: Income Tax | E54: Direct Benefit | F54: Provincial | H54: Direct Benefit | I54: Provincial | K54: Direct Benefit | L54: Provincial | N54: Direct Benefit | O54: Provincial | Q54: Direct Benefit | R54: Provincial | T54: Direct Benefit | U54: Provincial | W54: Direct Benefit | X54: Provincial | Z54: Direct Benefit | AA54: Provincial | AC54: Direct Benefit | AD54: Provincial | AF54: Direct Benefit | AG54: Provincial | AI54: Direct Benefit | AJ54: Provincial
AB55: Total | AE55: Total | AH55: Total
A56: Net Income - ROE on Rate Base | E56: =E34 -> 0 | F56: =F34 -> 0 | H56: =H34 -> 0 | I56: =I34 -> 0 | K56: =K34 -> 0 | L56: =L34 -> 0 | N56: =N34 -> 0 | O56: =O34 -> 0 | Q56: =Q34 -> 0 | R56: =R34 -> 0 | T56: =T34 -> 0 | U56: =U34 -> 0 | W56: =W34 -> 0 | X56: =X34 -> 0 | Z56: =Z34 -> 0 | AA56: =AA34 -> 0 | AC56: =AC34 -> 0 | AD56: =AD34 -> 0 | AF56: =AF34 -> 0 | AG56: =AG34 -> 0 | AI56: =AI34 -> 0 | AJ56: =AJ34 -> 0
A57: Amortization (6% DB and 94% P) | E57: =E38 -> 0 | F57: =F38 -> 0 | H57: =H38 -> 0 | I57: =I38 -> 0 | K57: =K38 -> 0 | L57: =L38 -> 0 | N57: =N38 -> 0 | O57: =O38 -> 0 | Q57: =Q38 -> 0 | R57: =R38 -> 0 | T57: =T38 -> 0 | U57: =U38 -> 0 | W57: =W38 -> 0 | X57: =X38 -> 0 | Z57: =Z38 -> 0 | AA57: =AA38 -> 0 | AC57: =AC38 -> 0 | AD57: =AD38 -> 0 | AF57: =AF38 -> 0 | AG57: =AG38 -> 0 | AI57: =AI38 -> 0 | AJ57: =AJ38 -> 0
A58: CCA (6% DB and 94% P) | E58: =-E95*$E$19 -> 0 | F58: =-E95*$F$19 -> 0 | H58: =-F95*$E$19 -> 0 | I58: =-F95*$F$19 -> 0 | K58: =-G95*$E$19 -> 0 | L58: =-G95*$F$19 -> 0 | N58: =-H95*$E$19 -> 0 | O58: =-H95*$F$19 -> 0 | Q58: =-I95*$E$19 -> 0 | R58: =-I95*$F$19 -> 0 | T58: =-J95*$E$19 -> 0 | U58: =-J95*$F$19 -> 0 | W58: =-K95*$E$19 -> 0 | X58: =-K95*$F$19 -> 0 | Z58: =-L95*$E$19 -> 0 | AA58: =-L95*$F$19 -> 0 | AC58: =-M95*$E$19 -> 0 | AD58: =-M95*$F$19 -> 0 | AF58: =-N95*$E$19 -> 0 | AG58: =-N95*$F$19 -> 0 | AI58: =-Q95*$E$19 -> 0 | AJ58: =-Q95*$F$19 -> 0
A59: Taxable income | E59: =SUM(E56:E58) -> 0 | F59: =SUM(F56:F58) -> 0 | H59: =SUM(H56:H58) -> 0 | I59: 0 | K59: =SUM(K56:K58) -> 0 | L59: 0 | N59: =SUM(N56:N58) -> 0 | O59: 0 | Q59: =SUM(Q56:Q58) -> 0 | R59: 0 | T59: =SUM(T56:T58) -> 0 | U59: 0 | W59: =SUM(W56:W58) -> 0 | X59: 0 | Z59: =SUM(Z56:Z58) -> 0 | AA59: =SUM(AA56:AA58) -> 0 | AC59: =SUM(AC56:AC58) -> 0 | AD59: =SUM(AD56:AD58) -> 0 | AF59: =SUM(AF56:AF58) -> 0 | AG59: =SUM(AG56:AG58) -> 0 | AI59: =SUM(AI56:AI58) -> 0 | AJ59: =SUM(AJ56:AJ58) -> 0
B60: =B27 -> 2017 | C60: =C27 -> 2022
A61: Tax Rate (to be entered) | E61: =IF(AND(E$53>=$B$60, E$53<$C$60),$B$61,$C$61) -> 0 | F61: =IF(AND(E$53>=$B$60, E$53<$C$60),$B$61,$C$61) -> 0 | H61: =IF(AND(H$53>=$B$60, H$53<$C$60),$B$61,$C$61) -> 0 | I61: =IF(AND(H$53>=$B$60, H$53<$C$60),$B$61,$C$61) -> 0 | K61: =IF(AND(K$53>=$B$60, K$53<$C$60),$B$61,$C$61) -> 0 | L61: =IF(AND(K$53>=$B$60, K$53<$C$60),$B$61,$C$61) -> 0 | N61: =IF(AND(N$53>=$B$60, N$53<$C$60),$B$61,$C$61) -> 0 | O61: =IF(AND(N$53>=$B$60, N$53<$C$60),$B$61,$C$61) -> 0 | Q61: =IF(AND(Q$53>=$B$60, Q$53<$C$60),$B$61,$C$61) -> 0 | R61: =IF(AND(Q$53>=$B$60, Q$53<$C$60),$B$61,$C$61) -> 0 | T61: =IF(AND(T$53>=$B$60, T$53<$C$60),$B$61,$C$61) -> 0 | U61: =IF(AND(T$53>=$B$60, T$53<$C$60),$B$61,$C$61) -> 0 | W61: =IF(AND(W$53>=$B$60, W$53<$C$60),$B$61,$C$61) -> 0 | X61: =IF(AND(W$53>=$B$60, W$53<$C$60),$B$61,$C$61) -> 0 | Z61: =IF(AND(Z$53>=$B$60, Z$53<$C$60),$B$61,$C$61) -> 0 | AA61: =IF(AND(Z$53>=$B$60, Z$53<$C$60),$B$61,$C$61) -> 0 | AC61: =IF(AND(AC$53>=$B$60, AC$53<$C$60),$B$61,$C$61) -> 0 | AD61: =IF(AND(AC$53>=$B$60, AC$53<$C$60),$B$61,$C$61) -> 0 | AF61: =IF(AND(AF$53>=$B$60, AF$53<$C$60),$B$61,$C$61) -> 0 | AG61: =IF(AND(AF$53>=$B$60, AF$53<$C$60),$B$61,$C$61) -> 0 | AI61: =IF(AND(AI$53>=$B$60, AI$53<$C$60),$B$61,$C$61) -> 0 | AJ61: =IF(AND(AI$53>=$B$60, AI$53<$C$60),$B$61,$C$61) -> 0
A63: Income Taxes Payable | E63: =E59*E61 -> 0 | F63: =F59*F61 -> 0 | H63: =H59*H61 -> 0 | I63: =I59*I61 -> 0 | K63: =K59*K61 -> 0 | L63: =L59*L61 -> 0 | N63: =N59*N61 -> 0 | O63: =O59*O61 -> 0 | Q63: =Q59*Q61 -> 0 | R63: =R59*R61 -> 0 | T63: =T59*T61 -> 0 | U63: =U59*U61 -> 0 | W63: =W59*W61 -> 0 | X63: =X59*X61 -> 0 | Z63: =Z59*Z61 -> 0 | AA63: =AA59*AA61 -> 0 | AC63: =AC59*AC61 -> 0 | AD63: =AD59*AD61 -> 0 | AF63: =AF59*AF61 -> 0 | AG63: =AG59*AG61 -> 0 | AI63: =AI59*AI61 -> 0 | AJ63: =AJ59*AJ61 -> 0
A64: Gross Up
A65: Income Taxes Payable | E65: =E63/(1-E61) -> 0 | F65: =F63/(1-F61) -> 0 | H65: =H63/(1-H61) -> 0 | I65: =I63/(1-I61) -> 0 | K65: =K63/(1-K61) -> 0 | L65: =L63/(1-L61) -> 0 | N65: =N63/(1-N61) -> 0 | O65: =O63/(1-O61) -> 0 | Q65: =Q63/(1-Q61) -> 0 | R65: =R63/(1-R61) -> 0 | T65: =T63/(1-T61) -> 0 | U65: =U63/(1-U61) -> 0 | W65: =W63/(1-W61) -> 0 | X65: =X63/(1-X61) -> 0 | Z65: =Z63/(1-Z61) -> 0 | AA65: =AA63/(1-AA61) -> 0 | AC65: =AC63/(1-AC61) -> 0 | AD65: =AD63/(1-AD61) -> 0 | AF65: =AF63/(1-AF61) -> 0 | AG65: =AG63/(1-AG61) -> 0 | AI65: =AI63/(1-AI61) -> 0 | AJ65: =AJ63/(1-AJ61) -> 0
A66: Grossed Up PILs | E66: =+E65 -> 0 | F66: =+F65 -> 0 | H66: =+H65 -> 0 | I66: =+I65 -> 0 | K66: =+K65 -> 0 | L66: 0 | N66: =+N65 -> 0 | O66: 0 | Q66: =+Q65 -> 0 | R66: 0 | T66: =+T65 -> 0 | U66: 0 | W66: =+W65 -> 0 | X66: 0 | Z66: =+Z65 -> 0 | AA66: 0 | AC66: =+AC65 -> 0 | AD66: 0 | AF66: =+AF65 -> 0 | AG66: 0 | AI66: =+AI65 -> 0 | AJ66: 0
J68: Test Year
E69: =F69-1 -> 2017 | F69: =G69-1 -> 2018 | G69: =H69-1 -> 2019 | H69: =I69-1 -> 2020 | I69: =J69-1 -> 2021 | J69: ='LDC Info'!E24 -> 2022 | K69: =J69+1 -> 2023 | L69: =K69+1 -> 2024 | M69: =L69+1 -> 2025 | N69: =M69+1 -> 2026 | O69: =N69+1 -> 2027
A70: Net Fixed Assets
A71: Enter applicable amortization in years: | B71: 40
A72: Opening Gross Fixed Assets | F72: =E74 -> 0 | G72: 0 | H72: 0 | I72: 0 | J72: 0 | K72: 0 | L72: 0 | M72: 0 | N72: 0 | O72: 0
A73: Capital Additions | E73: ='App.2-FA Proposed REG Invest.'!C62 -> 0 | F73: ='App.2-FA Proposed REG Invest.'!D62 -> 0 | G73: ='App.2-FA Proposed REG Invest.'!E62 -> 0 | H73: ='App.2-FA Proposed REG Invest.'!F62 -> 0 | I73: ='App.2-FA Proposed REG Invest.'!G62 -> 0 | J73: ='App.2-FA Proposed REG Invest.'!H62 -> 0 | K73: ='App.2-FA Proposed REG Invest.'!I62 -> 0 | L73: ='App.2-FA Proposed REG Invest.'!J62 -> 0 | M73: ='App.2-FA Proposed REG Invest.'!K62 -> 0 | N73: ='App.2-FA Proposed REG Invest.'!L62 -> 0 | O73: ='App.2-FA Proposed REG Invest.'!M62 -> 0
A74: Closing Gross Fixed Assets | E74: =SUM(E72:E73) -> 0 | F74: 0 | G74: 0 | H74: 0 | I74: 0 | J74: 0 | K74: 0 | L74: 0 | M74: 0 | N74: 0 | O74: =SUM(O72:O73) -> 0
A76: Opening Accumulated Amortization | F76: =+E79 -> 0 | G76: =+F79 -> 0 | H76: 0 | I76: 0 | J76: 0 | K76: 0 | L76: 0 | M76: 0 | N76: 0 | O76: 0
A77: Current Year Amortization (before additions) | E77: =IF(ISERROR(E72/$B$71), 0, E72/$B$71) -> 0 | F77: =IF(ISERROR(F72/$B$71), 0, F72/$B$71) -> 0 | G77: 0 | H77: 0 | I77: 0 | J77: 0 | K77: 0 | L77: 0 | M77: 0 | N77: 0 | O77: =IF(ISERROR(O72/$B$71), 0, O72/$B$71) -> 0
A78: Capital Additions Amortization (half year) | E78: =E73/$B$71/2 -> 0 | F78: =F73/$B$71/2 -> 0 | G78: 0 | H78: 0 | I78: 0 | J78: 0 | K78: 0 | L78: 0 | M78: 0 | N78: 0 | O78: =O73/$B$71/2 -> 0
A79: Closing Accumulated Amortization | E79: =SUM(E76+E77+E78) -> 0 | F79: 0 | G79: 0 | H79: 0 | I79: 0 | J79: 0 | K79: 0 | L79: 0 | M79: 0 | N79: 0 | O79: =SUM(O76+O77+O78) -> 0
A81: Opening Net Fixed Assets | E81: =E72-E76 -> 0 | F81: 0 | G81: 0 | H81: 0 | I81: 0 | J81: 0 | K81: 0 | L81: 0 | M81: 0 | N81: 0 | O81: =O72-O76 -> 0
A82: Closing Net Fixed Assets | E82: =E74-E79 -> 0 | F82: 0 | G82: 0 | H82: 0 | I82: 0 | J82: 0 | K82: 0 | L82: 0 | M82: 0 | N82: 0 | O82: =O74-O79 -> 0
A83: Average Net Fixed Assets | E83: =SUM(E81:E82)/2 -> 0 | F83: 0 | G83: 0 | H83: 0 | I83: 0 | J83: 0 | K83: 0 | L83: 0 | M83: 0 | N83: 0 | O83: =SUM(O81:O82)/2 -> 0
A85: UCC for PILs Calculation | J85: Test Year
E86: =E69 -> 2017 | F86: =F69 -> 2018 | G86: =G69 -> 2019 | H86: 2020 | I86: 2021 | J86: 2022 | K86: 2023 | L86: 2024 | M86: 2025 | N86: 2026 | O86: =O69 -> 2027
A88: Opening UCC | E88: =E72 -> 0 | F88: =E96 -> 0 | G88: 0 | H88: 0 | I88: 0 | J88: 0 | K88: 0 | L88: 0 | M88: 0 | N88: 0 | O88: 0
A89: Capital Additions | E89: =E73 -> 0 | F89: 0 | G89: 0 | H89: 0 | I89: 0 | J89: 0 | K89: 0 | L89: 0 | M89: 0 | N89: 0 | O89: =O73 -> 0
A90: UCC Before Half Year Rule | E90: =SUM(E88:E89) -> 0 | F90: 0 | G90: 0 | H90: 0 | I90: 0 | J90: 0 | K90: 0 | L90: 0 | M90: 0 | N90: 0 | O90: =SUM(O88:O89) -> 0
A91: Capital Additions (half year) | E91: =E89/2 -> 0 | F91: 0 | G91: 0 | H91: 0 | I91: 0 | J91: 0 | K91: 0 | L91: 0 | M91: 0 | N91: 0 | O91: =O89/2 -> 0
A92: Reduced UCC | E92: =E90-E91 -> 0 | F92: 0 | G92: 0 | H92: 0 | I92: 0 | J92: 0 | K92: 0 | L92: 0 | M92: 0 | N92: 0 | O92: =O90-O91 -> 0
A93: CCA Rate Class (to be entered)
A94: CCA Rate (to be entered)
A95: CCA | E95: =E92*$B$94 -> 0 | F95: =F92*$B$94 -> 0 | G95: 0 | H95: 0 | I95: 0 | J95: 0 | K95: 0 | L95: 0 | M95: 0 | N95: 0 | O95: =O92*$B$94 -> 0
A96: Closing UCC | E96: =E90-E95 -> 0 | F96: 0 | G96: 0 | H96: 0 | I96: 0 | J96: 0 | K96: 0 | L96: 0 | M96: 0 | N96: 0 | O96: =O90-O95 -> 0

Sheet App.2-FC Calc of REG Expansion
R1: File Number: | S1: 0
R2: Exhibit:
R3: Tab:
A4: TO BE UPDATED AT DRAFT RATE ORDER STAGE | R4: Schedule:
R5: Page:
R7: Date:
A9: Appendix 2-FC
A10: Calculation of Renewable Generation Connection Direct Benefits/Provincial Amount: Renewable Expansion Investments
A12: This table will calculate the distributor/provincial shares of the investments entered in Part B of Appendix 2-FA.
A13: Enter values in green shaded cells: WCA percentage, debt percentages, interest rates, kWh, tax rates, amortization period, CCA Class and percentage.
A14: For historical investments, enter these variables that were approved in your last cost of service test year. For 2021 and beyond, enter variables as in the application.
A15: Rate Riders related to the direct benefit portion of the renewable investments are not calculated for the Test Year as these assets and costs are already in the distributor's rate base/revenue requirement.
S16: Test Year
D17: =G17-1 -> 2017 | G17: =J17-1 -> 2018 | J17: =M17-1 -> 2019 | M17: =P17-1 -> 2020 | P17: =S17-1 -> 2021 | S17: ='LDC Info'!$E$24 -> 2022 | V17: =S17+1 -> 2023 | Y17: =V17+1 -> 2024 | Z17: 2016 | AB17: =Y17+1 -> 2025 | AE17: =AB17+1 -> 2026 | AH17: =AE17+1 -> 2027
E18: Direct Benefit | F18: Provincial | H18: Direct Benefit | I18: Provincial | K18: Direct Benefit | L18: Provincial | N18: Direct Benefit | O18: Provincial | Q18: Direct Benefit | R18: Provincial | T18: Direct Benefit | U18: Provincial | W18: Direct Benefit | X18: Provincial | Z18: Direct Benefit | AA18: Provincial | AC18: Direct Benefit | AD18: Provincial | AF18: Direct Benefit | AG18: Provincial | AI18: Direct Benefit | AJ18: Provincial
D19: Total | E19: 0.17 | F19: 0.83 | G19: Total | H19: 0.17 | I19: 0.83 | J19: Total | K19: 0.17 | L19: 0.83 | M19: Total | N19: 0.17 | O19: 0.83 | P19: Total | Q19: 0.17 | R19: 0.83 | S19: Total | T19: 0.17 | U19: 0.83 | V19: Total | W19: 0.17 | X19: 0.83 | Y19: Total | Z19: 0.17 | AA19: 0.83 | AB19: Total | AC19: 0.17 | AD19: 0.83 | AE19: Total | AF19: 0.17 | AG19: 0.83 | AH19: Total | AI19: 0.17 | AJ19: 0.83
A20: Net Fixed Assets (average) | D20: =E83 -> 0 | E20: =D20*E19 -> 0 | F20: =D20*F19 -> 0 | G20: =F83 -> 0 | H20: =G20*H19 -> 0 | I20: =G20*I19 -> 0 | J20: =G83 -> 0 | K20: =J20*K19 -> 0 | L20: =J20*L19 -> 0 | M20: =H83 -> 0 | N20: =M20*N19 -> 0 | O20: =M20*O19 -> 0 | P20: =I83 -> 0 | Q20: =P20*Q19 -> 0 | R20: =P20*R19 -> 0 | S20: =J83 -> 0 | T20: =S20*T19 -> 0 | U20: =S20*U19 -> 0 | V20: =K83 -> 0 | W20: =V20*W19 -> 0 | X20: =V20*X19 -> 0 | Y20: =L83 -> 0 | Z20: =Y20*Z19 -> 0 | AA20: =Y20*AA19 -> 0 | AB20: =M83 -> 0 | AC20: =AB20*AC19 -> 0 | AD20: =AB20*AD19 -> 0 | AE20: =N83 -> 0 | AF20: =AE20*AF19 -> 0 | AG20: =AE20*AG19 -> 0 | AH20: =O83 -> 0 | AI20: =AH20*AI19 -> 0 | AJ20: =AH20*AJ19 -> 0
A21: Incremental OM&A (on-going, N/A for Provincial Recovery) | D21: 0 | E21: =D21*E19 -> 0 | F21: =D21*F19 -> 0 | G21: 0 | H21: =G21*H19 -> 0 | I21: =G21*I19 -> 0 | J21: 0 | K21: =J21*K19 -> 0 | L21: =J21*L19 -> 0 | M21: 0 | N21: =M21*N19 -> 0 | O21: =M21*O19 -> 0 | P21: 0 | Q21: =P21*Q19 -> 0 | R21: =P21*R19 -> 0 | S21: 0 | T21: =S21*T19 -> 0 | U21: =S21*U19 -> 0 | V21: 0 | W21: =V21*W19 -> 0 | X21: =V21*X19 -> 0 | Y21: 0 | Z21: =Y21*Z19 -> 0 | AA21: =Y21*AA19 -> 0 | AB21: 0 | AC21: =AB21*AC19 -> 0 | AD21: =AB21*AD19 -> 0 | AE21: 0 | AF21: =AE21*AF19 -> 0 | AG21: =AE21*AG19 -> 0 | AH21: 0 | AI21: =AH21*AI19 -> 0 | AJ21: =AH21*AJ19 -> 0
A22: Incremental OM&A (start-up, applicable for Provincial Recovery) | D22: 0 | E22: =D22*E19 -> 0 | F22: =D22*F19 -> 0 | G22: 0 | H22: =G22*H19 -> 0 | I22: =G22*I19 -> 0 | J22: 0 | K22: =J22*K19 -> 0 | L22: =J22*L19 -> 0 | M22: 0 | N22: =M22*N19 -> 0 | O22: =M22*O19 -> 0 | P22: 0 | Q22: =P22*Q19 -> 0 | R22: =P22*R19 -> 0 | S22: 0 | T22: =S22*T19 -> 0 | U22: =S22*U19 -> 0 | V22: 0 | W22: =V22*W19 -> 0 | X22: =V22*X19 -> 0 | Y22: 0 | Z22: =Y22*Z19 -> 0 | AA22: =Y22*AA19 -> 0 | AB22: 0 | AC22: =AB22*AC19 -> 0 | AD22: =AB22*AD19 -> 0 | AE22: 0 | AF22: =AE22*AF19 -> 0 | AG22: =AE22*AG19 -> 0 | AH22: 0 | AI22: =AH22*AI19 -> 0 | AJ22: =AH22*AJ19 -> 0
A23: Rebasing Year vs. Test Year | B23: ='LDC Info'!E28 -> 2017 | C23: ='LDC Info'!E24 -> 2022
